Workbook

Sheet Results 2023
B1: Players Name | D1: Avg Score | E1: Plyd | F1: Score | G1: Pfaffing | H1: Erding | I1: Reichertshausen | J1: Tegernbach | K1: Iffeldorf | L1: Thailing | M1: Odelzhausen | N1: Aschheim | O1: Garmisch | P1: Erding | Q1: Thailing | R1: Iffeldorf | S1: Tegernbach | T1: Pfaffing | U1: Reichertshausen | V1: Aschheim | BF1: CC: Best 4 Scores | BJ1: TieBreak | BN1: Played | BO1: Total Pts | BQ1: 1st | BR1: 2nd | BS1: 3rd | BT1: Prize
G2: 2023-03-26 | H2: 2023-04-02 | I2: 2023-04-07 | J2: 2023-04-14 | K2: 2023-04-23 | L2: 2023-04-26 | M2: 2023-05-07 | N2: 2023-05-10 | O2: 2023-05-19 | P2: 2023-05-28 | Q2: 2023-05-31 | R2: 2023-06-04 | S2: 2023-06-09 | T2: 2023-06-18 | U2: 2023-06-23 | V2: 2023-06-28 | BF2: 1st | BG2: 2nd | BH2: 3rd | BI2: 4th | BJ2: 5th | BK2: 6th | BL2: Total | BM2: Rank | BN2: CC | BQ2: 15 | BR2: 10 | BS2: 5 | BT2: Money
B3: Anderson | C3: David | D3: =IF(BN3=0,0,BO3/BN3) -> 0 | E3: =COUNT(G3:AW3) -> 0 | F3: S'ford | BF3: =IF($BN3<1,0,LARGE($G3:$AW3,1)) -> 0 | BG3: =IF($BN3<2,0,LARGE($G3:$AW3,2)) -> 0 | BH3: =IF($BN3<3,0,LARGE($G3:$AW3,3)) -> 0 | BI3: =IF($BN3<4,0,LARGE($G3:$AW3,4)) -> 0 | BL3: =SUM(BF3:BI3) -> 0 | BM3: =RANK(BL3,$BL$3:$BL$279,0) -> 39 | BN3: =COUNT(G3:AW3) -> 0 | BO3: =SUM(G3:AW3) -> 0 | BT3: =(BQ3*$BQ$2)+(BR3*$BR$2)+(BS3*$BS$2) -> 0
F4: Ad Gr | M4: 89
F5: Place | BQ5: =COUNTIF($G5:$AW5,"=1") -> 0 | BR5: =COUNTIF($G5:$AW5,"=2") -> 0 | BS5: =COUNTIF($G5:$AW5,"=3") -> 0
B6: Bacelic | C6: Danijel | D6: =IF(BN6=0,0,BO6/BN6) -> 0 | E6: =COUNT(G6:AW6) -> 0 | F6: S'ford | BF6: =IF($BN6<1,0,LARGE($G6:$AW6,1)) -> 0 | BG6: =IF($BN6<2,0,LARGE($G6:$AW6,2)) -> 0 | BH6: =IF($BN6<3,0,LARGE($G6:$AW6,3)) -> 0 | BI6: =IF($BN6<4,0,LARGE($G6:$AW6,4)) -> 0 | BL6: =SUM(BF6:BI6) -> 0 | BM6: =RANK(BL6,$BL$3:$BL$279,0) -> 39 | BN6: =COUNT(G6:AW6) -> 0 | BO6: =SUM(G6:AW6) -> 0 | BT6: =(BQ6*$BQ$2)+(BR6*$BR$2)+(BS6*$BS$2) -> 0
F7: Ad Gr | O7: 118 | P7: 106 | S7: 110
F8: Place | BQ8: =COUNTIF($G8:$AW8,"=1") -> 0 | BR8: =COUNTIF($G8:$AW8,"=2") -> 0 | BS8: =COUNTIF($G8:$AW8,"=3") -> 0
B9: Bacelic | C9: Samira | D9: =IF(BN9=0,0,BO9/BN9) -> 0 | E9: =COUNT(G9:AW9) -> 0 | F9: S'ford | BF9: =IF($BN9<1,0,LARGE($G9:$AW9,1)) -> 0 | BG9: =IF($BN9<2,0,LARGE($G9:$AW9,2)) -> 0 | BH9: =IF($BN9<3,0,LARGE($G9:$AW9,3)) -> 0 | BI9: =IF($BN9<4,0,LARGE($G9:$AW9,4)) -> 0 | BL9: =SUM(BF9:BI9) -> 0 | BM9: =RANK(BL9,$BL$3:$BL$279,0) -> 39 | BN9: =COUNT(G9:AW9) -> 0 | BO9: =SUM(G9:AW9) -> 0 | BT9: =(BQ9*$BQ$2)+(BR9*$BR$2)+(BS9*$BS$2) -> 0
F10: Ad Gr
F11: Place | BQ11: =COUNTIF($G11:$AW11,"=1") -> 0 | BR11: =COUNTIF($G11:$AW11,"=2") -> 0 | BS11: =COUNTIF($G11:$AW11,"=3") -> 0
B12: Bargna | C12: David | D12: =IF(BN12=0,0,BO12/BN12) -> 30.4 | E12: =COUNT(G12:AW12) -> 5 | F12: S'ford | G12: 31 | L12: 34 | N12: 28 | Q12: 35 | R12: 24 | BF12: =IF($BN12<1,0,LARGE($G12:$AW12,1)) -> 35 | BG12: =IF($BN12<2,0,LARGE($G12:$AW12,2)) -> 34 | BH12: =IF($BN12<3,0,LARGE($G12:$AW12,3)) -> 31 | BI12: =IF($BN12<4,0,LARGE($G12:$AW12,4)) -> 28 | BJ12: =IF($BN12<5,0,LARGE($G12:$AW12,5)) -> 24 | BK12: =IF($BN12<6,0,LARGE($G12:$AW12,6)) -> 0 | BL12: =SUM(BF12:BI12) -> 128 | BM12: =RANK(BL12,$BL$3:$BL$279,0) -> 8 | BN12: =COUNT(G12:AW12) -> 5 | BO12: =SUM(G12:AW12) -> 152 | BT12: =(BQ12*$BQ$2)+(BR12*$BR$2)+(BS12*$BS$2) -> 0
F13: Ad Gr | G13: 92 | L13: 87 | N13: 93 | Q13: 85 | R13: 95
F14: Place | Q14: 1 | BQ14: =COUNTIF($G14:$AW14,"=1") -> 1 | BR14: =COUNTIF($G14:$AW14,"=2") -> 0 | BS14: =COUNTIF($G14:$AW14,"=3") -> 0
B15: Bennett | C15: Lee | D15: =IF(BN15=0,0,BO15/BN15) -> 0 | E15: =COUNT(G15:AW15) -> 0 | F15: S'ford | BF15: =IF($BN15<1,0,LARGE($G15:$AW15,1)) -> 0 | BG15: =IF($BN15<2,0,LARGE($G15:$AW15,2)) -> 0 | BH15: =IF($BN15<3,0,LARGE($G15:$AW15,3)) -> 0 | BI15: =IF($BN15<4,0,LARGE($G15:$AW15,4)) -> 0 | BL15: =SUM(BF15:BI15) -> 0 | BM15: =RANK(BL15,$BL$3:$BL$279,0) -> 39 | BN15: =COUNT(G15:AW15) -> 0 | BO15: =SUM(G15:AW15) -> 0 | BT15: =(BQ15*$BQ$2)+(BR15*$BR$2)+(BS15*$BS$2) -> 0
F16: Ad Gr
F17: Place | BQ17: =COUNTIF($G17:$AW17,"=1") -> 0 | BR17: =COUNTIF($G17:$AW17,"=2") -> 0 | BS17: =COUNTIF($G17:$AW17,"=3") -> 0
B18: Breed | C18: Geoff | D18: =IF(BN18=0,0,BO18/BN18) -> 0 | E18: =COUNT(G18:AW18) -> 0 | F18: S'ford | BF18: =IF($BN18<1,0,LARGE($G18:$AW18,1)) -> 0 | BG18: =IF($BN18<2,0,LARGE($G18:$AW18,2)) -> 0 | BH18: =IF($BN18<3,0,LARGE($G18:$AW18,3)) -> 0 | BI18: =IF($BN18<4,0,LARGE($G18:$AW18,4)) -> 0 | BL18: =SUM(BF18:BI18) -> 0 | BM18: =RANK(BL18,$BL$3:$BL$279,0) -> 39 | BN18: =COUNT(G18:AW18) -> 0 | BO18: =SUM(G18:AW18) -> 0 | BT18: =(BQ18*$BQ$2)+(BR18*$BR$2)+(BS18*$BS$2) -> 0
F19: Ad Gr | O19: 92 | P19: 99
F20: Place | BQ20: =COUNTIF($G20:$AW20,"=1") -> 0 | BR20: =COUNTIF($G20:$AW20,"=2") -> 0 | BS20: =COUNTIF($G20:$AW20,"=3") -> 0
B21: Britnell | C21: Simon | D21: =IF(BN21=0,0,BO21/BN21) -> 34 | E21: =COUNT(G21:AW21) -> 3 | F21: S'ford | G21: 38 | M21: 32 | R21: 32 | BF21: =IF($BN21<1,0,LARGE($G21:$AW21,1)) -> 38 | BG21: =IF($BN21<2,0,LARGE($G21:$AW21,2)) -> 32 | BH21: =IF($BN21<3,0,LARGE($G21:$AW21,3)) -> 32 | BI21: =IF($BN21<4,0,LARGE($G21:$AW21,4)) -> 0 | BL21: =SUM(BF21:BI21) -> 102 | BM21: =RANK(BL21,$BL$3:$BL$279,0) -> 12 | BN21: =COUNT(G21:AW21) -> 3 | BO21: =SUM(G21:AW21) -> 102 | BT21: =(BQ21*$BQ$2)+(BR21*$BR$2)+(BS21*$BS$2) -> 0
F22: Ad Gr | G22: 93 | M22: 96 | R22: 95
F23: Place | M23: 2 | BQ23: =COUNTIF($G23:$AW23,"=1") -> 0 | BR23: =COUNTIF($G23:$AW23,"=2") -> 1 | BS23: =COUNTIF($G23:$AW23,"=3") -> 0
B24: Brogan | C24: Padraig | D24: =IF(BN24=0,0,BO24/BN24) -> 38 | E24: =COUNT(G24:AW24) -> 2 | F24: S'ford | P24: 37 | R24: 39 | BF24: =IF($BN24<1,0,LARGE($G24:$AW24,1)) -> 39 | BG24: =IF($BN24<2,0,LARGE($G24:$AW24,2)) -> 37 | BH24: =IF($BN24<3,0,LARGE($G24:$AW24,3)) -> 0 | BI24: =IF($BN24<4,0,LARGE($G24:$AW24,4)) -> 0 | BL24: =SUM(BF24:BI24) -> 76 | BM24: =RANK(BL24,$BL$3:$BL$279,0) -> 22 | BN24: =COUNT(G24:AW24) -> 2 | BO24: =SUM(G24:AW24) -> 76 | BT24: =(BQ24*$BQ$2)+(BR24*$BR$2)+(BS24*$BS$2) -> 0
F25: Ad Gr | P25: 90 | R25: 88
F26: Place | P26: 3 | R26: 2 | BQ26: =COUNTIF($G26:$AW26,"=1") -> 0 | BR26: =COUNTIF($G26:$AW26,"=2") -> 1 | BS26: =COUNTIF($G26:$AW26,"=3") -> 1
B27: Brown | C27: Martin | D27: =IF(BN27=0,0,BO27/BN27) -> 0 | E27: =COUNT(G27:AW27) -> 0 | F27: S'ford | BF27: =IF($BN27<1,0,LARGE($G27:$AW27,1)) -> 0 | BG27: =IF($BN27<2,0,LARGE($G27:$AW27,2)) -> 0 | BH27: =IF($BN27<3,0,LARGE($G27:$AW27,3)) -> 0 | BI27: =IF($BN27<4,0,LARGE($G27:$AW27,4)) -> 0 | BL27: =SUM(BF27:BI27) -> 0 | BM27: =RANK(BL27,$BL$3:$BL$279,0) -> 39 | BN27: =COUNT(G27:AW27) -> 0 | BO27: =SUM(G27:AW27) -> 0 | BT27: =(BQ27*$BQ$2)+(BR27*$BR$2)+(BS27*$BS$2) -> 0
F28: Ad Gr
F29: Place | BQ29: =COUNTIF($G29:$AW29,"=1") -> 0 | BR29: =COUNTIF($G29:$AW29,"=2") -> 0 | BS29: =COUNTIF($G29:$AW29,"=3") -> 0
B30: Bull | C30: Greg | D30: =IF(BN30=0,0,BO30/BN30) -> 0 | E30: =COUNT(G30:AW30) -> 0 | F30: S'ford | BF30: =IF($BN30<1,0,LARGE($G30:$AW30,1)) -> 0 | BG30: =IF($BN30<2,0,LARGE($G30:$AW30,2)) -> 0 | BH30: =IF($BN30<3,0,LARGE($G30:$AW30,3)) -> 0 | BI30: =IF($BN30<4,0,LARGE($G30:$AW30,4)) -> 0 | BL30: =SUM(BF30:BI30) -> 0 | BM30: =RANK(BL30,$BL$3:$BL$279,0) -> 39 | BN30: =COUNT(G30:AW30) -> 0 | BO30: =SUM(G30:AW30) -> 0 | BT30: =(BQ30*$BQ$2)+(BR30*$BR$2)+(BS30*$BS$2) -> 0
F31: Ad Gr
F32: Place | BQ32: =COUNTIF($G32:$AW32,"=1") -> 0 | BR32: =COUNTIF($G32:$AW32,"=2") -> 0 | BS32: =COUNTIF($G32:$AW32,"=3") -> 0
B33: Chalk | C33: Paul | D33: =IF(BN33=0,0,BO33/BN33) -> 0 | E33: =COUNT(G33:AW33) -> 0 | F33: S'ford | BF33: =IF($BN33<1,0,LARGE($G33:$AW33,1)) -> 0 | BG33: =IF($BN33<2,0,LARGE($G33:$AW33,2)) -> 0 | BH33: =IF($BN33<3,0,LARGE($G33:$AW33,3)) -> 0 | BI33: =IF($BN33<4,0,LARGE($G33:$AW33,4)) -> 0 | BL33: =SUM(BF33:BI33) -> 0 | BM33: =RANK(BL33,$BL$3:$BL$279,0) -> 39 | BN33: =COUNT(G33:AW33) -> 0 | BO33: =SUM(G33:AW33) -> 0 | BT33: =(BQ33*$BQ$2)+(BR33*$BR$2)+(BS33*$BS$2) -> 0
F34: Ad Gr
F35: Place | BQ35: =COUNTIF($G35:$AW35,"=1") -> 0 | BR35: =COUNTIF($G35:$AW35,"=2") -> 0 | BS35: =COUNTIF($G35:$AW35,"=3") -> 0
B36: Cherickel | C36: Ranjith | D36: =IF(BN36=0,0,BO36/BN36) -> 0 | E36: =COUNT(G36:AW36) -> 0 | F36: S'ford | BF36: =IF($BN36<1,0,LARGE($G36:$AW36,1)) -> 0 | BG36: =IF($BN36<2,0,LARGE($G36:$AW36,2)) -> 0 | BH36: =IF($BN36<3,0,LARGE($G36:$AW36,3)) -> 0 | BI36: =IF($BN36<4,0,LARGE($G36:$AW36,4)) -> 0 | BL36: =SUM(BF36:BI36) -> 0 | BM36: =RANK(BL36,$BL$3:$BL$279,0) -> 39 | BN36: =COUNT(G36:AW36) -> 0 | BO36: =SUM(G36:AW36) -> 0 | BT36: =(BQ36*$BQ$2)+(BR36*$BR$2)+(BS36*$BS$2) -> 0
F37: Ad Gr
F38: Place | BQ38: =COUNTIF($G38:$AW38,"=1") -> 0 | BR38: =COUNTIF($G38:$AW38,"=2") -> 0 | BS38: =COUNTIF($G38:$AW38,"=3") -> 0
B39: Chester | C39: Allan | D39: =IF(BN39=0,0,BO39/BN39) -> 26 | E39: =COUNT(G39:AW39) -> 3 | F39: S'ford | M39: 25 | O39: 19 | P39: 34 | BF39: =IF($BN39<1,0,LARGE($G39:$AW39,1)) -> 34 | BG39: =IF($BN39<2,0,LARGE($G39:$AW39,2)) -> 25 | BH39: =IF($BN39<3,0,LARGE($G39:$AW39,3)) -> 19 | BI39: =IF($BN39<4,0,LARGE($G39:$AW39,4)) -> 0 | BL39: =SUM(BF39:BI39) -> 78 | BM39: =RANK(BL39,$BL$3:$BL$279,0) -> 20 | BN39: =COUNT(G39:AW39) -> 3 | BO39: =SUM(G39:AW39) -> 78 | BT39: =(BQ39*$BQ$2)+(BR39*$BR$2)+(BS39*$BS$2) -> 0
F40: Ad Gr | M40: 96 | O40: 105 | P40: 87
F41: Place | BQ41: =COUNTIF($G41:$AW41,"=1") -> 0 | BR41: =COUNTIF($G41:$AW41,"=2") -> 0 | BS41: =COUNTIF($G41:$AW41,"=3") -> 0
B42: Chlebek | C42: Mark | D42: =IF(BN42=0,0,BO42/BN42) -> 0 | E42: =COUNT(G42:AW42) -> 0 | F42: S'ford | BF42: =IF($BN42<1,0,LARGE($G42:$AW42,1)) -> 0 | BG42: =IF($BN42<2,0,LARGE($G42:$AW42,2)) -> 0 | BH42: =IF($BN42<3,0,LARGE($G42:$AW42,3)) -> 0 | BI42: =IF($BN42<4,0,LARGE($G42:$AW42,4)) -> 0 | BL42: =SUM(BF42:BI42) -> 0 | BM42: =RANK(BL42,$BL$3:$BL$279,0) -> 39 | BN42: =COUNT(G42:AW42) -> 0 | BO42: =SUM(G42:AW42) -> 0 | BT42: =(BQ42*$BQ$2)+(BR42*$BR$2)+(BS42*$BS$2) -> 0
F43: Ad Gr
F44: Place | BQ44: =COUNTIF($G44:$AW44,"=1") -> 0 | BR44: =COUNTIF($G44:$AW44,"=2") -> 0 | BS44: =COUNTIF($G44:$AW44,"=3") -> 0
B45: Chung | C45: Gonjin | D45: =IF(BN45=0,0,BO45/BN45) -> 39 | E45: =COUNT(G45:AW45) -> 2 | F45: S'ford | O45: 37 | P45: 41 | BF45: =IF($BN45<1,0,LARGE($G45:$AW45,1)) -> 41 | BG45: =IF($BN45<2,0,LARGE($G45:$AW45,2)) -> 37 | BH45: =IF($BN45<3,0,LARGE($G45:$AW45,3)) -> 0 | BI45: =IF($BN45<4,0,LARGE($G45:$AW45,4)) -> 0 | BL45: =SUM(BF45:BI45) -> 78 | BM45: =RANK(BL45,$BL$3:$BL$279,0) -> 20 | BN45: =COUNT(G45:AW45) -> 2 | BO45: =SUM(G45:AW45) -> 78 | BT45: =(BQ45*$BQ$2)+(BR45*$BR$2)+(BS45*$BS$2) -> 0
F46: Ad Gr | O46: 100 | P46: 94
F47: Place | O47: 1 | P47: 1 | BQ47: =COUNTIF($G47:$AW47,"=1") -> 2 | BR47: =COUNTIF($G47:$AW47,"=2") -> 0 | BS47: =COUNTIF($G47:$AW47,"=3") -> 0
B48: Cockill | C48: Adam | D48: =IF(BN48=0,0,BO48/BN48) -> 30.33333333 | E48: =COUNT(G48:AW48) -> 3 | F48: S'ford | M48: 26 | O48: 30 | S48: 35 | BF48: =IF($BN48<1,0,LARGE($G48:$AW48,1)) -> 35 | BG48: =IF($BN48<2,0,LARGE($G48:$AW48,2)) -> 30 | BH48: =IF($BN48<3,0,LARGE($G48:$AW48,3)) -> 26 | BI48: =IF($BN48<4,0,LARGE($G48:$AW48,4)) -> 0 | BL48: =SUM(BF48:BI48) -> 91 | BM48: =RANK(BL48,$BL$3:$BL$279,0) -> 14 | BN48: =COUNT(G48:AW48) -> 3 | BO48: =SUM(G48:AW48) -> 91 | BT48: =(BQ48*$BQ$2)+(BR48*$BR$2)+(BS48*$BS$2) -> 0
F49: Ad Gr | M49: 97 | O49: 93 | S49: 89
F50: Place | S50: 2 | BQ50: =COUNTIF($G50:$AW50,"=1") -> 0 | BR50: =COUNTIF($G50:$AW50,"=2") -> 1 | BS50: =COUNTIF($G50:$AW50,"=3") -> 0
B51: Cottrell | C51: John | D51: =IF(BN51=0,0,BO51/BN51) -> 15 | E51: =COUNT(G51:AW51) -> 1 | F51: S'ford | O51: 15 | BF51: =IF($BN51<1,0,LARGE($G51:$AW51,1)) -> 15 | BG51: =IF($BN51<2,0,LARGE($G51:$AW51,2)) -> 0 | BH51: =IF($BN51<3,0,LARGE($G51:$AW51,3)) -> 0 | BI51: =IF($BN51<4,0,LARGE($G51:$AW51,4)) -> 0 | BL51: =SUM(BF51:BI51) -> 15 | BM51: =RANK(BL51,$BL$3:$BL$279,0) -> 37 | BN51: =COUNT(G51:AW51) -> 1 | BO51: =SUM(G51:AW51) -> 15 | BT51: =(BQ51*$BQ$2)+(BR51*$BR$2)+(BS51*$BS$2) -> 0
F52: Ad Gr | O52: 119
F53: Place | BQ53: =COUNTIF($G53:$AW53,"=1") -> 0 | BR53: =COUNTIF($G53:$AW53,"=2") -> 0 | BS53: =COUNTIF($G53:$AW53,"=3") -> 0
B54: Cox | C54: Patrick | D54: =IF(BN54=0,0,BO54/BN54) -> 26.33333333 | E54: =COUNT(G54:AW54) -> 3 | F54: S'ford | M54: 20 | O54: 34 | R54: 25 | BF54: =IF($BN54<1,0,LARGE($G54:$AW54,1)) -> 34 | BG54: =IF($BN54<2,0,LARGE($G54:$AW54,2)) -> 25 | BH54: =IF($BN54<3,0,LARGE($G54:$AW54,3)) -> 20 | BI54: =IF($BN54<4,0,LARGE($G54:$AW54,4)) -> 0 | BL54: =SUM(BF54:BI54) -> 79 | BM54: =RANK(BL54,$BL$3:$BL$279,0) -> 19 | BN54: =COUNT(G54:AW54) -> 3 | BO54: =SUM(G54:AW54) -> 79 | BT54: =(BQ54*$BQ$2)+(BR54*$BR$2)+(BS54*$BS$2) -> 0
F55: Ad Gr | M55: 121 | O55: 112 | R55: 120
F56: Place | O56: 3 | BQ56: =COUNTIF($G56:$AW56,"=1") -> 0 | BR56: =COUNTIF($G56:$AW56,"=2") -> 0 | BS56: =COUNTIF($G56:$AW56,"=3") -> 1
B57: Craig | C57: John | D57: =IF(BN57=0,0,BO57/BN57) -> 30.5 | E57: =COUNT(G57:AW57) -> 6 | F57: S'ford | G57: 39 | J57: 33 | L57: 27 | M57: 33 | N57: 25 | S57: 26 | BF57: =IF($BN57<1,0,LARGE($G57:$AW57,1)) -> 39 | BG57: =IF($BN57<2,0,LARGE($G57:$AW57,2)) -> 33 | BH57: =IF($BN57<3,0,LARGE($G57:$AW57,3)) -> 33 | BI57: =IF($BN57<4,0,LARGE($G57:$AW57,4)) -> 27 | BL57: =SUM(BF57:BI57) -> 132 | BM57: =RANK(BL57,$BL$3:$BL$279,0) -> 5 | BN57: =COUNT(G57:AW57) -> 6 | BO57: =SUM(G57:AW57) -> 183 | BT57: =(BQ57*$BQ$2)+(BR57*$BR$2)+(BS57*$BS$2) -> 0
F58: Ad Gr | G58: 94 | J58: 97 | L58: 101 | M58: 95 | N58: 104 | S58: 101
F59: Place | G59: 3 | M59: 1 | BQ59: =COUNTIF($G59:$AW59,"=1") -> 1 | BR59: =COUNTIF($G59:$AW59,"=2") -> 0 | BS59: =COUNTIF($G59:$AW59,"=3") -> 1
B60: Cunney | C60: Donal | D60: =IF(BN60=0,0,BO60/BN60) -> 0 | E60: =COUNT(G60:AW60) -> 0 | F60: S'ford | BF60: =IF($BN60<1,0,LARGE($G60:$AW60,1)) -> 0 | BG60: =IF($BN60<2,0,LARGE($G60:$AW60,2)) -> 0 | BH60: =IF($BN60<3,0,LARGE($G60:$AW60,3)) -> 0 | BI60: =IF($BN60<4,0,LARGE($G60:$AW60,4)) -> 0 | BL60: =SUM(BF60:BI60) -> 0 | BM60: =RANK(BL60,$BL$3:$BL$279,0) -> 39 | BN60: =COUNT(G60:AW60) -> 0 | BO60: =SUM(G60:AW60) -> 0 | BT60: =(BQ60*$BQ$2)+(BR60*$BR$2)+(BS60*$BS$2) -> 0
F61: Ad Gr
F62: Place | BQ62: =COUNTIF($G62:$AW62,"=1") -> 0 | BR62: =COUNTIF($G62:$AW62,"=2") -> 0 | BS62: =COUNTIF($G62:$AW62,"=3") -> 0
B63: Cutmore | C63: Clark | D63: =IF(BN63=0,0,BO63/BN63) -> 0 | E63: =COUNT(G63:AW63) -> 0 | F63: S'ford | BF63: =IF($BN63<1,0,LARGE($G63:$AW63,1)) -> 0 | BG63: =IF($BN63<2,0,LARGE($G63:$AW63,2)) -> 0 | BH63: =IF($BN63<3,0,LARGE($G63:$AW63,3)) -> 0 | BI63: =IF($BN63<4,0,LARGE($G63:$AW63,4)) -> 0 | BL63: =SUM(BF63:BI63) -> 0 | BM63: =RANK(BL63,$BL$3:$BL$279,0) -> 39 | BN63: =COUNT(G63:AW63) -> 0 | BO63: =SUM(G63:AW63) -> 0 | BT63: =(BQ63*$BQ$2)+(BR63*$BR$2)+(BS63*$BS$2) -> 0
F64: Ad Gr | M64: 117
F65: Place | BQ65: =COUNTIF($G65:$AW65,"=1") -> 0 | BR65: =COUNTIF($G65:$AW65,"=2") -> 0 | BS65: =COUNTIF($G65:$AW65,"=3") -> 0
B66: Daly | C66: Kevin | D66: =IF(BN66=0,0,BO66/BN66) -> 0 | E66: =COUNT(G66:AW66) -> 0 | F66: S'ford | BF66: =IF($BN66<1,0,LARGE($G66:$AW66,1)) -> 0 | BG66: =IF($BN66<2,0,LARGE($G66:$AW66,2)) -> 0 | BH66: =IF($BN66<3,0,LARGE($G66:$AW66,3)) -> 0 | BI66: =IF($BN66<4,0,LARGE($G66:$AW66,4)) -> 0 | BL66: =SUM(BF66:BI66) -> 0 | BM66: =RANK(BL66,$BL$3:$BL$279,0) -> 39 | BN66: =COUNT(G66:AW66) -> 0 | BO66: =SUM(G66:AW66) -> 0 | BT66: =(BQ66*$BQ$2)+(BR66*$BR$2)+(BS66*$BS$2) -> 0
F67: Ad Gr
F68: Place | BQ68: =COUNTIF($G68:$AW68,"=1") -> 0 | BR68: =COUNTIF($G68:$AW68,"=2") -> 0 | BS68: =COUNTIF($G68:$AW68,"=3") -> 0
B69: Daly | C69: Liam | D69: =IF(BN69=0,0,BO69/BN69) -> 0 | E69: =COUNT(G69:AW69) -> 0 | F69: S'ford | BF69: =IF($BN69<1,0,LARGE($G69:$AW69,1)) -> 0 | BG69: =IF($BN69<2,0,LARGE($G69:$AW69,2)) -> 0 | BH69: =IF($BN69<3,0,LARGE($G69:$AW69,3)) -> 0 | BI69: =IF($BN69<4,0,LARGE($G69:$AW69,4)) -> 0 | BL69: =SUM(BF69:BI69) -> 0 | BM69: =RANK(BL69,$BL$3:$BL$279,0) -> 39 | BN69: =COUNT(G69:AW69) -> 0 | BO69: =SUM(G69:AW69) -> 0 | BT69: =(BQ69*$BQ$2)+(BR69*$BR$2)+(BS69*$BS$2) -> 0
F70: Ad Gr
F71: Place | BQ71: =COUNTIF($G71:$AW71,"=1") -> 0 | BR71: =COUNTIF($G71:$AW71,"=2") -> 0 | BS71: =COUNTIF($G71:$AW71,"=3") -> 0
B72: Daly | C72: Paul | D72: =IF(BN72=0,0,BO72/BN72) -> 0 | E72: =COUNT(G72:AW72) -> 0 | F72: S'ford | BF72: =IF($BN72<1,0,LARGE($G72:$AW72,1)) -> 0 | BG72: =IF($BN72<2,0,LARGE($G72:$AW72,2)) -> 0 | BH72: =IF($BN72<3,0,LARGE($G72:$AW72,3)) -> 0 | BI72: =IF($BN72<4,0,LARGE($G72:$AW72,4)) -> 0 | BL72: =SUM(BF72:BI72) -> 0 | BM72: =RANK(BL72,$BL$3:$BL$279,0) -> 39 | BN72: =COUNT(G72:AW72) -> 0 | BO72: =SUM(G72:AW72) -> 0 | BT72: =(BQ72*$BQ$2)+(BR72*$BR$2)+(BS72*$BS$2) -> 0
F73: Ad Gr
F74: Place | BQ74: =COUNTIF($G74:$AW74,"=1") -> 0 | BR74: =COUNTIF($G74:$AW74,"=2") -> 0 | BS74: =COUNTIF($G74:$AW74,"=3") -> 0
B75: Dean | C75: Simon | D75: =IF(BN75=0,0,BO75/BN75) -> 32.25 | E75: =COUNT(G75:AW75) -> 4 | F75: S'ford | I75: 30 | J75: 35 | M75: 29 | P75: 35 | BF75: =IF($BN75<1,0,LARGE($G75:$AW75,1)) -> 35 | BG75: =IF($BN75<2,0,LARGE($G75:$AW75,2)) -> 35 | BH75: =IF($BN75<3,0,LARGE($G75:$AW75,3)) -> 30 | BI75: =IF($BN75<4,0,LARGE($G75:$AW75,4)) -> 29 | BL75: =SUM(BF75:BI75) -> 129 | BM75: =RANK(BL75,$BL$3:$BL$279,0) -> 6 | BN75: =COUNT(G75:AW75) -> 4 | BO75: =SUM(G75:AW75) -> 129 | BT75: =(BQ75*$BQ$2)+(BR75*$BR$2)+(BS75*$BS$2) -> 0
F76: Ad Gr | I76: 93 | J76: 90 | M76: 94 | P76: 89
F77: Place | I77: 3 | J77: 1 | BQ77: =COUNTIF($G77:$AW77,"=1") -> 1 | BR77: =COUNTIF($G77:$AW77,"=2") -> 0 | BS77: =COUNTIF($G77:$AW77,"=3") -> 1
B78: Doyle | C78: Ronan | D78: =IF(BN78=0,0,BO78/BN78) -> 27.33333333 | E78: =COUNT(G78:AW78) -> 3 | F78: S'ford | J78: 9 | P78: 39 | R78: 34 | BF78: =IF($BN78<1,0,LARGE($G78:$AW78,1)) -> 39 | BG78: =IF($BN78<2,0,LARGE($G78:$AW78,2)) -> 34 | BH78: =IF($BN78<3,0,LARGE($G78:$AW78,3)) -> 9 | BI78: =IF($BN78<4,0,LARGE($G78:$AW78,4)) -> 0 | BL78: =SUM(BF78:BI78) -> 82 | BM78: =RANK(BL78,$BL$3:$BL$279,0) -> 18 | BN78: =COUNT(G78:AW78) -> 3 | BO78: =SUM(G78:AW78) -> 82 | BT78: =(BQ78*$BQ$2)+(BR78*$BR$2)+(BS78*$BS$2) -> 0
F79: Ad Gr | J79: 113 | P79: 82 | R79: 85
F80: Place | P80: 2 | BQ80: =COUNTIF($G80:$AW80,"=1") -> 0 | BR80: =COUNTIF($G80:$AW80,"=2") -> 1 | BS80: =COUNTIF($G80:$AW80,"=3") -> 0
B81: Drage | C81: Kevin | D81: =IF(BN81=0,0,BO81/BN81) -> 0 | E81: =COUNT(G81:AW81) -> 0 | F81: S'ford | BF81: =IF($BN81<1,0,LARGE($G81:$AW81,1)) -> 0 | BG81: =IF($BN81<2,0,LARGE($G81:$AW81,2)) -> 0 | BH81: =IF($BN81<3,0,LARGE($G81:$AW81,3)) -> 0 | BI81: =IF($BN81<4,0,LARGE($G81:$AW81,4)) -> 0 | BL81: =SUM(BF81:BI81) -> 0 | BM81: =RANK(BL81,$BL$3:$BL$279,0) -> 39 | BN81: =COUNT(G81:AW81) -> 0 | BO81: =SUM(G81:AW81) -> 0 | BT81: =(BQ81*$BQ$2)+(BR81*$BR$2)+(BS81*$BS$2) -> 0
F82: Ad Gr
F83: Place | BQ83: =COUNTIF($G83:$AW83,"=1") -> 0 | BR83: =COUNTIF($G83:$AW83,"=2") -> 0 | BS83: =COUNTIF($G83:$AW83,"=3") -> 0
B84: Duffell | C84: Martin | D84: =IF(BN84=0,0,BO84/BN84) -> 0 | E84: =COUNT(G84:AW84) -> 0 | F84: S'ford | BF84: =IF($BN84<1,0,LARGE($G84:$AW84,1)) -> 0 | BG84: =IF($BN84<2,0,LARGE($G84:$AW84,2)) -> 0 | BH84: =IF($BN84<3,0,LARGE($G84:$AW84,3)) -> 0 | BI84: =IF($BN84<4,0,LARGE($G84:$AW84,4)) -> 0 | BL84: =SUM(BF84:BI84) -> 0 | BM84: =RANK(BL84,$BL$3:$BL$279,0) -> 39 | BN84: =COUNT(G84:AW84) -> 0 | BO84: =SUM(G84:AW84) -> 0 | BT84: =(BQ84*$BQ$2)+(BR84*$BR$2)+(BS84*$BS$2) -> 0
F85: Ad Gr
F86: Place | BQ86: =COUNTIF($G86:$AW86,"=1") -> 0 | BR86: =COUNTIF($G86:$AW86,"=2") -> 0 | BS86: =COUNTIF($G86:$AW86,"=3") -> 0
B87: East | C87: Paul | D87: =IF(BN87=0,0,BO87/BN87) -> 0 | E87: =COUNT(G87:AW87) -> 0 | F87: S'ford | BF87: =IF($BN87<1,0,LARGE($G87:$AW87,1)) -> 0 | BG87: =IF($BN87<2,0,LARGE($G87:$AW87,2)) -> 0 | BH87: =IF($BN87<3,0,LARGE($G87:$AW87,3)) -> 0 | BI87: =IF($BN87<4,0,LARGE($G87:$AW87,4)) -> 0 | BL87: =SUM(BF87:BI87) -> 0 | BM87: =RANK(BL87,$BL$3:$BL$279,0) -> 39 | BN87: =COUNT(G87:AW87) -> 0 | BO87: =SUM(G87:AW87) -> 0 | BT87: =(BQ87*$BQ$2)+(BR87*$BR$2)+(BS87*$BS$2) -> 0
F88: Ad Gr
F89: Place | BQ89: =COUNTIF($G89:$AW89,"=1") -> 0 | BR89: =COUNTIF($G89:$AW89,"=2") -> 0 | BS89: =COUNTIF($G89:$AW89,"=3") -> 0
B90: Engel | C90: Andreas | D90: =IF(BN90=0,0,BO90/BN90) -> 0 | E90: =COUNT(G90:AW90) -> 0 | F90: S'ford | BF90: =IF($BN90<1,0,LARGE($G90:$AW90,1)) -> 0 | BG90: =IF($BN90<2,0,LARGE($G90:$AW90,2)) -> 0 | BH90: =IF($BN90<3,0,LARGE($G90:$AW90,3)) -> 0 | BI90: =IF($BN90<4,0,LARGE($G90:$AW90,4)) -> 0 | BL90: =SUM(BF90:BI90) -> 0 | BM90: =RANK(BL90,$BL$3:$BL$279,0) -> 39 | BN90: =COUNT(G90:AW90) -> 0 | BO90: =SUM(G90:AW90) -> 0 | BT90: =(BQ90*$BQ$2)+(BR90*$BR$2)+(BS90*$BS$2) -> 0
F91: Ad Gr
F92: Place | BQ92: =COUNTIF($G92:$AW92,"=1") -> 0 | BR92: =COUNTIF($G92:$AW92,"=2") -> 0 | BS92: =COUNTIF($G92:$AW92,"=3") -> 0
B93: Fey | C93: Eva | D93: =IF(BN93=0,0,BO93/BN93) -> 0 | E93: =COUNT(G93:AW93) -> 0 | F93: S'ford | BF93: =IF($BN93<1,0,LARGE($G93:$AW93,1)) -> 0 | BG93: =IF($BN93<2,0,LARGE($G93:$AW93,2)) -> 0 | BH93: =IF($BN93<3,0,LARGE($G93:$AW93,3)) -> 0 | BI93: =IF($BN93<4,0,LARGE($G93:$AW93,4)) -> 0 | BL93: =SUM(BF93:BI93) -> 0 | BM93: =RANK(BL93,$BL$3:$BL$279,0) -> 39 | BN93: =COUNT(G93:AW93) -> 0 | BO93: =SUM(G93:AW93) -> 0 | BT93: =(BQ93*$BQ$2)+(BR93*$BR$2)+(BS93*$BS$2) -> 0
F94: Ad Gr
F95: Place | BQ95: =COUNTIF($G95:$AW95,"=1") -> 0 | BR95: =COUNTIF($G95:$AW95,"=2") -> 0 | BS95: =COUNTIF($G95:$AW95,"=3") -> 0
B96: Fraunholz | C96: Markus | D96: =IF(BN96=0,0,BO96/BN96) -> 30.25 | E96: =COUNT(G96:AW96) -> 8 | F96: S'ford | G96: 31 | I96: 31 | J96: 31 | M96: 24 | O96: 29 | P96: 30 | R96: 34 | S96: 32 | BF96: =IF($BN96<1,0,LARGE($G96:$AW96,1)) -> 34 | BG96: =IF($BN96<2,0,LARGE($G96:$AW96,2)) -> 32 | BH96: =IF($BN96<3,0,LARGE($G96:$AW96,3)) -> 31 | BI96: =IF($BN96<4,0,LARGE($G96:$AW96,4)) -> 31 | BL96: =SUM(BF96:BI96) -> 128 | BM96: =RANK(BL96,$BL$3:$BL$279,0) -> 8 | BN96: =COUNT(G96:AW96) -> 8 | BO96: =SUM(G96:AW96) -> 242 | BT96: =(BQ96*$BQ$2)+(BR96*$BR$2)+(BS96*$BS$2) -> 0
F97: Ad Gr | G97: 98 | I97: 97 | J97: 97 | M97: 103 | O97: 98 | P97: 97 | R97: 93 | S97: 96
F98: Place | I98: 2 | BQ98: =COUNTIF($G98:$AW98,"=1") -> 0 | BR98: =COUNTIF($G98:$AW98,"=2") -> 1 | BS98: =COUNTIF($G98:$AW98,"=3") -> 0
B99: Furlong | C99: Ian | D99: =IF(BN99=0,0,BO99/BN99) -> 32 | E99: =COUNT(G99:AW99) -> 2 | F99: S'ford | R99: 31 | S99: 33 | BF99: =IF($BN99<1,0,LARGE($G99:$AW99,1)) -> 33 | BG99: =IF($BN99<2,0,LARGE($G99:$AW99,2)) -> 31 | BH99: =IF($BN99<3,0,LARGE($G99:$AW99,3)) -> 0 | BI99: =IF($BN99<4,0,LARGE($G99:$AW99,4)) -> 0 | BL99: =SUM(BF99:BI99) -> 64 | BM99: =RANK(BL99,$BL$3:$BL$279,0) -> 23 | BN99: =COUNT(G99:AW99) -> 2 | BO99: =SUM(G99:AW99) -> 64 | BT99: =(BQ99*$BQ$2)+(BR99*$BR$2)+(BS99*$BS$2) -> 0
F100: Ad Gr | R100: 97 | S100: 95
F101: Place | BQ101: =COUNTIF($G101:$AW101,"=1") -> 0 | BR101: =COUNTIF($G101:$AW101,"=2") -> 0 | BS101: =COUNTIF($G101:$AW101,"=3") -> 0
B102: Fyans | C102: David | D102: =IF(BN102=0,0,BO102/BN102) -> 32.2 | E102: =COUNT(G102:AW102) -> 5 | F102: S'ford | G102: 42 | H102: 27 | I102: 27 | M102: 29 | P102: 36 | BF102: =IF($BN102<1,0,LARGE($G102:$AW102,1)) -> 42 | BG102: =IF($BN102<2,0,LARGE($G102:$AW102,2)) -> 36 | BH102: =IF($BN102<3,0,LARGE($G102:$AW102,3)) -> 29 | BI102: =IF($BN102<4,0,LARGE($G102:$AW102,4)) -> 27 | BL102: =SUM(BF102:BI102) -> 134 | BM102: =RANK(BL102,$BL$3:$BL$279,0) -> 3 | BN102: =COUNT(G102:AW102) -> 5 | BO102: =SUM(G102:AW102) -> 161 | BT102: =(BQ102*$BQ$2)+(BR102*$BR$2)+(BS102*$BS$2) -> 0
F103: Ad Gr | G103: 84 | H103: 94 | I103: 93 | M103: 92 | P103: 86
F104: Place | G104: 1 | BQ104: =COUNTIF($G104:$AW104,"=1") -> 1 | BR104: =COUNTIF($G104:$AW104,"=2") -> 0 | BS104: =COUNTIF($G104:$AW104,"=3") -> 0
B105: Garvey | C105: Richard | D105: =IF(BN105=0,0,BO105/BN105) -> 0 | E105: =COUNT(G105:AW105) -> 0 | F105: S'ford | BF105: =IF($BN105<1,0,LARGE($G105:$AW105,1)) -> 0 | BG105: =IF($BN105<2,0,LARGE($G105:$AW105,2)) -> 0 | BH105: =IF($BN105<3,0,LARGE($G105:$AW105,3)) -> 0 | BI105: =IF($BN105<4,0,LARGE($G105:$AW105,4)) -> 0 | BL105: =SUM(BF105:BI105) -> 0 | BM105: =RANK(BL105,$BL$3:$BL$279,0) -> 39 | BN105: =COUNT(G105:AW105) -> 0 | BO105: =SUM(G105:AW105) -> 0 | BT105: =(BQ105*$BQ$2)+(BR105*$BR$2)+(BS105*$BS$2) -> 0
F106: Ad Gr
F107: Place | BQ107: =COUNTIF($G107:$AW107,"=1") -> 0 | BR107: =COUNTIF($G107:$AW107,"=2") -> 0 | BS107: =COUNTIF($G107:$AW107,"=3") -> 0
B108: Gill | C108: Andy | D108: =IF(BN108=0,0,BO108/BN108) -> 29 | E108: =COUNT(G108:AW108) -> 7 | F108: S'ford | G108: 37 | I108: 25 | J108: 16 | N108: 37 | O108: 26 | P108: 37 | Q108: 25 | BF108: =IF($BN108<1,0,LARGE($G108:$AW108,1)) -> 37 | BG108: =IF($BN108<2,0,LARGE($G108:$AW108,2)) -> 37 | BH108: =IF($BN108<3,0,LARGE($G108:$AW108,3)) -> 37 | BI108: =IF($BN108<4,0,LARGE($G108:$AW108,4)) -> 26 | BL108: =SUM(BF108:BI108) -> 137 | BM108: =RANK(BL108,$BL$3:$BL$279,0) -> 2 | BN108: =COUNT(G108:AW108) -> 7 | BO108: =SUM(G108:AW108) -> 203 | BT108: =(BQ108*$BQ$2)+(BR108*$BR$2)+(BS108*$BS$2) -> 0
F109: Ad Gr | G109: 84 | I109: 92 | J109: 102 | N109: 81 | O109: 91 | P109: 80 | Q109: 91
F110: Place | N110: 1 | BQ110: =COUNTIF($G110:$AW110,"=1") -> 1 | BR110: =COUNTIF($G110:$AW110,"=2") -> 0 | BS110: =COUNTIF($G110:$AW110,"=3") -> 0
B111: Girdler | C111: David | D111: =IF(BN111=0,0,BO111/BN111) -> 21 | E111: =COUNT(G111:AW111) -> 2 | F111: S'ford | M111: 21 | N111: 21 | BF111: =IF($BN111<1,0,LARGE($G111:$AW111,1)) -> 21 | BG111: =IF($BN111<2,0,LARGE($G111:$AW111,2)) -> 21 | BH111: =IF($BN111<3,0,LARGE($G111:$AW111,3)) -> 0 | BI111: =IF($BN111<4,0,LARGE($G111:$AW111,4)) -> 0 | BL111: =SUM(BF111:BI111) -> 42 | BM111: =RANK(BL111,$BL$3:$BL$279,0) -> 30 | BN111: =COUNT(G111:AW111) -> 2 | BO111: =SUM(G111:AW111) -> 42 | BT111: =(BQ111*$BQ$2)+(BR111*$BR$2)+(BS111*$BS$2) -> 0
F112: Ad Gr | M112: 101 | N112: 102
F113: Place | BQ113: =COUNTIF($G113:$AW113,"=1") -> 0 | BR113: =COUNTIF($G113:$AW113,"=2") -> 0 | BS113: =COUNTIF($G113:$AW113,"=3") -> 0
B114: Goldner | C114: Jake | D114: =IF(BN114=0,0,BO114/BN114) -> 0 | E114: =COUNT(G114:AW114) -> 0 | F114: S'ford | BF114: =IF($BN114<1,0,LARGE($G114:$AW114,1)) -> 0 | BG114: =IF($BN114<2,0,LARGE($G114:$AW114,2)) -> 0 | BH114: =IF($BN114<3,0,LARGE($G114:$AW114,3)) -> 0 | BI114: =IF($BN114<4,0,LARGE($G114:$AW114,4)) -> 0 | BL114: =SUM(BF114:BI114) -> 0 | BM114: =RANK(BL114,$BL$3:$BL$279,0) -> 39 | BN114: =COUNT(G114:AW114) -> 0 | BO114: =SUM(G114:AW114) -> 0 | BT114: =(BQ114*$BQ$2)+(BR114*$BR$2)+(BS114*$BS$2) -> 0
F115: Ad Gr
F116: Place | BQ116: =COUNTIF($G116:$AW116,"=1") -> 0 | BR116: =COUNTIF($G116:$AW116,"=2") -> 0 | BS116: =COUNTIF($G116:$AW116,"=3") -> 0
B117: Gomer | C117: Lindsay | D117: =IF(BN117=0,0,BO117/BN117) -> 0 | E117: =COUNT(G117:AW117) -> 0 | F117: S'ford | BF117: =IF($BN117<1,0,LARGE($G117:$AW117,1)) -> 0 | BG117: =IF($BN117<2,0,LARGE($G117:$AW117,2)) -> 0 | BH117: =IF($BN117<3,0,LARGE($G117:$AW117,3)) -> 0 | BI117: =IF($BN117<4,0,LARGE($G117:$AW117,4)) -> 0 | BL117: =SUM(BF117:BI117) -> 0 | BM117: =RANK(BL117,$BL$3:$BL$279,0) -> 39 | BN117: =COUNT(G117:AW117) -> 0 | BO117: =SUM(G117:AW117) -> 0 | BT117: =(BQ117*$BQ$2)+(BR117*$BR$2)+(BS117*$BS$2) -> 0
F118: Ad Gr
F119: Place | BQ119: =COUNTIF($G119:$AW119,"=1") -> 0 | BR119: =COUNTIF($G119:$AW119,"=2") -> 0 | BS119: =COUNTIF($G119:$AW119,"=3") -> 0
B120: Guluk | C120: Cody | D120: =IF(BN120=0,0,BO120/BN120) -> 0 | E120: =COUNT(G120:AW120) -> 0 | F120: S'ford | BF120: =IF($BN120<1,0,LARGE($G120:$AW120,1)) -> 0 | BG120: =IF($BN120<2,0,LARGE($G120:$AW120,2)) -> 0 | BH120: =IF($BN120<3,0,LARGE($G120:$AW120,3)) -> 0 | BI120: =IF($BN120<4,0,LARGE($G120:$AW120,4)) -> 0 | BL120: =SUM(BF120:BI120) -> 0 | BM120: =RANK(BL120,$BL$3:$BL$279,0) -> 39 | BN120: =COUNT(G120:AW120) -> 0 | BO120: =SUM(G120:AW120) -> 0 | BT120: =(BQ120*$BQ$2)+(BR120*$BR$2)+(BS120*$BS$2) -> 0
F121: Ad Gr
F122: Place | BQ122: =COUNTIF($G122:$AW122,"=1") -> 0 | BR122: =COUNTIF($G122:$AW122,"=2") -> 0 | BS122: =COUNTIF($G122:$AW122,"=3") -> 0
B123: Gurman | C123: Marc | D123: =IF(BN123=0,0,BO123/BN123) -> 0 | E123: =COUNT(G123:AW123) -> 0 | F123: S'ford | BF123: =IF($BN123<1,0,LARGE($G123:$AW123,1)) -> 0 | BG123: =IF($BN123<2,0,LARGE($G123:$AW123,2)) -> 0 | BH123: =IF($BN123<3,0,LARGE($G123:$AW123,3)) -> 0 | BI123: =IF($BN123<4,0,LARGE($G123:$AW123,4)) -> 0 | BL123: =SUM(BF123:BI123) -> 0 | BM123: =RANK(BL123,$BL$3:$BL$279,0) -> 39 | BN123: =COUNT(G123:AW123) -> 0 | BO123: =SUM(G123:AW123) -> 0 | BT123: =(BQ123*$BQ$2)+(BR123*$BR$2)+(BS123*$BS$2) -> 0
F124: Ad Gr
F125: Place | BQ125: =COUNTIF($G125:$AW125,"=1") -> 0 | BR125: =COUNTIF($G125:$AW125,"=2") -> 0 | BS125: =COUNTIF($G125:$AW125,"=3") -> 0
B126: Hall | C126: Byron | D126: =IF(BN126=0,0,BO126/BN126) -> 0 | E126: =COUNT(G126:AW126) -> 0 | F126: S'ford | BF126: =IF($BN126<1,0,LARGE($G126:$AW126,1)) -> 0 | BG126: =IF($BN126<2,0,LARGE($G126:$AW126,2)) -> 0 | BH126: =IF($BN126<3,0,LARGE($G126:$AW126,3)) -> 0 | BI126: =IF($BN126<4,0,LARGE($G126:$AW126,4)) -> 0 | BL126: =SUM(BF126:BI126) -> 0 | BM126: =RANK(BL126,$BL$3:$BL$279,0) -> 39 | BN126: =COUNT(G126:AW126) -> 0 | BO126: =SUM(G126:AW126) -> 0 | BT126: =(BQ126*$BQ$2)+(BR126*$BR$2)+(BS126*$BS$2) -> 0
F127: Ad Gr | O127: 112
F128: Place | BQ128: =COUNTIF($G128:$AW128,"=1") -> 0 | BR128: =COUNTIF($G128:$AW128,"=2") -> 0 | BS128: =COUNTIF($G128:$AW128,"=3") -> 0
B129: Henderson | C129: Peter | D129: =IF(BN129=0,0,BO129/BN129) -> 0 | E129: =COUNT(G129:AW129) -> 0 | F129: S'ford | BF129: =IF($BN129<1,0,LARGE($G129:$AW129,1)) -> 0 | BG129: =IF($BN129<2,0,LARGE($G129:$AW129,2)) -> 0 | BH129: =IF($BN129<3,0,LARGE($G129:$AW129,3)) -> 0 | BI129: =IF($BN129<4,0,LARGE($G129:$AW129,4)) -> 0 | BL129: =SUM(BF129:BI129) -> 0 | BM129: =RANK(BL129,$BL$3:$BL$279,0) -> 39 | BN129: =COUNT(G129:AW129) -> 0 | BO129: =SUM(G129:AW129) -> 0 | BT129: =(BQ129*$BQ$2)+(BR129*$BR$2)+(BS129*$BS$2) -> 0
F130: Ad Gr
F131: Place | BQ131: =COUNTIF($G131:$AW131,"=1") -> 0 | BR131: =COUNTIF($G131:$AW131,"=2") -> 0 | BS131: =COUNTIF($G131:$AW131,"=3") -> 0
B132: Henderson | C132: Ursula | D132: =IF(BN132=0,0,BO132/BN132) -> 0 | E132: =COUNT(G132:AW132) -> 0 | F132: S'ford | BF132: =IF($BN132<1,0,LARGE($G132:$AW132,1)) -> 0 | BG132: =IF($BN132<2,0,LARGE($G132:$AW132,2)) -> 0 | BH132: =IF($BN132<3,0,LARGE($G132:$AW132,3)) -> 0 | BI132: =IF($BN132<4,0,LARGE($G132:$AW132,4)) -> 0 | BL132: =SUM(BF132:BI132) -> 0 | BM132: =RANK(BL132,$BL$3:$BL$279,0) -> 39 | BN132: =COUNT(G132:AW132) -> 0 | BO132: =SUM(G132:AW132) -> 0 | BT132: =(BQ132*$BQ$2)+(BR132*$BR$2)+(BS132*$BS$2) -> 0
F133: Ad Gr
F134: Place | BQ134: =COUNTIF($G134:$AW134,"=1") -> 0 | BR134: =COUNTIF($G134:$AW134,"=2") -> 0 | BS134: =COUNTIF($G134:$AW134,"=3") -> 0
B135: Hirst | C135: Simon | D135: =IF(BN135=0,0,BO135/BN135) -> 0 | E135: =COUNT(G135:AW135) -> 0 | F135: S'ford | BF135: =IF($BN135<1,0,LARGE($G135:$AW135,1)) -> 0 | BG135: =IF($BN135<2,0,LARGE($G135:$AW135,2)) -> 0 | BH135: =IF($BN135<3,0,LARGE($G135:$AW135,3)) -> 0 | BI135: =IF($BN135<4,0,LARGE($G135:$AW135,4)) -> 0 | BL135: =SUM(BF135:BI135) -> 0 | BM135: =RANK(BL135,$BL$3:$BL$279,0) -> 39 | BN135: =COUNT(G135:AW135) -> 0 | BO135: =SUM(G135:AW135) -> 0 | BT135: =(BQ135*$BQ$2)+(BR135*$BR$2)+(BS135*$BS$2) -> 0
F136: Ad Gr
F137: Place | BQ137: =COUNTIF($G137:$AW137,"=1") -> 0 | BR137: =COUNTIF($G137:$AW137,"=2") -> 0 | BS137: =COUNTIF($G137:$AW137,"=3") -> 0
B138: Hollins | C138: Gary | D138: =IF(BN138=0,0,BO138/BN138) -> 0 | E138: =COUNT(G138:AW138) -> 0 | F138: S'ford | BF138: =IF($BN138<1,0,LARGE($G138:$AW138,1)) -> 0 | BG138: =IF($BN138<2,0,LARGE($G138:$AW138,2)) -> 0 | BH138: =IF($BN138<3,0,LARGE($G138:$AW138,3)) -> 0 | BI138: =IF($BN138<4,0,LARGE($G138:$AW138,4)) -> 0 | BL138: =SUM(BF138:BI138) -> 0 | BM138: =RANK(BL138,$BL$3:$BL$279,0) -> 39 | BN138: =COUNT(G138:AW138) -> 0 | BO138: =SUM(G138:AW138) -> 0 | BT138: =(BQ138*$BQ$2)+(BR138*$BR$2)+(BS138*$BS$2) -> 0
F139: Ad Gr
F140: Place | BQ140: =COUNTIF($G140:$AW140,"=1") -> 0 | BR140: =COUNTIF($G140:$AW140,"=2") -> 0 | BS140: =COUNTIF($G140:$AW140,"=3") -> 0
B141: Howieson | C141: Alasdair | D141: =IF(BN141=0,0,BO141/BN141) -> 0 | E141: =COUNT(G141:AW141) -> 0 | F141: S'ford | BF141: =IF($BN141<1,0,LARGE($G141:$AW141,1)) -> 0 | BG141: =IF($BN141<2,0,LARGE($G141:$AW141,2)) -> 0 | BH141: =IF($BN141<3,0,LARGE($G141:$AW141,3)) -> 0 | BI141: =IF($BN141<4,0,LARGE($G141:$AW141,4)) -> 0 | BL141: =SUM(BF141:BI141) -> 0 | BM141: =RANK(BL141,$BL$3:$BL$279,0) -> 39 | BN141: =COUNT(G141:AW141) -> 0 | BO141: =SUM(G141:AW141) -> 0 | BT141: =(BQ141*$BQ$2)+(BR141*$BR$2)+(BS141*$BS$2) -> 0
F142: Ad Gr
F143: Place | BQ143: =COUNTIF($G143:$AW143,"=1") -> 0 | BR143: =COUNTIF($G143:$AW143,"=2") -> 0 | BS143: =COUNTIF($G143:$AW143,"=3") -> 0
B144: Hunt | C144: Ian | D144: =IF(BN144=0,0,BO144/BN144) -> 25 | E144: =COUNT(G144:AW144) -> 2 | F144: S'ford | N144: 30 | Q144: 20 | BF144: =IF($BN144<1,0,LARGE($G144:$AW144,1)) -> 30 | BG144: =IF($BN144<2,0,LARGE($G144:$AW144,2)) -> 20 | BH144: =IF($BN144<3,0,LARGE($G144:$AW144,3)) -> 0 | BI144: =IF($BN144<4,0,LARGE($G144:$AW144,4)) -> 0 | BL144: =SUM(BF144:BI144) -> 50 | BM144: =RANK(BL144,$BL$3:$BL$279,0) -> 28 | BN144: =COUNT(G144:AW144) -> 2 | BO144: =SUM(G144:AW144) -> 50 | BT144: =(BQ144*$BQ$2)+(BR144*$BR$2)+(BS144*$BS$2) -> 0
F145: Ad Gr | N145: 97 | Q145: 104
F146: Place | N146: 3 | BQ146: =COUNTIF($G146:$AW146,"=1") -> 0 | BR146: =COUNTIF($G146:$AW146,"=2") -> 0 | BS146: =COUNTIF($G146:$AW146,"=3") -> 1
B147: Jagger | C147: Chris | D147: =IF(BN147=0,0,BO147/BN147) -> 32 | E147: =COUNT(G147:AW147) -> 2 | F147: S'ford | M147: 30 | O147: 34 | BF147: =IF($BN147<1,0,LARGE($G147:$AW147,1)) -> 34 | BG147: =IF($BN147<2,0,LARGE($G147:$AW147,2)) -> 30 | BH147: =IF($BN147<3,0,LARGE($G147:$AW147,3)) -> 0 | BI147: =IF($BN147<4,0,LARGE($G147:$AW147,4)) -> 0 | BL147: =SUM(BF147:BI147) -> 64 | BM147: =RANK(BL147,$BL$3:$BL$279,0) -> 23 | BN147: =COUNT(G147:AW147) -> 2 | BO147: =SUM(G147:AW147) -> 64 | BT147: =(BQ147*$BQ$2)+(BR147*$BR$2)+(BS147*$BS$2) -> 0
F148: Ad Gr | M148: 94 | O148: 89
F149: Place | O149: 2 | BQ149: =COUNTIF($G149:$AW149,"=1") -> 0 | BR149: =COUNTIF($G149:$AW149,"=2") -> 1 | BS149: =COUNTIF($G149:$AW149,"=3") -> 0
B150: Johnson | C150: Adam | D150: =IF(BN150=0,0,BO150/BN150) -> 31 | E150: =COUNT(G150:AW150) -> 2 | F150: S'ford | P150: 31 | R150: 31 | BF150: =IF($BN150<1,0,LARGE($G150:$AW150,1)) -> 31 | BG150: =IF($BN150<2,0,LARGE($G150:$AW150,2)) -> 31 | BH150: =IF($BN150<3,0,LARGE($G150:$AW150,3)) -> 0 | BI150: =IF($BN150<4,0,LARGE($G150:$AW150,4)) -> 0 | BL150: =SUM(BF150:BI150) -> 62 | BM150: =RANK(BL150,$BL$3:$BL$279,0) -> 25 | BN150: =COUNT(G150:AW150) -> 2 | BO150: =SUM(G150:AW150) -> 62 | BT150: =(BQ150*$BQ$2)+(BR150*$BR$2)+(BS150*$BS$2) -> 0
F151: Ad Gr | P151: 97 | R151: 96
F152: Place | BQ152: =COUNTIF($G152:$AW152,"=1") -> 0 | BR152: =COUNTIF($G152:$AW152,"=2") -> 0 | BS152: =COUNTIF($G152:$AW152,"=3") -> 0
B153: Jones | C153: Anthony | D153: =IF(BN153=0,0,BO153/BN153) -> 0 | E153: =COUNT(G153:AW153) -> 0 | F153: S'ford | BF153: =IF($BN153<1,0,LARGE($G153:$AW153,1)) -> 0 | BG153: =IF($BN153<2,0,LARGE($G153:$AW153,2)) -> 0 | BH153: =IF($BN153<3,0,LARGE($G153:$AW153,3)) -> 0 | BI153: =IF($BN153<4,0,LARGE($G153:$AW153,4)) -> 0 | BL153: =SUM(BF153:BI153) -> 0 | BM153: =RANK(BL153,$BL$3:$BL$279,0) -> 39 | BN153: =COUNT(G153:AW153) -> 0 | BO153: =SUM(G153:AW153) -> 0 | BT153: =(BQ153*$BQ$2)+(BR153*$BR$2)+(BS153*$BS$2) -> 0
F154: Ad Gr
F155: Place | BQ155: =COUNTIF($G155:$AW155,"=1") -> 0 | BR155: =COUNTIF($G155:$AW155,"=2") -> 0 | BS155: =COUNTIF($G155:$AW155,"=3") -> 0
B156: Jones | C156: Jon-Paul | D156: =IF(BN156=0,0,BO156/BN156) -> 0 | E156: =COUNT(G156:AW156) -> 0 | F156: S'ford | BF156: =IF($BN156<1,0,LARGE($G156:$AW156,1)) -> 0 | BG156: =IF($BN156<2,0,LARGE($G156:$AW156,2)) -> 0 | BH156: =IF($BN156<3,0,LARGE($G156:$AW156,3)) -> 0 | BI156: =IF($BN156<4,0,LARGE($G156:$AW156,4)) -> 0 | BL156: =SUM(BF156:BI156) -> 0 | BM156: =RANK(BL156,$BL$3:$BL$279,0) -> 39 | BN156: =COUNT(G156:AW156) -> 0 | BO156: =SUM(G156:AW156) -> 0 | BT156: =(BQ156*$BQ$2)+(BR156*$BR$2)+(BS156*$BS$2) -> 0
F157: Ad Gr | K157: 86 | P157: 91
F158: Place | BQ158: =COUNTIF($G158:$AW158,"=1") -> 0 | BR158: =COUNTIF($G158:$AW158,"=2") -> 0 | BS158: =COUNTIF($G158:$AW158,"=3") -> 0
B159: Keller | C159: Louis | D159: =IF(BN159=0,0,BO159/BN159) -> 0 | E159: =COUNT(G159:AW159) -> 0 | F159: S'ford | BF159: =IF($BN159<1,0,LARGE($G159:$AW159,1)) -> 0 | BG159: =IF($BN159<2,0,LARGE($G159:$AW159,2)) -> 0 | BH159: =IF($BN159<3,0,LARGE($G159:$AW159,3)) -> 0 | BI159: =IF($BN159<4,0,LARGE($G159:$AW159,4)) -> 0 | BL159: =SUM(BF159:BI159) -> 0 | BM159: =RANK(BL159,$BL$3:$BL$279,0) -> 39 | BN159: =COUNT(G159:AW159) -> 0 | BO159: =SUM(G159:AW159) -> 0 | BT159: =(BQ159*$BQ$2)+(BR159*$BR$2)+(BS159*$BS$2) -> 0
F160: Ad Gr
F161: Place | BQ161: =COUNTIF($G161:$AW161,"=1") -> 0 | BR161: =COUNTIF($G161:$AW161,"=2") -> 0 | BS161: =COUNTIF($G161:$AW161,"=3") -> 0
B162: Klapdor | C162: Stephan | D162: =IF(BN162=0,0,BO162/BN162) -> 29.66666667 | E162: =COUNT(G162:AW162) -> 3 | F162: S'ford | I162: 28 | O162: 19 | R162: 42 | BF162: =IF($BN162<1,0,LARGE($G162:$AW162,1)) -> 42 | BG162: =IF($BN162<2,0,LARGE($G162:$AW162,2)) -> 28 | BH162: =IF($BN162<3,0,LARGE($G162:$AW162,3)) -> 19 | BI162: =IF($BN162<4,0,LARGE($G162:$AW162,4)) -> 0 | BL162: =SUM(BF162:BI162) -> 89 | BM162: =RANK(BL162,$BL$3:$BL$279,0) -> 16 | BN162: =COUNT(G162:AW162) -> 3 | BO162: =SUM(G162:AW162) -> 89 | BT162: =(BQ162*$BQ$2)+(BR162*$BR$2)+(BS162*$BS$2) -> 0
F163: Ad Gr | I163: 101 | O163: 111 | R163: 87
F164: Place | R164: 1 | BQ164: =COUNTIF($G164:$AW164,"=1") -> 1 | BR164: =COUNTIF($G164:$AW164,"=2") -> 0 | BS164: =COUNTIF($G164:$AW164,"=3") -> 0
B165: Krieg | C165: Edith | D165: =IF(BN165=0,0,BO165/BN165) -> 0 | E165: =COUNT(G165:AW165) -> 0 | F165: S'ford | BF165: =IF($BN165<1,0,LARGE($G165:$AW165,1)) -> 0 | BG165: =IF($BN165<2,0,LARGE($G165:$AW165,2)) -> 0 | BH165: =IF($BN165<3,0,LARGE($G165:$AW165,3)) -> 0 | BI165: =IF($BN165<4,0,LARGE($G165:$AW165,4)) -> 0 | BL165: =SUM(BF165:BI165) -> 0 | BM165: =RANK(BL165,$BL$3:$BL$279,0) -> 39 | BN165: =COUNT(G165:AW165) -> 0 | BO165: =SUM(G165:AW165) -> 0 | BT165: =(BQ165*$BQ$2)+(BR165*$BR$2)+(BS165*$BS$2) -> 0
F166: Ad Gr | O166: 112
F167: Place | BQ167: =COUNTIF($G167:$AW167,"=1") -> 0 | BR167: =COUNTIF($G167:$AW167,"=2") -> 0 | BS167: =COUNTIF($G167:$AW167,"=3") -> 0
B168: Lawrence | C168: Mike | D168: =IF(BN168=0,0,BO168/BN168) -> 28.5 | E168: =COUNT(G168:AW168) -> 4 | F168: S'ford | I168: 26 | O168: 20 | P168: 34 | R168: 34 | BF168: =IF($BN168<1,0,LARGE($G168:$AW168,1)) -> 34 | BG168: =IF($BN168<2,0,LARGE($G168:$AW168,2)) -> 34 | BH168: =IF($BN168<3,0,LARGE($G168:$AW168,3)) -> 26 | BI168: =IF($BN168<4,0,LARGE($G168:$AW168,4)) -> 20 | BL168: =SUM(BF168:BI168) -> 114 | BM168: =RANK(BL168,$BL$3:$BL$279,0) -> 11 | BN168: =COUNT(G168:AW168) -> 4 | BO168: =SUM(G168:AW168) -> 114 | BT168: =(BQ168*$BQ$2)+(BR168*$BR$2)+(BS168*$BS$2) -> 0
F169: Ad Gr | I169: 112 | O169: 117 | P169: 104 | R169: 105
F170: Place | BQ170: =COUNTIF($G170:$AW170,"=1") -> 0 | BR170: =COUNTIF($G170:$AW170,"=2") -> 0 | BS170: =COUNTIF($G170:$AW170,"=3") -> 0
B171: Lechner | C171: Svenja | D171: =IF(BN171=0,0,BO171/BN171) -> 29.57142857 | E171: =COUNT(G171:AW171) -> 7 | F171: S'ford | G171: 23 | I171: 34 | J171: 28 | M171: 27 | O171: 29 | P171: 30 | R171: 36 | BF171: =IF($BN171<1,0,LARGE($G171:$AW171,1)) -> 36 | BG171: =IF($BN171<2,0,LARGE($G171:$AW171,2)) -> 34 | BH171: =IF($BN171<3,0,LARGE($G171:$AW171,3)) -> 30 | BI171: =IF($BN171<4,0,LARGE($G171:$AW171,4)) -> 29 | BL171: =SUM(BF171:BI171) -> 129 | BM171: =RANK(BL171,$BL$3:$BL$279,0) -> 6 | BN171: =COUNT(G171:AW171) -> 7 | BO171: =SUM(G171:AW171) -> 207 | BT171: =(BQ171*$BQ$2)+(BR171*$BR$2)+(BS171*$BS$2) -> 0
F172: Ad Gr | G172: 104 | I172: 92 | J172: 99 | M172: 99 | O172: 98 | P172: 96 | R172: 92
F173: Place | I173: 1 | BQ173: =COUNTIF($G173:$AW173,"=1") -> 1 | BR173: =COUNTIF($G173:$AW173,"=2") -> 0 | BS173: =COUNTIF($G173:$AW173,"=3") -> 0
B174: Leigh | C174: David | D174: =IF(BN174=0,0,BO174/BN174) -> 0 | E174: =COUNT(G174:AW174) -> 0 | F174: S'ford | BF174: =IF($BN174<1,0,LARGE($G174:$AW174,1)) -> 0 | BG174: =IF($BN174<2,0,LARGE($G174:$AW174,2)) -> 0 | BH174: =IF($BN174<3,0,LARGE($G174:$AW174,3)) -> 0 | BI174: =IF($BN174<4,0,LARGE($G174:$AW174,4)) -> 0 | BL174: =SUM(BF174:BI174) -> 0 | BM174: =RANK(BL174,$BL$3:$BL$279,0) -> 39 | BN174: =COUNT(G174:AW174) -> 0 | BO174: =SUM(G174:AW174) -> 0 | BT174: =(BQ174*$BQ$2)+(BR174*$BR$2)+(BS174*$BS$2) -> 0
F175: Ad Gr
F176: Place | BQ176: =COUNTIF($G176:$AW176,"=1") -> 0 | BR176: =COUNTIF($G176:$AW176,"=2") -> 0 | BS176: =COUNTIF($G176:$AW176,"=3") -> 0
B177: Lightfoot | C177: Matthew | D177: =IF(BN177=0,0,BO177/BN177) -> 33.66666667 | E177: =COUNT(G177:AW177) -> 3 | F177: S'ford | G177: 40 | M177: 32 | O177: 29 | R177: NR | BF177: =IF($BN177<1,0,LARGE($G177:$AW177,1)) -> 40 | BG177: =IF($BN177<2,0,LARGE($G177:$AW177,2)) -> 32 | BH177: =IF($BN177<3,0,LARGE($G177:$AW177,3)) -> 29 | BI177: =IF($BN177<4,0,LARGE($G177:$AW177,4)) -> 0 | BL177: =SUM(BF177:BI177) -> 101 | BM177: =RANK(BL177,$BL$3:$BL$279,0) -> 13 | BN177: =COUNT(G177:AW177) -> 3 | BO177: =SUM(G177:AW177) -> 101 | BT177: =(BQ177*$BQ$2)+(BR177*$BR$2)+(BS177*$BS$2) -> 0
F178: Ad Gr | G178: 95 | M178: 99 | O178: 102
F179: Place | G179: 2 | M179: 3 | BQ179: =COUNTIF($G179:$AW179,"=1") -> 0 | BR179: =COUNTIF($G179:$AW179,"=2") -> 1 | BS179: =COUNTIF($G179:$AW179,"=3") -> 1
B180: Longworth | C180: Robin | D180: =IF(BN180=0,0,BO180/BN180) -> 0 | E180: =COUNT(G180:AW180) -> 0 | F180: S'ford | BF180: =IF($BN180<1,0,LARGE($G180:$AW180,1)) -> 0 | BG180: =IF($BN180<2,0,LARGE($G180:$AW180,2)) -> 0 | BH180: =IF($BN180<3,0,LARGE($G180:$AW180,3)) -> 0 | BI180: =IF($BN180<4,0,LARGE($G180:$AW180,4)) -> 0 | BL180: =SUM(BF180:BI180) -> 0 | BM180: =RANK(BL180,$BL$3:$BL$279,0) -> 39 | BN180: =COUNT(G180:AW180) -> 0 | BO180: =SUM(G180:AW180) -> 0 | BT180: =(BQ180*$BQ$2)+(BR180*$BR$2)+(BS180*$BS$2) -> 0
F181: Ad Gr
F182: Place | BQ182: =COUNTIF($G182:$AW182,"=1") -> 0 | BR182: =COUNTIF($G182:$AW182,"=2") -> 0 | BS182: =COUNTIF($G182:$AW182,"=3") -> 0
B183: McCorley | C183: Niall | D183: =IF(BN183=0,0,BO183/BN183) -> 32 | E183: =COUNT(G183:AW183) -> 1 | F183: S'ford | Q183: 32 | BF183: =IF($BN183<1,0,LARGE($G183:$AW183,1)) -> 32 | BG183: =IF($BN183<2,0,LARGE($G183:$AW183,2)) -> 0 | BH183: =IF($BN183<3,0,LARGE($G183:$AW183,3)) -> 0 | BI183: =IF($BN183<4,0,LARGE($G183:$AW183,4)) -> 0 | BL183: =SUM(BF183:BI183) -> 32 | BM183: =RANK(BL183,$BL$3:$BL$279,0) -> 32 | BN183: =COUNT(G183:AW183) -> 1 | BO183: =SUM(G183:AW183) -> 32 | BT183: =(BQ183*$BQ$2)+(BR183*$BR$2)+(BS183*$BS$2) -> 0
F184: Ad Gr | Q184: 101
F185: Place | Q185: 3 | BQ185: =COUNTIF($G185:$AW185,"=1") -> 0 | BR185: =COUNTIF($G185:$AW185,"=2") -> 0 | BS185: =COUNTIF($G185:$AW185,"=3") -> 1
B186: McDonald | C186: Martin | D186: =IF(BN186=0,0,BO186/BN186) -> 0 | E186: =COUNT(G186:AW186) -> 0 | F186: S'ford | BF186: =IF($BN186<1,0,LARGE($G186:$AW186,1)) -> 0 | BG186: =IF($BN186<2,0,LARGE($G186:$AW186,2)) -> 0 | BH186: =IF($BN186<3,0,LARGE($G186:$AW186,3)) -> 0 | BI186: =IF($BN186<4,0,LARGE($G186:$AW186,4)) -> 0 | BL186: =SUM(BF186:BI186) -> 0 | BM186: =RANK(BL186,$BL$3:$BL$279,0) -> 39 | BN186: =COUNT(G186:AW186) -> 0 | BO186: =SUM(G186:AW186) -> 0 | BT186: =(BQ186*$BQ$2)+(BR186*$BR$2)+(BS186*$BS$2) -> 0
F187: Ad Gr
F188: Place | BQ188: =COUNTIF($G188:$AW188,"=1") -> 0 | BR188: =COUNTIF($G188:$AW188,"=2") -> 0 | BS188: =COUNTIF($G188:$AW188,"=3") -> 0
B189: Molloy | C189: David | D189: =IF(BN189=0,0,BO189/BN189) -> 0 | E189: =COUNT(G189:AW189) -> 0 | F189: S'ford | BF189: =IF($BN189<1,0,LARGE($G189:$AW189,1)) -> 0 | BG189: =IF($BN189<2,0,LARGE($G189:$AW189,2)) -> 0 | BH189: =IF($BN189<3,0,LARGE($G189:$AW189,3)) -> 0 | BI189: =IF($BN189<4,0,LARGE($G189:$AW189,4)) -> 0 | BL189: =SUM(BF189:BI189) -> 0 | BM189: =RANK(BL189,$BL$3:$BL$279,0) -> 39 | BN189: =COUNT(G189:AW189) -> 0 | BO189: =SUM(G189:AW189) -> 0 | BT189: =(BQ189*$BQ$2)+(BR189*$BR$2)+(BS189*$BS$2) -> 0
F190: Ad Gr
F191: Place | BQ191: =COUNTIF($G191:$AW191,"=1") -> 0 | BR191: =COUNTIF($G191:$AW191,"=2") -> 0 | BS191: =COUNTIF($G191:$AW191,"=3") -> 0
B192: Morris | C192: Brian | D192: =IF(BN192=0,0,BO192/BN192) -> 0 | E192: =COUNT(G192:AW192) -> 0 | F192: S'ford | BF192: =IF($BN192<1,0,LARGE($G192:$AW192,1)) -> 0 | BG192: =IF($BN192<2,0,LARGE($G192:$AW192,2)) -> 0 | BH192: =IF($BN192<3,0,LARGE($G192:$AW192,3)) -> 0 | BI192: =IF($BN192<4,0,LARGE($G192:$AW192,4)) -> 0 | BL192: =SUM(BF192:BI192) -> 0 | BM192: =RANK(BL192,$BL$3:$BL$279,0) -> 39 | BN192: =COUNT(G192:AW192) -> 0 | BO192: =SUM(G192:AW192) -> 0 | BT192: =(BQ192*$BQ$2)+(BR192*$BR$2)+(BS192*$BS$2) -> 0
F193: Ad Gr
F194: Place | BQ194: =COUNTIF($G194:$AW194,"=1") -> 0 | BR194: =COUNTIF($G194:$AW194,"=2") -> 0 | BS194: =COUNTIF($G194:$AW194,"=3") -> 0
B195: Moss | C195: Clyde | D195: =IF(BN195=0,0,BO195/BN195) -> 25 | E195: =COUNT(G195:AW195) -> 1 | F195: S'ford | M195: 25 | BF195: =IF($BN195<1,0,LARGE($G195:$AW195,1)) -> 25 | BG195: =IF($BN195<2,0,LARGE($G195:$AW195,2)) -> 0 | BH195: =IF($BN195<3,0,LARGE($G195:$AW195,3)) -> 0 | BI195: =IF($BN195<4,0,LARGE($G195:$AW195,4)) -> 0 | BL195: =SUM(BF195:BI195) -> 25 | BM195: =RANK(BL195,$BL$3:$BL$279,0) -> 36 | BN195: =COUNT(G195:AW195) -> 1 | BO195: =SUM(G195:AW195) -> 25 | BT195: =(BQ195*$BQ$2)+(BR195*$BR$2)+(BS195*$BS$2) -> 0
F196: Ad Gr | M196: 106
F197: Place | BQ197: =COUNTIF($G197:$AW197,"=1") -> 0 | BR197: =COUNTIF($G197:$AW197,"=2") -> 0 | BS197: =COUNTIF($G197:$AW197,"=3") -> 0
B198: Naudet | C198: Thomas | D198: =IF(BN198=0,0,BO198/BN198) -> 29 | E198: =COUNT(G198:AW198) -> 1 | F198: S'ford | I198: 29 | BF198: =IF($BN198<1,0,LARGE($G198:$AW198,1)) -> 29 | BG198: =IF($BN198<2,0,LARGE($G198:$AW198,2)) -> 0 | BH198: =IF($BN198<3,0,LARGE($G198:$AW198,3)) -> 0 | BI198: =IF($BN198<4,0,LARGE($G198:$AW198,4)) -> 0 | BL198: =SUM(BF198:BI198) -> 29 | BM198: =RANK(BL198,$BL$3:$BL$279,0) -> 33 | BN198: =COUNT(G198:AW198) -> 1 | BO198: =SUM(G198:AW198) -> 29 | BT198: =(BQ198*$BQ$2)+(BR198*$BR$2)+(BS198*$BS$2) -> 0
F199: Ad Gr | I199: 100
F200: Place | BQ200: =COUNTIF($G200:$AW200,"=1") -> 0 | BR200: =COUNTIF($G200:$AW200,"=2") -> 0 | BS200: =COUNTIF($G200:$AW200,"=3") -> 0
... 152 more rows

Sheet Handicaps
B1: Players Name | D1: Old Hcap | E1: DGV | F1: Prov | G1: Joined | H1: Plyd | CY1: Hcap | CZ1: Hcap | DA1: Hcap | DC1: Max Hcap= | DD1: 36
D2: 2020-12-01 | E2: Hcap | CZ2: 1/1/23 | DA2: Change
B3: Anderson | C3: David | D3: 36 | F3: =IF(H3<4,"Y",) -> Y | G3: 2023 | H3: =COUNT(J3:CX3) -> 1 | I3: Date | K3: 2023-05-07 | CY3: =IF(CW7>$DD$1,36,CW7) -> 13.85645161 | CZ3: 36 | DA3: =CZ3-CY3 -> 22.14354839
I4: Course | K4: Odelzhausen2023HG
I5: Ad Gr | K5: 89
I6: SD | J6: 38 | K6: =IF(K5="",0,(K5-INDIRECT(CONCATENATE(K4,"CR")))*113/INDIRECT(CONCATENATE(K4,"SR"))) -> 15.85645161 | L6: 0 | M6: 0 | N6: 0 | O6: 0 | P6: 0 | Q6: 0 | R6: 0 | S6: 0 | T6: 0 | U6: 0 | V6: 0 | W6: 0 | X6: 0 | Y6: 0 | Z6: 0 | AA6: 0 | AB6: 0 | AC6: 0 | AD6: 0 | AE6: 0 | AF6: 0 | AG6: 0 | AH6: 0 | AI6: 0 | AJ6: 0 | AK6: 0 | AL6: 0 | AM6: 0 | AN6: 0 | AO6: 0 | AP6: 0 | AQ6: 0 | AR6: 0 | AS6: 0 | AT6: 0 | AU6: 0 | AV6: 0 | AW6: 0 | AX6: 0 | AY6: 0 | AZ6: 0 | BA6: 0 | BB6: 0 | BC6: 0 | BD6: 0 | BE6: 0 | BF6: 0 | BG6: 0 | BH6: 0 | BI6: 0 | BJ6: 0 | BK6: 0 | BL6: 0 | BM6: 0 | BN6: 0 | BO6: 0 | BP6: 0 | BQ6: 0 | BR6: 0 | BS6: 0 | BT6: 0 | BU6: 0 | BV6: 0 | BW6: =IF(BW5="",0,(BW5-INDIRECT(CONCATENATE(BW4,"CR")))*113/INDIRECT(CONCATENATE(BW4,"SR"))) -> 0 | BX6: 0 | BY6: 0 | BZ6: 0 | CA6: 0 | CB6: 0 | CC6: 0 | CD6: 0 | CE6: 0 | CF6: 0 | CG6: 0 | CH6: 0 | CI6: 0 | CJ6: 0 | CK6: 0 | CL6: 0 | CM6: 0 | CN6: 0 | CO6: 0 | CP6: 0 | CQ6: 0 | CR6: 0 | CS6: 0 | CT6: 0 | CU6: 0 | CV6: 0 | CW6: 0
I7: New Hcap | J7: =J6-2 -> 36 | K7: =IF(K6>0,MIN(J6:K6)-2,J7) -> 13.85645161 | L7: =IF(L6>0,MIN(J6:L6)-2,K7) -> 13.85645161 | M7: =IF(M6>0,MIN(J6:M6)-1,L7) -> 13.85645161 | N7: =IF(N6>0,MIN(J6:N6),M7) -> 13.85645161 | O7: =IF(O6>0,AVERAGE(SMALL(IF(J6:O6>0,J6:O6),{1,2}))-1,N7) -> 13.85645161 | P7: =IF(P6>0,AVERAGE(SMALL(IF(J6:P6>0,J6:P6),{1,2})),O7) -> 13.85645161 | Q7: =IF(Q6>0,AVERAGE(SMALL(IF(J6:Q6>0,J6:Q6),{1,2})),P7) -> 13.85645161 | R7: =IF(R6>0,AVERAGE(SMALL(IF(J6:R6>0,J6:R6),{1,2,3})),Q7) -> 13.85645161 | S7: =IF(S6>0,AVERAGE(SMALL(IF(J6:S6>0,J6:S6),{1,2,3})),R7) -> 13.85645161 | T7: =IF(T6>0,AVERAGE(SMALL(IF(J6:T6>0,J6:T6),{1,2,3})),S7) -> 13.85645161 | U7: =IF(U6>0,AVERAGE(SMALL(IF(J6:U6>0,J6:U6),{1,2,3,4})),T7) -> 13.85645161 | V7: =IF(V6>0,AVERAGE(SMALL(IF(J6:V6>0,J6:V6),{1,2,3,4})),U7) -> 13.85645161 | W7: =IF(W6>0,AVERAGE(SMALL(IF(J6:W6>0,J6:W6),{1,2,3,4})),V7) -> 13.85645161 | X7: =IF(X6>0,AVERAGE(SMALL(IF(J6:X6>0,J6:X6),{1,2,3,4,5})),W7) -> 13.85645161 | Y7: =IF(Y6>0,AVERAGE(SMALL(IF(J6:Y6>0,J6:Y6),{1,2,3,4,5})),X7) -> 13.85645161 | Z7: =IF(Z6>0,AVERAGE(SMALL(IF(J6:Z6>0,J6:Z6),{1,2,3,4,5,6})),Y7) -> 13.85645161 | AA7: =IF(AA6>0,AVERAGE(SMALL(IF(J6:AA6>0,J6:AA6),{1,2,3,4,5,6})),Z7) -> 13.85645161 | AB7: =IF(AB6>0,AVERAGE(SMALL(IF(J6:AB6>0,J6:AB6),{1,2,3,4,5,6,7})),AA7) -> 13.85645161 | AC7: =IF(AC6>0,AVERAGE(SMALL(IF(J6:AC6>0,J6:AC6),{1,2,3,4,5,6,7,8})),AB7) -> 13.85645161 | AD7: =IF(AD6>0,AVERAGE(SMALL(IF(K6:AD6>0,K6:AD6),{1,2,3,4,5,6,7,8})),AC7) -> 13.85645161 | AE7: =IF(AE6>0,AVERAGE(SMALL(IF(L6:AE6>0,L6:AE6),{1,2,3,4,5,6,7,8})),AD7) -> 13.85645161 | AF7: =IF(AF6>0,AVERAGE(SMALL(IF(M6:AF6>0,M6:AF6),{1,2,3,4,5,6,7,8})),AE7) -> 13.85645161 | AG7: =IF(AG6>0,AVERAGE(SMALL(IF(N6:AG6>0,N6:AG6),{1,2,3,4,5,6,7,8})),AF7) -> 13.85645161 | AH7: =IF(AH6>0,AVERAGE(SMALL(IF(O6:AH6>0,O6:AH6),{1,2,3,4,5,6,7,8})),AG7) -> 13.85645161 | AI7: =IF(AI6>0,AVERAGE(SMALL(IF(P6:AI6>0,P6:AI6),{1,2,3,4,5,6,7,8})),AH7) -> 13.85645161 | AJ7: =IF(AJ6>0,AVERAGE(SMALL(IF(Q6:AJ6>0,Q6:AJ6),{1,2,3,4,5,6,7,8})),AI7) -> 13.85645161 | AK7: =IF(AK6>0,AVERAGE(SMALL(IF(R6:AK6>0,R6:AK6),{1,2,3,4,5,6,7,8})),AJ7) -> 13.85645161 | AL7: =IF(AL6>0,AVERAGE(SMALL(IF(S6:AL6>0,S6:AL6),{1,2,3,4,5,6,7,8})),AK7) -> 13.85645161 | AM7: =IF(AM6>0,AVERAGE(SMALL(IF(T6:AM6>0,T6:AM6),{1,2,3,4,5,6,7,8})),AL7) -> 13.85645161 | AN7: =IF(AN6>0,AVERAGE(SMALL(IF(U6:AN6>0,U6:AN6),{1,2,3,4,5,6,7,8})),AM7) -> 13.85645161 | AO7: =IF(AO6>0,AVERAGE(SMALL(IF(V6:AO6>0,V6:AO6),{1,2,3,4,5,6,7,8})),AN7) -> 13.85645161 | AP7: =IF(AP6>0,AVERAGE(SMALL(IF(W6:AP6>0,W6:AP6),{1,2,3,4,5,6,7,8})),AO7) -> 13.85645161 | AQ7: =IF(AQ6>0,AVERAGE(SMALL(IF(X6:AQ6>0,X6:AQ6),{1,2,3,4,5,6,7,8})),AP7) -> 13.85645161 | AR7: =IF(AR6>0,AVERAGE(SMALL(IF(Y6:AR6>0,Y6:AR6),{1,2,3,4,5,6,7,8})),AQ7) -> 13.85645161 | AS7: =IF(AS6>0,AVERAGE(SMALL(IF(Z6:AS6>0,Z6:AS6),{1,2,3,4,5,6,7,8})),AR7) -> 13.85645161 | AT7: =IF(AT6>0,AVERAGE(SMALL(IF(AA6:AT6>0,AA6:AT6),{1,2,3,4,5,6,7,8})),AS7) -> 13.85645161 | AU7: =IF(AU6>0,AVERAGE(SMALL(IF(AB6:AU6>0,AB6:AU6),{1,2,3,4,5,6,7,8})),AT7) -> 13.85645161 | AV7: =IF(AV6>0,AVERAGE(SMALL(IF(AC6:AV6>0,AC6:AV6),{1,2,3,4,5,6,7,8})),AU7) -> 13.85645161 | AW7: =IF(AW6>0,AVERAGE(SMALL(IF(AD6:AW6>0,AD6:AW6),{1,2,3,4,5,6,7,8})),AV7) -> 13.85645161 | AX7: =IF(AX6>0,AVERAGE(SMALL(IF(AE6:AX6>0,AE6:AX6),{1,2,3,4,5,6,7,8})),AW7) -> 13.85645161 | AY7: =IF(AY6>0,AVERAGE(SMALL(IF(AF6:AY6>0,AF6:AY6),{1,2,3,4,5,6,7,8})),AX7) -> 13.85645161 | AZ7: =IF(AZ6>0,AVERAGE(SMALL(IF(AG6:AZ6>0,AG6:AZ6),{1,2,3,4,5,6,7,8})),AY7) -> 13.85645161 | BA7: =IF(BA6>0,AVERAGE(SMALL(IF(AH6:BA6>0,AH6:BA6),{1,2,3,4,5,6,7,8})),AZ7) -> 13.85645161 | BB7: =IF(BB6>0,AVERAGE(SMALL(IF(AI6:BB6>0,AI6:BB6),{1,2,3,4,5,6,7,8})),BA7) -> 13.85645161 | BC7: =IF(BC6>0,AVERAGE(SMALL(IF(AJ6:BC6>0,AJ6:BC6),{1,2,3,4,5,6,7,8})),BB7) -> 13.85645161 | BD7: =IF(BD6>0,AVERAGE(SMALL(IF(AK6:BD6>0,AK6:BD6),{1,2,3,4,5,6,7,8})),BC7) -> 13.85645161 | BE7: =IF(BE6>0,AVERAGE(SMALL(IF(AL6:BE6>0,AL6:BE6),{1,2,3,4,5,6,7,8})),BD7) -> 13.85645161 | BF7: =IF(BF6>0,AVERAGE(SMALL(IF(AM6:BF6>0,AM6:BF6),{1,2,3,4,5,6,7,8})),BE7) -> 13.85645161 | BG7: =IF(BG6>0,AVERAGE(SMALL(IF(AN6:BG6>0,AN6:BG6),{1,2,3,4,5,6,7,8})),BF7) -> 13.85645161 | BH7: =IF(BH6>0,AVERAGE(SMALL(IF(AO6:BH6>0,AO6:BH6),{1,2,3,4,5,6,7,8})),BG7) -> 13.85645161 | BI7: =IF(BI6>0,AVERAGE(SMALL(IF(AP6:BI6>0,AP6:BI6),{1,2,3,4,5,6,7,8})),BH7) -> 13.85645161 | BJ7: =IF(BJ6>0,AVERAGE(SMALL(IF(AQ6:BJ6>0,AQ6:BJ6),{1,2,3,4,5,6,7,8})),BI7) -> 13.85645161 | BK7: =IF(BK6>0,AVERAGE(SMALL(IF(AR6:BK6>0,AR6:BK6),{1,2,3,4,5,6,7,8})),BJ7) -> 13.85645161 | BL7: =IF(BL6>0,AVERAGE(SMALL(IF(AS6:BL6>0,AS6:BL6),{1,2,3,4,5,6,7,8})),BK7) -> 13.85645161 | BM7: =IF(BM6>0,AVERAGE(SMALL(IF(AT6:BM6>0,AT6:BM6),{1,2,3,4,5,6,7,8})),BL7) -> 13.85645161 | BN7: =IF(BN6>0,AVERAGE(SMALL(IF(AU6:BN6>0,AU6:BN6),{1,2,3,4,5,6,7,8})),BM7) -> 13.85645161 | BO7: =IF(BO6>0,AVERAGE(SMALL(IF(AV6:BO6>0,AV6:BO6),{1,2,3,4,5,6,7,8})),BN7) -> 13.85645161 | BP7: =IF(BP6>0,AVERAGE(SMALL(IF(AW6:BP6>0,AW6:BP6),{1,2,3,4,5,6,7,8})),BO7) -> 13.85645161 | BQ7: =IF(BQ6>0,AVERAGE(SMALL(IF(AX6:BQ6>0,AX6:BQ6),{1,2,3,4,5,6,7,8})),BP7) -> 13.85645161 | BR7: =IF(BR6>0,AVERAGE(SMALL(IF(AY6:BR6>0,AY6:BR6),{1,2,3,4,5,6,7,8})),BQ7) -> 13.85645161 | BS7: =IF(BS6>0,AVERAGE(SMALL(IF(AZ6:BS6>0,AZ6:BS6),{1,2,3,4,5,6,7,8})),BR7) -> 13.85645161 | BT7: =IF(BT6>0,AVERAGE(SMALL(IF(BA6:BT6>0,BA6:BT6),{1,2,3,4,5,6,7,8})),BS7) -> 13.85645161 | BU7: =IF(BU6>0,AVERAGE(SMALL(IF(BB6:BU6>0,BB6:BU6),{1,2,3,4,5,6,7,8})),BT7) -> 13.85645161 | BV7: =IF(BV6>0,AVERAGE(SMALL(IF(BC6:BV6>0,BC6:BV6),{1,2,3,4,5,6,7,8})),BU7) -> 13.85645161 | BW7: =IF(BW6>0,AVERAGE(SMALL(IF(BD6:BW6>0,BD6:BW6),{1,2,3,4,5,6,7,8})),BV7) -> 13.85645161 | BX7: =IF(BX6>0,AVERAGE(SMALL(IF(BE6:BX6>0,BE6:BX6),{1,2,3,4,5,6,7,8})),BW7) -> 13.85645161 | BY7: =IF(BY6>0,AVERAGE(SMALL(IF(BF6:BY6>0,BF6:BY6),{1,2,3,4,5,6,7,8})),BX7) -> 13.85645161 | BZ7: =IF(BZ6>0,AVERAGE(SMALL(IF(BG6:BZ6>0,BG6:BZ6),{1,2,3,4,5,6,7,8})),BY7) -> 13.85645161 | CA7: =IF(CA6>0,AVERAGE(SMALL(IF(BH6:CA6>0,BH6:CA6),{1,2,3,4,5,6,7,8})),BZ7) -> 13.85645161 | CB7: =IF(CB6>0,AVERAGE(SMALL(IF(BI6:CB6>0,BI6:CB6),{1,2,3,4,5,6,7,8})),CA7) -> 13.85645161 | CC7: =IF(CC6>0,AVERAGE(SMALL(IF(BJ6:CC6>0,BJ6:CC6),{1,2,3,4,5,6,7,8})),CB7) -> 13.85645161 | CD7: =IF(CD6>0,AVERAGE(SMALL(IF(BK6:CD6>0,BK6:CD6),{1,2,3,4,5,6,7,8})),CC7) -> 13.85645161 | CE7: =IF(CE6>0,AVERAGE(SMALL(IF(BL6:CE6>0,BL6:CE6),{1,2,3,4,5,6,7,8})),CD7) -> 13.85645161 | CF7: =IF(CF6>0,AVERAGE(SMALL(IF(BM6:CF6>0,BM6:CF6),{1,2,3,4,5,6,7,8})),CE7) -> 13.85645161 | CG7: =IF(CG6>0,AVERAGE(SMALL(IF(BN6:CG6>0,BN6:CG6),{1,2,3,4,5,6,7,8})),CF7) -> 13.85645161 | CH7: =IF(CH6>0,AVERAGE(SMALL(IF(BO6:CH6>0,BO6:CH6),{1,2,3,4,5,6,7,8})),CG7) -> 13.85645161 | CI7: =IF(CI6>0,AVERAGE(SMALL(IF(BP6:CI6>0,BP6:CI6),{1,2,3,4,5,6,7,8})),CH7) -> 13.85645161 | CJ7: =IF(CJ6>0,AVERAGE(SMALL(IF(BQ6:CJ6>0,BQ6:CJ6),{1,2,3,4,5,6,7,8})),CI7) -> 13.85645161 | CK7: =IF(CK6>0,AVERAGE(SMALL(IF(BR6:CK6>0,BR6:CK6),{1,2,3,4,5,6,7,8})),CJ7) -> 13.85645161 | CL7: =IF(CL6>0,AVERAGE(SMALL(IF(BS6:CL6>0,BS6:CL6),{1,2,3,4,5,6,7,8})),CK7) -> 13.85645161 | CM7: =IF(CM6>0,AVERAGE(SMALL(IF(BT6:CM6>0,BT6:CM6),{1,2,3,4,5,6,7,8})),CL7) -> 13.85645161 | CN7: =IF(CN6>0,AVERAGE(SMALL(IF(BU6:CN6>0,BU6:CN6),{1,2,3,4,5,6,7,8})),CM7) -> 13.85645161 | CO7: =IF(CO6>0,AVERAGE(SMALL(IF(BV6:CO6>0,BV6:CO6),{1,2,3,4,5,6,7,8})),CN7) -> 13.85645161 | CP7: =IF(CP6>0,AVERAGE(SMALL(IF(BW6:CP6>0,BW6:CP6),{1,2,3,4,5,6,7,8})),CO7) -> 13.85645161 | CQ7: =IF(CQ6>0,AVERAGE(SMALL(IF(BX6:CQ6>0,BX6:CQ6),{1,2,3,4,5,6,7,8})),CP7) -> 13.85645161 | CR7: =IF(CR6>0,AVERAGE(SMALL(IF(BY6:CR6>0,BY6:CR6),{1,2,3,4,5,6,7,8})),CQ7) -> 13.85645161 | CS7: =IF(CS6>0,AVERAGE(SMALL(IF(BZ6:CS6>0,BZ6:CS6),{1,2,3,4,5,6,7,8})),CR7) -> 13.85645161 | CT7: =IF(CT6>0,AVERAGE(SMALL(IF(CA6:CT6>0,CA6:CT6),{1,2,3,4,5,6,7,8})),CS7) -> 13.85645161 | CU7: =IF(CU6>0,AVERAGE(SMALL(IF(CB6:CU6>0,CB6:CU6),{1,2,3,4,5,6,7,8})),CT7) -> 13.85645161 | CV7: =IF(CV6>0,AVERAGE(SMALL(IF(CC6:CV6>0,CC6:CV6),{1,2,3,4,5,6,7,8})),CU7) -> 13.85645161 | CW7: =IF(CW6>0,AVERAGE(SMALL(IF(CD6:CW6>0,CD6:CW6),{1,2,3,4,5,6,7,8})),CV7) -> 13.85645161
I8: Low Hcap | AC8: =MIN($J7:AC7) -> 13.85645161 | AD8: =MIN($J7:AD7) -> 13.85645161 | AE8: =MIN($J7:AE7) -> 13.85645161 | AF8: =MIN($J7:AF7) -> 13.85645161 | AG8: =MIN($J7:AG7) -> 13.85645161 | AH8: =MIN($J7:AH7) -> 13.85645161 | AI8: =MIN($J7:AI7) -> 13.85645161 | AJ8: =MIN($J7:AJ7) -> 13.85645161 | AK8: =MIN($J7:AK7) -> 13.85645161 | AL8: =MIN($J7:AL7) -> 13.85645161 | AM8: =MIN($J7:AM7) -> 13.85645161 | AN8: =MIN($J7:AN7) -> 13.85645161 | AO8: =MIN($J7:AO7) -> 13.85645161 | AP8: =MIN($J7:AP7) -> 13.85645161 | AQ8: =MIN($J7:AQ7) -> 13.85645161 | AR8: =MIN($J7:AR7) -> 13.85645161 | AS8: =MIN($J7:AS7) -> 13.85645161 | AT8: =MIN($J7:AT7) -> 13.85645161 | AU8: =MIN($J7:AU7) -> 13.85645161 | AV8: =MIN($J7:AV7) -> 13.85645161 | AW8: =MIN($J7:AW7) -> 13.85645161 | AX8: =MIN($J7:AX7) -> 13.85645161 | AY8: =MIN($J7:AY7) -> 13.85645161 | AZ8: =MIN($J7:AZ7) -> 13.85645161 | BA8: =MIN($J7:BA7) -> 13.85645161 | BB8: =MIN($J7:BB7) -> 13.85645161 | BC8: =MIN($J7:BC7) -> 13.85645161 | BD8: =MIN($J7:BD7) -> 13.85645161 | BE8: =MIN($J7:BE7) -> 13.85645161 | BF8: =MIN($J7:BF7) -> 13.85645161 | BG8: =MIN($J7:BG7) -> 13.85645161 | BH8: =MIN($J7:BH7) -> 13.85645161 | BI8: =MIN($J7:BI7) -> 13.85645161 | BJ8: =MIN($J7:BJ7) -> 13.85645161 | BK8: =MIN($J7:BK7) -> 13.85645161 | BL8: =MIN($J7:BL7) -> 13.85645161 | BM8: =MIN($J7:BM7) -> 13.85645161 | BN8: =MIN($J7:BN7) -> 13.85645161 | BO8: =MIN($J7:BO7) -> 13.85645161 | BP8: =MIN($J7:BP7) -> 13.85645161 | BQ8: =MIN($J7:BQ7) -> 13.85645161 | BR8: =MIN($J7:BR7) -> 13.85645161 | BS8: =MIN($J7:BS7) -> 13.85645161 | BT8: =MIN($J7:BT7) -> 13.85645161 | BU8: =MIN($J7:BU7) -> 13.85645161 | BV8: =MIN($J7:BV7) -> 13.85645161 | BW8: =MIN($J7:BW7) -> 13.85645161 | BX8: =MIN($J7:BX7) -> 13.85645161 | BY8: =MIN($J7:BY7) -> 13.85645161 | BZ8: =MIN($J7:BZ7) -> 13.85645161 | CA8: =MIN($J7:CA7) -> 13.85645161 | CB8: =MIN($J7:CB7) -> 13.85645161 | CC8: =MIN($J7:CC7) -> 13.85645161 | CD8: =MIN($J7:CD7) -> 13.85645161 | CE8: =MIN($J7:CE7) -> 13.85645161 | CF8: =MIN($J7:CF7) -> 13.85645161 | CG8: =MIN($J7:CG7) -> 13.85645161 | CH8: =MIN($J7:CH7) -> 13.85645161 | CI8: =MIN($J7:CI7) -> 13.85645161 | CJ8: =MIN($J7:CJ7) -> 13.85645161 | CK8: =MIN($J7:CK7) -> 13.85645161 | CL8: =MIN($J7:CL7) -> 13.85645161 | CM8: =MIN($J7:CM7) -> 13.85645161 | CN8: =MIN($J7:CN7) -> 13.85645161 | CO8: =MIN($J7:CO7) -> 13.85645161 | CP8: =MIN($J7:CP7) -> 13.85645161 | CQ8: =MIN($J7:CQ7) -> 13.85645161 | CR8: =MIN($J7:CR7) -> 13.85645161 | CS8: =MIN($J7:CS7) -> 13.85645161 | CT8: =MIN($J7:CT7) -> 13.85645161 | CU8: =MIN($J7:CU7) -> 13.85645161 | CV8: =MIN($J7:CV7) -> 13.85645161 | CW8: =MIN($J7:CW7) -> 13.85645161
B9: Bacelic | C9: Danijel | D9: 30 | F9: =IF(H9<4,"Y",) -> Y | G9: 2021 | H9: =COUNT(J9:CX9) -> 3 | I9: Date | K9: 2023-05-19 | L9: 2023-05-28 | M9: 2023-06-09 | CY9: =IF(CW13>$DD$1,36,CW13) -> 29.42307692 | CZ9: 30 | DA9: =CZ9-CY9 -> 0.5769230769
I10: Course | K10: GarmischHG | L10: ErdingHG | M10: TegernbachHG
I11: Ad Gr | K11: 118 | L11: 106 | M11: 110
I12: SD | J12: 32 | K12: =IF(K11="",0,(K11-INDIRECT(CONCATENATE(K10,"CR")))*113/INDIRECT(CONCATENATE(K10,"SR"))) -> 41.46299213 | L12: =IF(L11="",0,(L11-INDIRECT(CONCATENATE(L10,"CR")))*113/INDIRECT(CONCATENATE(L10,"SR"))) -> 30.42307692 | M12: 32.78712121 | N12: 0 | O12: 0 | P12: 0 | Q12: 0 | R12: 0 | S12: 0 | T12: 0 | U12: 0 | V12: 0 | W12: 0 | X12: 0 | Y12: 0 | Z12: 0 | AA12: 0 | AB12: 0 | AC12: 0 | AD12: 0 | AE12: 0 | AF12: 0 | AG12: 0 | AH12: 0 | AI12: 0 | AJ12: 0 | AK12: 0 | AL12: 0 | AM12: 0 | AN12: 0 | AO12: 0 | AP12: 0 | AQ12: 0 | AR12: 0 | AS12: 0 | AT12: 0 | AU12: 0 | AV12: 0 | AW12: 0 | AX12: 0 | AY12: 0 | AZ12: 0 | BA12: 0 | BB12: 0 | BC12: 0 | BD12: 0 | BE12: 0 | BF12: 0 | BG12: 0 | BH12: 0 | BI12: 0 | BJ12: 0 | BK12: 0 | BL12: 0 | BM12: 0 | BN12: 0 | BO12: 0 | BP12: 0 | BQ12: 0 | BR12: 0 | BS12: 0 | BT12: 0 | BU12: 0 | BV12: 0 | BW12: =IF(BW11="",0,(BW11-INDIRECT(CONCATENATE(BW10,"CR")))*113/INDIRECT(CONCATENATE(BW10,"SR"))) -> 0 | BX12: 0 | BY12: 0 | BZ12: 0 | CA12: 0 | CB12: 0 | CC12: 0 | CD12: 0 | CE12: 0 | CF12: 0 | CG12: 0 | CH12: 0 | CI12: 0 | CJ12: 0 | CK12: 0 | CL12: 0 | CM12: =IF(CM11="",0,(CM11-INDIRECT(CONCATENATE(CM10,"CR")))*113/INDIRECT(CONCATENATE(CM10,"SR"))) -> 0 | CN12: 0 | CO12: =IF(CO11="",0,(CO11-INDIRECT(CONCATENATE(CO10,"CR")))*113/INDIRECT(CONCATENATE(CO10,"SR"))) -> 0 | CP12: 0 | CQ12: =IF(CQ11="",0,(CQ11-INDIRECT(CONCATENATE(CQ10,"CR")))*113/INDIRECT(CONCATENATE(CQ10,"SR"))) -> 0 | CR12: 0 | CS12: =IF(CS11="",0,(CS11-INDIRECT(CONCATENATE(CS10,"CR")))*113/INDIRECT(CONCATENATE(CS10,"SR"))) -> 0 | CT12: 0 | CU12: =IF(CU11="",0,(CU11-INDIRECT(CONCATENATE(CU10,"CR")))*113/INDIRECT(CONCATENATE(CU10,"SR"))) -> 0 | CV12: 0 | CW12: =IF(CW11="",0,(CW11-INDIRECT(CONCATENATE(CW10,"CR")))*113/INDIRECT(CONCATENATE(CW10,"SR"))) -> 0
I13: New Hcap | J13: =J12-2 -> 30 | K13: =IF(K12>0,MIN(J12:K12)-2,J13) -> 30 | L13: =IF(L12>0,MIN(J12:L12)-2,K13) -> 28.42307692 | M13: =IF(M12>0,MIN(J12:M12)-1,L13) -> 29.42307692 | N13: =IF(N12>0,MIN(J12:N12),M13) -> 29.42307692 | O13: =IF(O12>0,AVERAGE(SMALL(IF(J12:O12>0,J12:O12),{1,2}))-1,N13) -> 29.42307692 | P13: =IF(P12>0,AVERAGE(SMALL(IF(J12:P12>0,J12:P12),{1,2})),O13) -> 29.42307692 | Q13: =IF(Q12>0,AVERAGE(SMALL(IF(J12:Q12>0,J12:Q12),{1,2})),P13) -> 29.42307692 | R13: =IF(R12>0,AVERAGE(SMALL(IF(J12:R12>0,J12:R12),{1,2,3})),Q13) -> 29.42307692 | S13: =IF(S12>0,AVERAGE(SMALL(IF(J12:S12>0,J12:S12),{1,2,3})),R13) -> 29.42307692 | T13: =IF(T12>0,AVERAGE(SMALL(IF(J12:T12>0,J12:T12),{1,2,3})),S13) -> 29.42307692 | U13: =IF(U12>0,AVERAGE(SMALL(IF(J12:U12>0,J12:U12),{1,2,3,4})),T13) -> 29.42307692 | V13: =IF(V12>0,AVERAGE(SMALL(IF(J12:V12>0,J12:V12),{1,2,3,4})),U13) -> 29.42307692 | W13: =IF(W12>0,AVERAGE(SMALL(IF(J12:W12>0,J12:W12),{1,2,3,4})),V13) -> 29.42307692 | X13: =IF(X12>0,AVERAGE(SMALL(IF(J12:X12>0,J12:X12),{1,2,3,4,5})),W13) -> 29.42307692 | Y13: =IF(Y12>0,AVERAGE(SMALL(IF(J12:Y12>0,J12:Y12),{1,2,3,4,5})),X13) -> 29.42307692 | Z13: =IF(Z12>0,AVERAGE(SMALL(IF(J12:Z12>0,J12:Z12),{1,2,3,4,5,6})),Y13) -> 29.42307692 | AA13: =IF(AA12>0,AVERAGE(SMALL(IF(J12:AA12>0,J12:AA12),{1,2,3,4,5,6})),Z13) -> 29.42307692 | AB13: =IF(AB12>0,AVERAGE(SMALL(IF(J12:AB12>0,J12:AB12),{1,2,3,4,5,6,7})),AA13) -> 29.42307692 | AC13: =IF(AC12>0,AVERAGE(SMALL(IF(J12:AC12>0,J12:AC12),{1,2,3,4,5,6,7,8})),AB13) -> 29.42307692 | AD13: =IF(AD12>0,AVERAGE(SMALL(IF(K12:AD12>0,K12:AD12),{1,2,3,4,5,6,7,8})),AC13) -> 29.42307692 | AE13: =IF(AE12>0,AVERAGE(SMALL(IF(L12:AE12>0,L12:AE12),{1,2,3,4,5,6,7,8})),AD13) -> 29.42307692 | AF13: =IF(AF12>0,AVERAGE(SMALL(IF(M12:AF12>0,M12:AF12),{1,2,3,4,5,6,7,8})),AE13) -> 29.42307692 | AG13: =IF(AG12>0,AVERAGE(SMALL(IF(N12:AG12>0,N12:AG12),{1,2,3,4,5,6,7,8})),AF13) -> 29.42307692 | AH13: =IF(AH12>0,AVERAGE(SMALL(IF(O12:AH12>0,O12:AH12),{1,2,3,4,5,6,7,8})),AG13) -> 29.42307692 | AI13: =IF(AI12>0,AVERAGE(SMALL(IF(P12:AI12>0,P12:AI12),{1,2,3,4,5,6,7,8})),AH13) -> 29.42307692 | AJ13: =IF(AJ12>0,AVERAGE(SMALL(IF(Q12:AJ12>0,Q12:AJ12),{1,2,3,4,5,6,7,8})),AI13) -> 29.42307692 | AK13: =IF(AK12>0,AVERAGE(SMALL(IF(R12:AK12>0,R12:AK12),{1,2,3,4,5,6,7,8})),AJ13) -> 29.42307692 | AL13: =IF(AL12>0,AVERAGE(SMALL(IF(S12:AL12>0,S12:AL12),{1,2,3,4,5,6,7,8})),AK13) -> 29.42307692 | AM13: =IF(AM12>0,AVERAGE(SMALL(IF(T12:AM12>0,T12:AM12),{1,2,3,4,5,6,7,8})),AL13) -> 29.42307692 | AN13: =IF(AN12>0,AVERAGE(SMALL(IF(U12:AN12>0,U12:AN12),{1,2,3,4,5,6,7,8})),AM13) -> 29.42307692 | AO13: =IF(AO12>0,AVERAGE(SMALL(IF(V12:AO12>0,V12:AO12),{1,2,3,4,5,6,7,8})),AN13) -> 29.42307692 | AP13: =IF(AP12>0,AVERAGE(SMALL(IF(W12:AP12>0,W12:AP12),{1,2,3,4,5,6,7,8})),AO13) -> 29.42307692 | AQ13: =IF(AQ12>0,AVERAGE(SMALL(IF(X12:AQ12>0,X12:AQ12),{1,2,3,4,5,6,7,8})),AP13) -> 29.42307692 | AR13: =IF(AR12>0,AVERAGE(SMALL(IF(Y12:AR12>0,Y12:AR12),{1,2,3,4,5,6,7,8})),AQ13) -> 29.42307692 | AS13: =IF(AS12>0,AVERAGE(SMALL(IF(Z12:AS12>0,Z12:AS12),{1,2,3,4,5,6,7,8})),AR13) -> 29.42307692 | AT13: =IF(AT12>0,AVERAGE(SMALL(IF(AA12:AT12>0,AA12:AT12),{1,2,3,4,5,6,7,8})),AS13) -> 29.42307692 | AU13: =IF(AU12>0,AVERAGE(SMALL(IF(AB12:AU12>0,AB12:AU12),{1,2,3,4,5,6,7,8})),AT13) -> 29.42307692 | AV13: =IF(AV12>0,AVERAGE(SMALL(IF(AC12:AV12>0,AC12:AV12),{1,2,3,4,5,6,7,8})),AU13) -> 29.42307692 | AW13: =IF(AW12>0,AVERAGE(SMALL(IF(AD12:AW12>0,AD12:AW12),{1,2,3,4,5,6,7,8})),AV13) -> 29.42307692 | AX13: =IF(AX12>0,AVERAGE(SMALL(IF(AE12:AX12>0,AE12:AX12),{1,2,3,4,5,6,7,8})),AW13) -> 29.42307692 | AY13: =IF(AY12>0,AVERAGE(SMALL(IF(AF12:AY12>0,AF12:AY12),{1,2,3,4,5,6,7,8})),AX13) -> 29.42307692 | AZ13: =IF(AZ12>0,AVERAGE(SMALL(IF(AG12:AZ12>0,AG12:AZ12),{1,2,3,4,5,6,7,8})),AY13) -> 29.42307692 | BA13: =IF(BA12>0,AVERAGE(SMALL(IF(AH12:BA12>0,AH12:BA12),{1,2,3,4,5,6,7,8})),AZ13) -> 29.42307692 | BB13: =IF(BB12>0,AVERAGE(SMALL(IF(AI12:BB12>0,AI12:BB12),{1,2,3,4,5,6,7,8})),BA13) -> 29.42307692 | BC13: =IF(BC12>0,AVERAGE(SMALL(IF(AJ12:BC12>0,AJ12:BC12),{1,2,3,4,5,6,7,8})),BB13) -> 29.42307692 | BD13: =IF(BD12>0,AVERAGE(SMALL(IF(AK12:BD12>0,AK12:BD12),{1,2,3,4,5,6,7,8})),BC13) -> 29.42307692 | BE13: =IF(BE12>0,AVERAGE(SMALL(IF(AL12:BE12>0,AL12:BE12),{1,2,3,4,5,6,7,8})),BD13) -> 29.42307692 | BF13: =IF(BF12>0,AVERAGE(SMALL(IF(AM12:BF12>0,AM12:BF12),{1,2,3,4,5,6,7,8})),BE13) -> 29.42307692 | BG13: =IF(BG12>0,AVERAGE(SMALL(IF(AN12:BG12>0,AN12:BG12),{1,2,3,4,5,6,7,8})),BF13) -> 29.42307692 | BH13: =IF(BH12>0,AVERAGE(SMALL(IF(AO12:BH12>0,AO12:BH12),{1,2,3,4,5,6,7,8})),BG13) -> 29.42307692 | BI13: =IF(BI12>0,AVERAGE(SMALL(IF(AP12:BI12>0,AP12:BI12),{1,2,3,4,5,6,7,8})),BH13) -> 29.42307692 | BJ13: =IF(BJ12>0,AVERAGE(SMALL(IF(AQ12:BJ12>0,AQ12:BJ12),{1,2,3,4,5,6,7,8})),BI13) -> 29.42307692 | BK13: =IF(BK12>0,AVERAGE(SMALL(IF(AR12:BK12>0,AR12:BK12),{1,2,3,4,5,6,7,8})),BJ13) -> 29.42307692 | BL13: =IF(BL12>0,AVERAGE(SMALL(IF(AS12:BL12>0,AS12:BL12),{1,2,3,4,5,6,7,8})),BK13) -> 29.42307692 | BM13: =IF(BM12>0,AVERAGE(SMALL(IF(AT12:BM12>0,AT12:BM12),{1,2,3,4,5,6,7,8})),BL13) -> 29.42307692 | BN13: =IF(BN12>0,AVERAGE(SMALL(IF(AU12:BN12>0,AU12:BN12),{1,2,3,4,5,6,7,8})),BM13) -> 29.42307692 | BO13: =IF(BO12>0,AVERAGE(SMALL(IF(AV12:BO12>0,AV12:BO12),{1,2,3,4,5,6,7,8})),BN13) -> 29.42307692 | BP13: =IF(BP12>0,AVERAGE(SMALL(IF(AW12:BP12>0,AW12:BP12),{1,2,3,4,5,6,7,8})),BO13) -> 29.42307692 | BQ13: =IF(BQ12>0,AVERAGE(SMALL(IF(AX12:BQ12>0,AX12:BQ12),{1,2,3,4,5,6,7,8})),BP13) -> 29.42307692 | BR13: =IF(BR12>0,AVERAGE(SMALL(IF(AY12:BR12>0,AY12:BR12),{1,2,3,4,5,6,7,8})),BQ13) -> 29.42307692 | BS13: =IF(BS12>0,AVERAGE(SMALL(IF(AZ12:BS12>0,AZ12:BS12),{1,2,3,4,5,6,7,8})),BR13) -> 29.42307692 | BT13: =IF(BT12>0,AVERAGE(SMALL(IF(BA12:BT12>0,BA12:BT12),{1,2,3,4,5,6,7,8})),BS13) -> 29.42307692 | BU13: =IF(BU12>0,AVERAGE(SMALL(IF(BB12:BU12>0,BB12:BU12),{1,2,3,4,5,6,7,8})),BT13) -> 29.42307692 | BV13: =IF(BV12>0,AVERAGE(SMALL(IF(BC12:BV12>0,BC12:BV12),{1,2,3,4,5,6,7,8})),BU13) -> 29.42307692 | BW13: =IF(BW12>0,AVERAGE(SMALL(IF(BD12:BW12>0,BD12:BW12),{1,2,3,4,5,6,7,8})),BV13) -> 29.42307692 | BX13: =IF(BX12>0,AVERAGE(SMALL(IF(BE12:BX12>0,BE12:BX12),{1,2,3,4,5,6,7,8})),BW13) -> 29.42307692 | BY13: =IF(BY12>0,AVERAGE(SMALL(IF(BF12:BY12>0,BF12:BY12),{1,2,3,4,5,6,7,8})),BX13) -> 29.42307692 | BZ13: =IF(BZ12>0,AVERAGE(SMALL(IF(BG12:BZ12>0,BG12:BZ12),{1,2,3,4,5,6,7,8})),BY13) -> 29.42307692 | CA13: =IF(CA12>0,AVERAGE(SMALL(IF(BH12:CA12>0,BH12:CA12),{1,2,3,4,5,6,7,8})),BZ13) -> 29.42307692 | CB13: =IF(CB12>0,AVERAGE(SMALL(IF(BI12:CB12>0,BI12:CB12),{1,2,3,4,5,6,7,8})),CA13) -> 29.42307692 | CC13: =IF(CC12>0,AVERAGE(SMALL(IF(BJ12:CC12>0,BJ12:CC12),{1,2,3,4,5,6,7,8})),CB13) -> 29.42307692 | CD13: =IF(CD12>0,AVERAGE(SMALL(IF(BK12:CD12>0,BK12:CD12),{1,2,3,4,5,6,7,8})),CC13) -> 29.42307692 | CE13: =IF(CE12>0,AVERAGE(SMALL(IF(BL12:CE12>0,BL12:CE12),{1,2,3,4,5,6,7,8})),CD13) -> 29.42307692 | CF13: =IF(CF12>0,AVERAGE(SMALL(IF(BM12:CF12>0,BM12:CF12),{1,2,3,4,5,6,7,8})),CE13) -> 29.42307692 | CG13: =IF(CG12>0,AVERAGE(SMALL(IF(BN12:CG12>0,BN12:CG12),{1,2,3,4,5,6,7,8})),CF13) -> 29.42307692 | CH13: =IF(CH12>0,AVERAGE(SMALL(IF(BO12:CH12>0,BO12:CH12),{1,2,3,4,5,6,7,8})),CG13) -> 29.42307692 | CI13: =IF(CI12>0,AVERAGE(SMALL(IF(BP12:CI12>0,BP12:CI12),{1,2,3,4,5,6,7,8})),CH13) -> 29.42307692 | CJ13: =IF(CJ12>0,AVERAGE(SMALL(IF(BQ12:CJ12>0,BQ12:CJ12),{1,2,3,4,5,6,7,8})),CI13) -> 29.42307692 | CK13: =IF(CK12>0,AVERAGE(SMALL(IF(BR12:CK12>0,BR12:CK12),{1,2,3,4,5,6,7,8})),CJ13) -> 29.42307692 | CL13: =IF(CL12>0,AVERAGE(SMALL(IF(BS12:CL12>0,BS12:CL12),{1,2,3,4,5,6,7,8})),CK13) -> 29.42307692 | CM13: =IF(CM12>0,AVERAGE(SMALL(IF(BT12:CM12>0,BT12:CM12),{1,2,3,4,5,6,7,8})),CL13) -> 29.42307692 | CN13: =IF(CN12>0,AVERAGE(SMALL(IF(BU12:CN12>0,BU12:CN12),{1,2,3,4,5,6,7,8})),CM13) -> 29.42307692 | CO13: =IF(CO12>0,AVERAGE(SMALL(IF(BV12:CO12>0,BV12:CO12),{1,2,3,4,5,6,7,8})),CN13) -> 29.42307692 | CP13: =IF(CP12>0,AVERAGE(SMALL(IF(BW12:CP12>0,BW12:CP12),{1,2,3,4,5,6,7,8})),CO13) -> 29.42307692 | CQ13: =IF(CQ12>0,AVERAGE(SMALL(IF(BX12:CQ12>0,BX12:CQ12),{1,2,3,4,5,6,7,8})),CP13) -> 29.42307692 | CR13: =IF(CR12>0,AVERAGE(SMALL(IF(BY12:CR12>0,BY12:CR12),{1,2,3,4,5,6,7,8})),CQ13) -> 29.42307692 | CS13: =IF(CS12>0,AVERAGE(SMALL(IF(BZ12:CS12>0,BZ12:CS12),{1,2,3,4,5,6,7,8})),CR13) -> 29.42307692 | CT13: =IF(CT12>0,AVERAGE(SMALL(IF(CA12:CT12>0,CA12:CT12),{1,2,3,4,5,6,7,8})),CS13) -> 29.42307692 | CU13: =IF(CU12>0,AVERAGE(SMALL(IF(CB12:CU12>0,CB12:CU12),{1,2,3,4,5,6,7,8})),CT13) -> 29.42307692 | CV13: =IF(CV12>0,AVERAGE(SMALL(IF(CC12:CV12>0,CC12:CV12),{1,2,3,4,5,6,7,8})),CU13) -> 29.42307692 | CW13: =IF(CW12>0,AVERAGE(SMALL(IF(CD12:CW12>0,CD12:CW12),{1,2,3,4,5,6,7,8})),CV13) -> 29.42307692
I14: Low Hcap | AC14: =MIN($J13:AC13) -> 28.42307692 | AD14: =MIN($J13:AD13) -> 28.42307692 | AE14: =MIN($J13:AE13) -> 28.42307692 | AF14: =MIN($J13:AF13) -> 28.42307692 | AG14: =MIN($J13:AG13) -> 28.42307692 | AH14: =MIN($J13:AH13) -> 28.42307692 | AI14: =MIN($J13:AI13) -> 28.42307692 | AJ14: =MIN($J13:AJ13) -> 28.42307692 | AK14: =MIN($J13:AK13) -> 28.42307692 | AL14: =MIN($J13:AL13) -> 28.42307692 | AM14: =MIN($J13:AM13) -> 28.42307692 | AN14: =MIN($J13:AN13) -> 28.42307692 | AO14: =MIN($J13:AO13) -> 28.42307692 | AP14: =MIN($J13:AP13) -> 28.42307692 | AQ14: =MIN($J13:AQ13) -> 28.42307692 | AR14: =MIN($J13:AR13) -> 28.42307692 | AS14: =MIN($J13:AS13) -> 28.42307692 | AT14: =MIN($J13:AT13) -> 28.42307692 | AU14: =MIN($J13:AU13) -> 28.42307692 | AV14: =MIN($J13:AV13) -> 28.42307692 | AW14: =MIN($J13:AW13) -> 28.42307692 | AX14: =MIN($J13:AX13) -> 28.42307692 | AY14: =MIN($J13:AY13) -> 28.42307692 | AZ14: =MIN($J13:AZ13) -> 28.42307692 | BA14: =MIN($J13:BA13) -> 28.42307692 | BB14: =MIN($J13:BB13) -> 28.42307692 | BC14: =MIN($J13:BC13) -> 28.42307692 | BD14: =MIN($J13:BD13) -> 28.42307692 | BE14: =MIN($J13:BE13) -> 28.42307692 | BF14: =MIN($J13:BF13) -> 28.42307692 | BG14: =MIN($J13:BG13) -> 28.42307692 | BH14: =MIN($J13:BH13) -> 28.42307692 | BI14: =MIN($J13:BI13) -> 28.42307692 | BJ14: =MIN($J13:BJ13) -> 28.42307692 | BK14: =MIN($J13:BK13) -> 28.42307692 | BL14: =MIN($J13:BL13) -> 28.42307692 | BM14: =MIN($J13:BM13) -> 28.42307692 | BN14: =MIN($J13:BN13) -> 28.42307692 | BO14: =MIN($J13:BO13) -> 28.42307692 | BP14: =MIN($J13:BP13) -> 28.42307692 | BQ14: =MIN($J13:BQ13) -> 28.42307692 | BR14: =MIN($J13:BR13) -> 28.42307692 | BS14: =MIN($J13:BS13) -> 28.42307692 | BT14: =MIN($J13:BT13) -> 28.42307692 | BU14: =MIN($J13:BU13) -> 28.42307692 | BV14: =MIN($J13:BV13) -> 28.42307692 | BW14: =MIN($J13:BW13) -> 28.42307692 | BX14: =MIN($J13:BX13) -> 28.42307692 | BY14: =MIN($J13:BY13) -> 28.42307692 | BZ14: =MIN($J13:BZ13) -> 28.42307692 | CA14: =MIN($J13:CA13) -> 28.42307692 | CB14: =MIN($J13:CB13) -> 28.42307692 | CC14: =MIN($J13:CC13) -> 28.42307692 | CD14: =MIN($J13:CD13) -> 28.42307692 | CE14: =MIN($J13:CE13) -> 28.42307692 | CF14: =MIN($J13:CF13) -> 28.42307692 | CG14: =MIN($J13:CG13) -> 28.42307692 | CH14: =MIN($J13:CH13) -> 28.42307692 | CI14: =MIN($J13:CI13) -> 28.42307692 | CJ14: =MIN($J13:CJ13) -> 28.42307692 | CK14: =MIN($J13:CK13) -> 28.42307692 | CL14: =MIN($J13:CL13) -> 28.42307692 | CM14: =MIN($J13:CM13) -> 28.42307692 | CN14: =MIN($J13:CN13) -> 28.42307692 | CO14: =MIN($J13:CO13) -> 28.42307692 | CP14: =MIN($J13:CP13) -> 28.42307692 | CQ14: =MIN($J13:CQ13) -> 28.42307692 | CR14: =MIN($J13:CR13) -> 28.42307692 | CS14: =MIN($J13:CS13) -> 28.42307692 | CT14: =MIN($J13:CT13) -> 28.42307692 | CU14: =MIN($J13:CU13) -> 28.42307692 | CV14: =MIN($J13:CV13) -> 28.42307692 | CW14: =MIN($J13:CW13) -> 28.42307692
B15: Bacelic | C15: Samira | D15: 36 | F15: =IF(H15<4,"Y",) -> Y | G15: 2021 | H15: =COUNT(J15:CX15) -> 0 | I15: Date | CY15: =IF(CW19>$DD$1,36,CW19) -> 36 | CZ15: 36 | DA15: =CZ15-CY15 -> 0
I16: Course
I17: Ad Gr
I18: SD | J18: 38 | K18: =IF(K17="",0,(K17-INDIRECT(CONCATENATE(K16,"CR")))*113/INDIRECT(CONCATENATE(K16,"SR"))) -> 0 | L18: 0 | M18: 0 | N18: 0 | O18: 0 | P18: 0 | Q18: 0 | R18: 0 | S18: 0 | T18: 0 | U18: 0 | V18: 0 | W18: 0 | X18: 0 | Y18: 0 | Z18: 0 | AA18: 0 | AB18: 0 | AC18: 0 | AD18: 0 | AE18: 0 | AF18: 0 | AG18: 0 | AH18: 0 | AI18: 0 | AJ18: 0 | AK18: 0 | AL18: 0 | AM18: 0 | AN18: 0 | AO18: 0 | AP18: 0 | AQ18: 0 | AR18: 0 | AS18: 0 | AT18: 0 | AU18: 0 | AV18: 0 | AW18: 0 | AX18: 0 | AY18: 0 | AZ18: 0 | BA18: 0 | BB18: 0 | BC18: 0 | BD18: 0 | BE18: 0 | BF18: 0 | BG18: 0 | BH18: 0 | BI18: 0 | BJ18: 0 | BK18: 0 | BL18: 0 | BM18: 0 | BN18: 0 | BO18: 0 | BP18: 0 | BQ18: 0 | BR18: 0 | BS18: 0 | BT18: 0 | BU18: 0 | BV18: 0 | BW18: =IF(BW17="",0,(BW17-INDIRECT(CONCATENATE(BW16,"CR")))*113/INDIRECT(CONCATENATE(BW16,"SR"))) -> 0 | BX18: 0 | BY18: 0 | BZ18: 0 | CA18: 0 | CB18: 0 | CC18: 0 | CD18: 0 | CE18: 0 | CF18: 0 | CG18: 0 | CH18: 0 | CI18: 0 | CJ18: 0 | CK18: 0 | CL18: 0 | CM18: =IF(CM17="",0,(CM17-INDIRECT(CONCATENATE(CM16,"CR")))*113/INDIRECT(CONCATENATE(CM16,"SR"))) -> 0 | CN18: 0 | CO18: =IF(CO17="",0,(CO17-INDIRECT(CONCATENATE(CO16,"CR")))*113/INDIRECT(CONCATENATE(CO16,"SR"))) -> 0 | CP18: 0 | CQ18: =IF(CQ17="",0,(CQ17-INDIRECT(CONCATENATE(CQ16,"CR")))*113/INDIRECT(CONCATENATE(CQ16,"SR"))) -> 0 | CR18: 0 | CS18: =IF(CS17="",0,(CS17-INDIRECT(CONCATENATE(CS16,"CR")))*113/INDIRECT(CONCATENATE(CS16,"SR"))) -> 0 | CT18: 0 | CU18: =IF(CU17="",0,(CU17-INDIRECT(CONCATENATE(CU16,"CR")))*113/INDIRECT(CONCATENATE(CU16,"SR"))) -> 0 | CV18: 0 | CW18: =IF(CW17="",0,(CW17-INDIRECT(CONCATENATE(CW16,"CR")))*113/INDIRECT(CONCATENATE(CW16,"SR"))) -> 0
I19: New Hcap | J19: =J18-2 -> 36 | K19: =IF(K18>0,MIN(J18:K18)-2,J19) -> 36 | L19: =IF(L18>0,MIN(J18:L18)-2,K19) -> 36 | M19: =IF(M18>0,MIN(J18:M18)-1,L19) -> 36 | N19: =IF(N18>0,MIN(J18:N18),M19) -> 36 | O19: =IF(O18>0,AVERAGE(SMALL(IF(J18:O18>0,J18:O18),{1,2}))-1,N19) -> 36 | P19: =IF(P18>0,AVERAGE(SMALL(IF(J18:P18>0,J18:P18),{1,2})),O19) -> 36 | Q19: =IF(Q18>0,AVERAGE(SMALL(IF(J18:Q18>0,J18:Q18),{1,2})),P19) -> 36 | R19: =IF(R18>0,AVERAGE(SMALL(IF(J18:R18>0,J18:R18),{1,2,3})),Q19) -> 36 | S19: =IF(S18>0,AVERAGE(SMALL(IF(J18:S18>0,J18:S18),{1,2,3})),R19) -> 36 | T19: =IF(T18>0,AVERAGE(SMALL(IF(J18:T18>0,J18:T18),{1,2,3})),S19) -> 36 | U19: =IF(U18>0,AVERAGE(SMALL(IF(J18:U18>0,J18:U18),{1,2,3,4})),T19) -> 36 | V19: =IF(V18>0,AVERAGE(SMALL(IF(J18:V18>0,J18:V18),{1,2,3,4})),U19) -> 36 | W19: =IF(W18>0,AVERAGE(SMALL(IF(J18:W18>0,J18:W18),{1,2,3,4})),V19) -> 36 | X19: =IF(X18>0,AVERAGE(SMALL(IF(J18:X18>0,J18:X18),{1,2,3,4,5})),W19) -> 36 | Y19: =IF(Y18>0,AVERAGE(SMALL(IF(J18:Y18>0,J18:Y18),{1,2,3,4,5})),X19) -> 36 | Z19: =IF(Z18>0,AVERAGE(SMALL(IF(J18:Z18>0,J18:Z18),{1,2,3,4,5,6})),Y19) -> 36 | AA19: =IF(AA18>0,AVERAGE(SMALL(IF(J18:AA18>0,J18:AA18),{1,2,3,4,5,6})),Z19) -> 36 | AB19: =IF(AB18>0,AVERAGE(SMALL(IF(J18:AB18>0,J18:AB18),{1,2,3,4,5,6,7})),AA19) -> 36 | AC19: =IF(AC18>0,AVERAGE(SMALL(IF(J18:AC18>0,J18:AC18),{1,2,3,4,5,6,7,8})),AB19) -> 36 | AD19: =IF(AD18>0,AVERAGE(SMALL(IF(K18:AD18>0,K18:AD18),{1,2,3,4,5,6,7,8})),AC19) -> 36 | AE19: =IF(AE18>0,AVERAGE(SMALL(IF(L18:AE18>0,L18:AE18),{1,2,3,4,5,6,7,8})),AD19) -> 36 | AF19: =IF(AF18>0,AVERAGE(SMALL(IF(M18:AF18>0,M18:AF18),{1,2,3,4,5,6,7,8})),AE19) -> 36 | AG19: =IF(AG18>0,AVERAGE(SMALL(IF(N18:AG18>0,N18:AG18),{1,2,3,4,5,6,7,8})),AF19) -> 36 | AH19: =IF(AH18>0,AVERAGE(SMALL(IF(O18:AH18>0,O18:AH18),{1,2,3,4,5,6,7,8})),AG19) -> 36 | AI19: =IF(AI18>0,AVERAGE(SMALL(IF(P18:AI18>0,P18:AI18),{1,2,3,4,5,6,7,8})),AH19) -> 36 | AJ19: =IF(AJ18>0,AVERAGE(SMALL(IF(Q18:AJ18>0,Q18:AJ18),{1,2,3,4,5,6,7,8})),AI19) -> 36 | AK19: =IF(AK18>0,AVERAGE(SMALL(IF(R18:AK18>0,R18:AK18),{1,2,3,4,5,6,7,8})),AJ19) -> 36 | AL19: =IF(AL18>0,AVERAGE(SMALL(IF(S18:AL18>0,S18:AL18),{1,2,3,4,5,6,7,8})),AK19) -> 36 | AM19: =IF(AM18>0,AVERAGE(SMALL(IF(T18:AM18>0,T18:AM18),{1,2,3,4,5,6,7,8})),AL19) -> 36 | AN19: =IF(AN18>0,AVERAGE(SMALL(IF(U18:AN18>0,U18:AN18),{1,2,3,4,5,6,7,8})),AM19) -> 36 | AO19: =IF(AO18>0,AVERAGE(SMALL(IF(V18:AO18>0,V18:AO18),{1,2,3,4,5,6,7,8})),AN19) -> 36 | AP19: =IF(AP18>0,AVERAGE(SMALL(IF(W18:AP18>0,W18:AP18),{1,2,3,4,5,6,7,8})),AO19) -> 36 | AQ19: =IF(AQ18>0,AVERAGE(SMALL(IF(X18:AQ18>0,X18:AQ18),{1,2,3,4,5,6,7,8})),AP19) -> 36 | AR19: =IF(AR18>0,AVERAGE(SMALL(IF(Y18:AR18>0,Y18:AR18),{1,2,3,4,5,6,7,8})),AQ19) -> 36 | AS19: =IF(AS18>0,AVERAGE(SMALL(IF(Z18:AS18>0,Z18:AS18),{1,2,3,4,5,6,7,8})),AR19) -> 36 | AT19: =IF(AT18>0,AVERAGE(SMALL(IF(AA18:AT18>0,AA18:AT18),{1,2,3,4,5,6,7,8})),AS19) -> 36 | AU19: =IF(AU18>0,AVERAGE(SMALL(IF(AB18:AU18>0,AB18:AU18),{1,2,3,4,5,6,7,8})),AT19) -> 36 | AV19: =IF(AV18>0,AVERAGE(SMALL(IF(AC18:AV18>0,AC18:AV18),{1,2,3,4,5,6,7,8})),AU19) -> 36 | AW19: =IF(AW18>0,AVERAGE(SMALL(IF(AD18:AW18>0,AD18:AW18),{1,2,3,4,5,6,7,8})),AV19) -> 36 | AX19: =IF(AX18>0,AVERAGE(SMALL(IF(AE18:AX18>0,AE18:AX18),{1,2,3,4,5,6,7,8})),AW19) -> 36 | AY19: =IF(AY18>0,AVERAGE(SMALL(IF(AF18:AY18>0,AF18:AY18),{1,2,3,4,5,6,7,8})),AX19) -> 36 | AZ19: =IF(AZ18>0,AVERAGE(SMALL(IF(AG18:AZ18>0,AG18:AZ18),{1,2,3,4,5,6,7,8})),AY19) -> 36 | BA19: =IF(BA18>0,AVERAGE(SMALL(IF(AH18:BA18>0,AH18:BA18),{1,2,3,4,5,6,7,8})),AZ19) -> 36 | BB19: =IF(BB18>0,AVERAGE(SMALL(IF(AI18:BB18>0,AI18:BB18),{1,2,3,4,5,6,7,8})),BA19) -> 36 | BC19: =IF(BC18>0,AVERAGE(SMALL(IF(AJ18:BC18>0,AJ18:BC18),{1,2,3,4,5,6,7,8})),BB19) -> 36 | BD19: =IF(BD18>0,AVERAGE(SMALL(IF(AK18:BD18>0,AK18:BD18),{1,2,3,4,5,6,7,8})),BC19) -> 36 | BE19: =IF(BE18>0,AVERAGE(SMALL(IF(AL18:BE18>0,AL18:BE18),{1,2,3,4,5,6,7,8})),BD19) -> 36 | BF19: =IF(BF18>0,AVERAGE(SMALL(IF(AM18:BF18>0,AM18:BF18),{1,2,3,4,5,6,7,8})),BE19) -> 36 | BG19: =IF(BG18>0,AVERAGE(SMALL(IF(AN18:BG18>0,AN18:BG18),{1,2,3,4,5,6,7,8})),BF19) -> 36 | BH19: =IF(BH18>0,AVERAGE(SMALL(IF(AO18:BH18>0,AO18:BH18),{1,2,3,4,5,6,7,8})),BG19) -> 36 | BI19: =IF(BI18>0,AVERAGE(SMALL(IF(AP18:BI18>0,AP18:BI18),{1,2,3,4,5,6,7,8})),BH19) -> 36 | BJ19: =IF(BJ18>0,AVERAGE(SMALL(IF(AQ18:BJ18>0,AQ18:BJ18),{1,2,3,4,5,6,7,8})),BI19) -> 36 | BK19: =IF(BK18>0,AVERAGE(SMALL(IF(AR18:BK18>0,AR18:BK18),{1,2,3,4,5,6,7,8})),BJ19) -> 36 | BL19: =IF(BL18>0,AVERAGE(SMALL(IF(AS18:BL18>0,AS18:BL18),{1,2,3,4,5,6,7,8})),BK19) -> 36 | BM19: =IF(BM18>0,AVERAGE(SMALL(IF(AT18:BM18>0,AT18:BM18),{1,2,3,4,5,6,7,8})),BL19) -> 36 | BN19: =IF(BN18>0,AVERAGE(SMALL(IF(AU18:BN18>0,AU18:BN18),{1,2,3,4,5,6,7,8})),BM19) -> 36 | BO19: =IF(BO18>0,AVERAGE(SMALL(IF(AV18:BO18>0,AV18:BO18),{1,2,3,4,5,6,7,8})),BN19) -> 36 | BP19: =IF(BP18>0,AVERAGE(SMALL(IF(AW18:BP18>0,AW18:BP18),{1,2,3,4,5,6,7,8})),BO19) -> 36 | BQ19: =IF(BQ18>0,AVERAGE(SMALL(IF(AX18:BQ18>0,AX18:BQ18),{1,2,3,4,5,6,7,8})),BP19) -> 36 | BR19: =IF(BR18>0,AVERAGE(SMALL(IF(AY18:BR18>0,AY18:BR18),{1,2,3,4,5,6,7,8})),BQ19) -> 36 | BS19: =IF(BS18>0,AVERAGE(SMALL(IF(AZ18:BS18>0,AZ18:BS18),{1,2,3,4,5,6,7,8})),BR19) -> 36 | BT19: =IF(BT18>0,AVERAGE(SMALL(IF(BA18:BT18>0,BA18:BT18),{1,2,3,4,5,6,7,8})),BS19) -> 36 | BU19: =IF(BU18>0,AVERAGE(SMALL(IF(BB18:BU18>0,BB18:BU18),{1,2,3,4,5,6,7,8})),BT19) -> 36 | BV19: =IF(BV18>0,AVERAGE(SMALL(IF(BC18:BV18>0,BC18:BV18),{1,2,3,4,5,6,7,8})),BU19) -> 36 | BW19: =IF(BW18>0,AVERAGE(SMALL(IF(BD18:BW18>0,BD18:BW18),{1,2,3,4,5,6,7,8})),BV19) -> 36 | BX19: =IF(BX18>0,AVERAGE(SMALL(IF(BE18:BX18>0,BE18:BX18),{1,2,3,4,5,6,7,8})),BW19) -> 36 | BY19: =IF(BY18>0,AVERAGE(SMALL(IF(BF18:BY18>0,BF18:BY18),{1,2,3,4,5,6,7,8})),BX19) -> 36 | BZ19: =IF(BZ18>0,AVERAGE(SMALL(IF(BG18:BZ18>0,BG18:BZ18),{1,2,3,4,5,6,7,8})),BY19) -> 36 | CA19: =IF(CA18>0,AVERAGE(SMALL(IF(BH18:CA18>0,BH18:CA18),{1,2,3,4,5,6,7,8})),BZ19) -> 36 | CB19: =IF(CB18>0,AVERAGE(SMALL(IF(BI18:CB18>0,BI18:CB18),{1,2,3,4,5,6,7,8})),CA19) -> 36 | CC19: =IF(CC18>0,AVERAGE(SMALL(IF(BJ18:CC18>0,BJ18:CC18),{1,2,3,4,5,6,7,8})),CB19) -> 36 | CD19: =IF(CD18>0,AVERAGE(SMALL(IF(BK18:CD18>0,BK18:CD18),{1,2,3,4,5,6,7,8})),CC19) -> 36 | CE19: =IF(CE18>0,AVERAGE(SMALL(IF(BL18:CE18>0,BL18:CE18),{1,2,3,4,5,6,7,8})),CD19) -> 36 | CF19: =IF(CF18>0,AVERAGE(SMALL(IF(BM18:CF18>0,BM18:CF18),{1,2,3,4,5,6,7,8})),CE19) -> 36 | CG19: =IF(CG18>0,AVERAGE(SMALL(IF(BN18:CG18>0,BN18:CG18),{1,2,3,4,5,6,7,8})),CF19) -> 36 | CH19: =IF(CH18>0,AVERAGE(SMALL(IF(BO18:CH18>0,BO18:CH18),{1,2,3,4,5,6,7,8})),CG19) -> 36 | CI19: =IF(CI18>0,AVERAGE(SMALL(IF(BP18:CI18>0,BP18:CI18),{1,2,3,4,5,6,7,8})),CH19) -> 36 | CJ19: =IF(CJ18>0,AVERAGE(SMALL(IF(BQ18:CJ18>0,BQ18:CJ18),{1,2,3,4,5,6,7,8})),CI19) -> 36 | CK19: =IF(CK18>0,AVERAGE(SMALL(IF(BR18:CK18>0,BR18:CK18),{1,2,3,4,5,6,7,8})),CJ19) -> 36 | CL19: =IF(CL18>0,AVERAGE(SMALL(IF(BS18:CL18>0,BS18:CL18),{1,2,3,4,5,6,7,8})),CK19) -> 36 | CM19: =IF(CM18>0,AVERAGE(SMALL(IF(BT18:CM18>0,BT18:CM18),{1,2,3,4,5,6,7,8})),CL19) -> 36 | CN19: =IF(CN18>0,AVERAGE(SMALL(IF(BU18:CN18>0,BU18:CN18),{1,2,3,4,5,6,7,8})),CM19) -> 36 | CO19: =IF(CO18>0,AVERAGE(SMALL(IF(BV18:CO18>0,BV18:CO18),{1,2,3,4,5,6,7,8})),CN19) -> 36 | CP19: =IF(CP18>0,AVERAGE(SMALL(IF(BW18:CP18>0,BW18:CP18),{1,2,3,4,5,6,7,8})),CO19) -> 36 | CQ19: =IF(CQ18>0,AVERAGE(SMALL(IF(BX18:CQ18>0,BX18:CQ18),{1,2,3,4,5,6,7,8})),CP19) -> 36 | CR19: =IF(CR18>0,AVERAGE(SMALL(IF(BY18:CR18>0,BY18:CR18),{1,2,3,4,5,6,7,8})),CQ19) -> 36 | CS19: =IF(CS18>0,AVERAGE(SMALL(IF(BZ18:CS18>0,BZ18:CS18),{1,2,3,4,5,6,7,8})),CR19) -> 36 | CT19: =IF(CT18>0,AVERAGE(SMALL(IF(CA18:CT18>0,CA18:CT18),{1,2,3,4,5,6,7,8})),CS19) -> 36 | CU19: =IF(CU18>0,AVERAGE(SMALL(IF(CB18:CU18>0,CB18:CU18),{1,2,3,4,5,6,7,8})),CT19) -> 36 | CV19: =IF(CV18>0,AVERAGE(SMALL(IF(CC18:CV18>0,CC18:CV18),{1,2,3,4,5,6,7,8})),CU19) -> 36 | CW19: =IF(CW18>0,AVERAGE(SMALL(IF(CD18:CW18>0,CD18:CW18),{1,2,3,4,5,6,7,8})),CV19) -> 36
I20: Low Hcap | AC20: =MIN($J19:AC19) -> 36 | AD20: =MIN($J19:AD19) -> 36 | AE20: =MIN($J19:AE19) -> 36 | AF20: =MIN($J19:AF19) -> 36 | AG20: =MIN($J19:AG19) -> 36 | AH20: =MIN($J19:AH19) -> 36 | AI20: =MIN($J19:AI19) -> 36 | AJ20: =MIN($J19:AJ19) -> 36 | AK20: =MIN($J19:AK19) -> 36 | AL20: =MIN($J19:AL19) -> 36 | AM20: =MIN($J19:AM19) -> 36 | AN20: =MIN($J19:AN19) -> 36 | AO20: =MIN($J19:AO19) -> 36 | AP20: =MIN($J19:AP19) -> 36 | AQ20: =MIN($J19:AQ19) -> 36 | AR20: =MIN($J19:AR19) -> 36 | AS20: =MIN($J19:AS19) -> 36 | AT20: =MIN($J19:AT19) -> 36 | AU20: =MIN($J19:AU19) -> 36 | AV20: =MIN($J19:AV19) -> 36 | AW20: =MIN($J19:AW19) -> 36 | AX20: =MIN($J19:AX19) -> 36 | AY20: =MIN($J19:AY19) -> 36 | AZ20: =MIN($J19:AZ19) -> 36 | BA20: =MIN($J19:BA19) -> 36 | BB20: =MIN($J19:BB19) -> 36 | BC20: =MIN($J19:BC19) -> 36 | BD20: =MIN($J19:BD19) -> 36 | BE20: =MIN($J19:BE19) -> 36 | BF20: =MIN($J19:BF19) -> 36 | BG20: =MIN($J19:BG19) -> 36 | BH20: =MIN($J19:BH19) -> 36 | BI20: =MIN($J19:BI19) -> 36 | BJ20: =MIN($J19:BJ19) -> 36 | BK20: =MIN($J19:BK19) -> 36 | BL20: =MIN($J19:BL19) -> 36 | BM20: =MIN($J19:BM19) -> 36 | BN20: =MIN($J19:BN19) -> 36 | BO20: =MIN($J19:BO19) -> 36 | BP20: =MIN($J19:BP19) -> 36 | BQ20: =MIN($J19:BQ19) -> 36 | BR20: =MIN($J19:BR19) -> 36 | BS20: =MIN($J19:BS19) -> 36 | BT20: =MIN($J19:BT19) -> 36 | BU20: =MIN($J19:BU19) -> 36 | BV20: =MIN($J19:BV19) -> 36 | BW20: =MIN($J19:BW19) -> 36 | BX20: =MIN($J19:BX19) -> 36 | BY20: =MIN($J19:BY19) -> 36 | BZ20: =MIN($J19:BZ19) -> 36 | CA20: =MIN($J19:CA19) -> 36 | CB20: =MIN($J19:CB19) -> 36 | CC20: =MIN($J19:CC19) -> 36 | CD20: =MIN($J19:CD19) -> 36 | CE20: =MIN($J19:CE19) -> 36 | CF20: =MIN($J19:CF19) -> 36 | CG20: =MIN($J19:CG19) -> 36 | CH20: =MIN($J19:CH19) -> 36 | CI20: =MIN($J19:CI19) -> 36 | CJ20: =MIN($J19:CJ19) -> 36 | CK20: =MIN($J19:CK19) -> 36 | CL20: =MIN($J19:CL19) -> 36 | CM20: =MIN($J19:CM19) -> 36 | CN20: =MIN($J19:CN19) -> 36 | CO20: =MIN($J19:CO19) -> 36 | CP20: =MIN($J19:CP19) -> 36 | CQ20: =MIN($J19:CQ19) -> 36 | CR20: =MIN($J19:CR19) -> 36 | CS20: =MIN($J19:CS19) -> 36 | CT20: =MIN($J19:CT19) -> 36 | CU20: =MIN($J19:CU19) -> 36 | CV20: =MIN($J19:CV19) -> 36 | CW20: =MIN($J19:CW19) -> 36
B21: Bargna | C21: David | D21: 12 | F21: =IF(H21<4,"Y",) -> 0 | H21: =COUNT(J21:CX21) -> 51 | I21: Date | K21: 2018-07-25 | L21: 2019-07-07 | M21: 2019-07-31 | N21: 2019-08-18 | O21: 2019-08-28 | P21: 2019-10-13 | Q21: 2019-10-23 | R21: 2020-05-20 | S21: 2020-06-10 | T21: 2020-06-19 | U21: 2020-07-12 | V21: 2020-07-15 | W21: 2020-07-31 | X21: 2020-08-09 | Y21: 2020-11-01 | Z21: 2021-03-28 | AA21: 2021-04-11 | AB21: 2021-05-09 | AC21: 2021-05-14 | AD21: 2021-06-04 | AE21: 2021-06-13 | AF21: 2021-06-23 | AG21: 2021-07-11 | AH21: 2021-07-30 | AI21: 2021-09-19 | AJ21: 2021-10-06 | AK21: 2021-11-14 | AL21: 2022-03-27 | AM21: 2022-05-01 | AN21: 2022-05-11 | AO21: 2022-05-29 | AP21: 2022-06-12 | AQ21: 2022-06-17 | AR21: 2022-06-22 | AS21: 2022-07-15 | AT21: 2022-08-07 | AU21: 2022-08-12 | AV21: 2022-08-17 | AW21: 2022-08-21 | AX21: 2022-09-02 | AY21: 2022-09-07 | AZ21: 2022-09-11 | BA21: 2022-09-14 | BB21: 2022-10-07 | BC21: 2022-11-09 | BD21: 2022-11-13 | BE21: 2023-03-26 | BF21: 2023-04-26 | BG21: 2023-05-10 | BH21: 2023-05-31 | BI21: 2023-06-04 | CY21: =IF(CW25>$DD$1,36,CW25) -> 11.11589947 | CZ21: 11.44432276 | DA21: =CZ21-CY21 -> 0.328423287
I22: Course | K22: GutThailingHG | L22: ErdingHG | M22: GutThailingHG | N22: PfaffingHG | O22: GutThailingHG | P22: PfaffingHG | Q22: GutThailingHG | R22: GutThailingHG | S22: GutThailingHG | T22: StEurachHG | U22: PfaffingHG | V22: GutThailingHG | W22: StEurachHG | X22: ErdingHG | Y22: ErdingHG | Z22: OdelzhausenHG | AA22: ErdingHR | AB22: ErdingHG | AC22: StEurachHG | AD22: EgmatingHG | AE22: PfaffingHG | AF22: GutThailingHG | AG22: PfaffingHG | AH22: MangfalltalHG | AI22: ErdingHG | AJ22: GutThailingHG | AK22: OdelzhausenHG | AL22: OdelzhausenHG | AM22: ErdingHG | AN22: AschheimHG | AO22: OdelzhausenHG | AP22: ErdingHG | AQ22: StEurachHG | AR22: GutThailing2022HG | AS22: MaxlrainHG | AT22: IffeldorfHG | AU22: ValleyHG | AV22: GutThailing2022HG | AW22: Pfaffing2022HG | AX22: StEurachHG | AY22: AschheimHG | AZ22: Pfaffing2022HG | BA22: GutThailing2022HG | BB22: EgmatingHG | BC22: GutThailing2022HG | BD22: ErdingHG | BE22: Pfaffing2023HG | BF22: GutThailing2022HG | BG22: AschheimHG | BH22: GutThailing2022HG | BI22: IffeldorfHG
I23: Ad Gr | K23: 91 | L23: 90 | M23: 91 | N23: 93 | O23: 87 | P23: 95 | Q23: 87 | R23: 83 | S23: 86 | T23: 95 | U23: 97 | V23: 93 | W23: 95 | X23: 82 | Y23: 91 | Z23: 93 | AA23: 88 | AB23: 88 | AC23: 87 | AD23: 92 | AE23: 95 | AF23: 91 | AG23: 92 | AH23: 103 | AI23: 92 | AJ23: 90 | AK23: 91 | AL23: 93 | AM23: 89 | AN23: 96 | AO23: 92 | AP23: 95 | AQ23: 83 | AR23: 89 | AS23: 86 | AT23: 88 | AU23: 87 | AV23: 86 | AW23: 91 | AX23: 83 | AY23: 81 | AZ23: 94 | BA23: 86 | BB23: 98 | BC23: 91 | BD23: 99 | BE23: 92 | BF23: 87 | BG23: 93 | BH23: 85 | BI23: 95
I24: SD | J24: 12.5 | K24: =IF(K23="",0,(K23-INDIRECT(CONCATENATE(K22,"CR")))*113/INDIRECT(CONCATENATE(K22,"SR"))) -> 17.68320611 | L24: =IF(L23="",0,(L23-INDIRECT(CONCATENATE(L22,"CR")))*113/INDIRECT(CONCATENATE(L22,"SR"))) -> 16.51538462 | M24: 17.68320611 | N24: 18.25384615 | O24: 14.23282443 | P24: 19.99230769 | Q24: 14.23282443 | R24: 10.78244275 | S24: 13.37022901 | T24: 19.9259542 | U24: 21.73076923 | V24: 19.40839695 | W24: 19.9259542 | X24: 9.561538462 | Y24: 17.38461538 | Z24: 18.86299213 | AA24: 20.03613445 | AB24: 14.77692308 | AC24: 13.02519084 | AD24: 16.99312977 | AE24: 19.99230769 | AF24: 17.68320611 | AG24: 17.38461538 | AH24: 26.36666667 | AI24: 18.25384615 | AJ24: 16.82061069 | AK24: 17.08346457 | AL24: 18.86299213 | AM24: 15.64615385 | AN24: 21.14469697 | AO24: 17.97322835 | AP24: 20.86153846 | AQ24: 9.57480916 | AR24: 15.99384615 | AS24: 10.88455882 | AT24: 14.71627907 | AU24: 11.3 | AV24: 13.38615385 | AW24: 15.90692308 | AX24: 9.57480916 | AY24: 8.303787879 | AZ24: 18.51461538 | BA24: 13.38615385 | BB24: 22.16870229 | BC24: 17.73230769 | BD24: 24.33846154 | BE24: 16.15481481 | BF24: 14.25538462 | BG24: 18.57651515 | BH24: 12.51692308 | BI24: 20.84806202 | BJ24: 0 | BK24: 0 | BL24: 0 | BM24: 0 | BN24: 0 | BO24: 0 | BP24: 0 | BQ24: 0 | BR24: 0 | BS24: 0 | BT24: 0 | BU24: 0 | BV24: 0 | BW24: 0 | BX24: =IF(BX23="",0,(BX23-INDIRECT(CONCATENATE(BX22,"CR")))*113/INDIRECT(CONCATENATE(BX22,"SR"))) -> 0 | BY24: 0 | BZ24: 0 | CA24: 0 | CB24: 0 | CC24: 0 | CD24: 0 | CE24: 0 | CF24: 0 | CG24: 0 | CH24: 0 | CI24: 0 | CJ24: 0 | CK24: 0 | CL24: 0 | CM24: =IF(CM23="",0,(CM23-INDIRECT(CONCATENATE(CM22,"CR")))*113/INDIRECT(CONCATENATE(CM22,"SR"))) -> 0 | CN24: 0 | CO24: =IF(CO23="",0,(CO23-INDIRECT(CONCATENATE(CO22,"CR")))*113/INDIRECT(CONCATENATE(CO22,"SR"))) -> 0 | CP24: 0 | CQ24: =IF(CQ23="",0,(CQ23-INDIRECT(CONCATENATE(CQ22,"CR")))*113/INDIRECT(CONCATENATE(CQ22,"SR"))) -> 0 | CR24: 0 | CS24: =IF(CS23="",0,(CS23-INDIRECT(CONCATENATE(CS22,"CR")))*113/INDIRECT(CONCATENATE(CS22,"SR"))) -> 0 | CT24: 0 | CU24: =IF(CU23="",0,(CU23-INDIRECT(CONCATENATE(CU22,"CR")))*113/INDIRECT(CONCATENATE(CU22,"SR"))) -> 0 | CV24: 0 | CW24: =IF(CW23="",0,(CW23-INDIRECT(CONCATENATE(CW22,"CR")))*113/INDIRECT(CONCATENATE(CW22,"SR"))) -> 0
I25: New Hcap | J25: =J24-2 -> 10.5 | K25: =IF(K24>0,MIN(J24:K24)-2,J25) -> 10.5 | L25: =IF(L24>0,MIN(J24:L24)-2,K25) -> 10.5 | M25: =IF(M24>0,MIN(J24:M24)-1,L25) -> 11.5 | N25: =IF(N24>0,MIN(J24:N24),M25) -> 12.5 | O25: =IF(O24>0,AVERAGE(SMALL(IF(J24:O24>0,J24:O24),{1,2}))-1,N25) -> 12.36641221 | P25: =IF(P24>0,AVERAGE(SMALL(IF(J24:P24>0,J24:P24),{1,2})),O25) -> 13.36641221 | Q25: =IF(Q24>0,AVERAGE(SMALL(IF(J24:Q24>0,J24:Q24),{1,2})),P25) -> 13.36641221 | R25: =IF(R24>0,AVERAGE(SMALL(IF(J24:R24>0,J24:R24),{1,2,3})),Q25) -> 12.50508906 | S25: =IF(S24>0,AVERAGE(SMALL(IF(J24:S24>0,J24:S24),{1,2,3})),R25) -> 12.21755725 | T25: =IF(T24>0,AVERAGE(SMALL(IF(J24:T24>0,J24:T24),{1,2,3})),S25) -> 12.21755725 | U25: =IF(U24>0,AVERAGE(SMALL(IF(J24:U24>0,J24:U24),{1,2,3,4})),T25) -> 12.72137405 | V25: =IF(V24>0,AVERAGE(SMALL(IF(J24:V24>0,J24:V24),{1,2,3,4})),U25) -> 12.72137405 | W25: =IF(W24>0,AVERAGE(SMALL(IF(J24:W24>0,J24:W24),{1,2,3,4})),V25) -> 12.72137405 | X25: =IF(X24>0,AVERAGE(SMALL(IF(J24:X24>0,J24:X24),{1,2,3,4,5})),W25) -> 12.08940693 | Y25: =IF(Y24>0,AVERAGE(SMALL(IF(J24:Y24>0,J24:Y24),{1,2,3,4,5})),X25) -> 12.08940693 | Z25: =IF(Z24>0,AVERAGE(SMALL(IF(J24:Z24>0,J24:Z24),{1,2,3,4,5,6})),Y25) -> 12.44664318 | AA25: =IF(AA24>0,AVERAGE(SMALL(IF(J24:AA24>0,J24:AA24),{1,2,3,4,5,6})),Z25) -> 12.44664318 | AB25: =IF(AB24>0,AVERAGE(SMALL(IF(J24:AB24>0,J24:AB24),{1,2,3,4,5,6,7})),AA25) -> 12.77954031 | AC25: =IF(AC24>0,AVERAGE(SMALL(IF(J24:AC24>0,J24:AC24),{1,2,3,4,5,6,7,8})),AB25) -> 12.81024662 | AD25: =IF(AD24>0,AVERAGE(SMALL(IF(K24:AD24>0,K24:AD24),{1,2,3,4,5,6,7,8})),AC25) -> 13.3121697 | AE25: =IF(AE24>0,AVERAGE(SMALL(IF(L24:AE24>0,L24:AE24),{1,2,3,4,5,6,7,8})),AD25) -> 13.3121697 | AF25: =IF(AF24>0,AVERAGE(SMALL(IF(M24:AF24>0,M24:AF24),{1,2,3,4,5,6,7,8})),AE25) -> 13.37188784 | AG25: =IF(AG24>0,AVERAGE(SMALL(IF(N24:AG24>0,N24:AG24),{1,2,3,4,5,6,7,8})),AF25) -> 13.37188784 | AH25: =IF(AH24>0,AVERAGE(SMALL(IF(O24:AH24>0,O24:AH24),{1,2,3,4,5,6,7,8})),AG25) -> 13.37188784 | AI25: =IF(AI24>0,AVERAGE(SMALL(IF(P24:AI24>0,P24:AI24),{1,2,3,4,5,6,7,8})),AH25) -> 13.76586171 | AJ25: =IF(AJ24>0,AVERAGE(SMALL(IF(Q24:AJ24>0,Q24:AJ24),{1,2,3,4,5,6,7,8})),AI25) -> 13.69536113 | AK25: =IF(AK24>0,AVERAGE(SMALL(IF(R24:AK24>0,R24:AK24),{1,2,3,4,5,6,7,8})),AJ25) -> 14.05169114 | AL25: =IF(AL24>0,AVERAGE(SMALL(IF(S24:AL24>0,S24:AL24),{1,2,3,4,5,6,7,8})),AK25) -> 14.87696272 | AM25: =IF(AM24>0,AVERAGE(SMALL(IF(T24:AM24>0,T24:AM24),{1,2,3,4,5,6,7,8})),AL25) -> 15.16145333 | AN25: =IF(AN24>0,AVERAGE(SMALL(IF(U24:AN24>0,U24:AN24),{1,2,3,4,5,6,7,8})),AM25) -> 15.16145333 | AO25: =IF(AO24>0,AVERAGE(SMALL(IF(V24:AO24>0,V24:AO24),{1,2,3,4,5,6,7,8})),AN25) -> 15.16145333 | AP25: =IF(AP24>0,AVERAGE(SMALL(IF(W24:AP24>0,W24:AP24),{1,2,3,4,5,6,7,8})),AO25) -> 15.16145333 | AQ25: =IF(AQ24>0,AVERAGE(SMALL(IF(X24:AQ24>0,X24:AQ24),{1,2,3,4,5,6,7,8})),AP25) -> 14.18522755 | AR25: =IF(AR24>0,AVERAGE(SMALL(IF(Y24:AR24>0,Y24:AR24),{1,2,3,4,5,6,7,8})),AQ25) -> 14.98926601 | AS25: =IF(AS24>0,AVERAGE(SMALL(IF(Z24:AS24>0,Z24:AS24),{1,2,3,4,5,6,7,8})),AR25) -> 14.21440279 | AT25: =IF(AT24>0,AVERAGE(SMALL(IF(AA24:AT24>0,AA24:AT24),{1,2,3,4,5,6,7,8})),AS25) -> 13.92979646 | AU25: =IF(AU24>0,AVERAGE(SMALL(IF(AB24:AU24>0,AB24:AU24),{1,2,3,4,5,6,7,8})),AT25) -> 13.23972012 | AV25: =IF(AV24>0,AVERAGE(SMALL(IF(AC24:AV24>0,AC24:AV24),{1,2,3,4,5,6,7,8})),AU25) -> 13.06587397 | AW25: =IF(AW24>0,AVERAGE(SMALL(IF(AD24:AW24>0,AD24:AW24),{1,2,3,4,5,6,7,8})),AV25) -> 13.4260905 | AX25: =IF(AX24>0,AVERAGE(SMALL(IF(AE24:AX24>0,AE24:AX24),{1,2,3,4,5,6,7,8})),AW25) -> 12.62371087 | AY25: =IF(AY24>0,AVERAGE(SMALL(IF(AF24:AY24>0,AF24:AY24),{1,2,3,4,5,6,7,8})),AX25) -> 11.67331897 | AZ25: =IF(AZ24>0,AVERAGE(SMALL(IF(AG24:AZ24>0,AG24:AZ24),{1,2,3,4,5,6,7,8})),AY25) -> 11.67331897 | BA25: =IF(BA24>0,AVERAGE(SMALL(IF(AH24:BA24>0,AH24:BA24),{1,2,3,4,5,6,7,8})),AZ25) -> 11.39081897 | BB25: =IF(BB24>0,AVERAGE(SMALL(IF(AI24:BB24>0,AI24:BB24),{1,2,3,4,5,6,7,8})),BA25) -> 11.39081897 | BC25: =IF(BC24>0,AVERAGE(SMALL(IF(AJ24:BC24>0,AJ24:BC24),{1,2,3,4,5,6,7,8})),BB25) -> 11.39081897 | BD25: =IF(BD24>0,AVERAGE(SMALL(IF(AK24:BD24>0,AK24:BD24),{1,2,3,4,5,6,7,8})),BC25) -> 11.39081897 | BE25: =IF(BE24>0,AVERAGE(SMALL(IF(AL24:BE24>0,AL24:BE24),{1,2,3,4,5,6,7,8})),BD25) -> 11.39081897 | BF25: =IF(BF24>0,AVERAGE(SMALL(IF(AM24:BF24>0,AM24:BF24),{1,2,3,4,5,6,7,8})),BE25) -> 11.33320717 | BG25: =IF(BG24>0,AVERAGE(SMALL(IF(AN24:BG24>0,AN24:BG24),{1,2,3,4,5,6,7,8})),BF25) -> 11.33320717 | BH25: =IF(BH24>0,AVERAGE(SMALL(IF(AO24:BH24>0,AO24:BH24),{1,2,3,4,5,6,7,8})),BG25) -> 11.11589947 | BI25: =IF(BI24>0,AVERAGE(SMALL(IF(AP24:BI24>0,AP24:BI24),{1,2,3,4,5,6,7,8})),BH25) -> 11.11589947 | BJ25: =IF(BJ24>0,AVERAGE(SMALL(IF(AQ24:BJ24>0,AQ24:BJ24),{1,2,3,4,5,6,7,8})),BI25) -> 11.11589947 | BK25: =IF(BK24>0,AVERAGE(SMALL(IF(AR24:BK24>0,AR24:BK24),{1,2,3,4,5,6,7,8})),BJ25) -> 11.11589947 | BL25: =IF(BL24>0,AVERAGE(SMALL(IF(AS24:BL24>0,AS24:BL24),{1,2,3,4,5,6,7,8})),BK25) -> 11.11589947 | BM25: =IF(BM24>0,AVERAGE(SMALL(IF(AT24:BM24>0,AT24:BM24),{1,2,3,4,5,6,7,8})),BL25) -> 11.11589947 | BN25: =IF(BN24>0,AVERAGE(SMALL(IF(AU24:BN24>0,AU24:BN24),{1,2,3,4,5,6,7,8})),BM25) -> 11.11589947 | BO25: =IF(BO24>0,AVERAGE(SMALL(IF(AV24:BO24>0,AV24:BO24),{1,2,3,4,5,6,7,8})),BN25) -> 11.11589947 | BP25: =IF(BP24>0,AVERAGE(SMALL(IF(AW24:BP24>0,AW24:BP24),{1,2,3,4,5,6,7,8})),BO25) -> 11.11589947 | BQ25: =IF(BQ24>0,AVERAGE(SMALL(IF(AX24:BQ24>0,AX24:BQ24),{1,2,3,4,5,6,7,8})),BP25) -> 11.11589947 | BR25: =IF(BR24>0,AVERAGE(SMALL(IF(AY24:BR24>0,AY24:BR24),{1,2,3,4,5,6,7,8})),BQ25) -> 11.11589947 | BS25: =IF(BS24>0,AVERAGE(SMALL(IF(AZ24:BS24>0,AZ24:BS24),{1,2,3,4,5,6,7,8})),BR25) -> 11.11589947 | BT25: =IF(BT24>0,AVERAGE(SMALL(IF(BA24:BT24>0,BA24:BT24),{1,2,3,4,5,6,7,8})),BS25) -> 11.11589947 | BU25: =IF(BU24>0,AVERAGE(SMALL(IF(BB24:BU24>0,BB24:BU24),{1,2,3,4,5,6,7,8})),BT25) -> 11.11589947 | BV25: =IF(BV24>0,AVERAGE(SMALL(IF(BC24:BV24>0,BC24:BV24),{1,2,3,4,5,6,7,8})),BU25) -> 11.11589947 | BW25: =IF(BW24>0,AVERAGE(SMALL(IF(BD24:BW24>0,BD24:BW24),{1,2,3,4,5,6,7,8})),BV25) -> 11.11589947 | BX25: =IF(BX24>0,AVERAGE(SMALL(IF(BE24:BX24>0,BE24:BX24),{1,2,3,4,5,6,7,8})),BW25) -> 11.11589947 | BY25: =IF(BY24>0,AVERAGE(SMALL(IF(BF24:BY24>0,BF24:BY24),{1,2,3,4,5,6,7,8})),BX25) -> 11.11589947 | BZ25: =IF(BZ24>0,AVERAGE(SMALL(IF(BG24:BZ24>0,BG24:BZ24),{1,2,3,4,5,6,7,8})),BY25) -> 11.11589947 | CA25: =IF(CA24>0,AVERAGE(SMALL(IF(BH24:CA24>0,BH24:CA24),{1,2,3,4,5,6,7,8})),BZ25) -> 11.11589947 | CB25: =IF(CB24>0,AVERAGE(SMALL(IF(BI24:CB24>0,BI24:CB24),{1,2,3,4,5,6,7,8})),CA25) -> 11.11589947 | CC25: =IF(CC24>0,AVERAGE(SMALL(IF(BJ24:CC24>0,BJ24:CC24),{1,2,3,4,5,6,7,8})),CB25) -> 11.11589947 | CD25: =IF(CD24>0,AVERAGE(SMALL(IF(BK24:CD24>0,BK24:CD24),{1,2,3,4,5,6,7,8})),CC25) -> 11.11589947 | CE25: =IF(CE24>0,AVERAGE(SMALL(IF(BL24:CE24>0,BL24:CE24),{1,2,3,4,5,6,7,8})),CD25) -> 11.11589947 | CF25: =IF(CF24>0,AVERAGE(SMALL(IF(BM24:CF24>0,BM24:CF24),{1,2,3,4,5,6,7,8})),CE25) -> 11.11589947 | CG25: =IF(CG24>0,AVERAGE(SMALL(IF(BN24:CG24>0,BN24:CG24),{1,2,3,4,5,6,7,8})),CF25) -> 11.11589947 | CH25: =IF(CH24>0,AVERAGE(SMALL(IF(BO24:CH24>0,BO24:CH24),{1,2,3,4,5,6,7,8})),CG25) -> 11.11589947 | CI25: =IF(CI24>0,AVERAGE(SMALL(IF(BP24:CI24>0,BP24:CI24),{1,2,3,4,5,6,7,8})),CH25) -> 11.11589947 | CJ25: =IF(CJ24>0,AVERAGE(SMALL(IF(BQ24:CJ24>0,BQ24:CJ24),{1,2,3,4,5,6,7,8})),CI25) -> 11.11589947 | CK25: =IF(CK24>0,AVERAGE(SMALL(IF(BR24:CK24>0,BR24:CK24),{1,2,3,4,5,6,7,8})),CJ25) -> 11.11589947 | CL25: =IF(CL24>0,AVERAGE(SMALL(IF(BS24:CL24>0,BS24:CL24),{1,2,3,4,5,6,7,8})),CK25) -> 11.11589947 | CM25: =IF(CM24>0,AVERAGE(SMALL(IF(BT24:CM24>0,BT24:CM24),{1,2,3,4,5,6,7,8})),CL25) -> 11.11589947 | CN25: =IF(CN24>0,AVERAGE(SMALL(IF(BU24:CN24>0,BU24:CN24),{1,2,3,4,5,6,7,8})),CM25) -> 11.11589947 | CO25: =IF(CO24>0,AVERAGE(SMALL(IF(BV24:CO24>0,BV24:CO24),{1,2,3,4,5,6,7,8})),CN25) -> 11.11589947 | CP25: =IF(CP24>0,AVERAGE(SMALL(IF(BW24:CP24>0,BW24:CP24),{1,2,3,4,5,6,7,8})),CO25) -> 11.11589947 | CQ25: =IF(CQ24>0,AVERAGE(SMALL(IF(BX24:CQ24>0,BX24:CQ24),{1,2,3,4,5,6,7,8})),CP25) -> 11.11589947 | CR25: =IF(CR24>0,AVERAGE(SMALL(IF(BY24:CR24>0,BY24:CR24),{1,2,3,4,5,6,7,8})),CQ25) -> 11.11589947 | CS25: =IF(CS24>0,AVERAGE(SMALL(IF(BZ24:CS24>0,BZ24:CS24),{1,2,3,4,5,6,7,8})),CR25) -> 11.11589947 | CT25: =IF(CT24>0,AVERAGE(SMALL(IF(CA24:CT24>0,CA24:CT24),{1,2,3,4,5,6,7,8})),CS25) -> 11.11589947 | CU25: =IF(CU24>0,AVERAGE(SMALL(IF(CB24:CU24>0,CB24:CU24),{1,2,3,4,5,6,7,8})),CT25) -> 11.11589947 | CV25: =IF(CV24>0,AVERAGE(SMALL(IF(CC24:CV24>0,CC24:CV24),{1,2,3,4,5,6,7,8})),CU25) -> 11.11589947 | CW25: =IF(CW24>0,AVERAGE(SMALL(IF(CD24:CW24>0,CD24:CW24),{1,2,3,4,5,6,7,8})),CV25) -> 11.11589947
I26: Low Hcap | AC26: =MIN($R25:AC25) -> 12.08940693 | AD26: =MIN($S25:AD25) -> 12.08940693 | AE26: =MIN($T25:AE25) -> 12.08940693 | AF26: =MIN($U25:AF25) -> 12.08940693 | AG26: =MIN($U25:AG25) -> 12.08940693 | AH26: =MIN($W25:AH25) -> 12.08940693 | AI26: =MIN($Y25:AI25) -> 12.08940693 | AJ26: =MIN($Y25:AJ25) -> 12.08940693 | AK26: =MIN($Z25:AK25) -> 12.44664318 | AL26: =MIN($Z25:AL25) -> 12.44664318 | AM26: =MIN($AB25:AM25) -> 12.77954031 | AN26: =MIN($AC25:AN25) -> 12.81024662 | AO26: =MIN($AD25:AO25) -> 13.3121697 | AP26: =MIN($AE25:AP25) -> 13.3121697 | AQ26: =MIN($AF25:AQ25) -> 13.37188784 | AR26: =MIN($AF25:AR25) -> 13.37188784 | AS26: =MIN($AH25:AS25) -> 13.37188784 | AT26: =MIN($AI25:AT25) -> 13.69536113 | AU26: =MIN($AI25:AU25) -> 13.23972012 | AV26: =MIN($AI25:AV25) -> 13.06587397 | AW26: =MIN($AI25:AW25) -> 13.06587397 | AX26: =MIN($AI25:AX25) -> 12.62371087 | AY26: =MIN($AI25:AY25) -> 11.67331897 | AZ26: =MIN($AI25:AZ25) -> 11.67331897 | BA26: =MIN($AI25:BA25) -> 11.39081897 | BB26: =MIN($AK25:BB25) -> 11.39081897 | BC26: =MIN($AK25:BC25) -> 11.39081897 | BD26: =MIN($AK25:BD25) -> 11.39081897 | BE26: =MIN($AL25:BE25) -> 11.39081897 | BF26: =MIN($AL25:BF25) -> 11.33320717 | BG26: =MIN($AN25:BG25) -> 11.33320717 | BH26: =MIN($AP25:BH25) -> 11.11589947 | BI26: =MIN($AP25:BI25) -> 11.11589947 | BJ26: =MIN($AP25:BJ25) -> 11.11589947 | BK26: =MIN($AP25:BK25) -> 11.11589947 | BL26: =MIN($AP25:BL25) -> 11.11589947 | BM26: =MIN($AP25:BM25) -> 11.11589947 | BN26: =MIN($AP25:BN25) -> 11.11589947 | BO26: =MIN($AP25:BO25) -> 11.11589947 | BP26: =MIN($AP25:BP25) -> 11.11589947 | BQ26: =MIN($AP25:BQ25) -> 11.11589947 | BR26: =MIN($AP25:BR25) -> 11.11589947 | BS26: =MIN($AP25:BS25) -> 11.11589947 | BT26: =MIN($AP25:BT25) -> 11.11589947 | BU26: =MIN($AP25:BU25) -> 11.11589947 | BV26: =MIN($AP25:BV25) -> 11.11589947 | BW26: =MIN($AP25:BW25) -> 11.11589947 | BX26: =MIN($AP25:BX25) -> 11.11589947 | BY26: =MIN($AP25:BY25) -> 11.11589947 | BZ26: =MIN($AP25:BZ25) -> 11.11589947 | CA26: =MIN($AP25:CA25) -> 11.11589947 | CB26: =MIN($AP25:CB25) -> 11.11589947 | CC26: =MIN($AP25:CC25) -> 11.11589947 | CD26: =MIN($AP25:CD25) -> 11.11589947 | CE26: =MIN($AP25:CE25) -> 11.11589947 | CF26: =MIN($AP25:CF25) -> 11.11589947 | CG26: =MIN($AP25:CG25) -> 11.11589947 | CH26: =MIN($AP25:CH25) -> 11.11589947 | CI26: =MIN($AP25:CI25) -> 11.11589947 | CJ26: =MIN($AP25:CJ25) -> 11.11589947 | CK26: =MIN($AP25:CK25) -> 11.11589947 | CL26: =MIN($AP25:CL25) -> 11.11589947 | CM26: =MIN($AP25:CM25) -> 11.11589947 | CN26: =MIN($AP25:CN25) -> 11.11589947 | CO26: =MIN($AP25:CO25) -> 11.11589947 | CP26: =MIN($AP25:CP25) -> 11.11589947 | CQ26: =MIN($AP25:CQ25) -> 11.11589947 | CR26: =MIN($AP25:CR25) -> 11.11589947 | CS26: =MIN($AP25:CS25) -> 11.11589947 | CT26: =MIN($AP25:CT25) -> 11.11589947 | CU26: =MIN($AP25:CU25) -> 11.11589947 | CV26: =MIN($AP25:CV25) -> 11.11589947 | CW26: =MIN($AP25:CW25) -> 11.11589947
B27: Bennett | C27: Lee | D27: 14.2 | F27: =IF(H27<4,"Y",) -> 0 | H27: =COUNT(J27:CX27) -> 45 | I27: Date | J27: 2019-09-25 | K27: 2019-09-29 | L27: 2019-11-01 | M27: 2019-11-10 | N27: 2019-11-24 | O27: 2020-05-20 | P27: 2020-05-24 | Q27: 2020-05-31 | R27: 2020-06-05 | S27: 2020-06-10 | T27: 2020-06-14 | U27: 2020-06-19 | V27: 2020-07-12 | W27: 2020-07-15 | X27: 2020-07-31 | Y27: 2020-08-09 | Z27: 2020-08-23 | AA27: 2020-09-16 | AB27: 2020-10-04 | AC27: 2020-10-09 | AD27: 2020-11-01 | AE27: 2020-11-15 | AF27: 2021-03-28 | AG27: 2021-05-09 | AH27: 2021-06-13 | AI27: 2021-07-02 | AJ27: 2021-07-11 | AK27: 2021-07-16 | AL27: 2021-07-21 | AM27: 2021-07-25 | AN27: 2021-08-08 | AO27: 2021-09-03 | AP27: 2021-10-31 | AQ27: 2022-04-15 | AR27: 2022-05-11 | AS27: 2022-05-15 | AT27: 2022-06-05 | AU27: 2022-06-12 | AV27: 2022-06-17 | AW27: 2022-07-10 | AX27: 2022-07-24 | AY27: 2022-07-31 | AZ27: 2022-08-07 | BA27: 2022-08-21 | BB27: 2022-10-07 | CY27: =IF(CW31>$DD$1,36,CW31) -> 14.08021942 | CZ27: 14.08021942 | DA27: =CZ27-CY27 -> 0
I28: Course | J28: GutThailingHG | K28: TegernbachHG | L28: ErdingHG | M28: TegernbachHG | N28: PfaffingHG | O28: GutThailingHG | P28: PfaffingHG | Q28: ErdingHG | R28: ErdingHG | S28: GutThailingHG | T28: OdelzhausenHG | U28: StEurachHG | V28: PfaffingHG | W28: GutThailingHG | X28: StEurachHG | Y28: ErdingHG | Z28: PfaffingHG | AA28: GutThailingHG | AB28: OdelzhausenHG | AC28: TegernbachHG | AD28: ErdingHG | AE28: OdelzhausenHG | AF28: OdelzhausenHG | AG28: ErdingHG | AH28: PfaffingHG | AI28: TegernbachHG | AJ28: PfaffingHG | AK28: MaxlrainHG | AL28: GutThailingHG | AM28: OdelzhausenHG | AN28: IffeldorfHG | AO28: StEurachHG | AP28: ErdingHG | AQ28: ReichertshausenHG | AR28: AschheimHG | AS28: OdelzhausenHG | AT28: IffeldorfHG | AU28: ErdingHG | AV28: StEurachHG | AW28: IffeldorfHG | AX28: Pfaffing2022HG | AY28: HohenpaehlHG | AZ28: IffeldorfHG | BA28: Pfaffing2022HG | BB28: EgmatingHG
I29: Ad Gr | J29: 92 | K29: 97 | L29: 92 | M29: 90 | N29: 91 | O29: 96 | P29: 95 | Q29: 87 | R29: 89 | S29: 93 | T29: 91 | U29: 88 | V29: 90 | W29: 91 | X29: 91 | Y29: 96 | Z29: 90 | AA29: 86 | AB29: 93 | AC29: 86 | AD29: 89 | AE29: 89 | AF29: 102 | AG29: 90 | AH29: 94 | AI29: 83 | AJ29: 90 | AK29: 93 | AL29: 92 | AM29: 88 | AN29: 87 | AO29: 99 | AP29: 100 | AQ29: 88 | AR29: 94 | AS29: 92 | AT29: 92 | AU29: 90 | AV29: 99 | AW29: 93 | AX29: 94 | AY29: 95 | AZ29: 83 | BA29: 97 | BB29: 98
I30: SD | J30: =IF(J29="",0,(J29-INDIRECT(CONCATENATE(J28,"CR")))*113/INDIRECT(CONCATENATE(J28,"SR"))) -> 18.54580153 | K30: =IF(K29="",0,(K29-INDIRECT(CONCATENATE(K28,"CR")))*113/INDIRECT(CONCATENATE(K28,"SR"))) -> 21.65833333 | L30: 18.25384615 | M30: 15.66590909 | N30: 16.51538462 | O30: 21.99618321 | P30: 19.99230769 | Q30: 13.90769231 | R30: 15.64615385 | S30: 19.40839695 | T30: 17.08346457 | U30: 13.88778626 | V30: 15.64615385 | W30: 17.68320611 | X30: 16.47557252 | Y30: 21.73076923 | Z30: 15.64615385 | AA30: 13.37022901 | AB30: 18.86299213 | AC30: 12.24166667 | AD30: 15.64615385 | AE30: 15.30393701 | AF30: 26.87086614 | AG30: 16.51538462 | AH30: 19.12307692 | AI30: 9.673484848 | AJ30: 15.64615385 | AK30: 16.70073529 | AL30: 18.54580153 | AM30: 14.41417323 | AN30: 13.84031008 | AO30: 23.37633588 | AP30: 25.20769231 | AQ30: 15.51507937 | AR30: 19.43257576 | AS30: 17.97322835 | AT30: 18.22015504 | AU30: 16.51538462 | AV30: 23.37633588 | AW30: 19.09612403 | AX30: 18.51461538 | AY30: 20.9610687 | AZ30: 10.33643411 | BA30: 21.12230769 | BB30: 22.16870229 | BC30: 0 | BD30: 0 | BE30: 0 | BF30: 0 | BG30: 0 | BH30: 0 | BI30: 0 | BJ30: 0 | BK30: 0 | BL30: 0 | BM30: 0 | BN30: 0 | BO30: 0 | BP30: 0 | BQ30: 0 | BR30: 0 | BS30: 0 | BT30: 0 | BU30: 0 | BV30: 0 | BW30: =IF(BW29="",0,(BW29-INDIRECT(CONCATENATE(BW28,"CR")))*113/INDIRECT(CONCATENATE(BW28,"SR"))) -> 0 | BX30: 0 | BY30: 0 | BZ30: 0 | CA30: 0 | CB30: 0 | CC30: 0 | CD30: 0 | CE30: 0 | CF30: 0 | CG30: 0 | CH30: 0 | CI30: 0 | CJ30: 0 | CK30: 0 | CL30: 0 | CM30: =IF(CM29="",0,(CM29-INDIRECT(CONCATENATE(CM28,"CR")))*113/INDIRECT(CONCATENATE(CM28,"SR"))) -> 0 | CN30: 0 | CO30: =IF(CO29="",0,(CO29-INDIRECT(CONCATENATE(CO28,"CR")))*113/INDIRECT(CONCATENATE(CO28,"SR"))) -> 0 | CP30: 0 | CQ30: =IF(CQ29="",0,(CQ29-INDIRECT(CONCATENATE(CQ28,"CR")))*113/INDIRECT(CONCATENATE(CQ28,"SR"))) -> 0 | CR30: 0 | CS30: =IF(CS29="",0,(CS29-INDIRECT(CONCATENATE(CS28,"CR")))*113/INDIRECT(CONCATENATE(CS28,"SR"))) -> 0 | CT30: 0 | CU30: =IF(CU29="",0,(CU29-INDIRECT(CONCATENATE(CU28,"CR")))*113/INDIRECT(CONCATENATE(CU28,"SR"))) -> 0 | CV30: 0 | CW30: =IF(CW29="",0,(CW29-INDIRECT(CONCATENATE(CW28,"CR")))*113/INDIRECT(CONCATENATE(CW28,"SR"))) -> 0
I31: New Hcap | J31: =J30-2 -> 16.54580153 | K31: =IF(K30>0,MIN(J30:K30)-2,J31) -> 16.54580153 | L31: =IF(L30>0,MIN(J30:L30)-2,K31) -> 16.25384615 | M31: =IF(M30>0,MIN(J30:M30)-1,L31) -> 14.66590909 | N31: =IF(N30>0,MIN(J30:N30),M31) -> 15.66590909 | O31: =IF(O30>0,AVERAGE(SMALL(IF(J30:O30>0,J30:O30),{1,2}))-1,N31) -> 15.09064685 | P31: =IF(P30>0,AVERAGE(SMALL(IF(J30:P30>0,J30:P30),{1,2})),O31) -> 16.09064685 | Q31: =IF(Q30>0,AVERAGE(SMALL(IF(J30:Q30>0,J30:Q30),{1,2})),P31) -> 14.7868007 | R31: =IF(R30>0,AVERAGE(SMALL(IF(J30:R30>0,J30:R30),{1,2,3})),Q31) -> 15.07325175 | S31: =IF(S30>0,AVERAGE(SMALL(IF(J30:S30>0,J30:S30),{1,2,3})),R31) -> 15.07325175 | T31: =IF(T30>0,AVERAGE(SMALL(IF(J30:T30>0,J30:T30),{1,2,3})),S31) -> 15.07325175 | U31: =IF(U30>0,AVERAGE(SMALL(IF(J30:U30>0,J30:U30),{1,2,3,4})),T31) -> 14.77688538 | V31: =IF(V30>0,AVERAGE(SMALL(IF(J30:V30>0,J30:V30),{1,2,3,4})),U31) -> 14.77194656 | W31: =IF(W30>0,AVERAGE(SMALL(IF(J30:W30>0,J30:W30),{1,2,3,4})),V31) -> 14.77194656 | X31: =IF(X30>0,AVERAGE(SMALL(IF(J30:X30>0,J30:X30),{1,2,3,4,5})),W31) -> 14.95073907 | Y31: =IF(Y30>0,AVERAGE(SMALL(IF(J30:Y30>0,J30:Y30),{1,2,3,4,5})),X31) -> 14.95073907 | Z31: =IF(Z30>0,AVERAGE(SMALL(IF(J30:Z30>0,J30:Z30),{1,2,3,4,5,6})),Y31) -> 15.06664153 | AA31: =IF(AA30>0,AVERAGE(SMALL(IF(J30:AA30>0,J30:AA30),{1,2,3,4,5,6})),Z31) -> 14.68402819 | AB31: =IF(AB30>0,AVERAGE(SMALL(IF(J30:AB30>0,J30:AB30),{1,2,3,4,5,6,7})),AA31) -> 14.82429689 | AC31: =IF(AC30>0,AVERAGE(SMALL(IF(J30:AC30>0,J30:AC30),{1,2,3,4,5,6,7,8})),AB31) -> 14.50146811 | AD31: =IF(AD30>0,AVERAGE(SMALL(IF(K30:AD30>0,K30:AD30),{1,2,3,4,5,6,7,8})),AC31) -> 14.4989987 | AE31: =IF(AE30>0,AVERAGE(SMALL(IF(L30:AE30>0,L30:AE30),{1,2,3,4,5,6,7,8})),AD31) -> 14.4562216 | AF31: =IF(AF30>0,AVERAGE(SMALL(IF(M30:AF30>0,M30:AF30),{1,2,3,4,5,6,7,8})),AE31) -> 14.4562216 | AG31: =IF(AG30>0,AVERAGE(SMALL(IF(N30:AG30>0,N30:AG30),{1,2,3,4,5,6,7,8})),AF31) -> 14.4562216 | AH31: =IF(AH30>0,AVERAGE(SMALL(IF(O30:AH30>0,O30:AH30),{1,2,3,4,5,6,7,8})),AG31) -> 14.4562216 | AI31: =IF(AI30>0,AVERAGE(SMALL(IF(P30:AI30>0,P30:AI30),{1,2,3,4,5,6,7,8})),AH31) -> 13.70963797 | AJ31: =IF(AJ30>0,AVERAGE(SMALL(IF(Q30:AJ30>0,Q30:AJ30),{1,2,3,4,5,6,7,8})),AI31) -> 13.70963797 | AK31: =IF(AK30>0,AVERAGE(SMALL(IF(R30:AK30>0,R30:AK30),{1,2,3,4,5,6,7,8})),AJ31) -> 13.92694567 | AL31: =IF(AL30>0,AVERAGE(SMALL(IF(S30:AL30>0,S30:AL30),{1,2,3,4,5,6,7,8})),AK31) -> 13.92694567 | AM31: =IF(AM30>0,AVERAGE(SMALL(IF(T30:AM30>0,T30:AM30),{1,2,3,4,5,6,7,8})),AL31) -> 13.77294809 | AN31: =IF(AN30>0,AVERAGE(SMALL(IF(U30:AN30>0,U30:AN30),{1,2,3,4,5,6,7,8})),AM31) -> 13.54721762 | AO31: =IF(AO30>0,AVERAGE(SMALL(IF(V30:AO30>0,V30:AO30),{1,2,3,4,5,6,7,8})),AN31) -> 13.76701357 | AP31: =IF(AP30>0,AVERAGE(SMALL(IF(W30:AP30>0,W30:AP30),{1,2,3,4,5,6,7,8})),AO31) -> 13.76701357 | AQ31: =IF(AQ30>0,AVERAGE(SMALL(IF(X30:AQ30>0,X30:AQ30),{1,2,3,4,5,6,7,8})),AP31) -> 13.75062926 | AR31: =IF(AR30>0,AVERAGE(SMALL(IF(Y30:AR30>0,Y30:AR30),{1,2,3,4,5,6,7,8})),AQ31) -> 13.75062926 | AS31: =IF(AS30>0,AVERAGE(SMALL(IF(Z30:AS30>0,Z30:AS30),{1,2,3,4,5,6,7,8})),AR31) -> 13.75062926 | AT31: =IF(AT30>0,AVERAGE(SMALL(IF(AA30:AT30>0,AA30:AT30),{1,2,3,4,5,6,7,8})),AS31) -> 13.75062926 | AU31: =IF(AU30>0,AVERAGE(SMALL(IF(AB30:AU30>0,AB30:AU30),{1,2,3,4,5,6,7,8})),AT31) -> 14.03511986 | AV31: =IF(AV30>0,AVERAGE(SMALL(IF(AC30:AV30>0,AC30:AV30),{1,2,3,4,5,6,7,8})),AU31) -> 14.03511986 | AW31: =IF(AW30>0,AVERAGE(SMALL(IF(AD30:AW30>0,AD30:AW30),{1,2,3,4,5,6,7,8})),AV31) -> 14.5693346 | AX31: =IF(AX30>0,AVERAGE(SMALL(IF(AE30:AX30>0,AE30:AX30),{1,2,3,4,5,6,7,8})),AW31) -> 14.67798845 | AY31: =IF(AY30>0,AVERAGE(SMALL(IF(AF30:AY30>0,AF30:AY30),{1,2,3,4,5,6,7,8})),AX31) -> 14.85258824 | AZ31: =IF(AZ30>0,AVERAGE(SMALL(IF(AG30:AZ30>0,AG30:AZ30),{1,2,3,4,5,6,7,8})),AY31) -> 14.05705059 | BA31: =IF(BA30>0,AVERAGE(SMALL(IF(AH30:BA30>0,AH30:BA30),{1,2,3,4,5,6,7,8})),AZ31) -> 14.08021942 | BB31: =IF(BB30>0,AVERAGE(SMALL(IF(AI30:BB30>0,AI30:BB30),{1,2,3,4,5,6,7,8})),BA31) -> 14.08021942 | BC31: =IF(BC30>0,AVERAGE(SMALL(IF(AJ30:BC30>0,AJ30:BC30),{1,2,3,4,5,6,7,8})),BB31) -> 14.08021942 | BD31: =IF(BD30>0,AVERAGE(SMALL(IF(AK30:BD30>0,AK30:BD30),{1,2,3,4,5,6,7,8})),BC31) -> 14.08021942 | BE31: =IF(BE30>0,AVERAGE(SMALL(IF(AL30:BE30>0,AL30:BE30),{1,2,3,4,5,6,7,8})),BD31) -> 14.08021942 | BF31: =IF(BF30>0,AVERAGE(SMALL(IF(AM30:BF30>0,AM30:BF30),{1,2,3,4,5,6,7,8})),BE31) -> 14.08021942 | BG31: =IF(BG30>0,AVERAGE(SMALL(IF(AN30:BG30>0,AN30:BG30),{1,2,3,4,5,6,7,8})),BF31) -> 14.08021942 | BH31: =IF(BH30>0,AVERAGE(SMALL(IF(AO30:BH30>0,AO30:BH30),{1,2,3,4,5,6,7,8})),BG31) -> 14.08021942 | BI31: =IF(BI30>0,AVERAGE(SMALL(IF(AP30:BI30>0,AP30:BI30),{1,2,3,4,5,6,7,8})),BH31) -> 14.08021942 | BJ31: =IF(BJ30>0,AVERAGE(SMALL(IF(AQ30:BJ30>0,AQ30:BJ30),{1,2,3,4,5,6,7,8})),BI31) -> 14.08021942 | BK31: =IF(BK30>0,AVERAGE(SMALL(IF(AR30:BK30>0,AR30:BK30),{1,2,3,4,5,6,7,8})),BJ31) -> 14.08021942 | BL31: =IF(BL30>0,AVERAGE(SMALL(IF(AS30:BL30>0,AS30:BL30),{1,2,3,4,5,6,7,8})),BK31) -> 14.08021942 | BM31: =IF(BM30>0,AVERAGE(SMALL(IF(AT30:BM30>0,AT30:BM30),{1,2,3,4,5,6,7,8})),BL31) -> 14.08021942 | BN31: =IF(BN30>0,AVERAGE(SMALL(IF(AU30:BN30>0,AU30:BN30),{1,2,3,4,5,6,7,8})),BM31) -> 14.08021942 | BO31: =IF(BO30>0,AVERAGE(SMALL(IF(AV30:BO30>0,AV30:BO30),{1,2,3,4,5,6,7,8})),BN31) -> 14.08021942 | BP31: =IF(BP30>0,AVERAGE(SMALL(IF(AW30:BP30>0,AW30:BP30),{1,2,3,4,5,6,7,8})),BO31) -> 14.08021942 | BQ31: =IF(BQ30>0,AVERAGE(SMALL(IF(AX30:BQ30>0,AX30:BQ30),{1,2,3,4,5,6,7,8})),BP31) -> 14.08021942 | BR31: =IF(BR30>0,AVERAGE(SMALL(IF(AY30:BR30>0,AY30:BR30),{1,2,3,4,5,6,7,8})),BQ31) -> 14.08021942 | BS31: =IF(BS30>0,AVERAGE(SMALL(IF(AZ30:BS30>0,AZ30:BS30),{1,2,3,4,5,6,7,8})),BR31) -> 14.08021942 | BT31: =IF(BT30>0,AVERAGE(SMALL(IF(BA30:BT30>0,BA30:BT30),{1,2,3,4,5,6,7,8})),BS31) -> 14.08021942 | BU31: =IF(BU30>0,AVERAGE(SMALL(IF(BB30:BU30>0,BB30:BU30),{1,2,3,4,5,6,7,8})),BT31) -> 14.08021942 | BV31: =IF(BV30>0,AVERAGE(SMALL(IF(BC30:BV30>0,BC30:BV30),{1,2,3,4,5,6,7,8})),BU31) -> 14.08021942 | BW31: =IF(BW30>0,AVERAGE(SMALL(IF(BD30:BW30>0,BD30:BW30),{1,2,3,4,5,6,7,8})),BV31) -> 14.08021942 | BX31: =IF(BX30>0,AVERAGE(SMALL(IF(BE30:BX30>0,BE30:BX30),{1,2,3,4,5,6,7,8})),BW31) -> 14.08021942 | BY31: =IF(BY30>0,AVERAGE(SMALL(IF(BF30:BY30>0,BF30:BY30),{1,2,3,4,5,6,7,8})),BX31) -> 14.08021942 | BZ31: =IF(BZ30>0,AVERAGE(SMALL(IF(BG30:BZ30>0,BG30:BZ30),{1,2,3,4,5,6,7,8})),BY31) -> 14.08021942 | CA31: =IF(CA30>0,AVERAGE(SMALL(IF(BH30:CA30>0,BH30:CA30),{1,2,3,4,5,6,7,8})),BZ31) -> 14.08021942 | CB31: =IF(CB30>0,AVERAGE(SMALL(IF(BI30:CB30>0,BI30:CB30),{1,2,3,4,5,6,7,8})),CA31) -> 14.08021942 | CC31: =IF(CC30>0,AVERAGE(SMALL(IF(BJ30:CC30>0,BJ30:CC30),{1,2,3,4,5,6,7,8})),CB31) -> 14.08021942 | CD31: =IF(CD30>0,AVERAGE(SMALL(IF(BK30:CD30>0,BK30:CD30),{1,2,3,4,5,6,7,8})),CC31) -> 14.08021942 | CE31: =IF(CE30>0,AVERAGE(SMALL(IF(BL30:CE30>0,BL30:CE30),{1,2,3,4,5,6,7,8})),CD31) -> 14.08021942 | CF31: =IF(CF30>0,AVERAGE(SMALL(IF(BM30:CF30>0,BM30:CF30),{1,2,3,4,5,6,7,8})),CE31) -> 14.08021942 | CG31: =IF(CG30>0,AVERAGE(SMALL(IF(BN30:CG30>0,BN30:CG30),{1,2,3,4,5,6,7,8})),CF31) -> 14.08021942 | CH31: =IF(CH30>0,AVERAGE(SMALL(IF(BO30:CH30>0,BO30:CH30),{1,2,3,4,5,6,7,8})),CG31) -> 14.08021942 | CI31: =IF(CI30>0,AVERAGE(SMALL(IF(BP30:CI30>0,BP30:CI30),{1,2,3,4,5,6,7,8})),CH31) -> 14.08021942 | CJ31: =IF(CJ30>0,AVERAGE(SMALL(IF(BQ30:CJ30>0,BQ30:CJ30),{1,2,3,4,5,6,7,8})),CI31) -> 14.08021942 | CK31: =IF(CK30>0,AVERAGE(SMALL(IF(BR30:CK30>0,BR30:CK30),{1,2,3,4,5,6,7,8})),CJ31) -> 14.08021942 | CL31: =IF(CL30>0,AVERAGE(SMALL(IF(BS30:CL30>0,BS30:CL30),{1,2,3,4,5,6,7,8})),CK31) -> 14.08021942 | CM31: =IF(CM30>0,AVERAGE(SMALL(IF(BT30:CM30>0,BT30:CM30),{1,2,3,4,5,6,7,8})),CL31) -> 14.08021942 | CN31: =IF(CN30>0,AVERAGE(SMALL(IF(BU30:CN30>0,BU30:CN30),{1,2,3,4,5,6,7,8})),CM31) -> 14.08021942 | CO31: =IF(CO30>0,AVERAGE(SMALL(IF(BV30:CO30>0,BV30:CO30),{1,2,3,4,5,6,7,8})),CN31) -> 14.08021942 | CP31: =IF(CP30>0,AVERAGE(SMALL(IF(BW30:CP30>0,BW30:CP30),{1,2,3,4,5,6,7,8})),CO31) -> 14.08021942 | CQ31: =IF(CQ30>0,AVERAGE(SMALL(IF(BX30:CQ30>0,BX30:CQ30),{1,2,3,4,5,6,7,8})),CP31) -> 14.08021942 | CR31: =IF(CR30>0,AVERAGE(SMALL(IF(BY30:CR30>0,BY30:CR30),{1,2,3,4,5,6,7,8})),CQ31) -> 14.08021942 | CS31: =IF(CS30>0,AVERAGE(SMALL(IF(BZ30:CS30>0,BZ30:CS30),{1,2,3,4,5,6,7,8})),CR31) -> 14.08021942 | CT31: =IF(CT30>0,AVERAGE(SMALL(IF(CA30:CT30>0,CA30:CT30),{1,2,3,4,5,6,7,8})),CS31) -> 14.08021942 | CU31: =IF(CU30>0,AVERAGE(SMALL(IF(CB30:CU30>0,CB30:CU30),{1,2,3,4,5,6,7,8})),CT31) -> 14.08021942 | CV31: =IF(CV30>0,AVERAGE(SMALL(IF(CC30:CV30>0,CC30:CV30),{1,2,3,4,5,6,7,8})),CU31) -> 14.08021942 | CW31: =IF(CW30>0,AVERAGE(SMALL(IF(CD30:CW30>0,CD30:CW30),{1,2,3,4,5,6,7,8})),CV31) -> 14.08021942
I32: Low Hcap | AC32: =MIN($L31:AC31) -> 14.50146811 | AD32: =MIN($L31:AD31) -> 14.4989987 | AE32: =MIN($N31:AE31) -> 14.4562216 | AF32: =MIN($O31:AF31) -> 14.4562216 | AG32: =MIN($O31:AG31) -> 14.4562216 | AH32: =MIN($T31:AH31) -> 14.4562216 | AI32: =MIN($V31:AI31) -> 13.70963797 | AJ32: =MIN($V31:AJ31) -> 13.70963797 | AK32: =MIN($W31:AK31) -> 13.70963797 | AL32: =MIN($X31:AL31) -> 13.70963797 | AM32: =MIN($X31:AM31) -> 13.70963797 | AN32: =MIN($Y31:AN31) -> 13.54721762 | AO32: =MIN($AA31:AO31) -> 13.54721762 | AP32: =MIN($AD31:AP31) -> 13.54721762 | AQ32: =MIN($AG31:AQ31) -> 13.54721762 | AR32: =MIN($AH31:AR31) -> 13.54721762 | AS32: =MIN($AH31:AS31) -> 13.54721762 | AT32: =MIN($AH31:AT31) -> 13.54721762 | AU32: =MIN($AH31:AU31) -> 13.54721762 | AV32: =MIN($AI31:AV31) -> 13.54721762 | AW32: =MIN($AJ31:AW31) -> 13.54721762 | AX32: =MIN($AM31:AX31) -> 13.54721762 | AY32: =MIN($AN31:AY31) -> 13.54721762 | AZ32: =MIN($AN31:AZ31) -> 13.54721762 | BA32: =MIN($AN31:BA31) -> 13.54721762 | BB32: =MIN($AP31:BB31) -> 13.75062926 | BC32: =MIN($AP31:BC31) -> 13.75062926 | BD32: =MIN($AP31:BD31) -> 13.75062926 | BE32: =MIN($AP31:BE31) -> 13.75062926 | BF32: =MIN($AP31:BF31) -> 13.75062926 | BG32: =MIN($AP31:BG31) -> 13.75062926 | BH32: =MIN($AP31:BH31) -> 13.75062926 | BI32: =MIN($AP31:BI31) -> 13.75062926 | BJ32: =MIN($AP31:BJ31) -> 13.75062926 | BK32: =MIN($AP31:BK31) -> 13.75062926 | BL32: =MIN($AP31:BL31) -> 13.75062926 | BM32: =MIN($AP31:BM31) -> 13.75062926 | BN32: =MIN($AP31:BN31) -> 13.75062926 | BO32: =MIN($AP31:BO31) -> 13.75062926 | BP32: =MIN($AP31:BP31) -> 13.75062926 | BQ32: =MIN($AP31:BQ31) -> 13.75062926 | BR32: =MIN($AP31:BR31) -> 13.75062926 | BS32: =MIN($AP31:BS31) -> 13.75062926 | BT32: =MIN($AP31:BT31) -> 13.75062926 | BU32: =MIN($AP31:BU31) -> 13.75062926 | BV32: =MIN($AP31:BV31) -> 13.75062926 | BW32: =MIN($AP31:BW31) -> 13.75062926 | BX32: =MIN($AP31:BX31) -> 13.75062926 | BY32: =MIN($AP31:BY31) -> 13.75062926 | BZ32: =MIN($AP31:BZ31) -> 13.75062926 | CA32: =MIN($AP31:CA31) -> 13.75062926 | CB32: =MIN($AP31:CB31) -> 13.75062926 | CC32: =MIN($AP31:CC31) -> 13.75062926 | CD32: =MIN($AP31:CD31) -> 13.75062926 | CE32: =MIN($AP31:CE31) -> 13.75062926 | CF32: =MIN($AP31:CF31) -> 13.75062926 | CG32: =MIN($AP31:CG31) -> 13.75062926 | CH32: =MIN($AP31:CH31) -> 13.75062926 | CI32: =MIN($AP31:CI31) -> 13.75062926 | CJ32: =MIN($AP31:CJ31) -> 13.75062926 | CK32: =MIN($AP31:CK31) -> 13.75062926 | CL32: =MIN($AP31:CL31) -> 13.75062926 | CM32: =MIN($AP31:CM31) -> 13.75062926 | CN32: =MIN($AP31:CN31) -> 13.75062926 | CO32: =MIN($AP31:CO31) -> 13.75062926 | CP32: =MIN($AP31:CP31) -> 13.75062926 | CQ32: =MIN($AP31:CQ31) -> 13.75062926 | CR32: =MIN($AP31:CR31) -> 13.75062926 | CS32: =MIN($AP31:CS31) -> 13.75062926 | CT32: =MIN($AP31:CT31) -> 13.75062926 | CU32: =MIN($AP31:CU31) -> 13.75062926 | CV32: =MIN($AP31:CV31) -> 13.75062926 | CW32: =MIN($AP31:CW31) -> 13.75062926
B33: Breed | C33: Geoff | D33: 18 | F33: =IF(H33<4,"Y",) -> Y | G33: 2023 | H33: =COUNT(J33:CX33) -> 2 | I33: Date | K33: 2023-05-19 | L33: 2023-05-28 | CY33: =IF(CW37>$DD$1,36,CW37) -> 16.32913386 | CZ33: 18 | DA33: =CZ33-CY33 -> 1.670866142
I34: Course | K34: GarmischHG | L34: ErdingHG
I35: Ad Gr | K35: 92 | L35: 99
I36: SD | J36: 20 | K36: =IF(K35="",0,(K35-INDIRECT(CONCATENATE(K34,"CR")))*113/INDIRECT(CONCATENATE(K34,"SR"))) -> 18.32913386 | L36: =IF(L35="",0,(L35-INDIRECT(CONCATENATE(L34,"CR")))*113/INDIRECT(CONCATENATE(L34,"SR"))) -> 24.33846154 | M36: 0 | N36: 0 | O36: 0 | P36: 0 | Q36: 0 | R36: 0 | S36: 0 | T36: 0 | U36: 0 | V36: 0 | W36: 0 | X36: 0 | Y36: 0 | Z36: 0 | AA36: 0 | AB36: 0 | AC36: 0 | AD36: 0 | AE36: 0 | AF36: 0 | AG36: 0 | AH36: 0 | AI36: 0 | AJ36: 0 | AK36: 0 | AL36: 0 | AM36: 0 | AN36: 0 | AO36: 0 | AP36: 0 | AQ36: 0 | AR36: 0 | AS36: 0 | AT36: 0 | AU36: 0 | AV36: 0 | AW36: 0 | AX36: 0 | AY36: 0 | AZ36: 0 | BA36: 0 | BB36: 0 | BC36: 0 | BD36: 0 | BE36: 0 | BF36: 0 | BG36: 0 | BH36: 0 | BI36: 0 | BJ36: 0 | BK36: 0 | BL36: 0 | BM36: 0 | BN36: 0 | BO36: 0 | BP36: 0 | BQ36: 0 | BR36: 0 | BS36: 0 | BT36: 0 | BU36: 0 | BV36: 0 | BW36: =IF(BW35="",0,(BW35-INDIRECT(CONCATENATE(BW34,"CR")))*113/INDIRECT(CONCATENATE(BW34,"SR"))) -> 0 | BX36: 0 | BY36: 0 | BZ36: 0 | CA36: 0 | CB36: 0 | CC36: 0 | CD36: 0 | CE36: 0 | CF36: 0 | CG36: 0 | CH36: 0 | CI36: 0 | CJ36: 0 | CK36: 0 | CL36: 0 | CM36: 0 | CN36: 0 | CO36: 0 | CP36: 0 | CQ36: 0 | CR36: 0 | CS36: 0 | CT36: 0 | CU36: 0 | CV36: 0 | CW36: 0
I37: New Hcap | J37: =J36-2 -> 18 | K37: =IF(K36>0,MIN(J36:K36)-2,J37) -> 16.32913386 | L37: =IF(L36>0,MIN(J36:L36)-2,K37) -> 16.32913386 | M37: =IF(M36>0,MIN(J36:M36)-1,L37) -> 16.32913386 | N37: =IF(N36>0,MIN(J36:N36),M37) -> 16.32913386 | O37: =IF(O36>0,AVERAGE(SMALL(IF(J36:O36>0,J36:O36),{1,2}))-1,N37) -> 16.32913386 | P37: =IF(P36>0,AVERAGE(SMALL(IF(J36:P36>0,J36:P36),{1,2})),O37) -> 16.32913386 | Q37: =IF(Q36>0,AVERAGE(SMALL(IF(J36:Q36>0,J36:Q36),{1,2})),P37) -> 16.32913386 | R37: =IF(R36>0,AVERAGE(SMALL(IF(J36:R36>0,J36:R36),{1,2,3})),Q37) -> 16.32913386 | S37: =IF(S36>0,AVERAGE(SMALL(IF(J36:S36>0,J36:S36),{1,2,3})),R37) -> 16.32913386 | T37: =IF(T36>0,AVERAGE(SMALL(IF(J36:T36>0,J36:T36),{1,2,3})),S37) -> 16.32913386 | U37: =IF(U36>0,AVERAGE(SMALL(IF(J36:U36>0,J36:U36),{1,2,3,4})),T37) -> 16.32913386 | V37: =IF(V36>0,AVERAGE(SMALL(IF(J36:V36>0,J36:V36),{1,2,3,4})),U37) -> 16.32913386 | W37: =IF(W36>0,AVERAGE(SMALL(IF(J36:W36>0,J36:W36),{1,2,3,4})),V37) -> 16.32913386 | X37: =IF(X36>0,AVERAGE(SMALL(IF(J36:X36>0,J36:X36),{1,2,3,4,5})),W37) -> 16.32913386 | Y37: =IF(Y36>0,AVERAGE(SMALL(IF(J36:Y36>0,J36:Y36),{1,2,3,4,5})),X37) -> 16.32913386 | Z37: =IF(Z36>0,AVERAGE(SMALL(IF(J36:Z36>0,J36:Z36),{1,2,3,4,5,6})),Y37) -> 16.32913386 | AA37: =IF(AA36>0,AVERAGE(SMALL(IF(J36:AA36>0,J36:AA36),{1,2,3,4,5,6})),Z37) -> 16.32913386 | AB37: =IF(AB36>0,AVERAGE(SMALL(IF(J36:AB36>0,J36:AB36),{1,2,3,4,5,6,7})),AA37) -> 16.32913386 | AC37: =IF(AC36>0,AVERAGE(SMALL(IF(J36:AC36>0,J36:AC36),{1,2,3,4,5,6,7,8})),AB37) -> 16.32913386 | AD37: =IF(AD36>0,AVERAGE(SMALL(IF(K36:AD36>0,K36:AD36),{1,2,3,4,5,6,7,8})),AC37) -> 16.32913386 | AE37: =IF(AE36>0,AVERAGE(SMALL(IF(L36:AE36>0,L36:AE36),{1,2,3,4,5,6,7,8})),AD37) -> 16.32913386 | AF37: =IF(AF36>0,AVERAGE(SMALL(IF(M36:AF36>0,M36:AF36),{1,2,3,4,5,6,7,8})),AE37) -> 16.32913386 | AG37: =IF(AG36>0,AVERAGE(SMALL(IF(N36:AG36>0,N36:AG36),{1,2,3,4,5,6,7,8})),AF37) -> 16.32913386 | AH37: =IF(AH36>0,AVERAGE(SMALL(IF(O36:AH36>0,O36:AH36),{1,2,3,4,5,6,7,8})),AG37) -> 16.32913386 | AI37: =IF(AI36>0,AVERAGE(SMALL(IF(P36:AI36>0,P36:AI36),{1,2,3,4,5,6,7,8})),AH37) -> 16.32913386 | AJ37: =IF(AJ36>0,AVERAGE(SMALL(IF(Q36:AJ36>0,Q36:AJ36),{1,2,3,4,5,6,7,8})),AI37) -> 16.32913386 | AK37: =IF(AK36>0,AVERAGE(SMALL(IF(R36:AK36>0,R36:AK36),{1,2,3,4,5,6,7,8})),AJ37) -> 16.32913386 | AL37: =IF(AL36>0,AVERAGE(SMALL(IF(S36:AL36>0,S36:AL36),{1,2,3,4,5,6,7,8})),AK37) -> 16.32913386 | AM37: =IF(AM36>0,AVERAGE(SMALL(IF(T36:AM36>0,T36:AM36),{1,2,3,4,5,6,7,8})),AL37) -> 16.32913386 | AN37: =IF(AN36>0,AVERAGE(SMALL(IF(U36:AN36>0,U36:AN36),{1,2,3,4,5,6,7,8})),AM37) -> 16.32913386 | AO37: =IF(AO36>0,AVERAGE(SMALL(IF(V36:AO36>0,V36:AO36),{1,2,3,4,5,6,7,8})),AN37) -> 16.32913386 | AP37: =IF(AP36>0,AVERAGE(SMALL(IF(W36:AP36>0,W36:AP36),{1,2,3,4,5,6,7,8})),AO37) -> 16.32913386 | AQ37: =IF(AQ36>0,AVERAGE(SMALL(IF(X36:AQ36>0,X36:AQ36),{1,2,3,4,5,6,7,8})),AP37) -> 16.32913386 | AR37: =IF(AR36>0,AVERAGE(SMALL(IF(Y36:AR36>0,Y36:AR36),{1,2,3,4,5,6,7,8})),AQ37) -> 16.32913386 | AS37: =IF(AS36>0,AVERAGE(SMALL(IF(Z36:AS36>0,Z36:AS36),{1,2,3,4,5,6,7,8})),AR37) -> 16.32913386 | AT37: =IF(AT36>0,AVERAGE(SMALL(IF(AA36:AT36>0,AA36:AT36),{1,2,3,4,5,6,7,8})),AS37) -> 16.32913386 | AU37: =IF(AU36>0,AVERAGE(SMALL(IF(AB36:AU36>0,AB36:AU36),{1,2,3,4,5,6,7,8})),AT37) -> 16.32913386 | AV37: =IF(AV36>0,AVERAGE(SMALL(IF(AC36:AV36>0,AC36:AV36),{1,2,3,4,5,6,7,8})),AU37) -> 16.32913386 | AW37: =IF(AW36>0,AVERAGE(SMALL(IF(AD36:AW36>0,AD36:AW36),{1,2,3,4,5,6,7,8})),AV37) -> 16.32913386 | AX37: =IF(AX36>0,AVERAGE(SMALL(IF(AE36:AX36>0,AE36:AX36),{1,2,3,4,5,6,7,8})),AW37) -> 16.32913386 | AY37: =IF(AY36>0,AVERAGE(SMALL(IF(AF36:AY36>0,AF36:AY36),{1,2,3,4,5,6,7,8})),AX37) -> 16.32913386 | AZ37: =IF(AZ36>0,AVERAGE(SMALL(IF(AG36:AZ36>0,AG36:AZ36),{1,2,3,4,5,6,7,8})),AY37) -> 16.32913386 | BA37: =IF(BA36>0,AVERAGE(SMALL(IF(AH36:BA36>0,AH36:BA36),{1,2,3,4,5,6,7,8})),AZ37) -> 16.32913386 | BB37: =IF(BB36>0,AVERAGE(SMALL(IF(AI36:BB36>0,AI36:BB36),{1,2,3,4,5,6,7,8})),BA37) -> 16.32913386 | BC37: =IF(BC36>0,AVERAGE(SMALL(IF(AJ36:BC36>0,AJ36:BC36),{1,2,3,4,5,6,7,8})),BB37) -> 16.32913386 | BD37: =IF(BD36>0,AVERAGE(SMALL(IF(AK36:BD36>0,AK36:BD36),{1,2,3,4,5,6,7,8})),BC37) -> 16.32913386 | BE37: =IF(BE36>0,AVERAGE(SMALL(IF(AL36:BE36>0,AL36:BE36),{1,2,3,4,5,6,7,8})),BD37) -> 16.32913386 | BF37: =IF(BF36>0,AVERAGE(SMALL(IF(AM36:BF36>0,AM36:BF36),{1,2,3,4,5,6,7,8})),BE37) -> 16.32913386 | BG37: =IF(BG36>0,AVERAGE(SMALL(IF(AN36:BG36>0,AN36:BG36),{1,2,3,4,5,6,7,8})),BF37) -> 16.32913386 | BH37: =IF(BH36>0,AVERAGE(SMALL(IF(AO36:BH36>0,AO36:BH36),{1,2,3,4,5,6,7,8})),BG37) -> 16.32913386 | BI37: =IF(BI36>0,AVERAGE(SMALL(IF(AP36:BI36>0,AP36:BI36),{1,2,3,4,5,6,7,8})),BH37) -> 16.32913386 | BJ37: =IF(BJ36>0,AVERAGE(SMALL(IF(AQ36:BJ36>0,AQ36:BJ36),{1,2,3,4,5,6,7,8})),BI37) -> 16.32913386 | BK37: =IF(BK36>0,AVERAGE(SMALL(IF(AR36:BK36>0,AR36:BK36),{1,2,3,4,5,6,7,8})),BJ37) -> 16.32913386 | BL37: =IF(BL36>0,AVERAGE(SMALL(IF(AS36:BL36>0,AS36:BL36),{1,2,3,4,5,6,7,8})),BK37) -> 16.32913386 | BM37: =IF(BM36>0,AVERAGE(SMALL(IF(AT36:BM36>0,AT36:BM36),{1,2,3,4,5,6,7,8})),BL37) -> 16.32913386 | BN37: =IF(BN36>0,AVERAGE(SMALL(IF(AU36:BN36>0,AU36:BN36),{1,2,3,4,5,6,7,8})),BM37) -> 16.32913386 | BO37: =IF(BO36>0,AVERAGE(SMALL(IF(AV36:BO36>0,AV36:BO36),{1,2,3,4,5,6,7,8})),BN37) -> 16.32913386 | BP37: =IF(BP36>0,AVERAGE(SMALL(IF(AW36:BP36>0,AW36:BP36),{1,2,3,4,5,6,7,8})),BO37) -> 16.32913386 | BQ37: =IF(BQ36>0,AVERAGE(SMALL(IF(AX36:BQ36>0,AX36:BQ36),{1,2,3,4,5,6,7,8})),BP37) -> 16.32913386 | BR37: =IF(BR36>0,AVERAGE(SMALL(IF(AY36:BR36>0,AY36:BR36),{1,2,3,4,5,6,7,8})),BQ37) -> 16.32913386 | BS37: =IF(BS36>0,AVERAGE(SMALL(IF(AZ36:BS36>0,AZ36:BS36),{1,2,3,4,5,6,7,8})),BR37) -> 16.32913386 | BT37: =IF(BT36>0,AVERAGE(SMALL(IF(BA36:BT36>0,BA36:BT36),{1,2,3,4,5,6,7,8})),BS37) -> 16.32913386 | BU37: =IF(BU36>0,AVERAGE(SMALL(IF(BB36:BU36>0,BB36:BU36),{1,2,3,4,5,6,7,8})),BT37) -> 16.32913386 | BV37: =IF(BV36>0,AVERAGE(SMALL(IF(BC36:BV36>0,BC36:BV36),{1,2,3,4,5,6,7,8})),BU37) -> 16.32913386 | BW37: =IF(BW36>0,AVERAGE(SMALL(IF(BD36:BW36>0,BD36:BW36),{1,2,3,4,5,6,7,8})),BV37) -> 16.32913386 | BX37: =IF(BX36>0,AVERAGE(SMALL(IF(BE36:BX36>0,BE36:BX36),{1,2,3,4,5,6,7,8})),BW37) -> 16.32913386 | BY37: =IF(BY36>0,AVERAGE(SMALL(IF(BF36:BY36>0,BF36:BY36),{1,2,3,4,5,6,7,8})),BX37) -> 16.32913386 | BZ37: =IF(BZ36>0,AVERAGE(SMALL(IF(BG36:BZ36>0,BG36:BZ36),{1,2,3,4,5,6,7,8})),BY37) -> 16.32913386 | CA37: =IF(CA36>0,AVERAGE(SMALL(IF(BH36:CA36>0,BH36:CA36),{1,2,3,4,5,6,7,8})),BZ37) -> 16.32913386 | CB37: =IF(CB36>0,AVERAGE(SMALL(IF(BI36:CB36>0,BI36:CB36),{1,2,3,4,5,6,7,8})),CA37) -> 16.32913386 | CC37: =IF(CC36>0,AVERAGE(SMALL(IF(BJ36:CC36>0,BJ36:CC36),{1,2,3,4,5,6,7,8})),CB37) -> 16.32913386 | CD37: =IF(CD36>0,AVERAGE(SMALL(IF(BK36:CD36>0,BK36:CD36),{1,2,3,4,5,6,7,8})),CC37) -> 16.32913386 | CE37: =IF(CE36>0,AVERAGE(SMALL(IF(BL36:CE36>0,BL36:CE36),{1,2,3,4,5,6,7,8})),CD37) -> 16.32913386 | CF37: =IF(CF36>0,AVERAGE(SMALL(IF(BM36:CF36>0,BM36:CF36),{1,2,3,4,5,6,7,8})),CE37) -> 16.32913386 | CG37: =IF(CG36>0,AVERAGE(SMALL(IF(BN36:CG36>0,BN36:CG36),{1,2,3,4,5,6,7,8})),CF37) -> 16.32913386 | CH37: =IF(CH36>0,AVERAGE(SMALL(IF(BO36:CH36>0,BO36:CH36),{1,2,3,4,5,6,7,8})),CG37) -> 16.32913386 | CI37: =IF(CI36>0,AVERAGE(SMALL(IF(BP36:CI36>0,BP36:CI36),{1,2,3,4,5,6,7,8})),CH37) -> 16.32913386 | CJ37: =IF(CJ36>0,AVERAGE(SMALL(IF(BQ36:CJ36>0,BQ36:CJ36),{1,2,3,4,5,6,7,8})),CI37) -> 16.32913386 | CK37: =IF(CK36>0,AVERAGE(SMALL(IF(BR36:CK36>0,BR36:CK36),{1,2,3,4,5,6,7,8})),CJ37) -> 16.32913386 | CL37: =IF(CL36>0,AVERAGE(SMALL(IF(BS36:CL36>0,BS36:CL36),{1,2,3,4,5,6,7,8})),CK37) -> 16.32913386 | CM37: =IF(CM36>0,AVERAGE(SMALL(IF(BT36:CM36>0,BT36:CM36),{1,2,3,4,5,6,7,8})),CL37) -> 16.32913386 | CN37: =IF(CN36>0,AVERAGE(SMALL(IF(BU36:CN36>0,BU36:CN36),{1,2,3,4,5,6,7,8})),CM37) -> 16.32913386 | CO37: =IF(CO36>0,AVERAGE(SMALL(IF(BV36:CO36>0,BV36:CO36),{1,2,3,4,5,6,7,8})),CN37) -> 16.32913386 | CP37: =IF(CP36>0,AVERAGE(SMALL(IF(BW36:CP36>0,BW36:CP36),{1,2,3,4,5,6,7,8})),CO37) -> 16.32913386 | CQ37: =IF(CQ36>0,AVERAGE(SMALL(IF(BX36:CQ36>0,BX36:CQ36),{1,2,3,4,5,6,7,8})),CP37) -> 16.32913386 | CR37: =IF(CR36>0,AVERAGE(SMALL(IF(BY36:CR36>0,BY36:CR36),{1,2,3,4,5,6,7,8})),CQ37) -> 16.32913386 | CS37: =IF(CS36>0,AVERAGE(SMALL(IF(BZ36:CS36>0,BZ36:CS36),{1,2,3,4,5,6,7,8})),CR37) -> 16.32913386 | CT37: =IF(CT36>0,AVERAGE(SMALL(IF(CA36:CT36>0,CA36:CT36),{1,2,3,4,5,6,7,8})),CS37) -> 16.32913386 | CU37: =IF(CU36>0,AVERAGE(SMALL(IF(CB36:CU36>0,CB36:CU36),{1,2,3,4,5,6,7,8})),CT37) -> 16.32913386 | CV37: =IF(CV36>0,AVERAGE(SMALL(IF(CC36:CV36>0,CC36:CV36),{1,2,3,4,5,6,7,8})),CU37) -> 16.32913386 | CW37: =IF(CW36>0,AVERAGE(SMALL(IF(CD36:CW36>0,CD36:CW36),{1,2,3,4,5,6,7,8})),CV37) -> 16.32913386
I38: Low Hcap | AC38: =MIN($J37:AC37) -> 16.32913386 | AD38: =MIN($J37:AD37) -> 16.32913386 | AE38: =MIN($J37:AE37) -> 16.32913386 | AF38: =MIN($J37:AF37) -> 16.32913386 | AG38: =MIN($J37:AG37) -> 16.32913386 | AH38: =MIN($J37:AH37) -> 16.32913386 | AI38: =MIN($J37:AI37) -> 16.32913386 | AJ38: =MIN($J37:AJ37) -> 16.32913386 | AK38: =MIN($J37:AK37) -> 16.32913386 | AL38: =MIN($J37:AL37) -> 16.32913386 | AM38: =MIN($J37:AM37) -> 16.32913386 | AN38: =MIN($J37:AN37) -> 16.32913386 | AO38: =MIN($J37:AO37) -> 16.32913386 | AP38: =MIN($J37:AP37) -> 16.32913386 | AQ38: =MIN($J37:AQ37) -> 16.32913386 | AR38: =MIN($J37:AR37) -> 16.32913386 | AS38: =MIN($J37:AS37) -> 16.32913386 | AT38: =MIN($J37:AT37) -> 16.32913386 | AU38: =MIN($J37:AU37) -> 16.32913386 | AV38: =MIN($J37:AV37) -> 16.32913386 | AW38: =MIN($J37:AW37) -> 16.32913386 | AX38: =MIN($J37:AX37) -> 16.32913386 | AY38: =MIN($J37:AY37) -> 16.32913386 | AZ38: =MIN($J37:AZ37) -> 16.32913386 | BA38: =MIN($J37:BA37) -> 16.32913386 | BB38: =MIN($J37:BB37) -> 16.32913386 | BC38: =MIN($J37:BC37) -> 16.32913386 | BD38: =MIN($J37:BD37) -> 16.32913386 | BE38: =MIN($J37:BE37) -> 16.32913386 | BF38: =MIN($J37:BF37) -> 16.32913386 | BG38: =MIN($J37:BG37) -> 16.32913386 | BH38: =MIN($J37:BH37) -> 16.32913386 | BI38: =MIN($J37:BI37) -> 16.32913386 | BJ38: =MIN($J37:BJ37) -> 16.32913386 | BK38: =MIN($J37:BK37) -> 16.32913386 | BL38: =MIN($J37:BL37) -> 16.32913386 | BM38: =MIN($J37:BM37) -> 16.32913386 | BN38: =MIN($J37:BN37) -> 16.32913386 | BO38: =MIN($J37:BO37) -> 16.32913386 | BP38: =MIN($J37:BP37) -> 16.32913386 | BQ38: =MIN($J37:BQ37) -> 16.32913386 | BR38: =MIN($J37:BR37) -> 16.32913386 | BS38: =MIN($J37:BS37) -> 16.32913386 | BT38: =MIN($J37:BT37) -> 16.32913386 | BU38: =MIN($J37:BU37) -> 16.32913386 | BV38: =MIN($J37:BV37) -> 16.32913386 | BW38: =MIN($J37:BW37) -> 16.32913386 | BX38: =MIN($J37:BX37) -> 16.32913386 | BY38: =MIN($J37:BY37) -> 16.32913386 | BZ38: =MIN($J37:BZ37) -> 16.32913386 | CA38: =MIN($J37:CA37) -> 16.32913386 | CB38: =MIN($J37:CB37) -> 16.32913386 | CC38: =MIN($J37:CC37) -> 16.32913386 | CD38: =MIN($J37:CD37) -> 16.32913386 | CE38: =MIN($J37:CE37) -> 16.32913386 | CF38: =MIN($J37:CF37) -> 16.32913386 | CG38: =MIN($J37:CG37) -> 16.32913386 | CH38: =MIN($J37:CH37) -> 16.32913386 | CI38: =MIN($J37:CI37) -> 16.32913386 | CJ38: =MIN($J37:CJ37) -> 16.32913386 | CK38: =MIN($J37:CK37) -> 16.32913386 | CL38: =MIN($J37:CL37) -> 16.32913386 | CM38: =MIN($J37:CM37) -> 16.32913386 | CN38: =MIN($J37:CN37) -> 16.32913386 | CO38: =MIN($J37:CO37) -> 16.32913386 | CP38: =MIN($J37:CP37) -> 16.32913386 | CQ38: =MIN($J37:CQ37) -> 16.32913386 | CR38: =MIN($J37:CR37) -> 16.32913386 | CS38: =MIN($J37:CS37) -> 16.32913386 | CT38: =MIN($J37:CT37) -> 16.32913386 | CU38: =MIN($J37:CU37) -> 16.32913386 | CV38: =MIN($J37:CV37) -> 16.32913386 | CW38: =MIN($J37:CW37) -> 16.32913386
B39: Britnell | C39: Simon | D39: 18.4 | E39: Y | F39: =IF(H39<4,"Y",) -> 0 | H39: =COUNT(J39:CX39) -> 36 | I39: Date | J39: 2018-08-05 | K39: 2019-06-09 | L39: 2019-07-07 | M39: 2019-07-21 | N39: 2019-08-04 | O39: 2019-08-18 | P39: 2019-09-01 | Q39: 2019-10-13 | R39: 2019-11-24 | S39: 2020-05-20 | T39: 2020-05-24 | U39: 2020-05-31 | V39: 2020-06-28 | W39: 2020-07-12 | X39: 2020-08-09 | Y39: 2020-08-23 | Z39: 2020-09-06 | AA39: 2020-09-16 | AB39: 2020-10-04 | AC39: 2021-03-28 | AD39: 2021-05-30 | AE39: 2021-06-13 | AF39: 2021-07-11 | AG39: 2021-07-16 | AH39: 2021-08-22 | AI39: 2022-04-15 | AJ39: 2022-05-15 | AK39: 2022-06-12 | AL39: 2022-07-31 | AM39: 2022-08-26 | AN39: 2022-09-11 | AO39: 2022-10-07 | AP39: 2022-11-09 | AQ39: 2023-03-26 | AR39: 2023-05-07 | AS39: 2023-06-04 | CY39: =IF(CW43>$DD$1,36,CW43) -> 18.55084979 | CZ39: 19.00194661 | DA39: =CZ39-CY39 -> 0.4510968176
I40: Course | J40: ErdingHG | K40: OdelzhausenHG | L40: ErdingHG | M40: PfaffingHG | N40: TegernbachHG | O40: PfaffingHG | P40: ErdingHG | Q40: PfaffingHG | R40: PfaffingHG | S40: GutThailingHG | T40: PfaffingHG | U40: ErdingHG | V40: ErdingHG | W40: PfaffingHG | X40: ErdingHG | Y40: PfaffingHG | Z40: OdelzhausenHG | AA40: GutThailingHG | AB40: OdelzhausenHG | AC40: OdelzhausenHG | AD40: IffeldorfHG | AE40: PfaffingHG | AF40: PfaffingHG | AG40: MaxlrainHG | AH40: PfaffingHB | AI40: ReichertshausenHG | AJ40: OdelzhausenHG | AK40: ErdingHG | AL40: HohenpaehlHG | AM40: EschenhofHG | AN40: Pfaffing2022HG | AO40: EgmatingHG | AP40: GutThailing2022HG | AQ40: Pfaffing2023HG | AR40: Odelzhausen2023HG | AS40: IffeldorfHG
I41: Ad Gr | J41: 97 | K41: 94 | L41: 99 | M41: 103 | N41: 98 | O41: 92 | P41: 97 | Q41: 109 | R41: 101 | S41: 100 | T41: 100 | U41: 99 | V41: 104 | W41: 99 | X41: 99 | Y41: 91 | Z41: 94 | AA41: 92 | AB41: 97 | AC41: 98 | AD41: 98 | AE41: 100 | AF41: 102 | AG41: 109 | AH41: 91 | AI41: 95 | AJ41: 101 | AK41: 96 | AL41: 97 | AM41: 89 | AN41: 100 | AO41: 100 | AP41: 95 | AQ41: 93 | AR41: 92 | AS41: 95
I42: SD | J42: =IF(J41="",0,(J41-INDIRECT(CONCATENATE(J40,"CR")))*113/INDIRECT(CONCATENATE(J40,"SR"))) -> 22.6 | K42: =IF(K41="",0,(K41-INDIRECT(CONCATENATE(K40,"CR")))*113/INDIRECT(CONCATENATE(K40,"SR"))) -> 19.75275591 | L42: 24.33846154 | M42: 26.94615385 | N42: 22.51439394 | O42: 17.38461538 | P42: 22.6 | Q42: 32.16153846 | R42: 25.20769231 | S42: 25.44656489 | T42: 24.33846154 | U42: 24.33846154 | V42: 28.68461538 | W42: 23.46923077 | X42: 24.33846154 | Y42: 16.51538462 | Z42: 19.75275591 | AA42: 18.54580153 | AB42: 22.42204724 | AC42: 23.31181102 | AD42: 23.47596899 | AE42: 24.33846154 | AF42: 26.07692308 | AG42: 29.99485294 | AH42: 17.74453125 | AI42: 21.79285714 | AJ42: 25.98110236 | AK42: 21.73076923 | AL42: 22.68625954 | AM42: 14.72424242 | AN42: 23.73 | AO42: 23.89389313 | AP42: 21.20923077 | AQ42: 16.99185185 | AR42: 18.59032258 | AS42: 20.84806202 | AT42: 0 | AU42: 0 | AV42: 0 | AW42: 0 | AX42: 0 | AY42: 0 | AZ42: 0 | BA42: 0 | BB42: 0 | BC42: 0 | BD42: 0 | BE42: 0 | BF42: 0 | BG42: 0 | BH42: 0 | BI42: 0 | BJ42: 0 | BK42: 0 | BL42: 0 | BM42: 0 | BN42: 0 | BO42: 0 | BP42: 0 | BQ42: 0 | BR42: 0 | BS42: 0 | BT42: 0 | BU42: 0 | BV42: 0 | BW42: =IF(BW41="",0,(BW41-INDIRECT(CONCATENATE(BW40,"CR")))*113/INDIRECT(CONCATENATE(BW40,"SR"))) -> 0 | BX42: 0 | BY42: 0 | BZ42: 0 | CA42: 0 | CB42: 0 | CC42: 0 | CD42: 0 | CE42: 0 | CF42: 0 | CG42: 0 | CH42: 0 | CI42: 0 | CJ42: 0 | CK42: 0 | CL42: 0 | CM42: =IF(CM41="",0,(CM41-INDIRECT(CONCATENATE(CM40,"CR")))*113/INDIRECT(CONCATENATE(CM40,"SR"))) -> 0 | CN42: 0 | CO42: =IF(CO41="",0,(CO41-INDIRECT(CONCATENATE(CO40,"CR")))*113/INDIRECT(CONCATENATE(CO40,"SR"))) -> 0 | CP42: 0 | CQ42: =IF(CQ41="",0,(CQ41-INDIRECT(CONCATENATE(CQ40,"CR")))*113/INDIRECT(CONCATENATE(CQ40,"SR"))) -> 0 | CR42: 0 | CS42: =IF(CS41="",0,(CS41-INDIRECT(CONCATENATE(CS40,"CR")))*113/INDIRECT(CONCATENATE(CS40,"SR"))) -> 0 | CT42: 0 | CU42: =IF(CU41="",0,(CU41-INDIRECT(CONCATENATE(CU40,"CR")))*113/INDIRECT(CONCATENATE(CU40,"SR"))) -> 0 | CV42: 0 | CW42: =IF(CW41="",0,(CW41-INDIRECT(CONCATENATE(CW40,"CR")))*113/INDIRECT(CONCATENATE(CW40,"SR"))) -> 0
I43: New Hcap | J43: =J42-2 -> 20.6 | K43: =IF(K42>0,MIN(J42:K42)-2,J43) -> 17.75275591 | L43: =IF(L42>0,MIN(J42:L42)-2,K43) -> 17.75275591 | M43: =IF(M42>0,MIN(J42:M42)-1,L43) -> 18.75275591 | N43: =IF(N42>0,MIN(J42:N42),M43) -> 19.75275591 | O43: =IF(O42>0,AVERAGE(SMALL(IF(J42:O42>0,J42:O42),{1,2}))-1,N43) -> 17.56868565 | P43: =IF(P42>0,AVERAGE(SMALL(IF(J42:P42>0,J42:P42),{1,2})),O43) -> 18.56868565 | Q43: =IF(Q42>0,AVERAGE(SMALL(IF(J42:Q42>0,J42:Q42),{1,2})),P43) -> 18.56868565 | R43: =IF(R42>0,AVERAGE(SMALL(IF(J42:R42>0,J42:R42),{1,2,3})),Q43) -> 19.88392174 | S43: =IF(S42>0,AVERAGE(SMALL(IF(J42:S42>0,J42:S42),{1,2,3})),R43) -> 19.88392174 | T43: =IF(T42>0,AVERAGE(SMALL(IF(J42:T42>0,J42:T42),{1,2,3})),S43) -> 19.88392174 | U43: =IF(U42>0,AVERAGE(SMALL(IF(J42:U42>0,J42:U42),{1,2,3,4})),T43) -> 20.56294131 | V43: =IF(V42>0,AVERAGE(SMALL(IF(J42:V42>0,J42:V42),{1,2,3,4})),U43) -> 20.56294131 | W43: =IF(W42>0,AVERAGE(SMALL(IF(J42:W42>0,J42:W42),{1,2,3,4})),V43) -> 20.56294131 | X43: =IF(X42>0,AVERAGE(SMALL(IF(J42:X42>0,J42:X42),{1,2,3,4,5})),W43) -> 20.97035305 | Y43: =IF(Y42>0,AVERAGE(SMALL(IF(J42:Y42>0,J42:Y42),{1,2,3,4,5})),X43) -> 19.75342997 | Z43: =IF(Z42>0,AVERAGE(SMALL(IF(J42:Z42>0,J42:Z42),{1,2,3,4,5,6})),Y43) -> 19.75331763 | AA43: =IF(AA42>0,AVERAGE(SMALL(IF(J42:AA42>0,J42:AA42),{1,2,3,4,5,6})),Z43) -> 19.07761788 | AB43: =IF(AB42>0,AVERAGE(SMALL(IF(J42:AB42>0,J42:AB42),{1,2,3,4,5,6,7})),AA43) -> 19.5553935 | AC43: =IF(AC42>0,AVERAGE(SMALL(IF(J42:AC42>0,J42:AC42),{1,2,3,4,5,6,7,8})),AB43) -> 19.93596932 | AD43: =IF(AD42>0,AVERAGE(SMALL(IF(K42:AD42>0,K42:AD42),{1,2,3,4,5,6,7,8})),AC43) -> 19.93596932 | AE43: =IF(AE42>0,AVERAGE(SMALL(IF(L42:AE42>0,L42:AE42),{1,2,3,4,5,6,7,8})),AD43) -> 20.3808512 | AF43: =IF(AF42>0,AVERAGE(SMALL(IF(M42:AF42>0,M42:AF42),{1,2,3,4,5,6,7,8})),AE43) -> 20.3808512 | AG43: =IF(AG42>0,AVERAGE(SMALL(IF(N42:AG42>0,N42:AG42),{1,2,3,4,5,6,7,8})),AF43) -> 20.3808512 | AH43: =IF(AH42>0,AVERAGE(SMALL(IF(O42:AH42>0,O42:AH42),{1,2,3,4,5,6,7,8})),AG43) -> 19.78461837 | AI43: =IF(AI42>0,AVERAGE(SMALL(IF(P42:AI42>0,P42:AI42),{1,2,3,4,5,6,7,8})),AH43) -> 20.33564859 | AJ43: =IF(AJ42>0,AVERAGE(SMALL(IF(Q42:AJ42>0,Q42:AJ42),{1,2,3,4,5,6,7,8})),AI43) -> 20.44430243 | AK43: =IF(AK42>0,AVERAGE(SMALL(IF(R42:AK42>0,R42:AK42),{1,2,3,4,5,6,7,8})),AJ43) -> 20.22699474 | AL43: =IF(AL42>0,AVERAGE(SMALL(IF(S42:AL42>0,S42:AL42),{1,2,3,4,5,6,7,8})),AK43) -> 20.14880081 | AM43: =IF(AM42>0,AVERAGE(SMALL(IF(T42:AM42>0,T42:AM42),{1,2,3,4,5,6,7,8})),AL43) -> 19.15354867 | AN43: =IF(AN42>0,AVERAGE(SMALL(IF(U42:AN42>0,U42:AN42),{1,2,3,4,5,6,7,8})),AM43) -> 19.15354867 | AO43: =IF(AO42>0,AVERAGE(SMALL(IF(V42:AO42>0,V42:AO42),{1,2,3,4,5,6,7,8})),AN43) -> 19.15354867 | AP43: =IF(AP42>0,AVERAGE(SMALL(IF(W42:AP42>0,W42:AP42),{1,2,3,4,5,6,7,8})),AO43) -> 19.00194661 | AQ43: =IF(AQ42>0,AVERAGE(SMALL(IF(X42:AQ42>0,X42:AQ42),{1,2,3,4,5,6,7,8})),AP43) -> 18.40182095 | AR43: =IF(AR42>0,AVERAGE(SMALL(IF(Y42:AR42>0,Y42:AR42),{1,2,3,4,5,6,7,8})),AQ43) -> 18.00926512 | AS43: =IF(AS42>0,AVERAGE(SMALL(IF(Z42:AS42>0,Z42:AS42),{1,2,3,4,5,6,7,8})),AR43) -> 18.55084979 | AT43: =IF(AT42>0,AVERAGE(SMALL(IF(AA42:AT42>0,AA42:AT42),{1,2,3,4,5,6,7,8})),AS43) -> 18.55084979 | AU43: =IF(AU42>0,AVERAGE(SMALL(IF(AB42:AU42>0,AB42:AU42),{1,2,3,4,5,6,7,8})),AT43) -> 18.55084979 | AV43: =IF(AV42>0,AVERAGE(SMALL(IF(AC42:AV42>0,AC42:AV42),{1,2,3,4,5,6,7,8})),AU43) -> 18.55084979 | AW43: =IF(AW42>0,AVERAGE(SMALL(IF(AD42:AW42>0,AD42:AW42),{1,2,3,4,5,6,7,8})),AV43) -> 18.55084979 | AX43: =IF(AX42>0,AVERAGE(SMALL(IF(AE42:AX42>0,AE42:AX42),{1,2,3,4,5,6,7,8})),AW43) -> 18.55084979 | AY43: =IF(AY42>0,AVERAGE(SMALL(IF(AF42:AY42>0,AF42:AY42),{1,2,3,4,5,6,7,8})),AX43) -> 18.55084979 | AZ43: =IF(AZ42>0,AVERAGE(SMALL(IF(AG42:AZ42>0,AG42:AZ42),{1,2,3,4,5,6,7,8})),AY43) -> 18.55084979 | BA43: =IF(BA42>0,AVERAGE(SMALL(IF(AH42:BA42>0,AH42:BA42),{1,2,3,4,5,6,7,8})),AZ43) -> 18.55084979 | BB43: =IF(BB42>0,AVERAGE(SMALL(IF(AI42:BB42>0,AI42:BB42),{1,2,3,4,5,6,7,8})),BA43) -> 18.55084979 | BC43: =IF(BC42>0,AVERAGE(SMALL(IF(AJ42:BC42>0,AJ42:BC42),{1,2,3,4,5,6,7,8})),BB43) -> 18.55084979 | BD43: =IF(BD42>0,AVERAGE(SMALL(IF(AK42:BD42>0,AK42:BD42),{1,2,3,4,5,6,7,8})),BC43) -> 18.55084979 | BE43: =IF(BE42>0,AVERAGE(SMALL(IF(AL42:BE42>0,AL42:BE42),{1,2,3,4,5,6,7,8})),BD43) -> 18.55084979 | BF43: =IF(BF42>0,AVERAGE(SMALL(IF(AM42:BF42>0,AM42:BF42),{1,2,3,4,5,6,7,8})),BE43) -> 18.55084979 | BG43: =IF(BG42>0,AVERAGE(SMALL(IF(AN42:BG42>0,AN42:BG42),{1,2,3,4,5,6,7,8})),BF43) -> 18.55084979 | BH43: =IF(BH42>0,AVERAGE(SMALL(IF(AO42:BH42>0,AO42:BH42),{1,2,3,4,5,6,7,8})),BG43) -> 18.55084979 | BI43: =IF(BI42>0,AVERAGE(SMALL(IF(AP42:BI42>0,AP42:BI42),{1,2,3,4,5,6,7,8})),BH43) -> 18.55084979 | BJ43: =IF(BJ42>0,AVERAGE(SMALL(IF(AQ42:BJ42>0,AQ42:BJ42),{1,2,3,4,5,6,7,8})),BI43) -> 18.55084979 | BK43: =IF(BK42>0,AVERAGE(SMALL(IF(AR42:BK42>0,AR42:BK42),{1,2,3,4,5,6,7,8})),BJ43) -> 18.55084979 | BL43: =IF(BL42>0,AVERAGE(SMALL(IF(AS42:BL42>0,AS42:BL42),{1,2,3,4,5,6,7,8})),BK43) -> 18.55084979 | BM43: =IF(BM42>0,AVERAGE(SMALL(IF(AT42:BM42>0,AT42:BM42),{1,2,3,4,5,6,7,8})),BL43) -> 18.55084979 | BN43: =IF(BN42>0,AVERAGE(SMALL(IF(AU42:BN42>0,AU42:BN42),{1,2,3,4,5,6,7,8})),BM43) -> 18.55084979 | BO43: =IF(BO42>0,AVERAGE(SMALL(IF(AV42:BO42>0,AV42:BO42),{1,2,3,4,5,6,7,8})),BN43) -> 18.55084979 | BP43: =IF(BP42>0,AVERAGE(SMALL(IF(AW42:BP42>0,AW42:BP42),{1,2,3,4,5,6,7,8})),BO43) -> 18.55084979 | BQ43: =IF(BQ42>0,AVERAGE(SMALL(IF(AX42:BQ42>0,AX42:BQ42),{1,2,3,4,5,6,7,8})),BP43) -> 18.55084979 | BR43: =IF(BR42>0,AVERAGE(SMALL(IF(AY42:BR42>0,AY42:BR42),{1,2,3,4,5,6,7,8})),BQ43) -> 18.55084979 | BS43: =IF(BS42>0,AVERAGE(SMALL(IF(AZ42:BS42>0,AZ42:BS42),{1,2,3,4,5,6,7,8})),BR43) -> 18.55084979 | BT43: =IF(BT42>0,AVERAGE(SMALL(IF(BA42:BT42>0,BA42:BT42),{1,2,3,4,5,6,7,8})),BS43) -> 18.55084979 | BU43: =IF(BU42>0,AVERAGE(SMALL(IF(BB42:BU42>0,BB42:BU42),{1,2,3,4,5,6,7,8})),BT43) -> 18.55084979 | BV43: =IF(BV42>0,AVERAGE(SMALL(IF(BC42:BV42>0,BC42:BV42),{1,2,3,4,5,6,7,8})),BU43) -> 18.55084979 | BW43: =IF(BW42>0,AVERAGE(SMALL(IF(BD42:BW42>0,BD42:BW42),{1,2,3,4,5,6,7,8})),BV43) -> 18.55084979 | BX43: =IF(BX42>0,AVERAGE(SMALL(IF(BE42:BX42>0,BE42:BX42),{1,2,3,4,5,6,7,8})),BW43) -> 18.55084979 | BY43: =IF(BY42>0,AVERAGE(SMALL(IF(BF42:BY42>0,BF42:BY42),{1,2,3,4,5,6,7,8})),BX43) -> 18.55084979 | BZ43: =IF(BZ42>0,AVERAGE(SMALL(IF(BG42:BZ42>0,BG42:BZ42),{1,2,3,4,5,6,7,8})),BY43) -> 18.55084979 | CA43: =IF(CA42>0,AVERAGE(SMALL(IF(BH42:CA42>0,BH42:CA42),{1,2,3,4,5,6,7,8})),BZ43) -> 18.55084979 | CB43: =IF(CB42>0,AVERAGE(SMALL(IF(BI42:CB42>0,BI42:CB42),{1,2,3,4,5,6,7,8})),CA43) -> 18.55084979 | CC43: =IF(CC42>0,AVERAGE(SMALL(IF(BJ42:CC42>0,BJ42:CC42),{1,2,3,4,5,6,7,8})),CB43) -> 18.55084979 | CD43: =IF(CD42>0,AVERAGE(SMALL(IF(BK42:CD42>0,BK42:CD42),{1,2,3,4,5,6,7,8})),CC43) -> 18.55084979 | CE43: =IF(CE42>0,AVERAGE(SMALL(IF(BL42:CE42>0,BL42:CE42),{1,2,3,4,5,6,7,8})),CD43) -> 18.55084979 | CF43: =IF(CF42>0,AVERAGE(SMALL(IF(BM42:CF42>0,BM42:CF42),{1,2,3,4,5,6,7,8})),CE43) -> 18.55084979 | CG43: =IF(CG42>0,AVERAGE(SMALL(IF(BN42:CG42>0,BN42:CG42),{1,2,3,4,5,6,7,8})),CF43) -> 18.55084979 | CH43: =IF(CH42>0,AVERAGE(SMALL(IF(BO42:CH42>0,BO42:CH42),{1,2,3,4,5,6,7,8})),CG43) -> 18.55084979 | CI43: =IF(CI42>0,AVERAGE(SMALL(IF(BP42:CI42>0,BP42:CI42),{1,2,3,4,5,6,7,8})),CH43) -> 18.55084979 | CJ43: =IF(CJ42>0,AVERAGE(SMALL(IF(BQ42:CJ42>0,BQ42:CJ42),{1,2,3,4,5,6,7,8})),CI43) -> 18.55084979 | CK43: =IF(CK42>0,AVERAGE(SMALL(IF(BR42:CK42>0,BR42:CK42),{1,2,3,4,5,6,7,8})),CJ43) -> 18.55084979 | CL43: =IF(CL42>0,AVERAGE(SMALL(IF(BS42:CL42>0,BS42:CL42),{1,2,3,4,5,6,7,8})),CK43) -> 18.55084979 | CM43: =IF(CM42>0,AVERAGE(SMALL(IF(BT42:CM42>0,BT42:CM42),{1,2,3,4,5,6,7,8})),CL43) -> 18.55084979 | CN43: =IF(CN42>0,AVERAGE(SMALL(IF(BU42:CN42>0,BU42:CN42),{1,2,3,4,5,6,7,8})),CM43) -> 18.55084979 | CO43: =IF(CO42>0,AVERAGE(SMALL(IF(BV42:CO42>0,BV42:CO42),{1,2,3,4,5,6,7,8})),CN43) -> 18.55084979 | CP43: =IF(CP42>0,AVERAGE(SMALL(IF(BW42:CP42>0,BW42:CP42),{1,2,3,4,5,6,7,8})),CO43) -> 18.55084979 | CQ43: =IF(CQ42>0,AVERAGE(SMALL(IF(BX42:CQ42>0,BX42:CQ42),{1,2,3,4,5,6,7,8})),CP43) -> 18.55084979 | CR43: =IF(CR42>0,AVERAGE(SMALL(IF(BY42:CR42>0,BY42:CR42),{1,2,3,4,5,6,7,8})),CQ43) -> 18.55084979 | CS43: =IF(CS42>0,AVERAGE(SMALL(IF(BZ42:CS42>0,BZ42:CS42),{1,2,3,4,5,6,7,8})),CR43) -> 18.55084979 | CT43: =IF(CT42>0,AVERAGE(SMALL(IF(CA42:CT42>0,CA42:CT42),{1,2,3,4,5,6,7,8})),CS43) -> 18.55084979 | CU43: =IF(CU42>0,AVERAGE(SMALL(IF(CB42:CU42>0,CB42:CU42),{1,2,3,4,5,6,7,8})),CT43) -> 18.55084979 | CV43: =IF(CV42>0,AVERAGE(SMALL(IF(CC42:CV42>0,CC42:CV42),{1,2,3,4,5,6,7,8})),CU43) -> 18.55084979 | CW43: =IF(CW42>0,AVERAGE(SMALL(IF(CD42:CW42>0,CD42:CW42),{1,2,3,4,5,6,7,8})),CV43) -> 18.55084979
I44: Low Hcap | AC44: =MIN($S43:AC43) -> 19.07761788 | AD44: =MIN($S43:AD43) -> 19.07761788 | AE44: =MIN($V43:AE43) -> 19.07761788 | AF44: =MIN($W43:AF43) -> 19.07761788 | AG44: =MIN($X43:AG43) -> 19.07761788 | AH44: =MIN($Y43:AH43) -> 19.07761788 | AI44: =MIN($AD43:AI43) -> 19.78461837 | AJ44: =MIN($AD43:AJ43) -> 19.78461837 | AK44: =MIN($AD43:AK43) -> 19.78461837 | AL44: =MIN($AH43:AL43) -> 19.78461837 | AM44: =MIN($AI43:AM43) -> 19.15354867 | AN44: =MIN($AI43:AN43) -> 19.15354867 | AO44: =MIN($AI43:AO43) -> 19.15354867 | AP44: =MIN($AI43:AP43) -> 19.00194661 | AQ44: =MIN($AI43:AQ43) -> 18.40182095 | AR44: =MIN($AJ43:AR43) -> 18.00926512 | AS44: =MIN($AK43:AS43) -> 18.00926512 | AT44: =MIN($AK43:AT43) -> 18.00926512 | AU44: =MIN($AK43:AU43) -> 18.00926512 | AV44: =MIN($AK43:AV43) -> 18.00926512 | AW44: =MIN($AK43:AW43) -> 18.00926512 | AX44: =MIN($AK43:AX43) -> 18.00926512 | AY44: =MIN($AK43:AY43) -> 18.00926512 | AZ44: =MIN($AK43:AZ43) -> 18.00926512 | BA44: =MIN($AK43:BA43) -> 18.00926512 | BB44: =MIN($AK43:BB43) -> 18.00926512 | BC44: =MIN($AK43:BC43) -> 18.00926512 | BD44: =MIN($AK43:BD43) -> 18.00926512 | BE44: =MIN($AK43:BE43) -> 18.00926512 | BF44: =MIN($AK43:BF43) -> 18.00926512 | BG44: =MIN($AK43:BG43) -> 18.00926512 | BH44: =MIN($AK43:BH43) -> 18.00926512 | BI44: =MIN($AK43:BI43) -> 18.00926512 | BJ44: =MIN($AK43:BJ43) -> 18.00926512 | BK44: =MIN($AK43:BK43) -> 18.00926512 | BL44: =MIN($AK43:BL43) -> 18.00926512 | BM44: =MIN($AK43:BM43) -> 18.00926512 | BN44: =MIN($AK43:BN43) -> 18.00926512 | BO44: =MIN($AK43:BO43) -> 18.00926512 | BP44: =MIN($AK43:BP43) -> 18.00926512 | BQ44: =MIN($AK43:BQ43) -> 18.00926512 | BR44: =MIN($AK43:BR43) -> 18.00926512 | BS44: =MIN($AK43:BS43) -> 18.00926512 | BT44: =MIN($AK43:BT43) -> 18.00926512 | BU44: =MIN($AK43:BU43) -> 18.00926512 | BV44: =MIN($AK43:BV43) -> 18.00926512 | BW44: =MIN($AK43:BW43) -> 18.00926512 | BX44: =MIN($AK43:BX43) -> 18.00926512 | BY44: =MIN($AK43:BY43) -> 18.00926512 | BZ44: =MIN($AK43:BZ43) -> 18.00926512 | CA44: =MIN($AK43:CA43) -> 18.00926512 | CB44: =MIN($AK43:CB43) -> 18.00926512 | CC44: =MIN($AK43:CC43) -> 18.00926512 | CD44: =MIN($AK43:CD43) -> 18.00926512 | CE44: =MIN($AK43:CE43) -> 18.00926512 | CF44: =MIN($AK43:CF43) -> 18.00926512 | CG44: =MIN($AK43:CG43) -> 18.00926512 | CH44: =MIN($AK43:CH43) -> 18.00926512 | CI44: =MIN($AK43:CI43) -> 18.00926512 | CJ44: =MIN($AK43:CJ43) -> 18.00926512 | CK44: =MIN($AK43:CK43) -> 18.00926512 | CL44: =MIN($AK43:CL43) -> 18.00926512 | CM44: =MIN($AK43:CM43) -> 18.00926512 | CN44: =MIN($AK43:CN43) -> 18.00926512 | CO44: =MIN($AK43:CO43) -> 18.00926512 | CP44: =MIN($AK43:CP43) -> 18.00926512 | CQ44: =MIN($AK43:CQ43) -> 18.00926512 | CR44: =MIN($AK43:CR43) -> 18.00926512 | CS44: =MIN($AK43:CS43) -> 18.00926512 | CT44: =MIN($AK43:CT43) -> 18.00926512 | CU44: =MIN($AK43:CU43) -> 18.00926512 | CV44: =MIN($AK43:CV43) -> 18.00926512 | CW44: =MIN($AK43:CW43) -> 18.00926512
B45: Brogan | C45: Padraig | D45: 16.6 | F45: =IF(H45<4,"Y",) -> 0 | H45: =COUNT(J45:CX45) -> 33 | I45: Date | K45: 2020-06-05 | L45: 2020-06-10 | M45: 2020-06-19 | N45: 2020-07-15 | O45: 2020-08-14 | P45: 2020-08-26 | Q45: 2020-11-01 | R45: 2020-11-15 | S45: 2021-03-28 | T45: 2021-04-11 | U45: 2021-04-16 | V45: 2021-04-25 | W45: 2021-04-30 | X45: 2021-05-09 | Y45: 2021-05-14 | Z45: 2021-05-23 | AA45: 2021-05-30 | AB45: 2021-06-04 | AC45: 2021-06-13 | AD45: 2021-06-18 | AE45: 2021-07-25 | AF45: 2021-07-30 | AG45: 2021-08-08 | AH45: 2021-08-15 | AI45: 2021-09-03 | AJ45: 2021-09-19 | AK45: 2022-05-15 | AL45: 2022-05-20 | AM45: 2022-06-17 | AN45: 2022-07-03 | AO45: 2022-10-21 | AP45: 2023-05-28 | AQ45: 2023-06-04 | CY45: =IF(CW49>$DD$1,36,CW49) -> 17.1868511 | CZ45: 17.73440829 | DA45: =CZ45-CY45 -> 0.5475571909
I46: Course | K46: ErdingHG | L46: GutThailingHG | M46: StEurachHG | N46: GutThailingHG | O46: EgmatingHG | P46: GutThailingHG | Q46: ErdingHG | R46: OdelzhausenHG | S46: OdelzhausenHG | T46: ErdingHR | U46: TegernbachHG | V46: PfaffingHG | W46: TegernbachHG | X46: ErdingHG | Y46: StEurachHG | Z46: OdelzhausenHG | AA46: IffeldorfHG | AB46: EgmatingHG | AC46: PfaffingHG | AD46: TegernbachHG | AE46: OdelzhausenHR | AF46: MangfalltalHG | AG46: IffeldorfHG | AH46: ErdingHG | AI46: StEurachHG | AJ46: ErdingHG | AK46: OdelzhausenHR | AL46: GutHaeusenHG | AM46: StEurachHG | AN46: Pfaffing2022HG | AO46: TegernbachHG | AP46: ErdingHG | AQ46: IffeldorfHG
I47: Ad Gr | K47: 95 | L47: 96 | M47: 98 | N47: 97 | O47: 94 | P47: 92 | Q47: 100 | R47: 96 | S47: 96 | T47: 88 | U47: 90 | V47: 98 | W47: 90 | X47: 95 | Y47: 93 | Z47: 94 | AA47: 102 | AB47: 90 | AC47: 96 | AD47: 92 | AE47: 90 | AF47: 91 | AG47: 96 | AH47: 93 | AI47: 97 | AJ47: 96 | AK47: 93 | AL47: 97 | AM47: 102 | AN47: 96 | AO47: 95 | AP47: 90 | AQ47: 88
I48: SD | J48: 16.6 | K48: =IF(K47="",0,(K47-INDIRECT(CONCATENATE(K46,"CR")))*113/INDIRECT(CONCATENATE(K46,"SR"))) -> 20.86153846 | L48: =IF(L47="",0,(L47-INDIRECT(CONCATENATE(L46,"CR")))*113/INDIRECT(CONCATENATE(L46,"SR"))) -> 21.99618321 | M48: 22.51374046 | N48: 22.85877863 | O48: 18.71832061 | P48: 18.54580153 | Q48: 25.20769231 | R48: 21.53228346 | S48: 21.53228346 | T48: 20.03613445 | U48: 15.66590909 | V48: 22.6 | W48: 15.66590909 | X48: 20.86153846 | Y48: 18.20076336 | Z48: 19.75275591 | AA48: 26.97984496 | AB48: 15.26793893 | AC48: 20.86153846 | AD48: 17.3780303 | AE48: 21.54661017 | AF48: 16.54057971 | AG48: 21.72403101 | AH48: 19.12307692 | AI48: 21.65114504 | AJ48: 21.73076923 | AK48: 24.41949153 | AL48: 22.42204724 | AM48: 25.96412214 | AN48: 20.25307692 | AO48: 19.94621212 | AP48: 16.51538462 | AQ48: 14.71627907 | AR48: 0 | AS48: 0 | AT48: 0 | AU48: 0 | AV48: 0 | AW48: 0 | AX48: 0 | AY48: 0 | AZ48: 0 | BA48: 0 | BB48: 0 | BC48: 0 | BD48: 0 | BE48: 0 | BF48: 0 | BG48: 0 | BH48: 0 | BI48: 0 | BJ48: 0 | BK48: 0 | BL48: 0 | BM48: 0 | BN48: 0 | BO48: 0 | BP48: 0 | BQ48: 0 | BR48: 0 | BS48: 0 | BT48: 0 | BU48: 0 | BV48: 0 | BW48: 0 | BX48: =IF(BX47="",0,(BX47-INDIRECT(CONCATENATE(BX46,"CR")))*113/INDIRECT(CONCATENATE(BX46,"SR"))) -> 0 | BY48: 0 | BZ48: 0 | CA48: 0 | CB48: 0 | CC48: 0 | CD48: 0 | CE48: 0 | CF48: 0 | CG48: 0 | CH48: 0 | CI48: 0 | CJ48: 0 | CK48: 0 | CL48: 0 | CM48: =IF(CM47="",0,(CM47-INDIRECT(CONCATENATE(CM46,"CR")))*113/INDIRECT(CONCATENATE(CM46,"SR"))) -> 0 | CN48: 0 | CO48: =IF(CO47="",0,(CO47-INDIRECT(CONCATENATE(CO46,"CR")))*113/INDIRECT(CONCATENATE(CO46,"SR"))) -> 0 | CP48: 0 | CQ48: =IF(CQ47="",0,(CQ47-INDIRECT(CONCATENATE(CQ46,"CR")))*113/INDIRECT(CONCATENATE(CQ46,"SR"))) -> 0 | CR48: 0 | CS48: =IF(CS47="",0,(CS47-INDIRECT(CONCATENATE(CS46,"CR")))*113/INDIRECT(CONCATENATE(CS46,"SR"))) -> 0 | CT48: 0 | CU48: =IF(CU47="",0,(CU47-INDIRECT(CONCATENATE(CU46,"CR")))*113/INDIRECT(CONCATENATE(CU46,"SR"))) -> 0 | CV48: 0 | CW48: =IF(CW47="",0,(CW47-INDIRECT(CONCATENATE(CW46,"CR")))*113/INDIRECT(CONCATENATE(CW46,"SR"))) -> 0
I49: New Hcap | J49: =J48-2 -> 14.6 | K49: =IF(K48>0,MIN(J48:K48)-2,J49) -> 14.6 | L49: =IF(L48>0,MIN(J48:L48)-2,K49) -> 14.6 | M49: =IF(M48>0,MIN(J48:M48)-1,L49) -> 15.6 | N49: =IF(N48>0,MIN(J48:N48),M49) -> 16.6 | O49: =IF(O48>0,AVERAGE(SMALL(IF(J48:O48>0,J48:O48),{1,2}))-1,N49) -> 16.65916031 | P49: =IF(P48>0,AVERAGE(SMALL(IF(J48:P48>0,J48:P48),{1,2})),O49) -> 17.57290076 | Q49: =IF(Q48>0,AVERAGE(SMALL(IF(J48:Q48>0,J48:Q48),{1,2})),P49) -> 17.57290076 | R49: =IF(R48>0,AVERAGE(SMALL(IF(J48:R48>0,J48:R48),{1,2,3})),Q49) -> 17.95470738 | S49: =IF(S48>0,AVERAGE(SMALL(IF(J48:S48>0,J48:S48),{1,2,3})),R49) -> 17.95470738 | T49: =IF(T48>0,AVERAGE(SMALL(IF(J48:T48>0,J48:T48),{1,2,3})),S49) -> 17.95470738 | U49: =IF(U48>0,AVERAGE(SMALL(IF(J48:U48>0,J48:U48),{1,2,3,4})),T49) -> 17.38250781 | V49: =IF(V48>0,AVERAGE(SMALL(IF(J48:V48>0,J48:V48),{1,2,3,4})),U49) -> 17.38250781 | W49: =IF(W48>0,AVERAGE(SMALL(IF(J48:W48>0,J48:W48),{1,2,3,4})),V49) -> 16.61940493 | X49: =IF(X48>0,AVERAGE(SMALL(IF(J48:X48>0,J48:X48),{1,2,3,4,5})),W49) -> 17.03918806 | Y49: =IF(Y48>0,AVERAGE(SMALL(IF(J48:Y48>0,J48:Y48),{1,2,3,4,5})),X49) -> 16.93567661 | Z49: =IF(Z48>0,AVERAGE(SMALL(IF(J48:Z48>0,J48:Z48),{1,2,3,4,5,6})),Y49) -> 17.23278395 | AA49: =IF(AA48>0,AVERAGE(SMALL(IF(J48:AA48>0,J48:AA48),{1,2,3,4,5,6})),Z49) -> 17.23278395 | AB49: =IF(AB48>0,AVERAGE(SMALL(IF(J48:AB48>0,J48:AB48),{1,2,3,4,5,6,7})),AA49) -> 16.9520918 | AC49: =IF(AC48>0,AVERAGE(SMALL(IF(J48:AC48>0,J48:AC48),{1,2,3,4,5,6,7,8})),AB49) -> 17.30217481 | AD49: =IF(AD48>0,AVERAGE(SMALL(IF(K48:AD48>0,K48:AD48),{1,2,3,4,5,6,7,8})),AC49) -> 17.3994286 | AE49: =IF(AE48>0,AVERAGE(SMALL(IF(L48:AE48>0,L48:AE48),{1,2,3,4,5,6,7,8})),AD49) -> 17.3994286 | AF49: =IF(AF48>0,AVERAGE(SMALL(IF(M48:AF48>0,M48:AF48),{1,2,3,4,5,6,7,8})),AE49) -> 16.99790658 | AG49: =IF(AG48>0,AVERAGE(SMALL(IF(N48:AG48>0,N48:AG48),{1,2,3,4,5,6,7,8})),AF49) -> 16.99790658 | AH49: =IF(AH48>0,AVERAGE(SMALL(IF(O48:AH48>0,O48:AH48),{1,2,3,4,5,6,7,8})),AG49) -> 16.99790658 | AI49: =IF(AI48>0,AVERAGE(SMALL(IF(P48:AI48>0,P48:AI48),{1,2,3,4,5,6,7,8})),AH49) -> 17.04850112 | AJ49: =IF(AJ48>0,AVERAGE(SMALL(IF(Q48:AJ48>0,Q48:AJ48),{1,2,3,4,5,6,7,8})),AI49) -> 17.19937041 | AK49: =IF(AK48>0,AVERAGE(SMALL(IF(R48:AK48>0,R48:AK48),{1,2,3,4,5,6,7,8})),AJ49) -> 17.19937041 | AL49: =IF(AL48>0,AVERAGE(SMALL(IF(S48:AL48>0,S48:AL48),{1,2,3,4,5,6,7,8})),AK49) -> 17.19937041 | AM49: =IF(AM48>0,AVERAGE(SMALL(IF(T48:AM48>0,T48:AM48),{1,2,3,4,5,6,7,8})),AL49) -> 17.19937041 | AN49: =IF(AN48>0,AVERAGE(SMALL(IF(U48:AN48>0,U48:AN48),{1,2,3,4,5,6,7,8})),AM49) -> 17.19937041 | AO49: =IF(AO48>0,AVERAGE(SMALL(IF(V48:AO48>0,V48:AO48),{1,2,3,4,5,6,7,8})),AN49) -> 17.73440829 | AP49: =IF(AP48>0,AVERAGE(SMALL(IF(W48:AP48>0,W48:AP48),{1,2,3,4,5,6,7,8})),AO49) -> 17.30555485 | AQ49: =IF(AQ48>0,AVERAGE(SMALL(IF(X48:AQ48>0,X48:AQ48),{1,2,3,4,5,6,7,8})),AP49) -> 17.1868511 | AR49: =IF(AR48>0,AVERAGE(SMALL(IF(Y48:AR48>0,Y48:AR48),{1,2,3,4,5,6,7,8})),AQ49) -> 17.1868511 | AS49: =IF(AS48>0,AVERAGE(SMALL(IF(Z48:AS48>0,Z48:AS48),{1,2,3,4,5,6,7,8})),AR49) -> 17.1868511 | AT49: =IF(AT48>0,AVERAGE(SMALL(IF(AA48:AT48>0,AA48:AT48),{1,2,3,4,5,6,7,8})),AS49) -> 17.1868511 | AU49: =IF(AU48>0,AVERAGE(SMALL(IF(AB48:AU48>0,AB48:AU48),{1,2,3,4,5,6,7,8})),AT49) -> 17.1868511 | AV49: =IF(AV48>0,AVERAGE(SMALL(IF(AC48:AV48>0,AC48:AV48),{1,2,3,4,5,6,7,8})),AU49) -> 17.1868511 | AW49: =IF(AW48>0,AVERAGE(SMALL(IF(AD48:AW48>0,AD48:AW48),{1,2,3,4,5,6,7,8})),AV49) -> 17.1868511 | AX49: =IF(AX48>0,AVERAGE(SMALL(IF(AE48:AX48>0,AE48:AX48),{1,2,3,4,5,6,7,8})),AW49) -> 17.1868511 | AY49: =IF(AY48>0,AVERAGE(SMALL(IF(AF48:AY48>0,AF48:AY48),{1,2,3,4,5,6,7,8})),AX49) -> 17.1868511 | AZ49: =IF(AZ48>0,AVERAGE(SMALL(IF(AG48:AZ48>0,AG48:AZ48),{1,2,3,4,5,6,7,8})),AY49) -> 17.1868511 | BA49: =IF(BA48>0,AVERAGE(SMALL(IF(AH48:BA48>0,AH48:BA48),{1,2,3,4,5,6,7,8})),AZ49) -> 17.1868511 | BB49: =IF(BB48>0,AVERAGE(SMALL(IF(AI48:BB48>0,AI48:BB48),{1,2,3,4,5,6,7,8})),BA49) -> 17.1868511 | BC49: =IF(BC48>0,AVERAGE(SMALL(IF(AJ48:BC48>0,AJ48:BC48),{1,2,3,4,5,6,7,8})),BB49) -> 17.1868511 | BD49: =IF(BD48>0,AVERAGE(SMALL(IF(AK48:BD48>0,AK48:BD48),{1,2,3,4,5,6,7,8})),BC49) -> 17.1868511 | BE49: =IF(BE48>0,AVERAGE(SMALL(IF(AL48:BE48>0,AL48:BE48),{1,2,3,4,5,6,7,8})),BD49) -> 17.1868511 | BF49: =IF(BF48>0,AVERAGE(SMALL(IF(AM48:BF48>0,AM48:BF48),{1,2,3,4,5,6,7,8})),BE49) -> 17.1868511 | BG49: =IF(BG48>0,AVERAGE(SMALL(IF(AN48:BG48>0,AN48:BG48),{1,2,3,4,5,6,7,8})),BF49) -> 17.1868511 | BH49: =IF(BH48>0,AVERAGE(SMALL(IF(AO48:BH48>0,AO48:BH48),{1,2,3,4,5,6,7,8})),BG49) -> 17.1868511 | BI49: =IF(BI48>0,AVERAGE(SMALL(IF(AP48:BI48>0,AP48:BI48),{1,2,3,4,5,6,7,8})),BH49) -> 17.1868511 | BJ49: =IF(BJ48>0,AVERAGE(SMALL(IF(AQ48:BJ48>0,AQ48:BJ48),{1,2,3,4,5,6,7,8})),BI49) -> 17.1868511 | BK49: =IF(BK48>0,AVERAGE(SMALL(IF(AR48:BK48>0,AR48:BK48),{1,2,3,4,5,6,7,8})),BJ49) -> 17.1868511 | BL49: =IF(BL48>0,AVERAGE(SMALL(IF(AS48:BL48>0,AS48:BL48),{1,2,3,4,5,6,7,8})),BK49) -> 17.1868511 | BM49: =IF(BM48>0,AVERAGE(SMALL(IF(AT48:BM48>0,AT48:BM48),{1,2,3,4,5,6,7,8})),BL49) -> 17.1868511 | BN49: =IF(BN48>0,AVERAGE(SMALL(IF(AU48:BN48>0,AU48:BN48),{1,2,3,4,5,6,7,8})),BM49) -> 17.1868511 | BO49: =IF(BO48>0,AVERAGE(SMALL(IF(AV48:BO48>0,AV48:BO48),{1,2,3,4,5,6,7,8})),BN49) -> 17.1868511 | BP49: =IF(BP48>0,AVERAGE(SMALL(IF(AW48:BP48>0,AW48:BP48),{1,2,3,4,5,6,7,8})),BO49) -> 17.1868511 | BQ49: =IF(BQ48>0,AVERAGE(SMALL(IF(AX48:BQ48>0,AX48:BQ48),{1,2,3,4,5,6,7,8})),BP49) -> 17.1868511 | BR49: =IF(BR48>0,AVERAGE(SMALL(IF(AY48:BR48>0,AY48:BR48),{1,2,3,4,5,6,7,8})),BQ49) -> 17.1868511 | BS49: =IF(BS48>0,AVERAGE(SMALL(IF(AZ48:BS48>0,AZ48:BS48),{1,2,3,4,5,6,7,8})),BR49) -> 17.1868511 | BT49: =IF(BT48>0,AVERAGE(SMALL(IF(BA48:BT48>0,BA48:BT48),{1,2,3,4,5,6,7,8})),BS49) -> 17.1868511 | BU49: =IF(BU48>0,AVERAGE(SMALL(IF(BB48:BU48>0,BB48:BU48),{1,2,3,4,5,6,7,8})),BT49) -> 17.1868511 | BV49: =IF(BV48>0,AVERAGE(SMALL(IF(BC48:BV48>0,BC48:BV48),{1,2,3,4,5,6,7,8})),BU49) -> 17.1868511 | BW49: =IF(BW48>0,AVERAGE(SMALL(IF(BD48:BW48>0,BD48:BW48),{1,2,3,4,5,6,7,8})),BV49) -> 17.1868511 | BX49: =IF(BX48>0,AVERAGE(SMALL(IF(BE48:BX48>0,BE48:BX48),{1,2,3,4,5,6,7,8})),BW49) -> 17.1868511 | BY49: =IF(BY48>0,AVERAGE(SMALL(IF(BF48:BY48>0,BF48:BY48),{1,2,3,4,5,6,7,8})),BX49) -> 17.1868511 | BZ49: =IF(BZ48>0,AVERAGE(SMALL(IF(BG48:BZ48>0,BG48:BZ48),{1,2,3,4,5,6,7,8})),BY49) -> 17.1868511 | CA49: =IF(CA48>0,AVERAGE(SMALL(IF(BH48:CA48>0,BH48:CA48),{1,2,3,4,5,6,7,8})),BZ49) -> 17.1868511 | CB49: =IF(CB48>0,AVERAGE(SMALL(IF(BI48:CB48>0,BI48:CB48),{1,2,3,4,5,6,7,8})),CA49) -> 17.1868511 | CC49: =IF(CC48>0,AVERAGE(SMALL(IF(BJ48:CC48>0,BJ48:CC48),{1,2,3,4,5,6,7,8})),CB49) -> 17.1868511 | CD49: =IF(CD48>0,AVERAGE(SMALL(IF(BK48:CD48>0,BK48:CD48),{1,2,3,4,5,6,7,8})),CC49) -> 17.1868511 | CE49: =IF(CE48>0,AVERAGE(SMALL(IF(BL48:CE48>0,BL48:CE48),{1,2,3,4,5,6,7,8})),CD49) -> 17.1868511 | CF49: =IF(CF48>0,AVERAGE(SMALL(IF(BM48:CF48>0,BM48:CF48),{1,2,3,4,5,6,7,8})),CE49) -> 17.1868511 | CG49: =IF(CG48>0,AVERAGE(SMALL(IF(BN48:CG48>0,BN48:CG48),{1,2,3,4,5,6,7,8})),CF49) -> 17.1868511 | CH49: =IF(CH48>0,AVERAGE(SMALL(IF(BO48:CH48>0,BO48:CH48),{1,2,3,4,5,6,7,8})),CG49) -> 17.1868511 | CI49: =IF(CI48>0,AVERAGE(SMALL(IF(BP48:CI48>0,BP48:CI48),{1,2,3,4,5,6,7,8})),CH49) -> 17.1868511 | CJ49: =IF(CJ48>0,AVERAGE(SMALL(IF(BQ48:CJ48>0,BQ48:CJ48),{1,2,3,4,5,6,7,8})),CI49) -> 17.1868511 | CK49: =IF(CK48>0,AVERAGE(SMALL(IF(BR48:CK48>0,BR48:CK48),{1,2,3,4,5,6,7,8})),CJ49) -> 17.1868511 | CL49: =IF(CL48>0,AVERAGE(SMALL(IF(BS48:CL48>0,BS48:CL48),{1,2,3,4,5,6,7,8})),CK49) -> 17.1868511 | CM49: =IF(CM48>0,AVERAGE(SMALL(IF(BT48:CM48>0,BT48:CM48),{1,2,3,4,5,6,7,8})),CL49) -> 17.1868511 | CN49: =IF(CN48>0,AVERAGE(SMALL(IF(BU48:CN48>0,BU48:CN48),{1,2,3,4,5,6,7,8})),CM49) -> 17.1868511 | CO49: =IF(CO48>0,AVERAGE(SMALL(IF(BV48:CO48>0,BV48:CO48),{1,2,3,4,5,6,7,8})),CN49) -> 17.1868511 | CP49: =IF(CP48>0,AVERAGE(SMALL(IF(BW48:CP48>0,BW48:CP48),{1,2,3,4,5,6,7,8})),CO49) -> 17.1868511 | CQ49: =IF(CQ48>0,AVERAGE(SMALL(IF(BX48:CQ48>0,BX48:CQ48),{1,2,3,4,5,6,7,8})),CP49) -> 17.1868511 | CR49: =IF(CR48>0,AVERAGE(SMALL(IF(BY48:CR48>0,BY48:CR48),{1,2,3,4,5,6,7,8})),CQ49) -> 17.1868511 | CS49: =IF(CS48>0,AVERAGE(SMALL(IF(BZ48:CS48>0,BZ48:CS48),{1,2,3,4,5,6,7,8})),CR49) -> 17.1868511 | CT49: =IF(CT48>0,AVERAGE(SMALL(IF(CA48:CT48>0,CA48:CT48),{1,2,3,4,5,6,7,8})),CS49) -> 17.1868511 | CU49: =IF(CU48>0,AVERAGE(SMALL(IF(CB48:CU48>0,CB48:CU48),{1,2,3,4,5,6,7,8})),CT49) -> 17.1868511 | CV49: =IF(CV48>0,AVERAGE(SMALL(IF(CC48:CV48>0,CC48:CV48),{1,2,3,4,5,6,7,8})),CU49) -> 17.1868511 | CW49: =IF(CW48>0,AVERAGE(SMALL(IF(CD48:CW48>0,CD48:CW48),{1,2,3,4,5,6,7,8})),CV49) -> 17.1868511
I50: Low Hcap | AC50: =MIN($M49:AC49) -> 15.6 | AD50: =MIN($M49:AD49) -> 15.6 | AE50: =MIN($O49:AE49) -> 16.61940493 | AF50: =MIN($O49:AF49) -> 16.61940493 | AG50: =MIN($O49:AG49) -> 16.61940493 | AH50: =MIN($P49:AH49) -> 16.61940493 | AI50: =MIN($Q49:AI49) -> 16.61940493 | AJ50: =MIN($Q49:AJ49) -> 16.61940493 | AK50: =MIN($Z49:AK49) -> 16.9520918 | AL50: =MIN($Z49:AL49) -> 16.9520918 | AM50: =MIN($AD49:AM49) -> 16.99790658 | AN50: =MIN($AE49:AN49) -> 16.99790658 | AO50: =MIN($AK49:AO49) -> 17.19937041 | AP50: =MIN($AL49:AP49) -> 17.19937041 | AQ50: =MIN($AM49:AQ49) -> 17.1868511 | AR50: =MIN($AM49:AR49) -> 17.1868511 | AS50: =MIN($AM49:AS49) -> 17.1868511 | AT50: =MIN($AM49:AT49) -> 17.1868511 | AU50: =MIN($AM49:AU49) -> 17.1868511 | AV50: =MIN($AM49:AV49) -> 17.1868511 | AW50: =MIN($AM49:AW49) -> 17.1868511 | AX50: =MIN($AM49:AX49) -> 17.1868511 | AY50: =MIN($AM49:AY49) -> 17.1868511 | AZ50: =MIN($AM49:AZ49) -> 17.1868511 | BA50: =MIN($AM49:BA49) -> 17.1868511 | BB50: =MIN($AM49:BB49) -> 17.1868511 | BC50: =MIN($AM49:BC49) -> 17.1868511 | BD50: =MIN($AM49:BD49) -> 17.1868511 | BE50: =MIN($AM49:BE49) -> 17.1868511 | BF50: =MIN($AM49:BF49) -> 17.1868511 | BG50: =MIN($AM49:BG49) -> 17.1868511 | BH50: =MIN($AM49:BH49) -> 17.1868511 | BI50: =MIN($AM49:BI49) -> 17.1868511 | BJ50: =MIN($AM49:BJ49) -> 17.1868511 | BK50: =MIN($AM49:BK49) -> 17.1868511 | BL50: =MIN($AM49:BL49) -> 17.1868511 | BM50: =MIN($AM49:BM49) -> 17.1868511 | BN50: =MIN($AM49:BN49) -> 17.1868511 | BO50: =MIN($AM49:BO49) -> 17.1868511 | BP50: =MIN($AM49:BP49) -> 17.1868511 | BQ50: =MIN($AM49:BQ49) -> 17.1868511 | BR50: =MIN($AM49:BR49) -> 17.1868511 | BS50: =MIN($AM49:BS49) -> 17.1868511 | BT50: =MIN($AM49:BT49) -> 17.1868511 | BU50: =MIN($AM49:BU49) -> 17.1868511 | BV50: =MIN($AM49:BV49) -> 17.1868511 | BW50: =MIN($AM49:BW49) -> 17.1868511 | BX50: =MIN($AM49:BX49) -> 17.1868511 | BY50: =MIN($AM49:BY49) -> 17.1868511 | BZ50: =MIN($AM49:BZ49) -> 17.1868511 | CA50: =MIN($AM49:CA49) -> 17.1868511 | CB50: =MIN($AM49:CB49) -> 17.1868511 | CC50: =MIN($AM49:CC49) -> 17.1868511 | CD50: =MIN($AM49:CD49) -> 17.1868511 | CE50: =MIN($AM49:CE49) -> 17.1868511 | CF50: =MIN($AM49:CF49) -> 17.1868511 | CG50: =MIN($AM49:CG49) -> 17.1868511 | CH50: =MIN($AM49:CH49) -> 17.1868511 | CI50: =MIN($AM49:CI49) -> 17.1868511 | CJ50: =MIN($AM49:CJ49) -> 17.1868511 | CK50: =MIN($AM49:CK49) -> 17.1868511 | CL50: =MIN($AM49:CL49) -> 17.1868511 | CM50: =MIN($AM49:CM49) -> 17.1868511 | CN50: =MIN($AM49:CN49) -> 17.1868511 | CO50: =MIN($AM49:CO49) -> 17.1868511 | CP50: =MIN($AM49:CP49) -> 17.1868511 | CQ50: =MIN($AM49:CQ49) -> 17.1868511 | CR50: =MIN($AM49:CR49) -> 17.1868511 | CS50: =MIN($AM49:CS49) -> 17.1868511 | CT50: =MIN($AM49:CT49) -> 17.1868511 | CU50: =MIN($AM49:CU49) -> 17.1868511 | CV50: =MIN($AM49:CV49) -> 17.1868511 | CW50: =MIN($AM49:CW49) -> 17.1868511
B51: Brown | C51: Martin | D51: 17.9 | F51: =IF(H51<4,"Y",) -> Y | G51: 2000 | H51: =COUNT(J51:CX51) -> 2 | I51: Date | K51: 2020-06-28 | L51: 2021-07-11 | CY51: =IF(CW55>$DD$1,36,CW55) -> 15.9 | CZ51: 15.9 | DA51: =CZ51-CY51 -> 0
I52: Course | K52: ErdingHG | L52: PfaffingHG
I53: Ad Gr | K53: 101 | L53: 102
I54: SD | J54: 17.9 | K54: =IF(K53="",0,(K53-INDIRECT(CONCATENATE(K52,"CR")))*113/INDIRECT(CONCATENATE(K52,"SR"))) -> 26.07692308 | L54: 26.07692308 | M54: 0 | N54: 0 | O54: 0 | P54: 0 | Q54: 0 | R54: 0 | S54: 0 | T54: 0 | U54: 0 | V54: 0 | W54: 0 | X54: 0 | Y54: 0 | Z54: 0 | AA54: 0 | AB54: 0 | AC54: 0 | AD54: 0 | AE54: 0 | AF54: 0 | AG54: 0 | AH54: 0 | AI54: 0 | AJ54: 0 | AK54: 0 | AL54: 0 | AM54: 0 | AN54: 0 | AO54: 0 | AP54: 0 | AQ54: 0 | AR54: 0 | AS54: 0 | AT54: 0 | AU54: 0 | AV54: 0 | AW54: 0 | AX54: 0 | AY54: 0 | AZ54: 0 | BA54: 0 | BB54: 0 | BC54: 0 | BD54: 0 | BE54: 0 | BF54: 0 | BG54: 0 | BH54: 0 | BI54: 0 | BJ54: 0 | BK54: 0 | BL54: 0 | BM54: 0 | BN54: 0 | BO54: 0 | BP54: 0 | BQ54: 0 | BR54: 0 | BS54: 0 | BT54: 0 | BU54: 0 | BV54: 0 | BW54: =IF(BW53="",0,(BW53-INDIRECT(CONCATENATE(BW52,"CR")))*113/INDIRECT(CONCATENATE(BW52,"SR"))) -> 0 | BX54: 0 | BY54: 0 | BZ54: 0 | CA54: 0 | CB54: 0 | CC54: 0 | CD54: 0 | CE54: 0 | CF54: 0 | CG54: 0 | CH54: 0 | CI54: 0 | CJ54: 0 | CK54: 0 | CL54: 0 | CM54: =IF(CM53="",0,(CM53-INDIRECT(CONCATENATE(CM52,"CR")))*113/INDIRECT(CONCATENATE(CM52,"SR"))) -> 0 | CN54: 0 | CO54: =IF(CO53="",0,(CO53-INDIRECT(CONCATENATE(CO52,"CR")))*113/INDIRECT(CONCATENATE(CO52,"SR"))) -> 0 | CP54: 0 | CQ54: =IF(CQ53="",0,(CQ53-INDIRECT(CONCATENATE(CQ52,"CR")))*113/INDIRECT(CONCATENATE(CQ52,"SR"))) -> 0 | CR54: 0 | CS54: =IF(CS53="",0,(CS53-INDIRECT(CONCATENATE(CS52,"CR")))*113/INDIRECT(CONCATENATE(CS52,"SR"))) -> 0 | CT54: 0 | CU54: =IF(CU53="",0,(CU53-INDIRECT(CONCATENATE(CU52,"CR")))*113/INDIRECT(CONCATENATE(CU52,"SR"))) -> 0 | CV54: 0 | CW54: =IF(CW53="",0,(CW53-INDIRECT(CONCATENATE(CW52,"CR")))*113/INDIRECT(CONCATENATE(CW52,"SR"))) -> 0
I55: New Hcap | J55: =J54-2 -> 15.9 | K55: =IF(K54>0,MIN(J54:K54)-2,J55) -> 15.9 | L55: =IF(L54>0,MIN(J54:L54)-2,K55) -> 15.9 | M55: =IF(M54>0,MIN(J54:M54)-1,L55) -> 15.9 | N55: =IF(N54>0,MIN(J54:N54),M55) -> 15.9 | O55: =IF(O54>0,AVERAGE(SMALL(IF(J54:O54>0,J54:O54),{1,2}))-1,N55) -> 15.9 | P55: =IF(P54>0,AVERAGE(SMALL(IF(J54:P54>0,J54:P54),{1,2})),O55) -> 15.9 | Q55: =IF(Q54>0,AVERAGE(SMALL(IF(J54:Q54>0,J54:Q54),{1,2})),P55) -> 15.9 | R55: =IF(R54>0,AVERAGE(SMALL(IF(J54:R54>0,J54:R54),{1,2,3})),Q55) -> 15.9 | S55: =IF(S54>0,AVERAGE(SMALL(IF(J54:S54>0,J54:S54),{1,2,3})),R55) -> 15.9 | T55: =IF(T54>0,AVERAGE(SMALL(IF(J54:T54>0,J54:T54),{1,2,3})),S55) -> 15.9 | U55: =IF(U54>0,AVERAGE(SMALL(IF(J54:U54>0,J54:U54),{1,2,3,4})),T55) -> 15.9 | V55: =IF(V54>0,AVERAGE(SMALL(IF(J54:V54>0,J54:V54),{1,2,3,4})),U55) -> 15.9 | W55: =IF(W54>0,AVERAGE(SMALL(IF(J54:W54>0,J54:W54),{1,2,3,4})),V55) -> 15.9 | X55: =IF(X54>0,AVERAGE(SMALL(IF(J54:X54>0,J54:X54),{1,2,3,4,5})),W55) -> 15.9 | Y55: =IF(Y54>0,AVERAGE(SMALL(IF(J54:Y54>0,J54:Y54),{1,2,3,4,5})),X55) -> 15.9 | Z55: =IF(Z54>0,AVERAGE(SMALL(IF(J54:Z54>0,J54:Z54),{1,2,3,4,5,6})),Y55) -> 15.9 | AA55: =IF(AA54>0,AVERAGE(SMALL(IF(J54:AA54>0,J54:AA54),{1,2,3,4,5,6})),Z55) -> 15.9 | AB55: =IF(AB54>0,AVERAGE(SMALL(IF(J54:AB54>0,J54:AB54),{1,2,3,4,5,6,7})),AA55) -> 15.9 | AC55: =IF(AC54>0,AVERAGE(SMALL(IF(J54:AC54>0,J54:AC54),{1,2,3,4,5,6,7,8})),AB55) -> 15.9 | AD55: =IF(AD54>0,AVERAGE(SMALL(IF(K54:AD54>0,K54:AD54),{1,2,3,4,5,6,7,8})),AC55) -> 15.9 | AE55: =IF(AE54>0,AVERAGE(SMALL(IF(L54:AE54>0,L54:AE54),{1,2,3,4,5,6,7,8})),AD55) -> 15.9 | AF55: =IF(AF54>0,AVERAGE(SMALL(IF(M54:AF54>0,M54:AF54),{1,2,3,4,5,6,7,8})),AE55) -> 15.9 | AG55: =IF(AG54>0,AVERAGE(SMALL(IF(N54:AG54>0,N54:AG54),{1,2,3,4,5,6,7,8})),AF55) -> 15.9 | AH55: =IF(AH54>0,AVERAGE(SMALL(IF(O54:AH54>0,O54:AH54),{1,2,3,4,5,6,7,8})),AG55) -> 15.9 | AI55: =IF(AI54>0,AVERAGE(SMALL(IF(P54:AI54>0,P54:AI54),{1,2,3,4,5,6,7,8})),AH55) -> 15.9 | AJ55: =IF(AJ54>0,AVERAGE(SMALL(IF(Q54:AJ54>0,Q54:AJ54),{1,2,3,4,5,6,7,8})),AI55) -> 15.9 | AK55: =IF(AK54>0,AVERAGE(SMALL(IF(R54:AK54>0,R54:AK54),{1,2,3,4,5,6,7,8})),AJ55) -> 15.9 | AL55: =IF(AL54>0,AVERAGE(SMALL(IF(S54:AL54>0,S54:AL54),{1,2,3,4,5,6,7,8})),AK55) -> 15.9 | AM55: =IF(AM54>0,AVERAGE(SMALL(IF(T54:AM54>0,T54:AM54),{1,2,3,4,5,6,7,8})),AL55) -> 15.9 | AN55: =IF(AN54>0,AVERAGE(SMALL(IF(U54:AN54>0,U54:AN54),{1,2,3,4,5,6,7,8})),AM55) -> 15.9 | AO55: =IF(AO54>0,AVERAGE(SMALL(IF(V54:AO54>0,V54:AO54),{1,2,3,4,5,6,7,8})),AN55) -> 15.9 | AP55: =IF(AP54>0,AVERAGE(SMALL(IF(W54:AP54>0,W54:AP54),{1,2,3,4,5,6,7,8})),AO55) -> 15.9 | AQ55: =IF(AQ54>0,AVERAGE(SMALL(IF(X54:AQ54>0,X54:AQ54),{1,2,3,4,5,6,7,8})),AP55) -> 15.9 | AR55: =IF(AR54>0,AVERAGE(SMALL(IF(Y54:AR54>0,Y54:AR54),{1,2,3,4,5,6,7,8})),AQ55) -> 15.9 | AS55: =IF(AS54>0,AVERAGE(SMALL(IF(Z54:AS54>0,Z54:AS54),{1,2,3,4,5,6,7,8})),AR55) -> 15.9 | AT55: =IF(AT54>0,AVERAGE(SMALL(IF(AA54:AT54>0,AA54:AT54),{1,2,3,4,5,6,7,8})),AS55) -> 15.9 | AU55: =IF(AU54>0,AVERAGE(SMALL(IF(AB54:AU54>0,AB54:AU54),{1,2,3,4,5,6,7,8})),AT55) -> 15.9 | AV55: =IF(AV54>0,AVERAGE(SMALL(IF(AC54:AV54>0,AC54:AV54),{1,2,3,4,5,6,7,8})),AU55) -> 15.9 | AW55: =IF(AW54>0,AVERAGE(SMALL(IF(AD54:AW54>0,AD54:AW54),{1,2,3,4,5,6,7,8})),AV55) -> 15.9 | AX55: =IF(AX54>0,AVERAGE(SMALL(IF(AE54:AX54>0,AE54:AX54),{1,2,3,4,5,6,7,8})),AW55) -> 15.9 | AY55: =IF(AY54>0,AVERAGE(SMALL(IF(AF54:AY54>0,AF54:AY54),{1,2,3,4,5,6,7,8})),AX55) -> 15.9 | AZ55: =IF(AZ54>0,AVERAGE(SMALL(IF(AG54:AZ54>0,AG54:AZ54),{1,2,3,4,5,6,7,8})),AY55) -> 15.9 | BA55: =IF(BA54>0,AVERAGE(SMALL(IF(AH54:BA54>0,AH54:BA54),{1,2,3,4,5,6,7,8})),AZ55) -> 15.9 | BB55: =IF(BB54>0,AVERAGE(SMALL(IF(AI54:BB54>0,AI54:BB54),{1,2,3,4,5,6,7,8})),BA55) -> 15.9 | BC55: =IF(BC54>0,AVERAGE(SMALL(IF(AJ54:BC54>0,AJ54:BC54),{1,2,3,4,5,6,7,8})),BB55) -> 15.9 | BD55: =IF(BD54>0,AVERAGE(SMALL(IF(AK54:BD54>0,AK54:BD54),{1,2,3,4,5,6,7,8})),BC55) -> 15.9 | BE55: =IF(BE54>0,AVERAGE(SMALL(IF(AL54:BE54>0,AL54:BE54),{1,2,3,4,5,6,7,8})),BD55) -> 15.9 | BF55: =IF(BF54>0,AVERAGE(SMALL(IF(AM54:BF54>0,AM54:BF54),{1,2,3,4,5,6,7,8})),BE55) -> 15.9 | BG55: =IF(BG54>0,AVERAGE(SMALL(IF(AN54:BG54>0,AN54:BG54),{1,2,3,4,5,6,7,8})),BF55) -> 15.9 | BH55: =IF(BH54>0,AVERAGE(SMALL(IF(AO54:BH54>0,AO54:BH54),{1,2,3,4,5,6,7,8})),BG55) -> 15.9 | BI55: =IF(BI54>0,AVERAGE(SMALL(IF(AP54:BI54>0,AP54:BI54),{1,2,3,4,5,6,7,8})),BH55) -> 15.9 | BJ55: =IF(BJ54>0,AVERAGE(SMALL(IF(AQ54:BJ54>0,AQ54:BJ54),{1,2,3,4,5,6,7,8})),BI55) -> 15.9 | BK55: =IF(BK54>0,AVERAGE(SMALL(IF(AR54:BK54>0,AR54:BK54),{1,2,3,4,5,6,7,8})),BJ55) -> 15.9 | BL55: =IF(BL54>0,AVERAGE(SMALL(IF(AS54:BL54>0,AS54:BL54),{1,2,3,4,5,6,7,8})),BK55) -> 15.9 | BM55: =IF(BM54>0,AVERAGE(SMALL(IF(AT54:BM54>0,AT54:BM54),{1,2,3,4,5,6,7,8})),BL55) -> 15.9 | BN55: =IF(BN54>0,AVERAGE(SMALL(IF(AU54:BN54>0,AU54:BN54),{1,2,3,4,5,6,7,8})),BM55) -> 15.9 | BO55: =IF(BO54>0,AVERAGE(SMALL(IF(AV54:BO54>0,AV54:BO54),{1,2,3,4,5,6,7,8})),BN55) -> 15.9 | BP55: =IF(BP54>0,AVERAGE(SMALL(IF(AW54:BP54>0,AW54:BP54),{1,2,3,4,5,6,7,8})),BO55) -> 15.9 | BQ55: =IF(BQ54>0,AVERAGE(SMALL(IF(AX54:BQ54>0,AX54:BQ54),{1,2,3,4,5,6,7,8})),BP55) -> 15.9 | BR55: =IF(BR54>0,AVERAGE(SMALL(IF(AY54:BR54>0,AY54:BR54),{1,2,3,4,5,6,7,8})),BQ55) -> 15.9 | BS55: =IF(BS54>0,AVERAGE(SMALL(IF(AZ54:BS54>0,AZ54:BS54),{1,2,3,4,5,6,7,8})),BR55) -> 15.9 | BT55: =IF(BT54>0,AVERAGE(SMALL(IF(BA54:BT54>0,BA54:BT54),{1,2,3,4,5,6,7,8})),BS55) -> 15.9 | BU55: =IF(BU54>0,AVERAGE(SMALL(IF(BB54:BU54>0,BB54:BU54),{1,2,3,4,5,6,7,8})),BT55) -> 15.9 | BV55: =IF(BV54>0,AVERAGE(SMALL(IF(BC54:BV54>0,BC54:BV54),{1,2,3,4,5,6,7,8})),BU55) -> 15.9 | BW55: =IF(BW54>0,AVERAGE(SMALL(IF(BD54:BW54>0,BD54:BW54),{1,2,3,4,5,6,7,8})),BV55) -> 15.9 | BX55: =IF(BX54>0,AVERAGE(SMALL(IF(BE54:BX54>0,BE54:BX54),{1,2,3,4,5,6,7,8})),BW55) -> 15.9 | BY55: =IF(BY54>0,AVERAGE(SMALL(IF(BF54:BY54>0,BF54:BY54),{1,2,3,4,5,6,7,8})),BX55) -> 15.9 | BZ55: =IF(BZ54>0,AVERAGE(SMALL(IF(BG54:BZ54>0,BG54:BZ54),{1,2,3,4,5,6,7,8})),BY55) -> 15.9 | CA55: =IF(CA54>0,AVERAGE(SMALL(IF(BH54:CA54>0,BH54:CA54),{1,2,3,4,5,6,7,8})),BZ55) -> 15.9 | CB55: =IF(CB54>0,AVERAGE(SMALL(IF(BI54:CB54>0,BI54:CB54),{1,2,3,4,5,6,7,8})),CA55) -> 15.9 | CC55: =IF(CC54>0,AVERAGE(SMALL(IF(BJ54:CC54>0,BJ54:CC54),{1,2,3,4,5,6,7,8})),CB55) -> 15.9 | CD55: =IF(CD54>0,AVERAGE(SMALL(IF(BK54:CD54>0,BK54:CD54),{1,2,3,4,5,6,7,8})),CC55) -> 15.9 | CE55: =IF(CE54>0,AVERAGE(SMALL(IF(BL54:CE54>0,BL54:CE54),{1,2,3,4,5,6,7,8})),CD55) -> 15.9 | CF55: =IF(CF54>0,AVERAGE(SMALL(IF(BM54:CF54>0,BM54:CF54),{1,2,3,4,5,6,7,8})),CE55) -> 15.9 | CG55: =IF(CG54>0,AVERAGE(SMALL(IF(BN54:CG54>0,BN54:CG54),{1,2,3,4,5,6,7,8})),CF55) -> 15.9 | CH55: =IF(CH54>0,AVERAGE(SMALL(IF(BO54:CH54>0,BO54:CH54),{1,2,3,4,5,6,7,8})),CG55) -> 15.9 | CI55: =IF(CI54>0,AVERAGE(SMALL(IF(BP54:CI54>0,BP54:CI54),{1,2,3,4,5,6,7,8})),CH55) -> 15.9 | CJ55: =IF(CJ54>0,AVERAGE(SMALL(IF(BQ54:CJ54>0,BQ54:CJ54),{1,2,3,4,5,6,7,8})),CI55) -> 15.9 | CK55: =IF(CK54>0,AVERAGE(SMALL(IF(BR54:CK54>0,BR54:CK54),{1,2,3,4,5,6,7,8})),CJ55) -> 15.9 | CL55: =IF(CL54>0,AVERAGE(SMALL(IF(BS54:CL54>0,BS54:CL54),{1,2,3,4,5,6,7,8})),CK55) -> 15.9 | CM55: =IF(CM54>0,AVERAGE(SMALL(IF(BT54:CM54>0,BT54:CM54),{1,2,3,4,5,6,7,8})),CL55) -> 15.9 | CN55: =IF(CN54>0,AVERAGE(SMALL(IF(BU54:CN54>0,BU54:CN54),{1,2,3,4,5,6,7,8})),CM55) -> 15.9 | CO55: =IF(CO54>0,AVERAGE(SMALL(IF(BV54:CO54>0,BV54:CO54),{1,2,3,4,5,6,7,8})),CN55) -> 15.9 | CP55: =IF(CP54>0,AVERAGE(SMALL(IF(BW54:CP54>0,BW54:CP54),{1,2,3,4,5,6,7,8})),CO55) -> 15.9 | CQ55: =IF(CQ54>0,AVERAGE(SMALL(IF(BX54:CQ54>0,BX54:CQ54),{1,2,3,4,5,6,7,8})),CP55) -> 15.9 | CR55: =IF(CR54>0,AVERAGE(SMALL(IF(BY54:CR54>0,BY54:CR54),{1,2,3,4,5,6,7,8})),CQ55) -> 15.9 | CS55: =IF(CS54>0,AVERAGE(SMALL(IF(BZ54:CS54>0,BZ54:CS54),{1,2,3,4,5,6,7,8})),CR55) -> 15.9 | CT55: =IF(CT54>0,AVERAGE(SMALL(IF(CA54:CT54>0,CA54:CT54),{1,2,3,4,5,6,7,8})),CS55) -> 15.9 | CU55: =IF(CU54>0,AVERAGE(SMALL(IF(CB54:CU54>0,CB54:CU54),{1,2,3,4,5,6,7,8})),CT55) -> 15.9 | CV55: =IF(CV54>0,AVERAGE(SMALL(IF(CC54:CV54>0,CC54:CV54),{1,2,3,4,5,6,7,8})),CU55) -> 15.9 | CW55: =IF(CW54>0,AVERAGE(SMALL(IF(CD54:CW54>0,CD54:CW54),{1,2,3,4,5,6,7,8})),CV55) -> 15.9
I56: Low Hcap | AC56: =MIN($J55:AC55) -> 15.9 | AD56: =MIN($J55:AD55) -> 15.9 | AE56: =MIN($J55:AE55) -> 15.9 | AF56: =MIN($J55:AF55) -> 15.9 | AG56: =MIN($J55:AG55) -> 15.9 | AH56: =MIN($J55:AH55) -> 15.9 | AI56: =MIN($J55:AI55) -> 15.9 | AJ56: =MIN($J55:AJ55) -> 15.9 | AK56: =MIN($J55:AK55) -> 15.9 | AL56: =MIN($J55:AL55) -> 15.9 | AM56: =MIN($J55:AM55) -> 15.9 | AN56: =MIN($J55:AN55) -> 15.9 | AO56: =MIN($J55:AO55) -> 15.9 | AP56: =MIN($J55:AP55) -> 15.9 | AQ56: =MIN($J55:AQ55) -> 15.9 | AR56: =MIN($J55:AR55) -> 15.9 | AS56: =MIN($J55:AS55) -> 15.9 | AT56: =MIN($J55:AT55) -> 15.9 | AU56: =MIN($J55:AU55) -> 15.9 | AV56: =MIN($J55:AV55) -> 15.9 | AW56: =MIN($J55:AW55) -> 15.9 | AX56: =MIN($J55:AX55) -> 15.9 | AY56: =MIN($J55:AY55) -> 15.9 | AZ56: =MIN($J55:AZ55) -> 15.9 | BA56: =MIN($J55:BA55) -> 15.9 | BB56: =MIN($J55:BB55) -> 15.9 | BC56: =MIN($J55:BC55) -> 15.9 | BD56: =MIN($J55:BD55) -> 15.9 | BE56: =MIN($J55:BE55) -> 15.9 | BF56: =MIN($J55:BF55) -> 15.9 | BG56: =MIN($J55:BG55) -> 15.9 | BH56: =MIN($J55:BH55) -> 15.9 | BI56: =MIN($J55:BI55) -> 15.9 | BJ56: =MIN($J55:BJ55) -> 15.9 | BK56: =MIN($J55:BK55) -> 15.9 | BL56: =MIN($J55:BL55) -> 15.9 | BM56: =MIN($J55:BM55) -> 15.9 | BN56: =MIN($J55:BN55) -> 15.9 | BO56: =MIN($J55:BO55) -> 15.9 | BP56: =MIN($J55:BP55) -> 15.9 | BQ56: =MIN($J55:BQ55) -> 15.9 | BR56: =MIN($J55:BR55) -> 15.9 | BS56: =MIN($J55:BS55) -> 15.9 | BT56: =MIN($J55:BT55) -> 15.9 | BU56: =MIN($J55:BU55) -> 15.9 | BV56: =MIN($J55:BV55) -> 15.9 | BW56: =MIN($J55:BW55) -> 15.9 | BX56: =MIN($J55:BX55) -> 15.9 | BY56: =MIN($J55:BY55) -> 15.9 | BZ56: =MIN($J55:BZ55) -> 15.9 | CA56: =MIN($J55:CA55) -> 15.9 | CB56: =MIN($J55:CB55) -> 15.9 | CC56: =MIN($J55:CC55) -> 15.9 | CD56: =MIN($J55:CD55) -> 15.9 | CE56: =MIN($J55:CE55) -> 15.9 | CF56: =MIN($J55:CF55) -> 15.9 | CG56: =MIN($J55:CG55) -> 15.9 | CH56: =MIN($J55:CH55) -> 15.9 | CI56: =MIN($J55:CI55) -> 15.9 | CJ56: =MIN($J55:CJ55) -> 15.9 | CK56: =MIN($J55:CK55) -> 15.9 | CL56: =MIN($J55:CL55) -> 15.9 | CM56: =MIN($J55:CM55) -> 15.9 | CN56: =MIN($J55:CN55) -> 15.9 | CO56: =MIN($J55:CO55) -> 15.9 | CP56: =MIN($J55:CP55) -> 15.9 | CQ56: =MIN($J55:CQ55) -> 15.9 | CR56: =MIN($J55:CR55) -> 15.9 | CS56: =MIN($J55:CS55) -> 15.9 | CT56: =MIN($J55:CT55) -> 15.9 | CU56: =MIN($J55:CU55) -> 15.9 | CV56: =MIN($J55:CV55) -> 15.9 | CW56: =MIN($J55:CW55) -> 15.9
B57: Bull | C57: Greg | D57: 18 | F57: =IF(H57<4,"Y",) -> Y | G57: 2010 | H57: =COUNT(J57:CX57) -> 0 | I57: Date | CY57: =IF(CW61>$DD$1,36,CW61) -> 16 | CZ57: 16 | DA57: =CZ57-CY57 -> 0
I58: Course
I59: Ad Gr
I60: SD | J60: 18 | K60: =IF(K59="",0,(K59-INDIRECT(CONCATENATE(K58,"CR")))*113/INDIRECT(CONCATENATE(K58,"SR"))) -> 0 | L60: 0 | M60: 0 | N60: 0 | O60: 0 | P60: 0 | Q60: 0 | R60: 0 | S60: 0 | T60: 0 | U60: 0 | V60: 0 | W60: 0 | X60: 0 | Y60: 0 | Z60: 0 | AA60: 0 | AB60: 0 | AC60: 0 | AD60: 0 | AE60: 0 | AF60: 0 | AG60: 0 | AH60: 0 | AI60: 0 | AJ60: 0 | AK60: 0 | AL60: 0 | AM60: 0 | AN60: 0 | AO60: 0 | AP60: 0 | AQ60: 0 | AR60: 0 | AS60: 0 | AT60: 0 | AU60: 0 | AV60: 0 | AW60: 0 | AX60: 0 | AY60: 0 | AZ60: 0 | BA60: 0 | BB60: 0 | BC60: 0 | BD60: 0 | BE60: 0 | BF60: 0 | BG60: 0 | BH60: 0 | BI60: 0 | BJ60: 0 | BK60: 0 | BL60: 0 | BM60: 0 | BN60: 0 | BO60: 0 | BP60: 0 | BQ60: 0 | BR60: 0 | BS60: 0 | BT60: 0 | BU60: 0 | BV60: 0 | BW60: =IF(BW59="",0,(BW59-INDIRECT(CONCATENATE(BW58,"CR")))*113/INDIRECT(CONCATENATE(BW58,"SR"))) -> 0 | BX60: 0 | BY60: 0 | BZ60: 0 | CA60: 0 | CB60: 0 | CC60: 0 | CD60: 0 | CE60: 0 | CF60: 0 | CG60: 0 | CH60: 0 | CI60: 0 | CJ60: 0 | CK60: 0 | CL60: 0 | CM60: =IF(CM59="",0,(CM59-INDIRECT(CONCATENATE(CM58,"CR")))*113/INDIRECT(CONCATENATE(CM58,"SR"))) -> 0 | CN60: 0 | CO60: =IF(CO59="",0,(CO59-INDIRECT(CONCATENATE(CO58,"CR")))*113/INDIRECT(CONCATENATE(CO58,"SR"))) -> 0 | CP60: 0 | CQ60: =IF(CQ59="",0,(CQ59-INDIRECT(CONCATENATE(CQ58,"CR")))*113/INDIRECT(CONCATENATE(CQ58,"SR"))) -> 0 | CR60: 0 | CS60: =IF(CS59="",0,(CS59-INDIRECT(CONCATENATE(CS58,"CR")))*113/INDIRECT(CONCATENATE(CS58,"SR"))) -> 0 | CT60: 0 | CU60: =IF(CU59="",0,(CU59-INDIRECT(CONCATENATE(CU58,"CR")))*113/INDIRECT(CONCATENATE(CU58,"SR"))) -> 0 | CV60: 0 | CW60: =IF(CW59="",0,(CW59-INDIRECT(CONCATENATE(CW58,"CR")))*113/INDIRECT(CONCATENATE(CW58,"SR"))) -> 0
I61: New Hcap | J61: =J60-2 -> 16 | K61: =IF(K60>0,MIN(J60:K60)-2,J61) -> 16 | L61: =IF(L60>0,MIN(J60:L60)-2,K61) -> 16 | M61: =IF(M60>0,MIN(J60:M60)-1,L61) -> 16 | N61: =IF(N60>0,MIN(J60:N60),M61) -> 16 | O61: =IF(O60>0,AVERAGE(SMALL(IF(J60:O60>0,J60:O60),{1,2}))-1,N61) -> 16 | P61: =IF(P60>0,AVERAGE(SMALL(IF(J60:P60>0,J60:P60),{1,2})),O61) -> 16 | Q61: =IF(Q60>0,AVERAGE(SMALL(IF(J60:Q60>0,J60:Q60),{1,2})),P61) -> 16 | R61: =IF(R60>0,AVERAGE(SMALL(IF(J60:R60>0,J60:R60),{1,2,3})),Q61) -> 16 | S61: =IF(S60>0,AVERAGE(SMALL(IF(J60:S60>0,J60:S60),{1,2,3})),R61) -> 16 | T61: =IF(T60>0,AVERAGE(SMALL(IF(J60:T60>0,J60:T60),{1,2,3})),S61) -> 16 | U61: =IF(U60>0,AVERAGE(SMALL(IF(J60:U60>0,J60:U60),{1,2,3,4})),T61) -> 16 | V61: =IF(V60>0,AVERAGE(SMALL(IF(J60:V60>0,J60:V60),{1,2,3,4})),U61) -> 16 | W61: =IF(W60>0,AVERAGE(SMALL(IF(J60:W60>0,J60:W60),{1,2,3,4})),V61) -> 16 | X61: =IF(X60>0,AVERAGE(SMALL(IF(J60:X60>0,J60:X60),{1,2,3,4,5})),W61) -> 16 | Y61: =IF(Y60>0,AVERAGE(SMALL(IF(J60:Y60>0,J60:Y60),{1,2,3,4,5})),X61) -> 16 | Z61: =IF(Z60>0,AVERAGE(SMALL(IF(J60:Z60>0,J60:Z60),{1,2,3,4,5,6})),Y61) -> 16 | AA61: =IF(AA60>0,AVERAGE(SMALL(IF(J60:AA60>0,J60:AA60),{1,2,3,4,5,6})),Z61) -> 16 | AB61: =IF(AB60>0,AVERAGE(SMALL(IF(J60:AB60>0,J60:AB60),{1,2,3,4,5,6,7})),AA61) -> 16 | AC61: =IF(AC60>0,AVERAGE(SMALL(IF(J60:AC60>0,J60:AC60),{1,2,3,4,5,6,7,8})),AB61) -> 16 | AD61: =IF(AD60>0,AVERAGE(SMALL(IF(K60:AD60>0,K60:AD60),{1,2,3,4,5,6,7,8})),AC61) -> 16 | AE61: =IF(AE60>0,AVERAGE(SMALL(IF(L60:AE60>0,L60:AE60),{1,2,3,4,5,6,7,8})),AD61) -> 16 | AF61: =IF(AF60>0,AVERAGE(SMALL(IF(M60:AF60>0,M60:AF60),{1,2,3,4,5,6,7,8})),AE61) -> 16 | AG61: =IF(AG60>0,AVERAGE(SMALL(IF(N60:AG60>0,N60:AG60),{1,2,3,4,5,6,7,8})),AF61) -> 16 | AH61: =IF(AH60>0,AVERAGE(SMALL(IF(O60:AH60>0,O60:AH60),{1,2,3,4,5,6,7,8})),AG61) -> 16 | AI61: =IF(AI60>0,AVERAGE(SMALL(IF(P60:AI60>0,P60:AI60),{1,2,3,4,5,6,7,8})),AH61) -> 16 | AJ61: =IF(AJ60>0,AVERAGE(SMALL(IF(Q60:AJ60>0,Q60:AJ60),{1,2,3,4,5,6,7,8})),AI61) -> 16 | AK61: =IF(AK60>0,AVERAGE(SMALL(IF(R60:AK60>0,R60:AK60),{1,2,3,4,5,6,7,8})),AJ61) -> 16 | AL61: =IF(AL60>0,AVERAGE(SMALL(IF(S60:AL60>0,S60:AL60),{1,2,3,4,5,6,7,8})),AK61) -> 16 | AM61: =IF(AM60>0,AVERAGE(SMALL(IF(T60:AM60>0,T60:AM60),{1,2,3,4,5,6,7,8})),AL61) -> 16 | AN61: =IF(AN60>0,AVERAGE(SMALL(IF(U60:AN60>0,U60:AN60),{1,2,3,4,5,6,7,8})),AM61) -> 16 | AO61: =IF(AO60>0,AVERAGE(SMALL(IF(V60:AO60>0,V60:AO60),{1,2,3,4,5,6,7,8})),AN61) -> 16 | AP61: =IF(AP60>0,AVERAGE(SMALL(IF(W60:AP60>0,W60:AP60),{1,2,3,4,5,6,7,8})),AO61) -> 16 | AQ61: =IF(AQ60>0,AVERAGE(SMALL(IF(X60:AQ60>0,X60:AQ60),{1,2,3,4,5,6,7,8})),AP61) -> 16 | AR61: =IF(AR60>0,AVERAGE(SMALL(IF(Y60:AR60>0,Y60:AR60),{1,2,3,4,5,6,7,8})),AQ61) -> 16 | AS61: =IF(AS60>0,AVERAGE(SMALL(IF(Z60:AS60>0,Z60:AS60),{1,2,3,4,5,6,7,8})),AR61) -> 16 | AT61: =IF(AT60>0,AVERAGE(SMALL(IF(AA60:AT60>0,AA60:AT60),{1,2,3,4,5,6,7,8})),AS61) -> 16 | AU61: =IF(AU60>0,AVERAGE(SMALL(IF(AB60:AU60>0,AB60:AU60),{1,2,3,4,5,6,7,8})),AT61) -> 16 | AV61: =IF(AV60>0,AVERAGE(SMALL(IF(AC60:AV60>0,AC60:AV60),{1,2,3,4,5,6,7,8})),AU61) -> 16 | AW61: =IF(AW60>0,AVERAGE(SMALL(IF(AD60:AW60>0,AD60:AW60),{1,2,3,4,5,6,7,8})),AV61) -> 16 | AX61: =IF(AX60>0,AVERAGE(SMALL(IF(AE60:AX60>0,AE60:AX60),{1,2,3,4,5,6,7,8})),AW61) -> 16 | AY61: =IF(AY60>0,AVERAGE(SMALL(IF(AF60:AY60>0,AF60:AY60),{1,2,3,4,5,6,7,8})),AX61) -> 16 | AZ61: =IF(AZ60>0,AVERAGE(SMALL(IF(AG60:AZ60>0,AG60:AZ60),{1,2,3,4,5,6,7,8})),AY61) -> 16 | BA61: =IF(BA60>0,AVERAGE(SMALL(IF(AH60:BA60>0,AH60:BA60),{1,2,3,4,5,6,7,8})),AZ61) -> 16 | BB61: =IF(BB60>0,AVERAGE(SMALL(IF(AI60:BB60>0,AI60:BB60),{1,2,3,4,5,6,7,8})),BA61) -> 16 | BC61: =IF(BC60>0,AVERAGE(SMALL(IF(AJ60:BC60>0,AJ60:BC60),{1,2,3,4,5,6,7,8})),BB61) -> 16 | BD61: =IF(BD60>0,AVERAGE(SMALL(IF(AK60:BD60>0,AK60:BD60),{1,2,3,4,5,6,7,8})),BC61) -> 16 | BE61: =IF(BE60>0,AVERAGE(SMALL(IF(AL60:BE60>0,AL60:BE60),{1,2,3,4,5,6,7,8})),BD61) -> 16 | BF61: =IF(BF60>0,AVERAGE(SMALL(IF(AM60:BF60>0,AM60:BF60),{1,2,3,4,5,6,7,8})),BE61) -> 16 | BG61: =IF(BG60>0,AVERAGE(SMALL(IF(AN60:BG60>0,AN60:BG60),{1,2,3,4,5,6,7,8})),BF61) -> 16 | BH61: =IF(BH60>0,AVERAGE(SMALL(IF(AO60:BH60>0,AO60:BH60),{1,2,3,4,5,6,7,8})),BG61) -> 16 | BI61: =IF(BI60>0,AVERAGE(SMALL(IF(AP60:BI60>0,AP60:BI60),{1,2,3,4,5,6,7,8})),BH61) -> 16 | BJ61: =IF(BJ60>0,AVERAGE(SMALL(IF(AQ60:BJ60>0,AQ60:BJ60),{1,2,3,4,5,6,7,8})),BI61) -> 16 | BK61: =IF(BK60>0,AVERAGE(SMALL(IF(AR60:BK60>0,AR60:BK60),{1,2,3,4,5,6,7,8})),BJ61) -> 16 | BL61: =IF(BL60>0,AVERAGE(SMALL(IF(AS60:BL60>0,AS60:BL60),{1,2,3,4,5,6,7,8})),BK61) -> 16 | BM61: =IF(BM60>0,AVERAGE(SMALL(IF(AT60:BM60>0,AT60:BM60),{1,2,3,4,5,6,7,8})),BL61) -> 16 | BN61: =IF(BN60>0,AVERAGE(SMALL(IF(AU60:BN60>0,AU60:BN60),{1,2,3,4,5,6,7,8})),BM61) -> 16 | BO61: =IF(BO60>0,AVERAGE(SMALL(IF(AV60:BO60>0,AV60:BO60),{1,2,3,4,5,6,7,8})),BN61) -> 16 | BP61: =IF(BP60>0,AVERAGE(SMALL(IF(AW60:BP60>0,AW60:BP60),{1,2,3,4,5,6,7,8})),BO61) -> 16 | BQ61: =IF(BQ60>0,AVERAGE(SMALL(IF(AX60:BQ60>0,AX60:BQ60),{1,2,3,4,5,6,7,8})),BP61) -> 16 | BR61: =IF(BR60>0,AVERAGE(SMALL(IF(AY60:BR60>0,AY60:BR60),{1,2,3,4,5,6,7,8})),BQ61) -> 16 | BS61: =IF(BS60>0,AVERAGE(SMALL(IF(AZ60:BS60>0,AZ60:BS60),{1,2,3,4,5,6,7,8})),BR61) -> 16 | BT61: =IF(BT60>0,AVERAGE(SMALL(IF(BA60:BT60>0,BA60:BT60),{1,2,3,4,5,6,7,8})),BS61) -> 16 | BU61: =IF(BU60>0,AVERAGE(SMALL(IF(BB60:BU60>0,BB60:BU60),{1,2,3,4,5,6,7,8})),BT61) -> 16 | BV61: =IF(BV60>0,AVERAGE(SMALL(IF(BC60:BV60>0,BC60:BV60),{1,2,3,4,5,6,7,8})),BU61) -> 16 | BW61: =IF(BW60>0,AVERAGE(SMALL(IF(BD60:BW60>0,BD60:BW60),{1,2,3,4,5,6,7,8})),BV61) -> 16 | BX61: =IF(BX60>0,AVERAGE(SMALL(IF(BE60:BX60>0,BE60:BX60),{1,2,3,4,5,6,7,8})),BW61) -> 16 | BY61: =IF(BY60>0,AVERAGE(SMALL(IF(BF60:BY60>0,BF60:BY60),{1,2,3,4,5,6,7,8})),BX61) -> 16 | BZ61: =IF(BZ60>0,AVERAGE(SMALL(IF(BG60:BZ60>0,BG60:BZ60),{1,2,3,4,5,6,7,8})),BY61) -> 16 | CA61: =IF(CA60>0,AVERAGE(SMALL(IF(BH60:CA60>0,BH60:CA60),{1,2,3,4,5,6,7,8})),BZ61) -> 16 | CB61: =IF(CB60>0,AVERAGE(SMALL(IF(BI60:CB60>0,BI60:CB60),{1,2,3,4,5,6,7,8})),CA61) -> 16 | CC61: =IF(CC60>0,AVERAGE(SMALL(IF(BJ60:CC60>0,BJ60:CC60),{1,2,3,4,5,6,7,8})),CB61) -> 16 | CD61: =IF(CD60>0,AVERAGE(SMALL(IF(BK60:CD60>0,BK60:CD60),{1,2,3,4,5,6,7,8})),CC61) -> 16 | CE61: =IF(CE60>0,AVERAGE(SMALL(IF(BL60:CE60>0,BL60:CE60),{1,2,3,4,5,6,7,8})),CD61) -> 16 | CF61: =IF(CF60>0,AVERAGE(SMALL(IF(BM60:CF60>0,BM60:CF60),{1,2,3,4,5,6,7,8})),CE61) -> 16 | CG61: =IF(CG60>0,AVERAGE(SMALL(IF(BN60:CG60>0,BN60:CG60),{1,2,3,4,5,6,7,8})),CF61) -> 16 | CH61: =IF(CH60>0,AVERAGE(SMALL(IF(BO60:CH60>0,BO60:CH60),{1,2,3,4,5,6,7,8})),CG61) -> 16 | CI61: =IF(CI60>0,AVERAGE(SMALL(IF(BP60:CI60>0,BP60:CI60),{1,2,3,4,5,6,7,8})),CH61) -> 16 | CJ61: =IF(CJ60>0,AVERAGE(SMALL(IF(BQ60:CJ60>0,BQ60:CJ60),{1,2,3,4,5,6,7,8})),CI61) -> 16 | CK61: =IF(CK60>0,AVERAGE(SMALL(IF(BR60:CK60>0,BR60:CK60),{1,2,3,4,5,6,7,8})),CJ61) -> 16 | CL61: =IF(CL60>0,AVERAGE(SMALL(IF(BS60:CL60>0,BS60:CL60),{1,2,3,4,5,6,7,8})),CK61) -> 16 | CM61: =IF(CM60>0,AVERAGE(SMALL(IF(BT60:CM60>0,BT60:CM60),{1,2,3,4,5,6,7,8})),CL61) -> 16 | CN61: =IF(CN60>0,AVERAGE(SMALL(IF(BU60:CN60>0,BU60:CN60),{1,2,3,4,5,6,7,8})),CM61) -> 16 | CO61: =IF(CO60>0,AVERAGE(SMALL(IF(BV60:CO60>0,BV60:CO60),{1,2,3,4,5,6,7,8})),CN61) -> 16 | CP61: =IF(CP60>0,AVERAGE(SMALL(IF(BW60:CP60>0,BW60:CP60),{1,2,3,4,5,6,7,8})),CO61) -> 16 | CQ61: =IF(CQ60>0,AVERAGE(SMALL(IF(BX60:CQ60>0,BX60:CQ60),{1,2,3,4,5,6,7,8})),CP61) -> 16 | CR61: =IF(CR60>0,AVERAGE(SMALL(IF(BY60:CR60>0,BY60:CR60),{1,2,3,4,5,6,7,8})),CQ61) -> 16 | CS61: =IF(CS60>0,AVERAGE(SMALL(IF(BZ60:CS60>0,BZ60:CS60),{1,2,3,4,5,6,7,8})),CR61) -> 16 | CT61: =IF(CT60>0,AVERAGE(SMALL(IF(CA60:CT60>0,CA60:CT60),{1,2,3,4,5,6,7,8})),CS61) -> 16 | CU61: =IF(CU60>0,AVERAGE(SMALL(IF(CB60:CU60>0,CB60:CU60),{1,2,3,4,5,6,7,8})),CT61) -> 16 | CV61: =IF(CV60>0,AVERAGE(SMALL(IF(CC60:CV60>0,CC60:CV60),{1,2,3,4,5,6,7,8})),CU61) -> 16 | CW61: =IF(CW60>0,AVERAGE(SMALL(IF(CD60:CW60>0,CD60:CW60),{1,2,3,4,5,6,7,8})),CV61) -> 16
I62: Low Hcap | AC62: =MIN($J61:AC61) -> 16 | AD62: =MIN($J61:AD61) -> 16 | AE62: =MIN($J61:AE61) -> 16 | AF62: =MIN($J61:AF61) -> 16 | AG62: =MIN($J61:AG61) -> 16 | AH62: =MIN($J61:AH61) -> 16 | AI62: =MIN($J61:AI61) -> 16 | AJ62: =MIN($J61:AJ61) -> 16 | AK62: =MIN($J61:AK61) -> 16 | AL62: =MIN($J61:AL61) -> 16 | AM62: =MIN($J61:AM61) -> 16 | AN62: =MIN($J61:AN61) -> 16 | AO62: =MIN($J61:AO61) -> 16 | AP62: =MIN($J61:AP61) -> 16 | AQ62: =MIN($J61:AQ61) -> 16 | AR62: =MIN($J61:AR61) -> 16 | AS62: =MIN($J61:AS61) -> 16 | AT62: =MIN($J61:AT61) -> 16 | AU62: =MIN($J61:AU61) -> 16 | AV62: =MIN($J61:AV61) -> 16 | AW62: =MIN($J61:AW61) -> 16 | AX62: =MIN($J61:AX61) -> 16 | AY62: =MIN($J61:AY61) -> 16 | AZ62: =MIN($J61:AZ61) -> 16 | BA62: =MIN($J61:BA61) -> 16 | BB62: =MIN($J61:BB61) -> 16 | BC62: =MIN($J61:BC61) -> 16 | BD62: =MIN($J61:BD61) -> 16 | BE62: =MIN($J61:BE61) -> 16 | BF62: =MIN($J61:BF61) -> 16 | BG62: =MIN($J61:BG61) -> 16 | BH62: =MIN($J61:BH61) -> 16 | BI62: =MIN($J61:BI61) -> 16 | BJ62: =MIN($J61:BJ61) -> 16 | BK62: =MIN($J61:BK61) -> 16 | BL62: =MIN($J61:BL61) -> 16 | BM62: =MIN($J61:BM61) -> 16 | BN62: =MIN($J61:BN61) -> 16 | BO62: =MIN($J61:BO61) -> 16 | BP62: =MIN($J61:BP61) -> 16 | BQ62: =MIN($J61:BQ61) -> 16 | BR62: =MIN($J61:BR61) -> 16 | BS62: =MIN($J61:BS61) -> 16 | BT62: =MIN($J61:BT61) -> 16 | BU62: =MIN($J61:BU61) -> 16 | BV62: =MIN($J61:BV61) -> 16 | BW62: =MIN($J61:BW61) -> 16 | BX62: =MIN($J61:BX61) -> 16 | BY62: =MIN($J61:BY61) -> 16 | BZ62: =MIN($J61:BZ61) -> 16 | CA62: =MIN($J61:CA61) -> 16 | CB62: =MIN($J61:CB61) -> 16 | CC62: =MIN($J61:CC61) -> 16 | CD62: =MIN($J61:CD61) -> 16 | CE62: =MIN($J61:CE61) -> 16 | CF62: =MIN($J61:CF61) -> 16 | CG62: =MIN($J61:CG61) -> 16 | CH62: =MIN($J61:CH61) -> 16 | CI62: =MIN($J61:CI61) -> 16 | CJ62: =MIN($J61:CJ61) -> 16 | CK62: =MIN($J61:CK61) -> 16 | CL62: =MIN($J61:CL61) -> 16 | CM62: =MIN($J61:CM61) -> 16 | CN62: =MIN($J61:CN61) -> 16 | CO62: =MIN($J61:CO61) -> 16 | CP62: =MIN($J61:CP61) -> 16 | CQ62: =MIN($J61:CQ61) -> 16 | CR62: =MIN($J61:CR61) -> 16 | CS62: =MIN($J61:CS61) -> 16 | CT62: =MIN($J61:CT61) -> 16 | CU62: =MIN($J61:CU61) -> 16 | CV62: =MIN($J61:CV61) -> 16 | CW62: =MIN($J61:CW61) -> 16
B63: Chalk | C63: Paul | D63: 15 | F63: =IF(H63<4,"Y",) -> Y | G63: 2021 | H63: =COUNT(J63:CX63) -> 0 | I63: Date | CY63: =IF(CW67>$DD$1,36,CW67) -> 15 | CZ63: 15 | DA63: =CZ63-CY63 -> 0
I64: Course
I65: Ad Gr
I66: SD | J66: 17 | K66: =IF(K65="",0,(K65-INDIRECT(CONCATENATE(K64,"CR")))*113/INDIRECT(CONCATENATE(K64,"SR"))) -> 0 | L66: 0 | M66: 0 | N66: 0 | O66: 0 | P66: 0 | Q66: 0 | R66: 0 | S66: 0 | T66: 0 | U66: 0 | V66: 0 | W66: 0 | X66: 0 | Y66: 0 | Z66: 0 | AA66: 0 | AB66: 0 | AC66: 0 | AD66: 0 | AE66: 0 | AF66: 0 | AG66: 0 | AH66: 0 | AI66: 0 | AJ66: 0 | AK66: 0 | AL66: 0 | AM66: 0 | AN66: 0 | AO66: 0 | AP66: 0 | AQ66: 0 | AR66: 0 | AS66: 0 | AT66: 0 | AU66: 0 | AV66: 0 | AW66: 0 | AX66: 0 | AY66: 0 | AZ66: 0 | BA66: 0 | BB66: 0 | BC66: 0 | BD66: 0 | BE66: 0 | BF66: 0 | BG66: 0 | BH66: 0 | BI66: 0 | BJ66: 0 | BK66: 0 | BL66: 0 | BM66: 0 | BN66: 0 | BO66: 0 | BP66: 0 | BQ66: 0 | BR66: 0 | BS66: 0 | BT66: 0 | BU66: 0 | BV66: 0 | BW66: =IF(BW65="",0,(BW65-INDIRECT(CONCATENATE(BW64,"CR")))*113/INDIRECT(CONCATENATE(BW64,"SR"))) -> 0 | BX66: 0 | BY66: 0 | BZ66: 0 | CA66: 0 | CB66: 0 | CC66: 0 | CD66: 0 | CE66: 0 | CF66: 0 | CG66: 0 | CH66: 0 | CI66: 0 | CJ66: 0 | CK66: 0 | CL66: 0 | CM66: =IF(CM65="",0,(CM65-INDIRECT(CONCATENATE(CM64,"CR")))*113/INDIRECT(CONCATENATE(CM64,"SR"))) -> 0 | CN66: 0 | CO66: =IF(CO65="",0,(CO65-INDIRECT(CONCATENATE(CO64,"CR")))*113/INDIRECT(CONCATENATE(CO64,"SR"))) -> 0 | CP66: 0 | CQ66: =IF(CQ65="",0,(CQ65-INDIRECT(CONCATENATE(CQ64,"CR")))*113/INDIRECT(CONCATENATE(CQ64,"SR"))) -> 0 | CR66: 0 | CS66: =IF(CS65="",0,(CS65-INDIRECT(CONCATENATE(CS64,"CR")))*113/INDIRECT(CONCATENATE(CS64,"SR"))) -> 0 | CT66: 0 | CU66: =IF(CU65="",0,(CU65-INDIRECT(CONCATENATE(CU64,"CR")))*113/INDIRECT(CONCATENATE(CU64,"SR"))) -> 0 | CV66: 0 | CW66: =IF(CW65="",0,(CW65-INDIRECT(CONCATENATE(CW64,"CR")))*113/INDIRECT(CONCATENATE(CW64,"SR"))) -> 0
I67: New Hcap | J67: =J66-2 -> 15 | K67: =IF(K66>0,MIN(J66:K66)-2,J67) -> 15 | L67: =IF(L66>0,MIN(J66:L66)-2,K67) -> 15 | M67: =IF(M66>0,MIN(J66:M66)-1,L67) -> 15 | N67: =IF(N66>0,MIN(J66:N66),M67) -> 15 | O67: =IF(O66>0,AVERAGE(SMALL(IF(J66:O66>0,J66:O66),{1,2}))-1,N67) -> 15 | P67: =IF(P66>0,AVERAGE(SMALL(IF(J66:P66>0,J66:P66),{1,2})),O67) -> 15 | Q67: =IF(Q66>0,AVERAGE(SMALL(IF(J66:Q66>0,J66:Q66),{1,2})),P67) -> 15 | R67: =IF(R66>0,AVERAGE(SMALL(IF(J66:R66>0,J66:R66),{1,2,3})),Q67) -> 15 | S67: =IF(S66>0,AVERAGE(SMALL(IF(J66:S66>0,J66:S66),{1,2,3})),R67) -> 15 | T67: =IF(T66>0,AVERAGE(SMALL(IF(J66:T66>0,J66:T66),{1,2,3})),S67) -> 15 | U67: =IF(U66>0,AVERAGE(SMALL(IF(J66:U66>0,J66:U66),{1,2,3,4})),T67) -> 15 | V67: =IF(V66>0,AVERAGE(SMALL(IF(J66:V66>0,J66:V66),{1,2,3,4})),U67) -> 15 | W67: =IF(W66>0,AVERAGE(SMALL(IF(J66:W66>0,J66:W66),{1,2,3,4})),V67) -> 15 | X67: =IF(X66>0,AVERAGE(SMALL(IF(J66:X66>0,J66:X66),{1,2,3,4,5})),W67) -> 15 | Y67: =IF(Y66>0,AVERAGE(SMALL(IF(J66:Y66>0,J66:Y66),{1,2,3,4,5})),X67) -> 15 | Z67: =IF(Z66>0,AVERAGE(SMALL(IF(J66:Z66>0,J66:Z66),{1,2,3,4,5,6})),Y67) -> 15 | AA67: =IF(AA66>0,AVERAGE(SMALL(IF(J66:AA66>0,J66:AA66),{1,2,3,4,5,6})),Z67) -> 15 | AB67: =IF(AB66>0,AVERAGE(SMALL(IF(J66:AB66>0,J66:AB66),{1,2,3,4,5,6,7})),AA67) -> 15 | AC67: =IF(AC66>0,AVERAGE(SMALL(IF(J66:AC66>0,J66:AC66),{1,2,3,4,5,6,7,8})),AB67) -> 15 | AD67: =IF(AD66>0,AVERAGE(SMALL(IF(K66:AD66>0,K66:AD66),{1,2,3,4,5,6,7,8})),AC67) -> 15 | AE67: =IF(AE66>0,AVERAGE(SMALL(IF(L66:AE66>0,L66:AE66),{1,2,3,4,5,6,7,8})),AD67) -> 15 | AF67: =IF(AF66>0,AVERAGE(SMALL(IF(M66:AF66>0,M66:AF66),{1,2,3,4,5,6,7,8})),AE67) -> 15 | AG67: =IF(AG66>0,AVERAGE(SMALL(IF(N66:AG66>0,N66:AG66),{1,2,3,4,5,6,7,8})),AF67) -> 15 | AH67: =IF(AH66>0,AVERAGE(SMALL(IF(O66:AH66>0,O66:AH66),{1,2,3,4,5,6,7,8})),AG67) -> 15 | AI67: =IF(AI66>0,AVERAGE(SMALL(IF(P66:AI66>0,P66:AI66),{1,2,3,4,5,6,7,8})),AH67) -> 15 | AJ67: =IF(AJ66>0,AVERAGE(SMALL(IF(Q66:AJ66>0,Q66:AJ66),{1,2,3,4,5,6,7,8})),AI67) -> 15 | AK67: =IF(AK66>0,AVERAGE(SMALL(IF(R66:AK66>0,R66:AK66),{1,2,3,4,5,6,7,8})),AJ67) -> 15 | AL67: =IF(AL66>0,AVERAGE(SMALL(IF(S66:AL66>0,S66:AL66),{1,2,3,4,5,6,7,8})),AK67) -> 15 | AM67: =IF(AM66>0,AVERAGE(SMALL(IF(T66:AM66>0,T66:AM66),{1,2,3,4,5,6,7,8})),AL67) -> 15 | AN67: =IF(AN66>0,AVERAGE(SMALL(IF(U66:AN66>0,U66:AN66),{1,2,3,4,5,6,7,8})),AM67) -> 15 | AO67: =IF(AO66>0,AVERAGE(SMALL(IF(V66:AO66>0,V66:AO66),{1,2,3,4,5,6,7,8})),AN67) -> 15 | AP67: =IF(AP66>0,AVERAGE(SMALL(IF(W66:AP66>0,W66:AP66),{1,2,3,4,5,6,7,8})),AO67) -> 15 | AQ67: =IF(AQ66>0,AVERAGE(SMALL(IF(X66:AQ66>0,X66:AQ66),{1,2,3,4,5,6,7,8})),AP67) -> 15 | AR67: =IF(AR66>0,AVERAGE(SMALL(IF(Y66:AR66>0,Y66:AR66),{1,2,3,4,5,6,7,8})),AQ67) -> 15 | AS67: =IF(AS66>0,AVERAGE(SMALL(IF(Z66:AS66>0,Z66:AS66),{1,2,3,4,5,6,7,8})),AR67) -> 15 | AT67: =IF(AT66>0,AVERAGE(SMALL(IF(AA66:AT66>0,AA66:AT66),{1,2,3,4,5,6,7,8})),AS67) -> 15 | AU67: =IF(AU66>0,AVERAGE(SMALL(IF(AB66:AU66>0,AB66:AU66),{1,2,3,4,5,6,7,8})),AT67) -> 15 | AV67: =IF(AV66>0,AVERAGE(SMALL(IF(AC66:AV66>0,AC66:AV66),{1,2,3,4,5,6,7,8})),AU67) -> 15 | AW67: =IF(AW66>0,AVERAGE(SMALL(IF(AD66:AW66>0,AD66:AW66),{1,2,3,4,5,6,7,8})),AV67) -> 15 | AX67: =IF(AX66>0,AVERAGE(SMALL(IF(AE66:AX66>0,AE66:AX66),{1,2,3,4,5,6,7,8})),AW67) -> 15 | AY67: =IF(AY66>0,AVERAGE(SMALL(IF(AF66:AY66>0,AF66:AY66),{1,2,3,4,5,6,7,8})),AX67) -> 15 | AZ67: =IF(AZ66>0,AVERAGE(SMALL(IF(AG66:AZ66>0,AG66:AZ66),{1,2,3,4,5,6,7,8})),AY67) -> 15 | BA67: =IF(BA66>0,AVERAGE(SMALL(IF(AH66:BA66>0,AH66:BA66),{1,2,3,4,5,6,7,8})),AZ67) -> 15 | BB67: =IF(BB66>0,AVERAGE(SMALL(IF(AI66:BB66>0,AI66:BB66),{1,2,3,4,5,6,7,8})),BA67) -> 15 | BC67: =IF(BC66>0,AVERAGE(SMALL(IF(AJ66:BC66>0,AJ66:BC66),{1,2,3,4,5,6,7,8})),BB67) -> 15 | BD67: =IF(BD66>0,AVERAGE(SMALL(IF(AK66:BD66>0,AK66:BD66),{1,2,3,4,5,6,7,8})),BC67) -> 15 | BE67: =IF(BE66>0,AVERAGE(SMALL(IF(AL66:BE66>0,AL66:BE66),{1,2,3,4,5,6,7,8})),BD67) -> 15 | BF67: =IF(BF66>0,AVERAGE(SMALL(IF(AM66:BF66>0,AM66:BF66),{1,2,3,4,5,6,7,8})),BE67) -> 15 | BG67: =IF(BG66>0,AVERAGE(SMALL(IF(AN66:BG66>0,AN66:BG66),{1,2,3,4,5,6,7,8})),BF67) -> 15 | BH67: =IF(BH66>0,AVERAGE(SMALL(IF(AO66:BH66>0,AO66:BH66),{1,2,3,4,5,6,7,8})),BG67) -> 15 | BI67: =IF(BI66>0,AVERAGE(SMALL(IF(AP66:BI66>0,AP66:BI66),{1,2,3,4,5,6,7,8})),BH67) -> 15 | BJ67: =IF(BJ66>0,AVERAGE(SMALL(IF(AQ66:BJ66>0,AQ66:BJ66),{1,2,3,4,5,6,7,8})),BI67) -> 15 | BK67: =IF(BK66>0,AVERAGE(SMALL(IF(AR66:BK66>0,AR66:BK66),{1,2,3,4,5,6,7,8})),BJ67) -> 15 | BL67: =IF(BL66>0,AVERAGE(SMALL(IF(AS66:BL66>0,AS66:BL66),{1,2,3,4,5,6,7,8})),BK67) -> 15 | BM67: =IF(BM66>0,AVERAGE(SMALL(IF(AT66:BM66>0,AT66:BM66),{1,2,3,4,5,6,7,8})),BL67) -> 15 | BN67: =IF(BN66>0,AVERAGE(SMALL(IF(AU66:BN66>0,AU66:BN66),{1,2,3,4,5,6,7,8})),BM67) -> 15 | BO67: =IF(BO66>0,AVERAGE(SMALL(IF(AV66:BO66>0,AV66:BO66),{1,2,3,4,5,6,7,8})),BN67) -> 15 | BP67: =IF(BP66>0,AVERAGE(SMALL(IF(AW66:BP66>0,AW66:BP66),{1,2,3,4,5,6,7,8})),BO67) -> 15 | BQ67: =IF(BQ66>0,AVERAGE(SMALL(IF(AX66:BQ66>0,AX66:BQ66),{1,2,3,4,5,6,7,8})),BP67) -> 15 | BR67: =IF(BR66>0,AVERAGE(SMALL(IF(AY66:BR66>0,AY66:BR66),{1,2,3,4,5,6,7,8})),BQ67) -> 15 | BS67: =IF(BS66>0,AVERAGE(SMALL(IF(AZ66:BS66>0,AZ66:BS66),{1,2,3,4,5,6,7,8})),BR67) -> 15 | BT67: =IF(BT66>0,AVERAGE(SMALL(IF(BA66:BT66>0,BA66:BT66),{1,2,3,4,5,6,7,8})),BS67) -> 15 | BU67: =IF(BU66>0,AVERAGE(SMALL(IF(BB66:BU66>0,BB66:BU66),{1,2,3,4,5,6,7,8})),BT67) -> 15 | BV67: =IF(BV66>0,AVERAGE(SMALL(IF(BC66:BV66>0,BC66:BV66),{1,2,3,4,5,6,7,8})),BU67) -> 15 | BW67: =IF(BW66>0,AVERAGE(SMALL(IF(BD66:BW66>0,BD66:BW66),{1,2,3,4,5,6,7,8})),BV67) -> 15 | BX67: =IF(BX66>0,AVERAGE(SMALL(IF(BE66:BX66>0,BE66:BX66),{1,2,3,4,5,6,7,8})),BW67) -> 15 | BY67: =IF(BY66>0,AVERAGE(SMALL(IF(BF66:BY66>0,BF66:BY66),{1,2,3,4,5,6,7,8})),BX67) -> 15 | BZ67: =IF(BZ66>0,AVERAGE(SMALL(IF(BG66:BZ66>0,BG66:BZ66),{1,2,3,4,5,6,7,8})),BY67) -> 15 | CA67: =IF(CA66>0,AVERAGE(SMALL(IF(BH66:CA66>0,BH66:CA66),{1,2,3,4,5,6,7,8})),BZ67) -> 15 | CB67: =IF(CB66>0,AVERAGE(SMALL(IF(BI66:CB66>0,BI66:CB66),{1,2,3,4,5,6,7,8})),CA67) -> 15 | CC67: =IF(CC66>0,AVERAGE(SMALL(IF(BJ66:CC66>0,BJ66:CC66),{1,2,3,4,5,6,7,8})),CB67) -> 15 | CD67: =IF(CD66>0,AVERAGE(SMALL(IF(BK66:CD66>0,BK66:CD66),{1,2,3,4,5,6,7,8})),CC67) -> 15 | CE67: =IF(CE66>0,AVERAGE(SMALL(IF(BL66:CE66>0,BL66:CE66),{1,2,3,4,5,6,7,8})),CD67) -> 15 | CF67: =IF(CF66>0,AVERAGE(SMALL(IF(BM66:CF66>0,BM66:CF66),{1,2,3,4,5,6,7,8})),CE67) -> 15 | CG67: =IF(CG66>0,AVERAGE(SMALL(IF(BN66:CG66>0,BN66:CG66),{1,2,3,4,5,6,7,8})),CF67) -> 15 | CH67: =IF(CH66>0,AVERAGE(SMALL(IF(BO66:CH66>0,BO66:CH66),{1,2,3,4,5,6,7,8})),CG67) -> 15 | CI67: =IF(CI66>0,AVERAGE(SMALL(IF(BP66:CI66>0,BP66:CI66),{1,2,3,4,5,6,7,8})),CH67) -> 15 | CJ67: =IF(CJ66>0,AVERAGE(SMALL(IF(BQ66:CJ66>0,BQ66:CJ66),{1,2,3,4,5,6,7,8})),CI67) -> 15 | CK67: =IF(CK66>0,AVERAGE(SMALL(IF(BR66:CK66>0,BR66:CK66),{1,2,3,4,5,6,7,8})),CJ67) -> 15 | CL67: =IF(CL66>0,AVERAGE(SMALL(IF(BS66:CL66>0,BS66:CL66),{1,2,3,4,5,6,7,8})),CK67) -> 15 | CM67: =IF(CM66>0,AVERAGE(SMALL(IF(BT66:CM66>0,BT66:CM66),{1,2,3,4,5,6,7,8})),CL67) -> 15 | CN67: =IF(CN66>0,AVERAGE(SMALL(IF(BU66:CN66>0,BU66:CN66),{1,2,3,4,5,6,7,8})),CM67) -> 15 | CO67: =IF(CO66>0,AVERAGE(SMALL(IF(BV66:CO66>0,BV66:CO66),{1,2,3,4,5,6,7,8})),CN67) -> 15 | CP67: =IF(CP66>0,AVERAGE(SMALL(IF(BW66:CP66>0,BW66:CP66),{1,2,3,4,5,6,7,8})),CO67) -> 15 | CQ67: =IF(CQ66>0,AVERAGE(SMALL(IF(BX66:CQ66>0,BX66:CQ66),{1,2,3,4,5,6,7,8})),CP67) -> 15 | CR67: =IF(CR66>0,AVERAGE(SMALL(IF(BY66:CR66>0,BY66:CR66),{1,2,3,4,5,6,7,8})),CQ67) -> 15 | CS67: =IF(CS66>0,AVERAGE(SMALL(IF(BZ66:CS66>0,BZ66:CS66),{1,2,3,4,5,6,7,8})),CR67) -> 15 | CT67: =IF(CT66>0,AVERAGE(SMALL(IF(CA66:CT66>0,CA66:CT66),{1,2,3,4,5,6,7,8})),CS67) -> 15 | CU67: =IF(CU66>0,AVERAGE(SMALL(IF(CB66:CU66>0,CB66:CU66),{1,2,3,4,5,6,7,8})),CT67) -> 15 | CV67: =IF(CV66>0,AVERAGE(SMALL(IF(CC66:CV66>0,CC66:CV66),{1,2,3,4,5,6,7,8})),CU67) -> 15 | CW67: =IF(CW66>0,AVERAGE(SMALL(IF(CD66:CW66>0,CD66:CW66),{1,2,3,4,5,6,7,8})),CV67) -> 15
I68: Low Hcap | AC68: =MIN($J67:AC67) -> 15 | AD68: =MIN($J67:AD67) -> 15 | AE68: =MIN($J67:AE67) -> 15 | AF68: =MIN($J67:AF67) -> 15 | AG68: =MIN($J67:AG67) -> 15 | AH68: =MIN($J67:AH67) -> 15 | AI68: =MIN($J67:AI67) -> 15 | AJ68: =MIN($J67:AJ67) -> 15 | AK68: =MIN($J67:AK67) -> 15 | AL68: =MIN($J67:AL67) -> 15 | AM68: =MIN($J67:AM67) -> 15 | AN68: =MIN($J67:AN67) -> 15 | AO68: =MIN($J67:AO67) -> 15 | AP68: =MIN($J67:AP67) -> 15 | AQ68: =MIN($J67:AQ67) -> 15 | AR68: =MIN($J67:AR67) -> 15 | AS68: =MIN($J67:AS67) -> 15 | AT68: =MIN($J67:AT67) -> 15 | AU68: =MIN($J67:AU67) -> 15 | AV68: =MIN($J67:AV67) -> 15 | AW68: =MIN($J67:AW67) -> 15 | AX68: =MIN($J67:AX67) -> 15 | AY68: =MIN($J67:AY67) -> 15 | AZ68: =MIN($J67:AZ67) -> 15 | BA68: =MIN($J67:BA67) -> 15 | BB68: =MIN($J67:BB67) -> 15 | BC68: =MIN($J67:BC67) -> 15 | BD68: =MIN($J67:BD67) -> 15 | BE68: =MIN($J67:BE67) -> 15 | BF68: =MIN($J67:BF67) -> 15 | BG68: =MIN($J67:BG67) -> 15 | BH68: =MIN($J67:BH67) -> 15 | BI68: =MIN($J67:BI67) -> 15 | BJ68: =MIN($J67:BJ67) -> 15 | BK68: =MIN($J67:BK67) -> 15 | BL68: =MIN($J67:BL67) -> 15 | BM68: =MIN($J67:BM67) -> 15 | BN68: =MIN($J67:BN67) -> 15 | BO68: =MIN($J67:BO67) -> 15 | BP68: =MIN($J67:BP67) -> 15 | BQ68: =MIN($J67:BQ67) -> 15 | BR68: =MIN($J67:BR67) -> 15 | BS68: =MIN($J67:BS67) -> 15 | BT68: =MIN($J67:BT67) -> 15 | BU68: =MIN($J67:BU67) -> 15 | BV68: =MIN($J67:BV67) -> 15 | BW68: =MIN($J67:BW67) -> 15 | BX68: =MIN($J67:BX67) -> 15 | BY68: =MIN($J67:BY67) -> 15 | BZ68: =MIN($J67:BZ67) -> 15 | CA68: =MIN($J67:CA67) -> 15 | CB68: =MIN($J67:CB67) -> 15 | CC68: =MIN($J67:CC67) -> 15 | CD68: =MIN($J67:CD67) -> 15 | CE68: =MIN($J67:CE67) -> 15 | CF68: =MIN($J67:CF67) -> 15 | CG68: =MIN($J67:CG67) -> 15 | CH68: =MIN($J67:CH67) -> 15 | CI68: =MIN($J67:CI67) -> 15 | CJ68: =MIN($J67:CJ67) -> 15 | CK68: =MIN($J67:CK67) -> 15 | CL68: =MIN($J67:CL67) -> 15 | CM68: =MIN($J67:CM67) -> 15 | CN68: =MIN($J67:CN67) -> 15 | CO68: =MIN($J67:CO67) -> 15 | CP68: =MIN($J67:CP67) -> 15 | CQ68: =MIN($J67:CQ67) -> 15 | CR68: =MIN($J67:CR67) -> 15 | CS68: =MIN($J67:CS67) -> 15 | CT68: =MIN($J67:CT67) -> 15 | CU68: =MIN($J67:CU67) -> 15 | CV68: =MIN($J67:CV67) -> 15 | CW68: =MIN($J67:CW67) -> 15
B69: Cherickel | C69: Ranjith | D69: 20.4 | F69: =IF(H69<4,"Y",) -> 0 | G69: 2020 | H69: =COUNT(J69:CX69) -> 6 | I69: Date | K69: 2020-07-31 | L69: 2020-08-09 | M69: 2020-08-14 | N69: 2020-09-12 | O69: 2020-11-01 | P69: 2020-11-15 | CY69: =IF(CW73>$DD$1,36,CW73) -> 21.5 | CZ69: 21.5 | DA69: =CZ69-CY69 -> 0
I70: Course | K70: StEurachHG | L70: ErdingHG | M70: EgmatingHG | N70: TegernbachHG | O70: ErdingHG | P70: OdelzhausenHG
I71: Ad Gr | K71: 99 | L71: 97 | M71: 104 | N71: 99 | O71: 107 | P71: 104
I72: SD | J72: 20.4 | K72: =IF(K71="",0,(K71-INDIRECT(CONCATENATE(K70,"CR")))*113/INDIRECT(CONCATENATE(K70,"SR"))) -> 23.37633588 | L72: 22.6 | M72: 27.34427481 | N72: 23.37045455 | O72: 31.29230769 | P72: 28.6503937 | Q72: 0 | R72: 0 | S72: 0 | T72: 0 | U72: 0 | V72: 0 | W72: 0 | X72: 0 | Y72: 0 | Z72: 0 | AA72: 0 | AB72: 0 | AC72: 0 | AD72: 0 | AE72: 0 | AF72: 0 | AG72: 0 | AH72: 0 | AI72: 0 | AJ72: 0 | AK72: 0 | AL72: 0 | AM72: 0 | AN72: 0 | AO72: 0 | AP72: 0 | AQ72: 0 | AR72: 0 | AS72: 0 | AT72: 0 | AU72: 0 | AV72: 0 | AW72: 0 | AX72: 0 | AY72: 0 | AZ72: 0 | BA72: 0 | BB72: 0 | BC72: 0 | BD72: 0 | BE72: 0 | BF72: 0 | BG72: 0
I73: New Hcap | J73: =J72-2 -> 18.4 | K73: =IF(K72>0,MIN(J72:K72)-2,J73) -> 18.4 | L73: =IF(L72>0,MIN(J72:L72)-2,K73) -> 18.4 | M73: =IF(M72>0,MIN(J72:M72)-1,L73) -> 19.4 | N73: =IF(N72>0,MIN(J72:N72),M73) -> 20.4 | O73: =IF(O72>0,AVERAGE(SMALL(IF(J72:O72>0,J72:O72),{1,2}))-1,N73) -> 20.5 | P73: =IF(P72>0,AVERAGE(SMALL(IF(J72:P72>0,J72:P72),{1,2})),O73) -> 21.5 | Q73: =IF(Q72>0,AVERAGE(SMALL(IF(J72:Q72>0,J72:Q72),{1,2})),P73) -> 21.5 | R73: =IF(R72>0,AVERAGE(SMALL(IF(J72:R72>0,J72:R72),{1,2,3})),Q73) -> 21.5 | S73: =IF(S72>0,AVERAGE(SMALL(IF(J72:S72>0,J72:S72),{1,2,3})),R73) -> 21.5 | T73: =IF(T72>0,AVERAGE(SMALL(IF(J72:T72>0,J72:T72),{1,2,3})),S73) -> 21.5 | U73: =IF(U72>0,AVERAGE(SMALL(IF(J72:U72>0,J72:U72),{1,2,3,4})),T73) -> 21.5 | V73: =IF(V72>0,AVERAGE(SMALL(IF(J72:V72>0,J72:V72),{1,2,3,4})),U73) -> 21.5 | W73: =IF(W72>0,AVERAGE(SMALL(IF(J72:W72>0,J72:W72),{1,2,3,4})),V73) -> 21.5 | X73: =IF(X72>0,AVERAGE(SMALL(IF(J72:X72>0,J72:X72),{1,2,3,4,5})),W73) -> 21.5 | Y73: =IF(Y72>0,AVERAGE(SMALL(IF(J72:Y72>0,J72:Y72),{1,2,3,4,5})),X73) -> 21.5 | Z73: =IF(Z72>0,AVERAGE(SMALL(IF(J72:Z72>0,J72:Z72),{1,2,3,4,5,6})),Y73) -> 21.5 | AA73: =IF(AA72>0,AVERAGE(SMALL(IF(J72:AA72>0,J72:AA72),{1,2,3,4,5,6})),Z73) -> 21.5 | AB73: =IF(AB72>0,AVERAGE(SMALL(IF(J72:AB72>0,J72:AB72),{1,2,3,4,5,6,7})),AA73) -> 21.5 | AC73: =IF(AC72>0,AVERAGE(SMALL(IF(J72:AC72>0,J72:AC72),{1,2,3,4,5,6,7,8})),AB73) -> 21.5 | AD73: =IF(AD72>0,AVERAGE(SMALL(IF(K72:AD72>0,K72:AD72),{1,2,3,4,5,6,7,8})),AC73) -> 21.5 | AE73: =IF(AE72>0,AVERAGE(SMALL(IF(L72:AE72>0,L72:AE72),{1,2,3,4,5,6,7,8})),AD73) -> 21.5 | AF73: =IF(AF72>0,AVERAGE(SMALL(IF(M72:AF72>0,M72:AF72),{1,2,3,4,5,6,7,8})),AE73) -> 21.5 | AG73: =IF(AG72>0,AVERAGE(SMALL(IF(N72:AG72>0,N72:AG72),{1,2,3,4,5,6,7,8})),AF73) -> 21.5 | AH73: =IF(AH72>0,AVERAGE(SMALL(IF(O72:AH72>0,O72:AH72),{1,2,3,4,5,6,7,8})),AG73) -> 21.5 | AI73: =IF(AI72>0,AVERAGE(SMALL(IF(P72:AI72>0,P72:AI72),{1,2,3,4,5,6,7,8})),AH73) -> 21.5 | AJ73: =IF(AJ72>0,AVERAGE(SMALL(IF(Q72:AJ72>0,Q72:AJ72),{1,2,3,4,5,6,7,8})),AI73) -> 21.5 | AK73: =IF(AK72>0,AVERAGE(SMALL(IF(R72:AK72>0,R72:AK72),{1,2,3,4,5,6,7,8})),AJ73) -> 21.5 | AL73: =IF(AL72>0,AVERAGE(SMALL(IF(S72:AL72>0,S72:AL72),{1,2,3,4,5,6,7,8})),AK73) -> 21.5 | AM73: =IF(AM72>0,AVERAGE(SMALL(IF(T72:AM72>0,T72:AM72),{1,2,3,4,5,6,7,8})),AL73) -> 21.5 | AN73: =IF(AN72>0,AVERAGE(SMALL(IF(U72:AN72>0,U72:AN72),{1,2,3,4,5,6,7,8})),AM73) -> 21.5 | AO73: =IF(AO72>0,AVERAGE(SMALL(IF(V72:AO72>0,V72:AO72),{1,2,3,4,5,6,7,8})),AN73) -> 21.5 | AP73: =IF(AP72>0,AVERAGE(SMALL(IF(W72:AP72>0,W72:AP72),{1,2,3,4,5,6,7,8})),AO73) -> 21.5 | AQ73: =IF(AQ72>0,AVERAGE(SMALL(IF(X72:AQ72>0,X72:AQ72),{1,2,3,4,5,6,7,8})),AP73) -> 21.5 | AR73: =IF(AR72>0,AVERAGE(SMALL(IF(Y72:AR72>0,Y72:AR72),{1,2,3,4,5,6,7,8})),AQ73) -> 21.5 | AS73: =IF(AS72>0,AVERAGE(SMALL(IF(Z72:AS72>0,Z72:AS72),{1,2,3,4,5,6,7,8})),AR73) -> 21.5 | AT73: =IF(AT72>0,AVERAGE(SMALL(IF(AA72:AT72>0,AA72:AT72),{1,2,3,4,5,6,7,8})),AS73) -> 21.5 | AU73: =IF(AU72>0,AVERAGE(SMALL(IF(AB72:AU72>0,AB72:AU72),{1,2,3,4,5,6,7,8})),AT73) -> 21.5 | AV73: =IF(AV72>0,AVERAGE(SMALL(IF(AC72:AV72>0,AC72:AV72),{1,2,3,4,5,6,7,8})),AU73) -> 21.5 | AW73: =IF(AW72>0,AVERAGE(SMALL(IF(AD72:AW72>0,AD72:AW72),{1,2,3,4,5,6,7,8})),AV73) -> 21.5 | AX73: =IF(AX72>0,AVERAGE(SMALL(IF(AE72:AX72>0,AE72:AX72),{1,2,3,4,5,6,7,8})),AW73) -> 21.5 | AY73: =IF(AY72>0,AVERAGE(SMALL(IF(AF72:AY72>0,AF72:AY72),{1,2,3,4,5,6,7,8})),AX73) -> 21.5 | AZ73: =IF(AZ72>0,AVERAGE(SMALL(IF(AG72:AZ72>0,AG72:AZ72),{1,2,3,4,5,6,7,8})),AY73) -> 21.5 | BA73: =IF(BA72>0,AVERAGE(SMALL(IF(AH72:BA72>0,AH72:BA72),{1,2,3,4,5,6,7,8})),AZ73) -> 21.5 | BB73: =IF(BB72>0,AVERAGE(SMALL(IF(AI72:BB72>0,AI72:BB72),{1,2,3,4,5,6,7,8})),BA73) -> 21.5 | BC73: =IF(BC72>0,AVERAGE(SMALL(IF(AJ72:BC72>0,AJ72:BC72),{1,2,3,4,5,6,7,8})),BB73) -> 21.5 | BD73: =IF(BD72>0,AVERAGE(SMALL(IF(AK72:BD72>0,AK72:BD72),{1,2,3,4,5,6,7,8})),BC73) -> 21.5 | BE73: =IF(BE72>0,AVERAGE(SMALL(IF(AL72:BE72>0,AL72:BE72),{1,2,3,4,5,6,7,8})),BD73) -> 21.5 | BF73: =IF(BF72>0,AVERAGE(SMALL(IF(AM72:BF72>0,AM72:BF72),{1,2,3,4,5,6,7,8})),BE73) -> 21.5 | BG73: =IF(BG72>0,AVERAGE(SMALL(IF(AN72:BG72>0,AN72:BG72),{1,2,3,4,5,6,7,8})),BF73) -> 21.5 | BH73: =IF(BH72>0,AVERAGE(SMALL(IF(AO72:BH72>0,AO72:BH72),{1,2,3,4,5,6,7,8})),BG73) -> 21.5 | BI73: =IF(BI72>0,AVERAGE(SMALL(IF(AP72:BI72>0,AP72:BI72),{1,2,3,4,5,6,7,8})),BH73) -> 21.5 | BJ73: =IF(BJ72>0,AVERAGE(SMALL(IF(AQ72:BJ72>0,AQ72:BJ72),{1,2,3,4,5,6,7,8})),BI73) -> 21.5 | BK73: =IF(BK72>0,AVERAGE(SMALL(IF(AR72:BK72>0,AR72:BK72),{1,2,3,4,5,6,7,8})),BJ73) -> 21.5 | BL73: =IF(BL72>0,AVERAGE(SMALL(IF(AS72:BL72>0,AS72:BL72),{1,2,3,4,5,6,7,8})),BK73) -> 21.5 | BM73: =IF(BM72>0,AVERAGE(SMALL(IF(AT72:BM72>0,AT72:BM72),{1,2,3,4,5,6,7,8})),BL73) -> 21.5 | BN73: =IF(BN72>0,AVERAGE(SMALL(IF(AU72:BN72>0,AU72:BN72),{1,2,3,4,5,6,7,8})),BM73) -> 21.5 | BO73: =IF(BO72>0,AVERAGE(SMALL(IF(AV72:BO72>0,AV72:BO72),{1,2,3,4,5,6,7,8})),BN73) -> 21.5 | BP73: =IF(BP72>0,AVERAGE(SMALL(IF(AW72:BP72>0,AW72:BP72),{1,2,3,4,5,6,7,8})),BO73) -> 21.5 | BQ73: =IF(BQ72>0,AVERAGE(SMALL(IF(AX72:BQ72>0,AX72:BQ72),{1,2,3,4,5,6,7,8})),BP73) -> 21.5 | BR73: =IF(BR72>0,AVERAGE(SMALL(IF(AY72:BR72>0,AY72:BR72),{1,2,3,4,5,6,7,8})),BQ73) -> 21.5 | BS73: =IF(BS72>0,AVERAGE(SMALL(IF(AZ72:BS72>0,AZ72:BS72),{1,2,3,4,5,6,7,8})),BR73) -> 21.5 | BT73: =IF(BT72>0,AVERAGE(SMALL(IF(BA72:BT72>0,BA72:BT72),{1,2,3,4,5,6,7,8})),BS73) -> 21.5 | BU73: =IF(BU72>0,AVERAGE(SMALL(IF(BB72:BU72>0,BB72:BU72),{1,2,3,4,5,6,7,8})),BT73) -> 21.5 | BV73: =IF(BV72>0,AVERAGE(SMALL(IF(BC72:BV72>0,BC72:BV72),{1,2,3,4,5,6,7,8})),BU73) -> 21.5 | BW73: =IF(BW72>0,AVERAGE(SMALL(IF(BD72:BW72>0,BD72:BW72),{1,2,3,4,5,6,7,8})),BV73) -> 21.5 | BX73: =IF(BX72>0,AVERAGE(SMALL(IF(BE72:BX72>0,BE72:BX72),{1,2,3,4,5,6,7,8})),BW73) -> 21.5 | BY73: =IF(BY72>0,AVERAGE(SMALL(IF(BF72:BY72>0,BF72:BY72),{1,2,3,4,5,6,7,8})),BX73) -> 21.5 | BZ73: =IF(BZ72>0,AVERAGE(SMALL(IF(BG72:BZ72>0,BG72:BZ72),{1,2,3,4,5,6,7,8})),BY73) -> 21.5 | CA73: =IF(CA72>0,AVERAGE(SMALL(IF(BH72:CA72>0,BH72:CA72),{1,2,3,4,5,6,7,8})),BZ73) -> 21.5 | CB73: =IF(CB72>0,AVERAGE(SMALL(IF(BI72:CB72>0,BI72:CB72),{1,2,3,4,5,6,7,8})),CA73) -> 21.5 | CC73: =IF(CC72>0,AVERAGE(SMALL(IF(BJ72:CC72>0,BJ72:CC72),{1,2,3,4,5,6,7,8})),CB73) -> 21.5 | CD73: =IF(CD72>0,AVERAGE(SMALL(IF(BK72:CD72>0,BK72:CD72),{1,2,3,4,5,6,7,8})),CC73) -> 21.5 | CE73: =IF(CE72>0,AVERAGE(SMALL(IF(BL72:CE72>0,BL72:CE72),{1,2,3,4,5,6,7,8})),CD73) -> 21.5 | CF73: =IF(CF72>0,AVERAGE(SMALL(IF(BM72:CF72>0,BM72:CF72),{1,2,3,4,5,6,7,8})),CE73) -> 21.5 | CG73: =IF(CG72>0,AVERAGE(SMALL(IF(BN72:CG72>0,BN72:CG72),{1,2,3,4,5,6,7,8})),CF73) -> 21.5 | CH73: =IF(CH72>0,AVERAGE(SMALL(IF(BO72:CH72>0,BO72:CH72),{1,2,3,4,5,6,7,8})),CG73) -> 21.5 | CI73: =IF(CI72>0,AVERAGE(SMALL(IF(BP72:CI72>0,BP72:CI72),{1,2,3,4,5,6,7,8})),CH73) -> 21.5 | CJ73: =IF(CJ72>0,AVERAGE(SMALL(IF(BQ72:CJ72>0,BQ72:CJ72),{1,2,3,4,5,6,7,8})),CI73) -> 21.5 | CK73: =IF(CK72>0,AVERAGE(SMALL(IF(BR72:CK72>0,BR72:CK72),{1,2,3,4,5,6,7,8})),CJ73) -> 21.5 | CL73: =IF(CL72>0,AVERAGE(SMALL(IF(BS72:CL72>0,BS72:CL72),{1,2,3,4,5,6,7,8})),CK73) -> 21.5 | CM73: =IF(CM72>0,AVERAGE(SMALL(IF(BT72:CM72>0,BT72:CM72),{1,2,3,4,5,6,7,8})),CL73) -> 21.5 | CN73: =IF(CN72>0,AVERAGE(SMALL(IF(BU72:CN72>0,BU72:CN72),{1,2,3,4,5,6,7,8})),CM73) -> 21.5 | CO73: =IF(CO72>0,AVERAGE(SMALL(IF(BV72:CO72>0,BV72:CO72),{1,2,3,4,5,6,7,8})),CN73) -> 21.5 | CP73: =IF(CP72>0,AVERAGE(SMALL(IF(BW72:CP72>0,BW72:CP72),{1,2,3,4,5,6,7,8})),CO73) -> 21.5 | CQ73: =IF(CQ72>0,AVERAGE(SMALL(IF(BX72:CQ72>0,BX72:CQ72),{1,2,3,4,5,6,7,8})),CP73) -> 21.5 | CR73: =IF(CR72>0,AVERAGE(SMALL(IF(BY72:CR72>0,BY72:CR72),{1,2,3,4,5,6,7,8})),CQ73) -> 21.5 | CS73: =IF(CS72>0,AVERAGE(SMALL(IF(BZ72:CS72>0,BZ72:CS72),{1,2,3,4,5,6,7,8})),CR73) -> 21.5 | CT73: =IF(CT72>0,AVERAGE(SMALL(IF(CA72:CT72>0,CA72:CT72),{1,2,3,4,5,6,7,8})),CS73) -> 21.5 | CU73: =IF(CU72>0,AVERAGE(SMALL(IF(CB72:CU72>0,CB72:CU72),{1,2,3,4,5,6,7,8})),CT73) -> 21.5 | CV73: =IF(CV72>0,AVERAGE(SMALL(IF(CC72:CV72>0,CC72:CV72),{1,2,3,4,5,6,7,8})),CU73) -> 21.5 | CW73: =IF(CW72>0,AVERAGE(SMALL(IF(CD72:CW72>0,CD72:CW72),{1,2,3,4,5,6,7,8})),CV73) -> 21.5
I74: Low Hcap | AC74: =MIN($Q73:AC73) -> 21.5 | AD74: =MIN($J73:AD73) -> 18.4 | AE74: =MIN($J73:AE73) -> 18.4 | AF74: =MIN($J73:AF73) -> 18.4 | AG74: =MIN($J73:AG73) -> 18.4 | AH74: =MIN($J73:AH73) -> 18.4 | AI74: =MIN($J73:AI73) -> 18.4 | AJ74: =MIN($J73:AJ73) -> 18.4 | AK74: =MIN($J73:AK73) -> 18.4 | AL74: =MIN($J73:AL73) -> 18.4 | AM74: =MIN($J73:AM73) -> 18.4 | AN74: =MIN($J73:AN73) -> 18.4 | AO74: =MIN($J73:AO73) -> 18.4 | AP74: =MIN($J73:AP73) -> 18.4 | AQ74: =MIN($J73:AQ73) -> 18.4 | AR74: =MIN($J73:AR73) -> 18.4 | AS74: =MIN($J73:AS73) -> 18.4 | AT74: =MIN($J73:AT73) -> 18.4 | AU74: =MIN($J73:AU73) -> 18.4 | AV74: =MIN($J73:AV73) -> 18.4 | AW74: =MIN($J73:AW73) -> 18.4 | AX74: =MIN($J73:AX73) -> 18.4 | AY74: =MIN($J73:AY73) -> 18.4 | AZ74: =MIN($J73:AZ73) -> 18.4 | BA74: =MIN($J73:BA73) -> 18.4 | BB74: =MIN($J73:BB73) -> 18.4 | BC74: =MIN($J73:BC73) -> 18.4 | BD74: =MIN($J73:BD73) -> 18.4 | BE74: =MIN($J73:BE73) -> 18.4 | BF74: =MIN($J73:BF73) -> 18.4 | BG74: =MIN($J73:BG73) -> 18.4 | BH74: =MIN($J73:BH73) -> 18.4 | BI74: =MIN($J73:BI73) -> 18.4 | BJ74: =MIN($J73:BJ73) -> 18.4 | BK74: =MIN($J73:BK73) -> 18.4 | BL74: =MIN($J73:BL73) -> 18.4 | BM74: =MIN($J73:BM73) -> 18.4 | BN74: =MIN($J73:BN73) -> 18.4 | BO74: =MIN($J73:BO73) -> 18.4 | BP74: =MIN($J73:BP73) -> 18.4 | BQ74: =MIN($J73:BQ73) -> 18.4 | BR74: =MIN($J73:BR73) -> 18.4 | BS74: =MIN($J73:BS73) -> 18.4 | BT74: =MIN($J73:BT73) -> 18.4 | BU74: =MIN($J73:BU73) -> 18.4 | BV74: =MIN($J73:BV73) -> 18.4 | BW74: =MIN($J73:BW73) -> 18.4 | BX74: =MIN($J73:BX73) -> 18.4 | BY74: =MIN($J73:BY73) -> 18.4 | BZ74: =MIN($J73:BZ73) -> 18.4 | CA74: =MIN($J73:CA73) -> 18.4 | CB74: =MIN($J73:CB73) -> 18.4 | CC74: =MIN($J73:CC73) -> 18.4 | CD74: =MIN($J73:CD73) -> 18.4 | CE74: =MIN($J73:CE73) -> 18.4 | CF74: =MIN($J73:CF73) -> 18.4 | CG74: =MIN($J73:CG73) -> 18.4 | CH74: =MIN($J73:CH73) -> 18.4 | CI74: =MIN($J73:CI73) -> 18.4 | CJ74: =MIN($J73:CJ73) -> 18.4 | CK74: =MIN($J73:CK73) -> 18.4 | CL74: =MIN($J73:CL73) -> 18.4 | CM74: =MIN($J73:CM73) -> 18.4 | CN74: =MIN($J73:CN73) -> 18.4 | CO74: =MIN($J73:CO73) -> 18.4 | CP74: =MIN($J73:CP73) -> 18.4 | CQ74: =MIN($J73:CQ73) -> 18.4 | CR74: =MIN($J73:CR73) -> 18.4 | CS74: =MIN($J73:CS73) -> 18.4 | CT74: =MIN($J73:CT73) -> 18.4 | CU74: =MIN($J73:CU73) -> 18.4 | CV74: =MIN($J73:CV73) -> 18.4 | CW74: =MIN($J73:CW73) -> 18.4
B75: Chester | C75: Allan | D75: 12.1 | F75: =IF(H75<4,"Y",) -> 0 | G75: 2019 | H75: =COUNT(J75:CX75) -> 34 | I75: Date | K75: 2020-06-14 | L75: 2020-06-28 | M75: 2020-07-03 | N75: 2020-07-12 | O75: 2020-08-09 | P75: 2020-09-12 | Q75: 2020-11-15 | R75: 2021-03-28 | S75: 2021-04-11 | T75: 2021-04-25 | U75: 2021-04-30 | V75: 2021-05-14 | W75: 2021-05-30 | X75: 2021-06-04 | Y75: 2021-07-11 | Z75: 2021-07-30 | AA75: 2021-08-15 | AB75: 2021-09-03 | AC75: 2021-09-19 | AD75: 2021-10-31 | AE75: 2021-11-14 | AF75: 2022-06-05 | AG75: 2022-06-12 | AH75: 2022-06-17 | AI75: 2022-07-24 | AJ75: 2022-07-31 | AK75: 2022-08-12 | AL75: 2022-08-21 | AM75: 2022-09-02 | AN75: 2022-10-07 | AO75: 2022-10-21 | AP75: 2023-05-07 | AQ75: 2023-05-19 | AR75: 2023-05-28 | CY75: =IF(CW79>$DD$1,36,CW79) -> 12.03785085 | CZ75: 11.38841603 | DA75: =CZ75-CY75 -> -0.6494348209
I76: Course | K76: OdelzhausenHG | L76: ErdingHG | M76: TegernbachHG | N76: PfaffingHG | O76: ErdingHG | P76: TegernbachHG | Q76: OdelzhausenHG | R76: OdelzhausenHG | S76: ErdingHR | T76: PfaffingHG | U76: TegernbachHG | V76: StEurachHG | W76: IffeldorfHG | X76: EgmatingHG | Y76: PfaffingHG | Z76: MangfalltalHG | AA76: ErdingHG | AB76: StEurachHG | AC76: ErdingHG | AD76: ErdingHG | AE76: OdelzhausenHG | AF76: IffeldorfHG | AG76: ErdingHG | AH76: StEurachHG | AI76: Pfaffing2022HG | AJ76: HohenpaehlHG | AK76: ValleyHG | AL76: Pfaffing2022HG | AM76: StEurachHG | AN76: EgmatingHG | AO76: TegernbachHG | AP76: Odelzhausen2023HG | AQ76: GarmischHG | AR76: ErdingHG
I77: Ad Gr | K77: 104 | L77: 95 | M77: 85 | N77: 99 | O77: 91 | P77: 85 | Q77: 87 | R77: 92 | S77: 84 | T77: 86 | U77: 93 | V77: 82 | W77: 92 | X77: 101 | Y77: 82 | Z77: 94 | AA77: 94 | AB77: 86 | AC77: 97 | AD77: 89 | AE77: 97 | AF77: 93 | AG77: 93 | AH77: 83 | AI77: 89 | AJ77: 83 | AK77: 93 | AL77: 88 | AM77: 88 | AN77: 91 | AO77: 97 | AP77: 96 | AQ77: 105 | AR77: 87
I78: SD | J78: 12.1 | K78: =IF(K77="",0,(K77-INDIRECT(CONCATENATE(K76,"CR")))*113/INDIRECT(CONCATENATE(K76,"SR"))) -> 28.6503937 | L78: =IF(L77="",0,(L77-INDIRECT(CONCATENATE(L76,"CR")))*113/INDIRECT(CONCATENATE(L76,"SR"))) -> 20.86153846 | M78: =IF(M77="",0,(M77-INDIRECT(CONCATENATE(M76,"CR")))*113/INDIRECT(CONCATENATE(M76,"SR"))) -> 11.38560606 | N78: =IF(N77="",0,(N77-INDIRECT(CONCATENATE(N76,"CR")))*113/INDIRECT(CONCATENATE(N76,"SR"))) -> 23.46923077 | O78: =IF(O77="",0,(O77-INDIRECT(CONCATENATE(O76,"CR")))*113/INDIRECT(CONCATENATE(O76,"SR"))) -> 17.38461538 | P78: =IF(P77="",0,(P77-INDIRECT(CONCATENATE(P76,"CR")))*113/INDIRECT(CONCATENATE(P76,"SR"))) -> 11.38560606 | Q78: =IF(Q77="",0,(Q77-INDIRECT(CONCATENATE(Q76,"CR")))*113/INDIRECT(CONCATENATE(Q76,"SR"))) -> 13.52440945 | R78: =IF(R77="",0,(R77-INDIRECT(CONCATENATE(R76,"CR")))*113/INDIRECT(CONCATENATE(R76,"SR"))) -> 17.97322835 | S78: =IF(S77="",0,(S77-INDIRECT(CONCATENATE(S76,"CR")))*113/INDIRECT(CONCATENATE(S76,"SR"))) -> 16.23781513 | T78: =IF(T77="",0,(T77-INDIRECT(CONCATENATE(T76,"CR")))*113/INDIRECT(CONCATENATE(T76,"SR"))) -> 12.16923077 | U78: =IF(U77="",0,(U77-INDIRECT(CONCATENATE(U76,"CR")))*113/INDIRECT(CONCATENATE(U76,"SR"))) -> 18.23409091 | V78: =IF(V77="",0,(V77-INDIRECT(CONCATENATE(V76,"CR")))*113/INDIRECT(CONCATENATE(V76,"SR"))) -> 8.71221374 | W78: =IF(W77="",0,(W77-INDIRECT(CONCATENATE(W76,"CR")))*113/INDIRECT(CONCATENATE(W76,"SR"))) -> 18.22015504 | X78: =IF(X77="",0,(X77-INDIRECT(CONCATENATE(X76,"CR")))*113/INDIRECT(CONCATENATE(X76,"SR"))) -> 24.75648855 | Y78: =IF(Y77="",0,(Y77-INDIRECT(CONCATENATE(Y76,"CR")))*113/INDIRECT(CONCATENATE(Y76,"SR"))) -> 8.692307692 | Z78: =IF(Z77="",0,(Z77-INDIRECT(CONCATENATE(Z76,"CR")))*113/INDIRECT(CONCATENATE(Z76,"SR"))) -> 18.99710145 | AA78: =IF(AA77="",0,(AA77-INDIRECT(CONCATENATE(AA76,"CR")))*113/INDIRECT(CONCATENATE(AA76,"SR"))) -> 19.99230769 | AB78: =IF(AB77="",0,(AB77-INDIRECT(CONCATENATE(AB76,"CR")))*113/INDIRECT(CONCATENATE(AB76,"SR"))) -> 12.16259542 | AC78: =IF(AC77="",0,(AC77-INDIRECT(CONCATENATE(AC76,"CR")))*113/INDIRECT(CONCATENATE(AC76,"SR"))) -> 22.6 | AD78: =IF(AD77="",0,(AD77-INDIRECT(CONCATENATE(AD76,"CR")))*113/INDIRECT(CONCATENATE(AD76,"SR"))) -> 15.64615385 | AE78: =IF(AE77="",0,(AE77-INDIRECT(CONCATENATE(AE76,"CR")))*113/INDIRECT(CONCATENATE(AE76,"SR"))) -> 22.42204724 | AF78: =IF(AF77="",0,(AF77-INDIRECT(CONCATENATE(AF76,"CR")))*113/INDIRECT(CONCATENATE(AF76,"SR"))) -> 19.09612403 | AG78: 19.12307692 | AH78: =IF(AH77="",0,(AH77-INDIRECT(CONCATENATE(AH76,"CR")))*113/INDIRECT(CONCATENATE(AH76,"SR"))) -> 9.57480916 | AI78: 14.16846154 | AJ78: =IF(AJ77="",0,(AJ77-INDIRECT(CONCATENATE(AJ76,"CR")))*113/INDIRECT(CONCATENATE(AJ76,"SR"))) -> 10.60992366 | AK78: 16.32222222 | AL78: =IF(AL77="",0,(AL77-INDIRECT(CONCATENATE(AL76,"CR")))*113/INDIRECT(CONCATENATE(AL76,"SR"))) -> 13.29923077 | AM78: 13.88778626 | AN78: =IF(AN77="",0,(AN77-INDIRECT(CONCATENATE(AN76,"CR")))*113/INDIRECT(CONCATENATE(AN76,"SR"))) -> 16.13053435 | AO78: 21.65833333 | AP78: =IF(AP77="",0,(AP77-INDIRECT(CONCATENATE(AP76,"CR")))*113/INDIRECT(CONCATENATE(AP76,"SR"))) -> 22.23548387 | AQ78: 29.89606299 | AR78: =IF(AR77="",0,(AR77-INDIRECT(CONCATENATE(AR76,"CR")))*113/INDIRECT(CONCATENATE(AR76,"SR"))) -> 13.90769231 | AS78: 0 | AT78: =IF(AT77="",0,(AT77-INDIRECT(CONCATENATE(AT76,"CR")))*113/INDIRECT(CONCATENATE(AT76,"SR"))) -> 0 | AU78: 0 | AV78: =IF(AV77="",0,(AV77-INDIRECT(CONCATENATE(AV76,"CR")))*113/INDIRECT(CONCATENATE(AV76,"SR"))) -> 0 | AW78: 0 | AX78: =IF(AX77="",0,(AX77-INDIRECT(CONCATENATE(AX76,"CR")))*113/INDIRECT(CONCATENATE(AX76,"SR"))) -> 0 | AY78: 0 | AZ78: =IF(AZ77="",0,(AZ77-INDIRECT(CONCATENATE(AZ76,"CR")))*113/INDIRECT(CONCATENATE(AZ76,"SR"))) -> 0 | BA78: 0 | BB78: =IF(BB77="",0,(BB77-INDIRECT(CONCATENATE(BB76,"CR")))*113/INDIRECT(CONCATENATE(BB76,"SR"))) -> 0 | BC78: 0 | BD78: =IF(BD77="",0,(BD77-INDIRECT(CONCATENATE(BD76,"CR")))*113/INDIRECT(CONCATENATE(BD76,"SR"))) -> 0 | BE78: 0 | BF78: =IF(BF77="",0,(BF77-INDIRECT(CONCATENATE(BF76,"CR")))*113/INDIRECT(CONCATENATE(BF76,"SR"))) -> 0 | BG78: 0 | BH78: =IF(BH77="",0,(BH77-INDIRECT(CONCATENATE(BH76,"CR")))*113/INDIRECT(CONCATENATE(BH76,"SR"))) -> 0 | BI78: 0 | BJ78: 0 | BK78: 0 | BL78: 0 | BM78: 0 | BN78: 0 | BO78: 0 | BP78: 0 | BQ78: =IF(BQ77="",0,(BQ77-INDIRECT(CONCATENATE(BQ76,"CR")))*113/INDIRECT(CONCATENATE(BQ76,"SR"))) -> 0 | BR78: 0 | BS78: =IF(BS77="",0,(BS77-INDIRECT(CONCATENATE(BS76,"CR")))*113/INDIRECT(CONCATENATE(BS76,"SR"))) -> 0 | BT78: 0 | BU78: =IF(BU77="",0,(BU77-INDIRECT(CONCATENATE(BU76,"CR")))*113/INDIRECT(CONCATENATE(BU76,"SR"))) -> 0 | BV78: 0 | BW78: =IF(BW77="",0,(BW77-INDIRECT(CONCATENATE(BW76,"CR")))*113/INDIRECT(CONCATENATE(BW76,"SR"))) -> 0 | BX78: 0 | BY78: =IF(BY77="",0,(BY77-INDIRECT(CONCATENATE(BY76,"CR")))*113/INDIRECT(CONCATENATE(BY76,"SR"))) -> 0 | BZ78: 0 | CA78: =IF(CA77="",0,(CA77-INDIRECT(CONCATENATE(CA76,"CR")))*113/INDIRECT(CONCATENATE(CA76,"SR"))) -> 0 | CB78: 0 | CC78: =IF(CC77="",0,(CC77-INDIRECT(CONCATENATE(CC76,"CR")))*113/INDIRECT(CONCATENATE(CC76,"SR"))) -> 0 | CD78: 0 | CE78: =IF(CE77="",0,(CE77-INDIRECT(CONCATENATE(CE76,"CR")))*113/INDIRECT(CONCATENATE(CE76,"SR"))) -> 0 | CF78: 0 | CG78: =IF(CG77="",0,(CG77-INDIRECT(CONCATENATE(CG76,"CR")))*113/INDIRECT(CONCATENATE(CG76,"SR"))) -> 0 | CH78: 0 | CI78: =IF(CI77="",0,(CI77-INDIRECT(CONCATENATE(CI76,"CR")))*113/INDIRECT(CONCATENATE(CI76,"SR"))) -> 0 | CJ78: 0 | CK78: =IF(CK77="",0,(CK77-INDIRECT(CONCATENATE(CK76,"CR")))*113/INDIRECT(CONCATENATE(CK76,"SR"))) -> 0 | CL78: 0 | CM78: =IF(CM77="",0,(CM77-INDIRECT(CONCATENATE(CM76,"CR")))*113/INDIRECT(CONCATENATE(CM76,"SR"))) -> 0 | CN78: 0 | CO78: =IF(CO77="",0,(CO77-INDIRECT(CONCATENATE(CO76,"CR")))*113/INDIRECT(CONCATENATE(CO76,"SR"))) -> 0 | CP78: 0 | CQ78: =IF(CQ77="",0,(CQ77-INDIRECT(CONCATENATE(CQ76,"CR")))*113/INDIRECT(CONCATENATE(CQ76,"SR"))) -> 0 | CR78: 0 | CS78: =IF(CS77="",0,(CS77-INDIRECT(CONCATENATE(CS76,"CR")))*113/INDIRECT(CONCATENATE(CS76,"SR"))) -> 0 | CT78: 0 | CU78: =IF(CU77="",0,(CU77-INDIRECT(CONCATENATE(CU76,"CR")))*113/INDIRECT(CONCATENATE(CU76,"SR"))) -> 0 | CV78: 0 | CW78: =IF(CW77="",0,(CW77-INDIRECT(CONCATENATE(CW76,"CR")))*113/INDIRECT(CONCATENATE(CW76,"SR"))) -> 0
I79: New Hcap | J79: =J78-2 -> 10.1 | K79: =IF(K78>0,MIN(J78:K78)-2,J79) -> 10.1 | L79: =IF(L78>0,MIN(J78:L78)-2,K79) -> 10.1 | M79: =IF(M78>0,MIN(J78:M78)-1,L79) -> 10.38560606 | N79: =IF(N78>0,MIN(J78:N78),M79) -> 11.38560606 | O79: =IF(O78>0,AVERAGE(SMALL(IF(J78:O78>0,J78:O78),{1,2}))-1,N79) -> 10.74280303 | P79: =IF(P78>0,AVERAGE(SMALL(IF(J78:P78>0,J78:P78),{1,2})),O79) -> 11.38560606 | Q79: =IF(Q78>0,AVERAGE(SMALL(IF(J78:Q78>0,J78:Q78),{1,2})),P79) -> 11.38560606 | R79: =IF(R78>0,AVERAGE(SMALL(IF(J78:R78>0,J78:R78),{1,2,3})),Q79) -> 11.62373737 | S79: =IF(S78>0,AVERAGE(SMALL(IF(J78:S78>0,J78:S78),{1,2,3})),R79) -> 11.62373737 | T79: =IF(T78>0,AVERAGE(SMALL(IF(J78:T78>0,J78:T78),{1,2,3})),S79) -> 11.62373737 | U79: =IF(U78>0,AVERAGE(SMALL(IF(J78:U78>0,J78:U78),{1,2,3,4})),T79) -> 11.76011072 | V79: =IF(V78>0,AVERAGE(SMALL(IF(J78:V78>0,J78:V78),{1,2,3,4})),U79) -> 10.89585647 | W79: =IF(W78>0,AVERAGE(SMALL(IF(J78:W78>0,J78:W78),{1,2,3,4})),V79) -> 10.89585647 | X79: =IF(X78>0,AVERAGE(SMALL(IF(J78:X78>0,J78:X78),{1,2,3,4,5})),W79) -> 11.15053133 | Y79: =IF(Y78>0,AVERAGE(SMALL(IF(J78:Y78>0,J78:Y78),{1,2,3,4,5})),X79) -> 10.45514671 | Z79: =IF(Z78>0,AVERAGE(SMALL(IF(J78:Z78>0,J78:Z78),{1,2,3,4,5,6})),Y79) -> 10.74082739 | AA79: =IF(AA78>0,AVERAGE(SMALL(IF(J78:AA78>0,J78:AA78),{1,2,3,4,5,6})),Z79) -> 10.74082739 | AB79: =IF(AB78>0,AVERAGE(SMALL(IF(J78:AB78>0,J78:AB78),{1,2,3,4,5,6,7})),AA79) -> 10.94393711 | AC79: =IF(AC78>0,AVERAGE(SMALL(IF(J78:AC78>0,J78:AC78),{1,2,3,4,5,6,7,8})),AB79) -> 11.26649615 | AD79: =IF(AD78>0,AVERAGE(SMALL(IF(K78:AD78>0,K78:AD78),{1,2,3,4,5,6,7,8})),AC79) -> 11.70976538 | AE79: =IF(AE78>0,AVERAGE(SMALL(IF(L78:AE78>0,L78:AE78),{1,2,3,4,5,6,7,8})),AD79) -> 11.70976538 | AF79: =IF(AF78>0,AVERAGE(SMALL(IF(M78:AF78>0,M78:AF78),{1,2,3,4,5,6,7,8})),AE79) -> 11.70976538 | AG79: =IF(AG78>0,AVERAGE(SMALL(IF(N78:AG78>0,N78:AG78),{1,2,3,4,5,6,7,8})),AF79) -> 12.31629151 | AH79: =IF(AH78>0,AVERAGE(SMALL(IF(O78:AH78>0,O78:AH78),{1,2,3,4,5,6,7,8})),AG79) -> 11.48341577 | AI79: =IF(AI78>0,AVERAGE(SMALL(IF(P78:AI78>0,P78:AI78),{1,2,3,4,5,6,7,8})),AH79) -> 11.29870423 | AJ79: =IF(AJ78>0,AVERAGE(SMALL(IF(Q78:AJ78>0,Q78:AJ78),{1,2,3,4,5,6,7,8})),AI79) -> 11.20174393 | AK79: =IF(AK78>0,AVERAGE(SMALL(IF(R78:AK78>0,R78:AK78),{1,2,3,4,5,6,7,8})),AJ79) -> 11.46696198 | AL79: =IF(AL78>0,AVERAGE(SMALL(IF(S78:AL78>0,S78:AL78),{1,2,3,4,5,6,7,8})),AK79) -> 11.17359659 | AM79: =IF(AM78>0,AVERAGE(SMALL(IF(T78:AM78>0,T78:AM78),{1,2,3,4,5,6,7,8})),AL79) -> 11.13851218 | AN79: =IF(AN78>0,AVERAGE(SMALL(IF(U78:AN78>0,U78:AN78),{1,2,3,4,5,6,7,8})),AM79) -> 11.38841603 | AO79: =IF(AO78>0,AVERAGE(SMALL(IF(V78:AO78>0,V78:AO78),{1,2,3,4,5,6,7,8})),AN79) -> 11.38841603 | AP79: =IF(AP78>0,AVERAGE(SMALL(IF(W78:AP78>0,W78:AP78),{1,2,3,4,5,6,7,8})),AO79) -> 12.25515854 | AQ79: =IF(AQ78>0,AVERAGE(SMALL(IF(X78:AQ78>0,X78:AQ78),{1,2,3,4,5,6,7,8})),AP79) -> 12.25515854 | AR79: =IF(AR78>0,AVERAGE(SMALL(IF(Y78:AR78>0,Y78:AR78),{1,2,3,4,5,6,7,8})),AQ79) -> 12.03785085 | AS79: =IF(AS78>0,AVERAGE(SMALL(IF(Z78:AS78>0,Z78:AS78),{1,2,3,4,5,6,7,8})),AR79) -> 12.03785085 | AT79: =IF(AT78>0,AVERAGE(SMALL(IF(AA78:AT78>0,AA78:AT78),{1,2,3,4,5,6,7,8})),AS79) -> 12.03785085 | AU79: =IF(AU78>0,AVERAGE(SMALL(IF(AB78:AU78>0,AB78:AU78),{1,2,3,4,5,6,7,8})),AT79) -> 12.03785085 | AV79: =IF(AV78>0,AVERAGE(SMALL(IF(AC78:AV78>0,AC78:AV78),{1,2,3,4,5,6,7,8})),AU79) -> 12.03785085 | AW79: =IF(AW78>0,AVERAGE(SMALL(IF(AD78:AW78>0,AD78:AW78),{1,2,3,4,5,6,7,8})),AV79) -> 12.03785085 | AX79: =IF(AX78>0,AVERAGE(SMALL(IF(AE78:AX78>0,AE78:AX78),{1,2,3,4,5,6,7,8})),AW79) -> 12.03785085 | AY79: =IF(AY78>0,AVERAGE(SMALL(IF(AF78:AY78>0,AF78:AY78),{1,2,3,4,5,6,7,8})),AX79) -> 12.03785085 | AZ79: =IF(AZ78>0,AVERAGE(SMALL(IF(AG78:AZ78>0,AG78:AZ78),{1,2,3,4,5,6,7,8})),AY79) -> 12.03785085 | BA79: =IF(BA78>0,AVERAGE(SMALL(IF(AH78:BA78>0,AH78:BA78),{1,2,3,4,5,6,7,8})),AZ79) -> 12.03785085 | BB79: =IF(BB78>0,AVERAGE(SMALL(IF(AI78:BB78>0,AI78:BB78),{1,2,3,4,5,6,7,8})),BA79) -> 12.03785085 | BC79: =IF(BC78>0,AVERAGE(SMALL(IF(AJ78:BC78>0,AJ78:BC78),{1,2,3,4,5,6,7,8})),BB79) -> 12.03785085 | BD79: =IF(BD78>0,AVERAGE(SMALL(IF(AK78:BD78>0,AK78:BD78),{1,2,3,4,5,6,7,8})),BC79) -> 12.03785085 | BE79: =IF(BE78>0,AVERAGE(SMALL(IF(AL78:BE78>0,AL78:BE78),{1,2,3,4,5,6,7,8})),BD79) -> 12.03785085 | BF79: =IF(BF78>0,AVERAGE(SMALL(IF(AM78:BF78>0,AM78:BF78),{1,2,3,4,5,6,7,8})),BE79) -> 12.03785085 | BG79: =IF(BG78>0,AVERAGE(SMALL(IF(AN78:BG78>0,AN78:BG78),{1,2,3,4,5,6,7,8})),BF79) -> 12.03785085 | BH79: =IF(BH78>0,AVERAGE(SMALL(IF(AO78:BH78>0,AO78:BH78),{1,2,3,4,5,6,7,8})),BG79) -> 12.03785085 | BI79: =IF(BI78>0,AVERAGE(SMALL(IF(AP78:BI78>0,AP78:BI78),{1,2,3,4,5,6,7,8})),BH79) -> 12.03785085 | BJ79: =IF(BJ78>0,AVERAGE(SMALL(IF(AQ78:BJ78>0,AQ78:BJ78),{1,2,3,4,5,6,7,8})),BI79) -> 12.03785085 | BK79: =IF(BK78>0,AVERAGE(SMALL(IF(AR78:BK78>0,AR78:BK78),{1,2,3,4,5,6,7,8})),BJ79) -> 12.03785085 | BL79: =IF(BL78>0,AVERAGE(SMALL(IF(AS78:BL78>0,AS78:BL78),{1,2,3,4,5,6,7,8})),BK79) -> 12.03785085 | BM79: =IF(BM78>0,AVERAGE(SMALL(IF(AT78:BM78>0,AT78:BM78),{1,2,3,4,5,6,7,8})),BL79) -> 12.03785085 | BN79: =IF(BN78>0,AVERAGE(SMALL(IF(AU78:BN78>0,AU78:BN78),{1,2,3,4,5,6,7,8})),BM79) -> 12.03785085 | BO79: =IF(BO78>0,AVERAGE(SMALL(IF(AV78:BO78>0,AV78:BO78),{1,2,3,4,5,6,7,8})),BN79) -> 12.03785085 | BP79: =IF(BP78>0,AVERAGE(SMALL(IF(AW78:BP78>0,AW78:BP78),{1,2,3,4,5,6,7,8})),BO79) -> 12.03785085 | BQ79: =IF(BQ78>0,AVERAGE(SMALL(IF(AX78:BQ78>0,AX78:BQ78),{1,2,3,4,5,6,7,8})),BP79) -> 12.03785085 | BR79: =IF(BR78>0,AVERAGE(SMALL(IF(AY78:BR78>0,AY78:BR78),{1,2,3,4,5,6,7,8})),BQ79) -> 12.03785085 | BS79: =IF(BS78>0,AVERAGE(SMALL(IF(AZ78:BS78>0,AZ78:BS78),{1,2,3,4,5,6,7,8})),BR79) -> 12.03785085 | BT79: =IF(BT78>0,AVERAGE(SMALL(IF(BA78:BT78>0,BA78:BT78),{1,2,3,4,5,6,7,8})),BS79) -> 12.03785085 | BU79: =IF(BU78>0,AVERAGE(SMALL(IF(BB78:BU78>0,BB78:BU78),{1,2,3,4,5,6,7,8})),BT79) -> 12.03785085 | BV79: =IF(BV78>0,AVERAGE(SMALL(IF(BC78:BV78>0,BC78:BV78),{1,2,3,4,5,6,7,8})),BU79) -> 12.03785085 | BW79: =IF(BW78>0,AVERAGE(SMALL(IF(BD78:BW78>0,BD78:BW78),{1,2,3,4,5,6,7,8})),BV79) -> 12.03785085 | BX79: =IF(BX78>0,AVERAGE(SMALL(IF(BE78:BX78>0,BE78:BX78),{1,2,3,4,5,6,7,8})),BW79) -> 12.03785085 | BY79: =IF(BY78>0,AVERAGE(SMALL(IF(BF78:BY78>0,BF78:BY78),{1,2,3,4,5,6,7,8})),BX79) -> 12.03785085 | BZ79: =IF(BZ78>0,AVERAGE(SMALL(IF(BG78:BZ78>0,BG78:BZ78),{1,2,3,4,5,6,7,8})),BY79) -> 12.03785085 | CA79: =IF(CA78>0,AVERAGE(SMALL(IF(BH78:CA78>0,BH78:CA78),{1,2,3,4,5,6,7,8})),BZ79) -> 12.03785085 | CB79: =IF(CB78>0,AVERAGE(SMALL(IF(BI78:CB78>0,BI78:CB78),{1,2,3,4,5,6,7,8})),CA79) -> 12.03785085 | CC79: =IF(CC78>0,AVERAGE(SMALL(IF(BJ78:CC78>0,BJ78:CC78),{1,2,3,4,5,6,7,8})),CB79) -> 12.03785085 | CD79: =IF(CD78>0,AVERAGE(SMALL(IF(BK78:CD78>0,BK78:CD78),{1,2,3,4,5,6,7,8})),CC79) -> 12.03785085 | CE79: =IF(CE78>0,AVERAGE(SMALL(IF(BL78:CE78>0,BL78:CE78),{1,2,3,4,5,6,7,8})),CD79) -> 12.03785085 | CF79: =IF(CF78>0,AVERAGE(SMALL(IF(BM78:CF78>0,BM78:CF78),{1,2,3,4,5,6,7,8})),CE79) -> 12.03785085 | CG79: =IF(CG78>0,AVERAGE(SMALL(IF(BN78:CG78>0,BN78:CG78),{1,2,3,4,5,6,7,8})),CF79) -> 12.03785085 | CH79: =IF(CH78>0,AVERAGE(SMALL(IF(BO78:CH78>0,BO78:CH78),{1,2,3,4,5,6,7,8})),CG79) -> 12.03785085 | CI79: =IF(CI78>0,AVERAGE(SMALL(IF(BP78:CI78>0,BP78:CI78),{1,2,3,4,5,6,7,8})),CH79) -> 12.03785085 | CJ79: =IF(CJ78>0,AVERAGE(SMALL(IF(BQ78:CJ78>0,BQ78:CJ78),{1,2,3,4,5,6,7,8})),CI79) -> 12.03785085 | CK79: =IF(CK78>0,AVERAGE(SMALL(IF(BR78:CK78>0,BR78:CK78),{1,2,3,4,5,6,7,8})),CJ79) -> 12.03785085 | CL79: =IF(CL78>0,AVERAGE(SMALL(IF(BS78:CL78>0,BS78:CL78),{1,2,3,4,5,6,7,8})),CK79) -> 12.03785085 | CM79: =IF(CM78>0,AVERAGE(SMALL(IF(BT78:CM78>0,BT78:CM78),{1,2,3,4,5,6,7,8})),CL79) -> 12.03785085 | CN79: =IF(CN78>0,AVERAGE(SMALL(IF(BU78:CN78>0,BU78:CN78),{1,2,3,4,5,6,7,8})),CM79) -> 12.03785085 | CO79: =IF(CO78>0,AVERAGE(SMALL(IF(BV78:CO78>0,BV78:CO78),{1,2,3,4,5,6,7,8})),CN79) -> 12.03785085 | CP79: =IF(CP78>0,AVERAGE(SMALL(IF(BW78:CP78>0,BW78:CP78),{1,2,3,4,5,6,7,8})),CO79) -> 12.03785085 | CQ79: =IF(CQ78>0,AVERAGE(SMALL(IF(BX78:CQ78>0,BX78:CQ78),{1,2,3,4,5,6,7,8})),CP79) -> 12.03785085 | CR79: =IF(CR78>0,AVERAGE(SMALL(IF(BY78:CR78>0,BY78:CR78),{1,2,3,4,5,6,7,8})),CQ79) -> 12.03785085 | CS79: =IF(CS78>0,AVERAGE(SMALL(IF(BZ78:CS78>0,BZ78:CS78),{1,2,3,4,5,6,7,8})),CR79) -> 12.03785085 | CT79: =IF(CT78>0,AVERAGE(SMALL(IF(CA78:CT78>0,CA78:CT78),{1,2,3,4,5,6,7,8})),CS79) -> 12.03785085 | CU79: =IF(CU78>0,AVERAGE(SMALL(IF(CB78:CU78>0,CB78:CU78),{1,2,3,4,5,6,7,8})),CT79) -> 12.03785085 | CV79: =IF(CV78>0,AVERAGE(SMALL(IF(CC78:CV78>0,CC78:CV78),{1,2,3,4,5,6,7,8})),CU79) -> 12.03785085 | CW79: =IF(CW78>0,AVERAGE(SMALL(IF(CD78:CW78>0,CD78:CW78),{1,2,3,4,5,6,7,8})),CV79) -> 12.03785085
I80: Low Hcap | AC80: =MIN($Q79:AC79) -> 10.45514671 | AD80: =MIN($Q79:AD79) -> 10.45514671 | AE80: =MIN($Q79:AE79) -> 10.45514671 | AF80: =MIN($Y79:AF79) -> 10.45514671 | AG80: =MIN($Y79:AG79) -> 10.45514671 | AH80: =MIN($Y79:AH79) -> 10.45514671 | AI80: =MIN($Z79:AI79) -> 10.74082739 | AJ80: =MIN($AA79:AJ79) -> 10.74082739 | AK80: =MIN($AA79:AK79) -> 10.74082739 | AL80: =MIN($AA79:AL79) -> 10.74082739 | AM80: =MIN($AB79:AM79) -> 10.94393711 | AN80: =MIN($AD79:AN79) -> 11.13851218 | AO80: =MIN($AD79:AO79) -> 11.13851218 | AP80: =MIN($AF79:AP79) -> 11.13851218 | AQ80: =MIN($AF79:AQ79) -> 11.13851218 | AR80: =MIN($AF79:AR79) -> 11.13851218 | AS80: =MIN($AF79:AS79) -> 11.13851218 | AT80: =MIN($AF79:AT79) -> 11.13851218 | AU80: =MIN($AF79:AU79) -> 11.13851218 | AV80: =MIN($AF79:AV79) -> 11.13851218 | AW80: =MIN($AF79:AW79) -> 11.13851218 | AX80: =MIN($AF79:AX79) -> 11.13851218 | AY80: =MIN($AF79:AY79) -> 11.13851218 | AZ80: =MIN($AF79:AZ79) -> 11.13851218 | BA80: =MIN($AF79:BA79) -> 11.13851218 | BB80: =MIN($AF79:BB79) -> 11.13851218 | BC80: =MIN($AF79:BC79) -> 11.13851218 | BD80: =MIN($AF79:BD79) -> 11.13851218 | BE80: =MIN($AF79:BE79) -> 11.13851218 | BF80: =MIN($AF79:BF79) -> 11.13851218 | BG80: =MIN($AF79:BG79) -> 11.13851218 | BH80: =MIN($AF79:BH79) -> 11.13851218 | BI80: =MIN($AF79:BI79) -> 11.13851218 | BJ80: =MIN($AF79:BJ79) -> 11.13851218 | BK80: =MIN($AF79:BK79) -> 11.13851218 | BL80: =MIN($AF79:BL79) -> 11.13851218 | BM80: =MIN($AF79:BM79) -> 11.13851218 | BN80: =MIN($AF79:BN79) -> 11.13851218 | BO80: =MIN($AF79:BO79) -> 11.13851218 | BP80: =MIN($AF79:BP79) -> 11.13851218 | BQ80: =MIN($AF79:BQ79) -> 11.13851218 | BR80: =MIN($AF79:BR79) -> 11.13851218 | BS80: =MIN($AF79:BS79) -> 11.13851218 | BT80: =MIN($AF79:BT79) -> 11.13851218 | BU80: =MIN($AF79:BU79) -> 11.13851218 | BV80: =MIN($AF79:BV79) -> 11.13851218 | BW80: =MIN($AF79:BW79) -> 11.13851218 | BX80: =MIN($AF79:BX79) -> 11.13851218 | BY80: =MIN($AF79:BY79) -> 11.13851218 | BZ80: =MIN($AF79:BZ79) -> 11.13851218 | CA80: =MIN($AF79:CA79) -> 11.13851218 | CB80: =MIN($AF79:CB79) -> 11.13851218 | CC80: =MIN($AF79:CC79) -> 11.13851218 | CD80: =MIN($AF79:CD79) -> 11.13851218 | CE80: =MIN($AF79:CE79) -> 11.13851218 | CF80: =MIN($AF79:CF79) -> 11.13851218 | CG80: =MIN($AF79:CG79) -> 11.13851218 | CH80: =MIN($AF79:CH79) -> 11.13851218 | CI80: =MIN($AF79:CI79) -> 11.13851218 | CJ80: =MIN($AF79:CJ79) -> 11.13851218 | CK80: =MIN($AF79:CK79) -> 11.13851218 | CL80: =MIN($AF79:CL79) -> 11.13851218 | CM80: =MIN($AF79:CM79) -> 11.13851218 | CN80: =MIN($AF79:CN79) -> 11.13851218 | CO80: =MIN($AF79:CO79) -> 11.13851218 | CP80: =MIN($AF79:CP79) -> 11.13851218 | CQ80: =MIN($AF79:CQ79) -> 11.13851218 | CR80: =MIN($AF79:CR79) -> 11.13851218 | CS80: =MIN($AF79:CS79) -> 11.13851218 | CT80: =MIN($AF79:CT79) -> 11.13851218 | CU80: =MIN($AF79:CU79) -> 11.13851218 | CV80: =MIN($AF79:CV79) -> 11.13851218 | CW80: =MIN($AF79:CW79) -> 11.13851218
B81: Chlebek | C81: Mark | D81: 30.5 | F81: =IF(H81<4,"Y",) -> 0 | G81: 2020 | H81: =COUNT(J81:CX81) -> 9 | I81: Date | K81: 2020-05-31 | L81: 2020-06-14 | M81: 2020-06-19 | N81: 2020-06-28 | O81: 2020-07-26 | P81: 2020-07-31 | Q81: 2020-08-14 | R81: 2020-09-06 | S81: 2021-04-30 | CY81: =IF(CW85>$DD$1,36,CW85) -> 31.32023016 | CZ81: 31.32023016 | DA81: =CZ81-CY81 -> 0
I82: Course | K82: ErdingHG | L82: OdelzhausenHG | M82: StEurachHG | N82: ErdingHG | O82: OdelzhausenHG | P82: StEurachHG | Q82: EgmatingHG | R82: OdelzhausenHG | S82: TegernbachHG
I83: Ad Gr | K83: 109 | L83: 106 | M83: 118 | N83: 118 | O83: 114 | P83: 119 | Q83: 114 | R83: 112 | S83: 116
I84: SD | J84: 30.5 | K84: =IF(K83="",0,(K83-INDIRECT(CONCATENATE(K82,"CR")))*113/INDIRECT(CONCATENATE(K82,"SR"))) -> 33.03076923 | L84: 30.42992126 | M84: 39.76564885 | N84: 40.85384615 | O84: 37.5480315 | P84: 40.62824427 | Q84: 35.97022901 | R84: 35.76850394 | S84: 37.92348485 | T84: 0 | U84: 0 | V84: 0 | W84: 0 | X84: 0 | Y84: 0 | Z84: 0 | AA84: 0 | AB84: 0 | AC84: 0 | AD84: 0 | AE84: 0 | AF84: 0 | AG84: 0 | AH84: 0 | AI84: 0 | AJ84: 0 | AK84: 0 | AL84: 0 | AM84: 0 | AN84: 0 | AO84: 0 | AP84: 0 | AQ84: 0 | AR84: 0 | AS84: 0 | AT84: 0 | AU84: 0 | AV84: 0 | AW84: 0 | AX84: 0 | AY84: 0 | AZ84: 0 | BA84: 0 | BB84: 0 | BC84: 0 | BD84: 0 | BE84: 0 | BF84: 0 | BG84: 0 | BH84: 0 | BI84: 0 | BJ84: 0 | BK84: 0 | BL84: 0 | BM84: 0 | BN84: 0 | BO84: 0 | BP84: 0 | BQ84: 0 | BR84: 0 | BS84: 0 | BT84: 0 | BU84: 0 | BV84: 0 | BW84: =IF(BW83="",0,(BW83-INDIRECT(CONCATENATE(BW82,"CR")))*113/INDIRECT(CONCATENATE(BW82,"SR"))) -> 0 | BX84: 0 | BY84: 0 | BZ84: 0 | CA84: 0 | CB84: 0 | CC84: 0 | CD84: 0 | CE84: 0 | CF84: 0 | CG84: 0 | CH84: 0 | CI84: 0 | CJ84: 0 | CK84: 0 | CL84: 0 | CM84: =IF(CM83="",0,(CM83-INDIRECT(CONCATENATE(CM82,"CR")))*113/INDIRECT(CONCATENATE(CM82,"SR"))) -> 0 | CN84: 0 | CO84: =IF(CO83="",0,(CO83-INDIRECT(CONCATENATE(CO82,"CR")))*113/INDIRECT(CONCATENATE(CO82,"SR"))) -> 0 | CP84: 0 | CQ84: =IF(CQ83="",0,(CQ83-INDIRECT(CONCATENATE(CQ82,"CR")))*113/INDIRECT(CONCATENATE(CQ82,"SR"))) -> 0 | CR84: 0 | CS84: =IF(CS83="",0,(CS83-INDIRECT(CONCATENATE(CS82,"CR")))*113/INDIRECT(CONCATENATE(CS82,"SR"))) -> 0 | CT84: 0 | CU84: =IF(CU83="",0,(CU83-INDIRECT(CONCATENATE(CU82,"CR")))*113/INDIRECT(CONCATENATE(CU82,"SR"))) -> 0 | CV84: 0 | CW84: =IF(CW83="",0,(CW83-INDIRECT(CONCATENATE(CW82,"CR")))*113/INDIRECT(CONCATENATE(CW82,"SR"))) -> 0
I85: New Hcap | J85: =J84-2 -> 28.5 | K85: =IF(K84>0,MIN(J84:K84)-2,J85) -> 28.5 | L85: =IF(L84>0,MIN(J84:L84)-2,K85) -> 28.42992126 | M85: =IF(M84>0,MIN(J84:M84)-1,L85) -> 29.42992126 | N85: =IF(N84>0,MIN(J84:N84),M85) -> 30.42992126 | O85: =IF(O84>0,AVERAGE(SMALL(IF(J84:O84>0,J84:O84),{1,2}))-1,N85) -> 29.46496063 | P85: =IF(P84>0,AVERAGE(SMALL(IF(J84:P84>0,J84:P84),{1,2})),O85) -> 30.46496063 | Q85: =IF(Q84>0,AVERAGE(SMALL(IF(J84:Q84>0,J84:Q84),{1,2})),P85) -> 30.46496063 | R85: =IF(R84>0,AVERAGE(SMALL(IF(J84:R84>0,J84:R84),{1,2,3})),Q85) -> 31.32023016 | S85: =IF(S84>0,AVERAGE(SMALL(IF(J84:S84>0,J84:S84),{1,2,3})),R85) -> 31.32023016 | T85: =IF(T84>0,AVERAGE(SMALL(IF(J84:T84>0,J84:T84),{1,2,3})),S85) -> 31.32023016 | U85: =IF(U84>0,AVERAGE(SMALL(IF(J84:U84>0,J84:U84),{1,2,3,4})),T85) -> 31.32023016 | V85: =IF(V84>0,AVERAGE(SMALL(IF(J84:V84>0,J84:V84),{1,2,3,4})),U85) -> 31.32023016 | W85: =IF(W84>0,AVERAGE(SMALL(IF(J84:W84>0,J84:W84),{1,2,3,4})),V85) -> 31.32023016 | X85: =IF(X84>0,AVERAGE(SMALL(IF(J84:X84>0,J84:X84),{1,2,3,4,5})),W85) -> 31.32023016 | Y85: =IF(Y84>0,AVERAGE(SMALL(IF(J84:Y84>0,J84:Y84),{1,2,3,4,5})),X85) -> 31.32023016 | Z85: =IF(Z84>0,AVERAGE(SMALL(IF(J84:Z84>0,J84:Z84),{1,2,3,4,5,6})),Y85) -> 31.32023016 | AA85: =IF(AA84>0,AVERAGE(SMALL(IF(J84:AA84>0,J84:AA84),{1,2,3,4,5,6})),Z85) -> 31.32023016 | AB85: =IF(AB84>0,AVERAGE(SMALL(IF(J84:AB84>0,J84:AB84),{1,2,3,4,5,6,7})),AA85) -> 31.32023016 | AC85: =IF(AC84>0,AVERAGE(SMALL(IF(J84:AC84>0,J84:AC84),{1,2,3,4,5,6,7,8})),AB85) -> 31.32023016 | AD85: =IF(AD84>0,AVERAGE(SMALL(IF(K84:AD84>0,K84:AD84),{1,2,3,4,5,6,7,8})),AC85) -> 31.32023016 | AE85: =IF(AE84>0,AVERAGE(SMALL(IF(L84:AE84>0,L84:AE84),{1,2,3,4,5,6,7,8})),AD85) -> 31.32023016 | AF85: =IF(AF84>0,AVERAGE(SMALL(IF(M84:AF84>0,M84:AF84),{1,2,3,4,5,6,7,8})),AE85) -> 31.32023016 | AG85: =IF(AG84>0,AVERAGE(SMALL(IF(N84:AG84>0,N84:AG84),{1,2,3,4,5,6,7,8})),AF85) -> 31.32023016 | AH85: =IF(AH84>0,AVERAGE(SMALL(IF(O84:AH84>0,O84:AH84),{1,2,3,4,5,6,7,8})),AG85) -> 31.32023016 | AI85: =IF(AI84>0,AVERAGE(SMALL(IF(P84:AI84>0,P84:AI84),{1,2,3,4,5,6,7,8})),AH85) -> 31.32023016 | AJ85: =IF(AJ84>0,AVERAGE(SMALL(IF(Q84:AJ84>0,Q84:AJ84),{1,2,3,4,5,6,7,8})),AI85) -> 31.32023016 | AK85: =IF(AK84>0,AVERAGE(SMALL(IF(R84:AK84>0,R84:AK84),{1,2,3,4,5,6,7,8})),AJ85) -> 31.32023016 | AL85: =IF(AL84>0,AVERAGE(SMALL(IF(S84:AL84>0,S84:AL84),{1,2,3,4,5,6,7,8})),AK85) -> 31.32023016 | AM85: =IF(AM84>0,AVERAGE(SMALL(IF(T84:AM84>0,T84:AM84),{1,2,3,4,5,6,7,8})),AL85) -> 31.32023016 | AN85: =IF(AN84>0,AVERAGE(SMALL(IF(U84:AN84>0,U84:AN84),{1,2,3,4,5,6,7,8})),AM85) -> 31.32023016 | AO85: =IF(AO84>0,AVERAGE(SMALL(IF(V84:AO84>0,V84:AO84),{1,2,3,4,5,6,7,8})),AN85) -> 31.32023016 | AP85: =IF(AP84>0,AVERAGE(SMALL(IF(W84:AP84>0,W84:AP84),{1,2,3,4,5,6,7,8})),AO85) -> 31.32023016 | AQ85: =IF(AQ84>0,AVERAGE(SMALL(IF(X84:AQ84>0,X84:AQ84),{1,2,3,4,5,6,7,8})),AP85) -> 31.32023016 | AR85: =IF(AR84>0,AVERAGE(SMALL(IF(Y84:AR84>0,Y84:AR84),{1,2,3,4,5,6,7,8})),AQ85) -> 31.32023016 | AS85: =IF(AS84>0,AVERAGE(SMALL(IF(Z84:AS84>0,Z84:AS84),{1,2,3,4,5,6,7,8})),AR85) -> 31.32023016 | AT85: =IF(AT84>0,AVERAGE(SMALL(IF(AA84:AT84>0,AA84:AT84),{1,2,3,4,5,6,7,8})),AS85) -> 31.32023016 | AU85: =IF(AU84>0,AVERAGE(SMALL(IF(AB84:AU84>0,AB84:AU84),{1,2,3,4,5,6,7,8})),AT85) -> 31.32023016 | AV85: =IF(AV84>0,AVERAGE(SMALL(IF(AC84:AV84>0,AC84:AV84),{1,2,3,4,5,6,7,8})),AU85) -> 31.32023016 | AW85: =IF(AW84>0,AVERAGE(SMALL(IF(AD84:AW84>0,AD84:AW84),{1,2,3,4,5,6,7,8})),AV85) -> 31.32023016 | AX85: =IF(AX84>0,AVERAGE(SMALL(IF(AE84:AX84>0,AE84:AX84),{1,2,3,4,5,6,7,8})),AW85) -> 31.32023016 | AY85: =IF(AY84>0,AVERAGE(SMALL(IF(AF84:AY84>0,AF84:AY84),{1,2,3,4,5,6,7,8})),AX85) -> 31.32023016 | AZ85: =IF(AZ84>0,AVERAGE(SMALL(IF(AG84:AZ84>0,AG84:AZ84),{1,2,3,4,5,6,7,8})),AY85) -> 31.32023016 | BA85: =IF(BA84>0,AVERAGE(SMALL(IF(AH84:BA84>0,AH84:BA84),{1,2,3,4,5,6,7,8})),AZ85) -> 31.32023016 | BB85: =IF(BB84>0,AVERAGE(SMALL(IF(AI84:BB84>0,AI84:BB84),{1,2,3,4,5,6,7,8})),BA85) -> 31.32023016 | BC85: =IF(BC84>0,AVERAGE(SMALL(IF(AJ84:BC84>0,AJ84:BC84),{1,2,3,4,5,6,7,8})),BB85) -> 31.32023016 | BD85: =IF(BD84>0,AVERAGE(SMALL(IF(AK84:BD84>0,AK84:BD84),{1,2,3,4,5,6,7,8})),BC85) -> 31.32023016 | BE85: =IF(BE84>0,AVERAGE(SMALL(IF(AL84:BE84>0,AL84:BE84),{1,2,3,4,5,6,7,8})),BD85) -> 31.32023016 | BF85: =IF(BF84>0,AVERAGE(SMALL(IF(AM84:BF84>0,AM84:BF84),{1,2,3,4,5,6,7,8})),BE85) -> 31.32023016 | BG85: =IF(BG84>0,AVERAGE(SMALL(IF(AN84:BG84>0,AN84:BG84),{1,2,3,4,5,6,7,8})),BF85) -> 31.32023016 | BH85: =IF(BH84>0,AVERAGE(SMALL(IF(AO84:BH84>0,AO84:BH84),{1,2,3,4,5,6,7,8})),BG85) -> 31.32023016 | BI85: =IF(BI84>0,AVERAGE(SMALL(IF(AP84:BI84>0,AP84:BI84),{1,2,3,4,5,6,7,8})),BH85) -> 31.32023016 | BJ85: =IF(BJ84>0,AVERAGE(SMALL(IF(AQ84:BJ84>0,AQ84:BJ84),{1,2,3,4,5,6,7,8})),BI85) -> 31.32023016 | BK85: =IF(BK84>0,AVERAGE(SMALL(IF(AR84:BK84>0,AR84:BK84),{1,2,3,4,5,6,7,8})),BJ85) -> 31.32023016 | BL85: =IF(BL84>0,AVERAGE(SMALL(IF(AS84:BL84>0,AS84:BL84),{1,2,3,4,5,6,7,8})),BK85) -> 31.32023016 | BM85: =IF(BM84>0,AVERAGE(SMALL(IF(AT84:BM84>0,AT84:BM84),{1,2,3,4,5,6,7,8})),BL85) -> 31.32023016 | BN85: =IF(BN84>0,AVERAGE(SMALL(IF(AU84:BN84>0,AU84:BN84),{1,2,3,4,5,6,7,8})),BM85) -> 31.32023016 | BO85: =IF(BO84>0,AVERAGE(SMALL(IF(AV84:BO84>0,AV84:BO84),{1,2,3,4,5,6,7,8})),BN85) -> 31.32023016 | BP85: =IF(BP84>0,AVERAGE(SMALL(IF(AW84:BP84>0,AW84:BP84),{1,2,3,4,5,6,7,8})),BO85) -> 31.32023016 | BQ85: =IF(BQ84>0,AVERAGE(SMALL(IF(AX84:BQ84>0,AX84:BQ84),{1,2,3,4,5,6,7,8})),BP85) -> 31.32023016 | BR85: =IF(BR84>0,AVERAGE(SMALL(IF(AY84:BR84>0,AY84:BR84),{1,2,3,4,5,6,7,8})),BQ85) -> 31.32023016 | BS85: =IF(BS84>0,AVERAGE(SMALL(IF(AZ84:BS84>0,AZ84:BS84),{1,2,3,4,5,6,7,8})),BR85) -> 31.32023016 | BT85: =IF(BT84>0,AVERAGE(SMALL(IF(BA84:BT84>0,BA84:BT84),{1,2,3,4,5,6,7,8})),BS85) -> 31.32023016 | BU85: =IF(BU84>0,AVERAGE(SMALL(IF(BB84:BU84>0,BB84:BU84),{1,2,3,4,5,6,7,8})),BT85) -> 31.32023016 | BV85: =IF(BV84>0,AVERAGE(SMALL(IF(BC84:BV84>0,BC84:BV84),{1,2,3,4,5,6,7,8})),BU85) -> 31.32023016 | BW85: =IF(BW84>0,AVERAGE(SMALL(IF(BD84:BW84>0,BD84:BW84),{1,2,3,4,5,6,7,8})),BV85) -> 31.32023016 | BX85: =IF(BX84>0,AVERAGE(SMALL(IF(BE84:BX84>0,BE84:BX84),{1,2,3,4,5,6,7,8})),BW85) -> 31.32023016 | BY85: =IF(BY84>0,AVERAGE(SMALL(IF(BF84:BY84>0,BF84:BY84),{1,2,3,4,5,6,7,8})),BX85) -> 31.32023016 | BZ85: =IF(BZ84>0,AVERAGE(SMALL(IF(BG84:BZ84>0,BG84:BZ84),{1,2,3,4,5,6,7,8})),BY85) -> 31.32023016 | CA85: =IF(CA84>0,AVERAGE(SMALL(IF(BH84:CA84>0,BH84:CA84),{1,2,3,4,5,6,7,8})),BZ85) -> 31.32023016 | CB85: =IF(CB84>0,AVERAGE(SMALL(IF(BI84:CB84>0,BI84:CB84),{1,2,3,4,5,6,7,8})),CA85) -> 31.32023016 | CC85: =IF(CC84>0,AVERAGE(SMALL(IF(BJ84:CC84>0,BJ84:CC84),{1,2,3,4,5,6,7,8})),CB85) -> 31.32023016 | CD85: =IF(CD84>0,AVERAGE(SMALL(IF(BK84:CD84>0,BK84:CD84),{1,2,3,4,5,6,7,8})),CC85) -> 31.32023016 | CE85: =IF(CE84>0,AVERAGE(SMALL(IF(BL84:CE84>0,BL84:CE84),{1,2,3,4,5,6,7,8})),CD85) -> 31.32023016 | CF85: =IF(CF84>0,AVERAGE(SMALL(IF(BM84:CF84>0,BM84:CF84),{1,2,3,4,5,6,7,8})),CE85) -> 31.32023016 | CG85: =IF(CG84>0,AVERAGE(SMALL(IF(BN84:CG84>0,BN84:CG84),{1,2,3,4,5,6,7,8})),CF85) -> 31.32023016 | CH85: =IF(CH84>0,AVERAGE(SMALL(IF(BO84:CH84>0,BO84:CH84),{1,2,3,4,5,6,7,8})),CG85) -> 31.32023016 | CI85: =IF(CI84>0,AVERAGE(SMALL(IF(BP84:CI84>0,BP84:CI84),{1,2,3,4,5,6,7,8})),CH85) -> 31.32023016 | CJ85: =IF(CJ84>0,AVERAGE(SMALL(IF(BQ84:CJ84>0,BQ84:CJ84),{1,2,3,4,5,6,7,8})),CI85) -> 31.32023016 | CK85: =IF(CK84>0,AVERAGE(SMALL(IF(BR84:CK84>0,BR84:CK84),{1,2,3,4,5,6,7,8})),CJ85) -> 31.32023016 | CL85: =IF(CL84>0,AVERAGE(SMALL(IF(BS84:CL84>0,BS84:CL84),{1,2,3,4,5,6,7,8})),CK85) -> 31.32023016 | CM85: =IF(CM84>0,AVERAGE(SMALL(IF(BT84:CM84>0,BT84:CM84),{1,2,3,4,5,6,7,8})),CL85) -> 31.32023016 | CN85: =IF(CN84>0,AVERAGE(SMALL(IF(BU84:CN84>0,BU84:CN84),{1,2,3,4,5,6,7,8})),CM85) -> 31.32023016 | CO85: =IF(CO84>0,AVERAGE(SMALL(IF(BV84:CO84>0,BV84:CO84),{1,2,3,4,5,6,7,8})),CN85) -> 31.32023016 | CP85: =IF(CP84>0,AVERAGE(SMALL(IF(BW84:CP84>0,BW84:CP84),{1,2,3,4,5,6,7,8})),CO85) -> 31.32023016 | CQ85: =IF(CQ84>0,AVERAGE(SMALL(IF(BX84:CQ84>0,BX84:CQ84),{1,2,3,4,5,6,7,8})),CP85) -> 31.32023016 | CR85: =IF(CR84>0,AVERAGE(SMALL(IF(BY84:CR84>0,BY84:CR84),{1,2,3,4,5,6,7,8})),CQ85) -> 31.32023016 | CS85: =IF(CS84>0,AVERAGE(SMALL(IF(BZ84:CS84>0,BZ84:CS84),{1,2,3,4,5,6,7,8})),CR85) -> 31.32023016 | CT85: =IF(CT84>0,AVERAGE(SMALL(IF(CA84:CT84>0,CA84:CT84),{1,2,3,4,5,6,7,8})),CS85) -> 31.32023016 | CU85: =IF(CU84>0,AVERAGE(SMALL(IF(CB84:CU84>0,CB84:CU84),{1,2,3,4,5,6,7,8})),CT85) -> 31.32023016 | CV85: =IF(CV84>0,AVERAGE(SMALL(IF(CC84:CV84>0,CC84:CV84),{1,2,3,4,5,6,7,8})),CU85) -> 31.32023016 | CW85: =IF(CW84>0,AVERAGE(SMALL(IF(CD84:CW84>0,CD84:CW84),{1,2,3,4,5,6,7,8})),CV85) -> 31.32023016
I86: Low Hcap | AC86: =MIN($J85:AC85) -> 28.42992126 | AD86: =MIN($J85:AD85) -> 28.42992126 | AE86: =MIN($J85:AE85) -> 28.42992126 | AF86: =MIN($J85:AF85) -> 28.42992126 | AG86: =MIN($J85:AG85) -> 28.42992126 | AH86: =MIN($J85:AH85) -> 28.42992126 | AI86: =MIN($J85:AI85) -> 28.42992126 | AJ86: =MIN($J85:AJ85) -> 28.42992126 | AK86: =MIN($J85:AK85) -> 28.42992126 | AL86: =MIN($J85:AL85) -> 28.42992126 | AM86: =MIN($J85:AM85) -> 28.42992126 | AN86: =MIN($J85:AN85) -> 28.42992126 | AO86: =MIN($J85:AO85) -> 28.42992126 | AP86: =MIN($J85:AP85) -> 28.42992126 | AQ86: =MIN($J85:AQ85) -> 28.42992126 | AR86: =MIN($J85:AR85) -> 28.42992126 | AS86: =MIN($J85:AS85) -> 28.42992126 | AT86: =MIN($J85:AT85) -> 28.42992126 | AU86: =MIN($J85:AU85) -> 28.42992126 | AV86: =MIN($J85:AV85) -> 28.42992126 | AW86: =MIN($J85:AW85) -> 28.42992126 | AX86: =MIN($J85:AX85) -> 28.42992126 | AY86: =MIN($J85:AY85) -> 28.42992126 | AZ86: =MIN($J85:AZ85) -> 28.42992126 | BA86: =MIN($J85:BA85) -> 28.42992126 | BB86: =MIN($J85:BB85) -> 28.42992126 | BC86: =MIN($J85:BC85) -> 28.42992126 | BD86: =MIN($J85:BD85) -> 28.42992126 | BE86: =MIN($J85:BE85) -> 28.42992126 | BF86: =MIN($J85:BF85) -> 28.42992126 | BG86: =MIN($J85:BG85) -> 28.42992126 | BH86: =MIN($J85:BH85) -> 28.42992126 | BI86: =MIN($J85:BI85) -> 28.42992126 | BJ86: =MIN($J85:BJ85) -> 28.42992126 | BK86: =MIN($J85:BK85) -> 28.42992126 | BL86: =MIN($J85:BL85) -> 28.42992126 | BM86: =MIN($J85:BM85) -> 28.42992126 | BN86: =MIN($J85:BN85) -> 28.42992126 | BO86: =MIN($J85:BO85) -> 28.42992126 | BP86: =MIN($J85:BP85) -> 28.42992126 | BQ86: =MIN($J85:BQ85) -> 28.42992126 | BR86: =MIN($J85:BR85) -> 28.42992126 | BS86: =MIN($J85:BS85) -> 28.42992126 | BT86: =MIN($J85:BT85) -> 28.42992126 | BU86: =MIN($J85:BU85) -> 28.42992126 | BV86: =MIN($J85:BV85) -> 28.42992126 | BW86: =MIN($J85:BW85) -> 28.42992126 | BX86: =MIN($J85:BX85) -> 28.42992126 | BY86: =MIN($J85:BY85) -> 28.42992126 | BZ86: =MIN($J85:BZ85) -> 28.42992126 | CA86: =MIN($J85:CA85) -> 28.42992126 | CB86: =MIN($J85:CB85) -> 28.42992126 | CC86: =MIN($J85:CC85) -> 28.42992126 | CD86: =MIN($J85:CD85) -> 28.42992126 | CE86: =MIN($J85:CE85) -> 28.42992126 | CF86: =MIN($J85:CF85) -> 28.42992126 | CG86: =MIN($J85:CG85) -> 28.42992126 | CH86: =MIN($J85:CH85) -> 28.42992126 | CI86: =MIN($J85:CI85) -> 28.42992126 | CJ86: =MIN($J85:CJ85) -> 28.42992126 | CK86: =MIN($J85:CK85) -> 28.42992126 | CL86: =MIN($J85:CL85) -> 28.42992126 | CM86: =MIN($J85:CM85) -> 28.42992126 | CN86: =MIN($J85:CN85) -> 28.42992126 | CO86: =MIN($J85:CO85) -> 28.42992126 | CP86: =MIN($J85:CP85) -> 28.42992126 | CQ86: =MIN($J85:CQ85) -> 28.42992126 | CR86: =MIN($J85:CR85) -> 28.42992126 | CS86: =MIN($J85:CS85) -> 28.42992126 | CT86: =MIN($J85:CT85) -> 28.42992126 | CU86: =MIN($J85:CU85) -> 28.42992126 | CV86: =MIN($J85:CV85) -> 28.42992126 | CW86: =MIN($J85:CW85) -> 28.42992126
B87: Chung | C87: Gonjin | D87: 39 | E87: Y | F87: =IF(H87<4,"Y",) -> 0 | G87: 2021 | H87: =COUNT(J87:CX87) -> 10 | I87: Date | K87: 2021-04-25 | L87: 2021-05-09 | M87: 2021-05-14 | N87: 2021-05-30 | O87: 2022-05-29 | P87: 2022-07-10 | Q87: 2022-07-24 | R87: 2022-07-31 | S87: 2023-05-19 | T87: 2023-05-28 | CY87: =IF(CW91>$DD$1,36,CW91) -> 22.97184026 | CZ87: 25.80490804 | DA87: =CZ87-CY87 -> 2.833067784
I88: Course | K88: PfaffingHG | L88: ErdingHG | M88: StEurachHG | N88: IffeldorfHG | O88: OdelzhausenHG | P88: IffeldorfHG | Q88: Pfaffing2022HG | R88: HohenpaehlHG | S88: GarmischHG | T88: ErdingHG
I89: Ad Gr | K89: 102 | L89: 104 | M89: 108 | N89: 115 | O89: 112 | P89: 98 | Q89: 105 | R89: 103 | S89: 100 | T89: 94
I90: SD | J90: 38 | K90: =IF(K89="",0,(K89-INDIRECT(CONCATENATE(K88,"CR")))*113/INDIRECT(CONCATENATE(K88,"SR"))) -> 26.07692308 | L90: 28.68461538 | M90: 31.13969466 | N90: 38.36744186 | O90: 35.76850394 | P90: 23.47596899 | Q90: 28.07615385 | R90: 27.86183206 | S90: 25.44724409 | T90: 19.99230769 | U90: 0 | V90: 0 | W90: 0 | X90: 0 | Y90: 0 | Z90: 0 | AA90: 0 | AB90: 0 | AC90: 0 | AD90: 0 | AE90: 0 | AF90: 0 | AG90: 0 | AH90: 0 | AI90: 0 | AJ90: 0 | AK90: 0 | AL90: 0 | AM90: 0 | AN90: 0 | AO90: 0 | AP90: 0 | AQ90: 0 | AR90: 0 | AS90: 0 | AT90: 0 | AU90: 0 | AV90: 0 | AW90: 0 | AX90: 0 | AY90: 0 | AZ90: 0 | BA90: 0 | BB90: 0 | BC90: 0 | BD90: 0 | BE90: 0 | BF90: 0 | BG90: 0 | BH90: 0 | BI90: 0 | BJ90: 0 | BK90: 0 | BL90: 0 | BM90: 0 | BN90: 0 | BO90: 0 | BP90: 0 | BQ90: 0 | BR90: 0 | BS90: 0 | BT90: 0 | BU90: 0 | BV90: 0 | BW90: =IF(BW89="",0,(BW89-INDIRECT(CONCATENATE(BW88,"CR")))*113/INDIRECT(CONCATENATE(BW88,"SR"))) -> 0 | BX90: 0 | BY90: 0 | BZ90: 0 | CA90: 0 | CB90: 0 | CC90: 0 | CD90: 0 | CE90: 0 | CF90: 0 | CG90: 0 | CH90: 0 | CI90: 0 | CJ90: 0 | CK90: 0 | CL90: 0 | CM90: =IF(CM89="",0,(CM89-INDIRECT(CONCATENATE(CM88,"CR")))*113/INDIRECT(CONCATENATE(CM88,"SR"))) -> 0 | CN90: 0 | CO90: =IF(CO89="",0,(CO89-INDIRECT(CONCATENATE(CO88,"CR")))*113/INDIRECT(CONCATENATE(CO88,"SR"))) -> 0 | CP90: 0 | CQ90: =IF(CQ89="",0,(CQ89-INDIRECT(CONCATENATE(CQ88,"CR")))*113/INDIRECT(CONCATENATE(CQ88,"SR"))) -> 0 | CR90: 0 | CS90: =IF(CS89="",0,(CS89-INDIRECT(CONCATENATE(CS88,"CR")))*113/INDIRECT(CONCATENATE(CS88,"SR"))) -> 0 | CT90: 0 | CU90: =IF(CU89="",0,(CU89-INDIRECT(CONCATENATE(CU88,"CR")))*113/INDIRECT(CONCATENATE(CU88,"SR"))) -> 0 | CV90: 0 | CW90: =IF(CW89="",0,(CW89-INDIRECT(CONCATENATE(CW88,"CR")))*113/INDIRECT(CONCATENATE(CW88,"SR"))) -> 0
I91: New Hcap | J91: =J90-2 -> 36 | K91: =IF(K90>0,MIN(J90:K90)-2,J91) -> 24.07692308 | L91: =IF(L90>0,MIN(J90:L90)-2,K91) -> 24.07692308 | M91: =IF(M90>0,MIN(J90:M90)-1,L91) -> 25.07692308 | N91: =IF(N90>0,MIN(J90:N90),M91) -> 26.07692308 | O91: =IF(O90>0,AVERAGE(SMALL(IF(J90:O90>0,J90:O90),{1,2}))-1,N91) -> 26.38076923 | P91: =IF(P90>0,AVERAGE(SMALL(IF(J90:P90>0,J90:P90),{1,2})),O91) -> 24.77644603 | Q91: =IF(Q90>0,AVERAGE(SMALL(IF(J90:Q90>0,J90:Q90),{1,2})),P91) -> 24.77644603 | R91: =IF(R90>0,AVERAGE(SMALL(IF(J90:R90>0,J90:R90),{1,2,3})),Q91) -> 25.80490804 | S91: =IF(S90>0,AVERAGE(SMALL(IF(J90:S90>0,J90:S90),{1,2,3})),R91) -> 25.00004539 | T91: =IF(T90>0,AVERAGE(SMALL(IF(J90:T90>0,J90:T90),{1,2,3})),S91) -> 22.97184026 | U91: =IF(U90>0,AVERAGE(SMALL(IF(J90:U90>0,J90:U90),{1,2,3,4})),T91) -> 22.97184026 | V91: =IF(V90>0,AVERAGE(SMALL(IF(J90:V90>0,J90:V90),{1,2,3,4})),U91) -> 22.97184026 | W91: =IF(W90>0,AVERAGE(SMALL(IF(J90:W90>0,J90:W90),{1,2,3,4})),V91) -> 22.97184026 | X91: =IF(X90>0,AVERAGE(SMALL(IF(J90:X90>0,J90:X90),{1,2,3,4,5})),W91) -> 22.97184026 | Y91: =IF(Y90>0,AVERAGE(SMALL(IF(J90:Y90>0,J90:Y90),{1,2,3,4,5})),X91) -> 22.97184026 | Z91: =IF(Z90>0,AVERAGE(SMALL(IF(J90:Z90>0,J90:Z90),{1,2,3,4,5,6})),Y91) -> 22.97184026 | AA91: =IF(AA90>0,AVERAGE(SMALL(IF(J90:AA90>0,J90:AA90),{1,2,3,4,5,6})),Z91) -> 22.97184026 | AB91: =IF(AB90>0,AVERAGE(SMALL(IF(J90:AB90>0,J90:AB90),{1,2,3,4,5,6,7})),AA91) -> 22.97184026 | AC91: =IF(AC90>0,AVERAGE(SMALL(IF(J90:AC90>0,J90:AC90),{1,2,3,4,5,6,7,8})),AB91) -> 22.97184026 | AD91: =IF(AD90>0,AVERAGE(SMALL(IF(K90:AD90>0,K90:AD90),{1,2,3,4,5,6,7,8})),AC91) -> 22.97184026 | AE91: =IF(AE90>0,AVERAGE(SMALL(IF(L90:AE90>0,L90:AE90),{1,2,3,4,5,6,7,8})),AD91) -> 22.97184026 | AF91: =IF(AF90>0,AVERAGE(SMALL(IF(M90:AF90>0,M90:AF90),{1,2,3,4,5,6,7,8})),AE91) -> 22.97184026 | AG91: =IF(AG90>0,AVERAGE(SMALL(IF(N90:AG90>0,N90:AG90),{1,2,3,4,5,6,7,8})),AF91) -> 22.97184026 | AH91: =IF(AH90>0,AVERAGE(SMALL(IF(O90:AH90>0,O90:AH90),{1,2,3,4,5,6,7,8})),AG91) -> 22.97184026 | AI91: =IF(AI90>0,AVERAGE(SMALL(IF(P90:AI90>0,P90:AI90),{1,2,3,4,5,6,7,8})),AH91) -> 22.97184026 | AJ91: =IF(AJ90>0,AVERAGE(SMALL(IF(Q90:AJ90>0,Q90:AJ90),{1,2,3,4,5,6,7,8})),AI91) -> 22.97184026 | AK91: =IF(AK90>0,AVERAGE(SMALL(IF(R90:AK90>0,R90:AK90),{1,2,3,4,5,6,7,8})),AJ91) -> 22.97184026 | AL91: =IF(AL90>0,AVERAGE(SMALL(IF(S90:AL90>0,S90:AL90),{1,2,3,4,5,6,7,8})),AK91) -> 22.97184026 | AM91: =IF(AM90>0,AVERAGE(SMALL(IF(T90:AM90>0,T90:AM90),{1,2,3,4,5,6,7,8})),AL91) -> 22.97184026 | AN91: =IF(AN90>0,AVERAGE(SMALL(IF(U90:AN90>0,U90:AN90),{1,2,3,4,5,6,7,8})),AM91) -> 22.97184026 | AO91: =IF(AO90>0,AVERAGE(SMALL(IF(V90:AO90>0,V90:AO90),{1,2,3,4,5,6,7,8})),AN91) -> 22.97184026 | AP91: =IF(AP90>0,AVERAGE(SMALL(IF(W90:AP90>0,W90:AP90),{1,2,3,4,5,6,7,8})),AO91) -> 22.97184026 | AQ91: =IF(AQ90>0,AVERAGE(SMALL(IF(X90:AQ90>0,X90:AQ90),{1,2,3,4,5,6,7,8})),AP91) -> 22.97184026 | AR91: =IF(AR90>0,AVERAGE(SMALL(IF(Y90:AR90>0,Y90:AR90),{1,2,3,4,5,6,7,8})),AQ91) -> 22.97184026 | AS91: =IF(AS90>0,AVERAGE(SMALL(IF(Z90:AS90>0,Z90:AS90),{1,2,3,4,5,6,7,8})),AR91) -> 22.97184026 | AT91: =IF(AT90>0,AVERAGE(SMALL(IF(AA90:AT90>0,AA90:AT90),{1,2,3,4,5,6,7,8})),AS91) -> 22.97184026 | AU91: =IF(AU90>0,AVERAGE(SMALL(IF(AB90:AU90>0,AB90:AU90),{1,2,3,4,5,6,7,8})),AT91) -> 22.97184026 | AV91: =IF(AV90>0,AVERAGE(SMALL(IF(AC90:AV90>0,AC90:AV90),{1,2,3,4,5,6,7,8})),AU91) -> 22.97184026 | AW91: =IF(AW90>0,AVERAGE(SMALL(IF(AD90:AW90>0,AD90:AW90),{1,2,3,4,5,6,7,8})),AV91) -> 22.97184026 | AX91: =IF(AX90>0,AVERAGE(SMALL(IF(AE90:AX90>0,AE90:AX90),{1,2,3,4,5,6,7,8})),AW91) -> 22.97184026 | AY91: =IF(AY90>0,AVERAGE(SMALL(IF(AF90:AY90>0,AF90:AY90),{1,2,3,4,5,6,7,8})),AX91) -> 22.97184026 | AZ91: =IF(AZ90>0,AVERAGE(SMALL(IF(AG90:AZ90>0,AG90:AZ90),{1,2,3,4,5,6,7,8})),AY91) -> 22.97184026 | BA91: =IF(BA90>0,AVERAGE(SMALL(IF(AH90:BA90>0,AH90:BA90),{1,2,3,4,5,6,7,8})),AZ91) -> 22.97184026 | BB91: =IF(BB90>0,AVERAGE(SMALL(IF(AI90:BB90>0,AI90:BB90),{1,2,3,4,5,6,7,8})),BA91) -> 22.97184026 | BC91: =IF(BC90>0,AVERAGE(SMALL(IF(AJ90:BC90>0,AJ90:BC90),{1,2,3,4,5,6,7,8})),BB91) -> 22.97184026 | BD91: =IF(BD90>0,AVERAGE(SMALL(IF(AK90:BD90>0,AK90:BD90),{1,2,3,4,5,6,7,8})),BC91) -> 22.97184026 | BE91: =IF(BE90>0,AVERAGE(SMALL(IF(AL90:BE90>0,AL90:BE90),{1,2,3,4,5,6,7,8})),BD91) -> 22.97184026 | BF91: =IF(BF90>0,AVERAGE(SMALL(IF(AM90:BF90>0,AM90:BF90),{1,2,3,4,5,6,7,8})),BE91) -> 22.97184026 | BG91: =IF(BG90>0,AVERAGE(SMALL(IF(AN90:BG90>0,AN90:BG90),{1,2,3,4,5,6,7,8})),BF91) -> 22.97184026 | BH91: =IF(BH90>0,AVERAGE(SMALL(IF(AO90:BH90>0,AO90:BH90),{1,2,3,4,5,6,7,8})),BG91) -> 22.97184026 | BI91: =IF(BI90>0,AVERAGE(SMALL(IF(AP90:BI90>0,AP90:BI90),{1,2,3,4,5,6,7,8})),BH91) -> 22.97184026 | BJ91: =IF(BJ90>0,AVERAGE(SMALL(IF(AQ90:BJ90>0,AQ90:BJ90),{1,2,3,4,5,6,7,8})),BI91) -> 22.97184026 | BK91: =IF(BK90>0,AVERAGE(SMALL(IF(AR90:BK90>0,AR90:BK90),{1,2,3,4,5,6,7,8})),BJ91) -> 22.97184026 | BL91: =IF(BL90>0,AVERAGE(SMALL(IF(AS90:BL90>0,AS90:BL90),{1,2,3,4,5,6,7,8})),BK91) -> 22.97184026 | BM91: =IF(BM90>0,AVERAGE(SMALL(IF(AT90:BM90>0,AT90:BM90),{1,2,3,4,5,6,7,8})),BL91) -> 22.97184026 | BN91: =IF(BN90>0,AVERAGE(SMALL(IF(AU90:BN90>0,AU90:BN90),{1,2,3,4,5,6,7,8})),BM91) -> 22.97184026 | BO91: =IF(BO90>0,AVERAGE(SMALL(IF(AV90:BO90>0,AV90:BO90),{1,2,3,4,5,6,7,8})),BN91) -> 22.97184026 | BP91: =IF(BP90>0,AVERAGE(SMALL(IF(AW90:BP90>0,AW90:BP90),{1,2,3,4,5,6,7,8})),BO91) -> 22.97184026 | BQ91: =IF(BQ90>0,AVERAGE(SMALL(IF(AX90:BQ90>0,AX90:BQ90),{1,2,3,4,5,6,7,8})),BP91) -> 22.97184026 | BR91: =IF(BR90>0,AVERAGE(SMALL(IF(AY90:BR90>0,AY90:BR90),{1,2,3,4,5,6,7,8})),BQ91) -> 22.97184026 | BS91: =IF(BS90>0,AVERAGE(SMALL(IF(AZ90:BS90>0,AZ90:BS90),{1,2,3,4,5,6,7,8})),BR91) -> 22.97184026 | BT91: =IF(BT90>0,AVERAGE(SMALL(IF(BA90:BT90>0,BA90:BT90),{1,2,3,4,5,6,7,8})),BS91) -> 22.97184026 | BU91: =IF(BU90>0,AVERAGE(SMALL(IF(BB90:BU90>0,BB90:BU90),{1,2,3,4,5,6,7,8})),BT91) -> 22.97184026 | BV91: =IF(BV90>0,AVERAGE(SMALL(IF(BC90:BV90>0,BC90:BV90),{1,2,3,4,5,6,7,8})),BU91) -> 22.97184026 | BW91: =IF(BW90>0,AVERAGE(SMALL(IF(BD90:BW90>0,BD90:BW90),{1,2,3,4,5,6,7,8})),BV91) -> 22.97184026 | BX91: =IF(BX90>0,AVERAGE(SMALL(IF(BE90:BX90>0,BE90:BX90),{1,2,3,4,5,6,7,8})),BW91) -> 22.97184026 | BY91: =IF(BY90>0,AVERAGE(SMALL(IF(BF90:BY90>0,BF90:BY90),{1,2,3,4,5,6,7,8})),BX91) -> 22.97184026 | BZ91: =IF(BZ90>0,AVERAGE(SMALL(IF(BG90:BZ90>0,BG90:BZ90),{1,2,3,4,5,6,7,8})),BY91) -> 22.97184026 | CA91: =IF(CA90>0,AVERAGE(SMALL(IF(BH90:CA90>0,BH90:CA90),{1,2,3,4,5,6,7,8})),BZ91) -> 22.97184026 | CB91: =IF(CB90>0,AVERAGE(SMALL(IF(BI90:CB90>0,BI90:CB90),{1,2,3,4,5,6,7,8})),CA91) -> 22.97184026 | CC91: =IF(CC90>0,AVERAGE(SMALL(IF(BJ90:CC90>0,BJ90:CC90),{1,2,3,4,5,6,7,8})),CB91) -> 22.97184026 | CD91: =IF(CD90>0,AVERAGE(SMALL(IF(BK90:CD90>0,BK90:CD90),{1,2,3,4,5,6,7,8})),CC91) -> 22.97184026 | CE91: =IF(CE90>0,AVERAGE(SMALL(IF(BL90:CE90>0,BL90:CE90),{1,2,3,4,5,6,7,8})),CD91) -> 22.97184026 | CF91: =IF(CF90>0,AVERAGE(SMALL(IF(BM90:CF90>0,BM90:CF90),{1,2,3,4,5,6,7,8})),CE91) -> 22.97184026 | CG91: =IF(CG90>0,AVERAGE(SMALL(IF(BN90:CG90>0,BN90:CG90),{1,2,3,4,5,6,7,8})),CF91) -> 22.97184026 | CH91: =IF(CH90>0,AVERAGE(SMALL(IF(BO90:CH90>0,BO90:CH90),{1,2,3,4,5,6,7,8})),CG91) -> 22.97184026 | CI91: =IF(CI90>0,AVERAGE(SMALL(IF(BP90:CI90>0,BP90:CI90),{1,2,3,4,5,6,7,8})),CH91) -> 22.97184026 | CJ91: =IF(CJ90>0,AVERAGE(SMALL(IF(BQ90:CJ90>0,BQ90:CJ90),{1,2,3,4,5,6,7,8})),CI91) -> 22.97184026 | CK91: =IF(CK90>0,AVERAGE(SMALL(IF(BR90:CK90>0,BR90:CK90),{1,2,3,4,5,6,7,8})),CJ91) -> 22.97184026 | CL91: =IF(CL90>0,AVERAGE(SMALL(IF(BS90:CL90>0,BS90:CL90),{1,2,3,4,5,6,7,8})),CK91) -> 22.97184026 | CM91: =IF(CM90>0,AVERAGE(SMALL(IF(BT90:CM90>0,BT90:CM90),{1,2,3,4,5,6,7,8})),CL91) -> 22.97184026 | CN91: =IF(CN90>0,AVERAGE(SMALL(IF(BU90:CN90>0,BU90:CN90),{1,2,3,4,5,6,7,8})),CM91) -> 22.97184026 | CO91: =IF(CO90>0,AVERAGE(SMALL(IF(BV90:CO90>0,BV90:CO90),{1,2,3,4,5,6,7,8})),CN91) -> 22.97184026 | CP91: =IF(CP90>0,AVERAGE(SMALL(IF(BW90:CP90>0,BW90:CP90),{1,2,3,4,5,6,7,8})),CO91) -> 22.97184026 | CQ91: =IF(CQ90>0,AVERAGE(SMALL(IF(BX90:CQ90>0,BX90:CQ90),{1,2,3,4,5,6,7,8})),CP91) -> 22.97184026 | CR91: =IF(CR90>0,AVERAGE(SMALL(IF(BY90:CR90>0,BY90:CR90),{1,2,3,4,5,6,7,8})),CQ91) -> 22.97184026 | CS91: =IF(CS90>0,AVERAGE(SMALL(IF(BZ90:CS90>0,BZ90:CS90),{1,2,3,4,5,6,7,8})),CR91) -> 22.97184026 | CT91: =IF(CT90>0,AVERAGE(SMALL(IF(CA90:CT90>0,CA90:CT90),{1,2,3,4,5,6,7,8})),CS91) -> 22.97184026 | CU91: =IF(CU90>0,AVERAGE(SMALL(IF(CB90:CU90>0,CB90:CU90),{1,2,3,4,5,6,7,8})),CT91) -> 22.97184026 | CV91: =IF(CV90>0,AVERAGE(SMALL(IF(CC90:CV90>0,CC90:CV90),{1,2,3,4,5,6,7,8})),CU91) -> 22.97184026 | CW91: =IF(CW90>0,AVERAGE(SMALL(IF(CD90:CW90>0,CD90:CW90),{1,2,3,4,5,6,7,8})),CV91) -> 22.97184026
I92: Low Hcap | AC92: =MIN($J91:AC91) -> 22.97184026 | AD92: =MIN($J91:AD91) -> 22.97184026 | AE92: =MIN($J91:AE91) -> 22.97184026 | AF92: =MIN($J91:AF91) -> 22.97184026 | AG92: =MIN($J91:AG91) -> 22.97184026 | AH92: =MIN($J91:AH91) -> 22.97184026 | AI92: =MIN($J91:AI91) -> 22.97184026 | AJ92: =MIN($J91:AJ91) -> 22.97184026 | AK92: =MIN($J91:AK91) -> 22.97184026 | AL92: =MIN($J91:AL91) -> 22.97184026 | AM92: =MIN($J91:AM91) -> 22.97184026 | AN92: =MIN($J91:AN91) -> 22.97184026 | AO92: =MIN($J91:AO91) -> 22.97184026 | AP92: =MIN($J91:AP91) -> 22.97184026 | AQ92: =MIN($J91:AQ91) -> 22.97184026 | AR92: =MIN($J91:AR91) -> 22.97184026 | AS92: =MIN($J91:AS91) -> 22.97184026 | AT92: =MIN($J91:AT91) -> 22.97184026 | AU92: =MIN($J91:AU91) -> 22.97184026 | AV92: =MIN($J91:AV91) -> 22.97184026 | AW92: =MIN($J91:AW91) -> 22.97184026 | AX92: =MIN($J91:AX91) -> 22.97184026 | AY92: =MIN($J91:AY91) -> 22.97184026 | AZ92: =MIN($J91:AZ91) -> 22.97184026 | BA92: =MIN($J91:BA91) -> 22.97184026 | BB92: =MIN($J91:BB91) -> 22.97184026 | BC92: =MIN($J91:BC91) -> 22.97184026 | BD92: =MIN($J91:BD91) -> 22.97184026 | BE92: =MIN($J91:BE91) -> 22.97184026 | BF92: =MIN($J91:BF91) -> 22.97184026 | BG92: =MIN($J91:BG91) -> 22.97184026 | BH92: =MIN($J91:BH91) -> 22.97184026 | BI92: =MIN($J91:BI91) -> 22.97184026 | BJ92: =MIN($J91:BJ91) -> 22.97184026 | BK92: =MIN($J91:BK91) -> 22.97184026 | BL92: =MIN($J91:BL91) -> 22.97184026 | BM92: =MIN($J91:BM91) -> 22.97184026 | BN92: =MIN($J91:BN91) -> 22.97184026 | BO92: =MIN($J91:BO91) -> 22.97184026 | BP92: =MIN($J91:BP91) -> 22.97184026 | BQ92: =MIN($J91:BQ91) -> 22.97184026 | BR92: =MIN($J91:BR91) -> 22.97184026 | BS92: =MIN($J91:BS91) -> 22.97184026 | BT92: =MIN($J91:BT91) -> 22.97184026 | BU92: =MIN($J91:BU91) -> 22.97184026 | BV92: =MIN($J91:BV91) -> 22.97184026 | BW92: =MIN($J91:BW91) -> 22.97184026 | BX92: =MIN($J91:BX91) -> 22.97184026 | BY92: =MIN($J91:BY91) -> 22.97184026 | BZ92: =MIN($J91:BZ91) -> 22.97184026 | CA92: =MIN($J91:CA91) -> 22.97184026 | CB92: =MIN($J91:CB91) -> 22.97184026 | CC92: =MIN($J91:CC91) -> 22.97184026 | CD92: =MIN($J91:CD91) -> 22.97184026 | CE92: =MIN($J91:CE91) -> 22.97184026 | CF92: =MIN($J91:CF91) -> 22.97184026 | CG92: =MIN($J91:CG91) -> 22.97184026 | CH92: =MIN($J91:CH91) -> 22.97184026 | CI92: =MIN($J91:CI91) -> 22.97184026 | CJ92: =MIN($J91:CJ91) -> 22.97184026 | CK92: =MIN($J91:CK91) -> 22.97184026 | CL92: =MIN($J91:CL91) -> 22.97184026 | CM92: =MIN($J91:CM91) -> 22.97184026 | CN92: =MIN($J91:CN91) -> 22.97184026 | CO92: =MIN($J91:CO91) -> 22.97184026 | CP92: =MIN($J91:CP91) -> 22.97184026 | CQ92: =MIN($J91:CQ91) -> 22.97184026 | CR92: =MIN($J91:CR91) -> 22.97184026 | CS92: =MIN($J91:CS91) -> 22.97184026 | CT92: =MIN($J91:CT91) -> 22.97184026 | CU92: =MIN($J91:CU91) -> 22.97184026 | CV92: =MIN($J91:CV91) -> 22.97184026 | CW92: =MIN($J91:CW91) -> 22.97184026
B93: Cockill | C93: Adam | D93: 11.1 | F93: =IF(H93<4,"Y",) -> 0 | H93: =COUNT(J93:CX93) -> 55 | I93: Date | J93: 2019-05-12 | K93: 2019-05-26 | L93: 2019-06-23 | M93: 2019-07-07 | N93: 2019-07-12 | O93: 2019-09-01 | P93: 2019-10-04 | Q93: 2019-11-24 | R93: 2020-05-24 | S93: 2020-05-31 | T93: 2020-06-05 | U93: 2020-06-14 | V93: 2020-06-28 | W93: 2020-07-03 | X93: 2020-07-12 | Y93: 2020-07-15 | Z93: 2020-07-26 | AA93: 2020-08-09 | AB93: 2020-09-06 | AC93: 2020-10-09 | AD93: 2020-11-01 | AE93: 2020-11-15 | AF93: 2021-03-28 | AG93: 2021-04-11 | AH93: 2021-04-25 | AI93: 2021-04-30 | AJ93: 2021-05-09 | AK93: 2021-05-14 | AL93: 2021-06-04 | AM93: 2021-06-13 | AN93: 2021-06-19 | AO93: 2021-07-02 | AP93: 2021-07-11 | AQ93: 2021-07-16 | AR93: 2021-07-25 | AS93: 2021-07-30 | AT93: 2021-08-08 | AU93: 2021-09-03 | AV93: 2021-09-19 | AW93: 2021-09-24 | AX93: 2021-10-03 | AY93: 2022-03-27 | AZ93: 2022-05-20 | BA93: 2022-05-29 | BB93: 2022-07-10 | BC93: 2022-07-24 | BD93: 2022-07-31 | BE93: 2022-08-07 | BF93: 2022-09-02 | BG93: 2022-11-09 | BH93: 2022-10-21 | BI93: 2022-11-13 | BJ93: 2023-05-07 | BK93: 2023-05-19 | BL93: 2023-06-09 | CY93: =IF(CW97>$DD$1,36,CW97) -> 13.86845805 | CZ93: 13.96625799 | DA93: =CZ93-CY93 -> 0.09779994715
I94: Course | J94: ErdingHG | K94: TegernbachHG | L94: PfaffingHG | M94: ErdingHG | N94: OdelzhausenHG | O94: ErdingHG | P94: ErdingHG | Q94: PfaffingHG | R94: PfaffingHG | S94: ErdingHG | T94: ErdingHG | U94: OdelzhausenHG | V94: ErdingHG | W94: TegernbachHG | X94: PfaffingHG | Y94: GutThailingHG | Z94: OdelzhausenHG | AA94: ErdingHG | AB94: OdelzhausenHG | AC94: TegernbachHG | AD94: ErdingHG | AE94: OdelzhausenHG | AF94: OdelzhausenHG | AG94: ErdingHR | AH94: PfaffingHG | AI94: TegernbachHG | AJ94: ErdingHG | AK94: StEurachHG | AL94: EgmatingHG | AM94: PfaffingHG | AN94: TegernbachHG | AO94: TegernbachHG | AP94: PfaffingHG | AQ94: MaxlrainHG | AR94: OdelzhausenHG | AS94: MangfalltalHG | AT94: IffeldorfHG | AU94: StEurachHG | AV94: ErdingHG | AW94: TegernbachHG | AX94: OdelzhausenHG | AY94: OdelzhausenHG | AZ94: GutHaeusenHG | BA94: OdelzhausenHG | BB94: IffeldorfHG | BC94: Pfaffing2022HG | BD94: HohenpaehlHG | BE94: IffeldorfHG | BF94: StEurachHG | BG94: Pfaffing2022HG | BH94: TegernbachHG | BI94: ErdingHG | BJ94: Odelzhausen2023HG | BK94: GarmischHG | BL94: TegernbachHG
I95: Ad Gr | J95: 89 | K95: 91 | L95: 91 | M95: 91 | N95: 88 | O95: 89 | P95: 86 | Q95: 90 | R95: 84 | S95: 84 | T95: 97 | U95: 98 | V95: 92 | W95: 84 | X95: 94 | Y95: 86 | Z95: 92 | AA95: 87 | AB95: 83 | AC95: 90 | AD95: 89 | AE95: 92 | AF95: 97 | AG95: 86 | AH95: 94 | AI95: 97 | AJ95: 100 | AK95: 100 | AL95: 99 | AM95: 96 | AN95: 90 | AO95: 89 | AP95: 94 | AQ95: 98 | AR95: 94 | AS95: 99 | AT95: 89 | AU95: 102 | AV95: 86 | AW95: 89 | AX95: 88 | AY95: 89 | AZ95: 96 | BA95: 96 | BB95: 95 | BC95: 91 | BD95: 91 | BE95: 88 | BF95: 100 | BG95: 90 | BH95: 82 | BI95: 93 | BJ95: 97 | BK95: 93 | BL95: 89
I96: SD | J96: =IF(J95="",0,(J95-INDIRECT(CONCATENATE(J94,"CR")))*113/INDIRECT(CONCATENATE(J94,"SR"))) -> 15.64615385 | K96: =IF(K95="",0,(K95-INDIRECT(CONCATENATE(K94,"CR")))*113/INDIRECT(CONCATENATE(K94,"SR"))) -> 16.5219697 | L96: 16.51538462 | M96: 17.38461538 | N96: 14.41417323 | O96: 15.64615385 | P96: 13.03846154 | Q96: 15.64615385 | R96: 10.43076923 | S96: 11.3 | T96: 22.6 | U96: 23.31181102 | V96: 18.25384615 | W96: 10.52954545 | X96: 19.12307692 | Y96: 13.37022901 | Z96: 17.97322835 | AA96: 13.90769231 | AB96: 9.965354331 | AC96: 15.66590909 | AD96: 15.64615385 | AE96: 17.97322835 | AF96: 22.42204724 | AG96: 18.13697479 | AH96: 19.12307692 | AI96: 21.65833333 | AJ96: 25.20769231 | AK96: 24.2389313 | AL96: 23.03129771 | AM96: 20.86153846 | AN96: 15.66590909 | AO96: 14.80984848 | AP96: 19.12307692 | AQ96: 20.85514706 | AR96: 19.75275591 | AS96: 23.09130435 | AT96: 15.59224806 | AU96: 25.96412214 | AV96: 13.03846154 | AW96: 14.80984848 | AX96: 14.41417323 | AY96: 15.30393701 | AZ96: 21.53228346 | BA96: 21.53228346 | BB96: 20.84806202 | BC96: 15.90692308 | BD96: 17.51068702 | BE96: 14.71627907 | BF96: 24.2389313 | BG96: 15.03769231 | BH96: 8.817424242 | BI96: 19.12307692 | BJ96: 23.14677419 | BK96: 19.21889764 | BL96: 14.80984848 | BM96: 0 | BN96: 0 | BO96: 0 | BP96: 0 | BQ96: 0 | BR96: 0 | BS96: 0 | BT96: 0 | BU96: 0 | BV96: 0 | BW96: =IF(BW95="",0,(BW95-INDIRECT(CONCATENATE(BW94,"CR")))*113/INDIRECT(CONCATENATE(BW94,"SR"))) -> 0 | BX96: 0 | BY96: 0 | BZ96: 0 | CA96: 0 | CB96: 0 | CC96: 0 | CD96: 0 | CE96: 0 | CF96: 0 | CG96: 0 | CH96: 0 | CI96: 0 | CJ96: 0 | CK96: 0 | CL96: 0 | CM96: =IF(CM95="",0,(CM95-INDIRECT(CONCATENATE(CM94,"CR")))*113/INDIRECT(CONCATENATE(CM94,"SR"))) -> 0 | CN96: 0 | CO96: =IF(CO95="",0,(CO95-INDIRECT(CONCATENATE(CO94,"CR")))*113/INDIRECT(CONCATENATE(CO94,"SR"))) -> 0 | CP96: 0 | CQ96: =IF(CQ95="",0,(CQ95-INDIRECT(CONCATENATE(CQ94,"CR")))*113/INDIRECT(CONCATENATE(CQ94,"SR"))) -> 0 | CR96: 0 | CS96: =IF(CS95="",0,(CS95-INDIRECT(CONCATENATE(CS94,"CR")))*113/INDIRECT(CONCATENATE(CS94,"SR"))) -> 0 | CT96: 0 | CU96: =IF(CU95="",0,(CU95-INDIRECT(CONCATENATE(CU94,"CR")))*113/INDIRECT(CONCATENATE(CU94,"SR"))) -> 0 | CV96: 0 | CW96: =IF(CW95="",0,(CW95-INDIRECT(CONCATENATE(CW94,"CR")))*113/INDIRECT(CONCATENATE(CW94,"SR"))) -> 0
I97: New Hcap | J97: =J96-2 -> 13.64615385 | K97: =IF(K96>0,MIN(J96:K96)-2,J97) -> 13.64615385 | L97: =IF(L96>0,MIN(J96:L96)-2,K97) -> 13.64615385 | M97: =IF(M96>0,MIN(J96:M96)-1,L97) -> 14.64615385 | N97: =IF(N96>0,MIN(J96:N96),M97) -> 14.41417323 | O97: =IF(O96>0,AVERAGE(SMALL(IF(J96:O96>0,J96:O96),{1,2}))-1,N97) -> 14.03016354 | P97: =IF(P96>0,AVERAGE(SMALL(IF(J96:P96>0,J96:P96),{1,2})),O97) -> 13.72631738 | Q97: =IF(Q96>0,AVERAGE(SMALL(IF(J96:Q96>0,J96:Q96),{1,2})),P97) -> 13.72631738 | R97: =IF(R96>0,AVERAGE(SMALL(IF(J96:R96>0,J96:R96),{1,2,3})),Q97) -> 12.62780133 | S97: =IF(S96>0,AVERAGE(SMALL(IF(J96:S96>0,J96:S96),{1,2,3})),R97) -> 11.58974359 | T97: =IF(T96>0,AVERAGE(SMALL(IF(J96:T96>0,J96:T96),{1,2,3})),S97) -> 11.58974359 | U97: =IF(U96>0,AVERAGE(SMALL(IF(J96:U96>0,J96:U96),{1,2,3,4})),T97) -> 12.295851 | V97: =IF(V96>0,AVERAGE(SMALL(IF(J96:V96>0,J96:V96),{1,2,3,4})),U97) -> 12.295851 | W97: =IF(W96>0,AVERAGE(SMALL(IF(J96:W96>0,J96:W96),{1,2,3,4})),V97) -> 11.32469406 | X97: =IF(X96>0,AVERAGE(SMALL(IF(J96:X96>0,J96:X96),{1,2,3,4,5})),W97) -> 11.94258989 | Y97: =IF(Y96>0,AVERAGE(SMALL(IF(J96:Y96>0,J96:Y96),{1,2,3,4,5})),X97) -> 11.73380105 | Z97: =IF(Z96>0,AVERAGE(SMALL(IF(J96:Z96>0,J96:Z96),{1,2,3,4,5,6})),Y97) -> 12.18052974 | AA97: =IF(AA96>0,AVERAGE(SMALL(IF(J96:AA96>0,J96:AA96),{1,2,3,4,5,6})),Z97) -> 12.09611626 | AB97: =IF(AB96>0,AVERAGE(SMALL(IF(J96:AB96>0,J96:AB96),{1,2,3,4,5,6,7})),AA97) -> 11.7917217 | AC97: =IF(AC96>0,AVERAGE(SMALL(IF(J96:AC96>0,J96:AC96),{1,2,3,4,5,6,7,8})),AB97) -> 12.11952814 | AD97: =IF(AD96>0,AVERAGE(SMALL(IF(K96:AD96>0,K96:AD96),{1,2,3,4,5,6,7,8})),AC97) -> 12.11952814 | AE97: =IF(AE96>0,AVERAGE(SMALL(IF(L96:AE96>0,L96:AE96),{1,2,3,4,5,6,7,8})),AD97) -> 12.11952814 | AF97: =IF(AF96>0,AVERAGE(SMALL(IF(M96:AF96>0,M96:AF96),{1,2,3,4,5,6,7,8})),AE97) -> 12.11952814 | AG97: =IF(AG96>0,AVERAGE(SMALL(IF(N96:AG96>0,N96:AG96),{1,2,3,4,5,6,7,8})),AF97) -> 12.11952814 | AH97: =IF(AH96>0,AVERAGE(SMALL(IF(O96:AH96>0,O96:AH96),{1,2,3,4,5,6,7,8})),AG97) -> 12.27352571 | AI97: =IF(AI96>0,AVERAGE(SMALL(IF(P96:AI96>0,P96:AI96),{1,2,3,4,5,6,7,8})),AH97) -> 12.27352571 | AJ97: =IF(AJ96>0,AVERAGE(SMALL(IF(Q96:AJ96>0,Q96:AJ96),{1,2,3,4,5,6,7,8})),AI97) -> 12.59948725 | AK97: =IF(AK96>0,AVERAGE(SMALL(IF(R96:AK96>0,R96:AK96),{1,2,3,4,5,6,7,8})),AJ97) -> 12.60195666 | AL97: =IF(AL96>0,AVERAGE(SMALL(IF(S96:AL96>0,S96:AL96),{1,2,3,4,5,6,7,8})),AK97) -> 13.54476405 | AM97: =IF(AM96>0,AVERAGE(SMALL(IF(T96:AM96>0,T96:AM96),{1,2,3,4,5,6,7,8})),AL97) -> 14.37891759 | AN97: =IF(AN96>0,AVERAGE(SMALL(IF(U96:AN96>0,U96:AN96),{1,2,3,4,5,6,7,8})),AM97) -> 14.09050268 | AO97: =IF(AO96>0,AVERAGE(SMALL(IF(V96:AO96>0,V96:AO96),{1,2,3,4,5,6,7,8})),AN97) -> 13.6950802 | AP97: =IF(AP96>0,AVERAGE(SMALL(IF(W96:AP96>0,W96:AP96),{1,2,3,4,5,6,7,8})),AO97) -> 13.6950802 | AQ97: =IF(AQ96>0,AVERAGE(SMALL(IF(X96:AQ96>0,X96:AQ96),{1,2,3,4,5,6,7,8})),AP97) -> 14.62554056 | AR97: =IF(AR96>0,AVERAGE(SMALL(IF(Y96:AR96>0,Y96:AR96),{1,2,3,4,5,6,7,8})),AQ97) -> 14.62554056 | AS97: =IF(AS96>0,AVERAGE(SMALL(IF(Z96:AS96>0,Z96:AS96),{1,2,3,4,5,6,7,8})),AR97) -> 15.20091548 | AT97: =IF(AT96>0,AVERAGE(SMALL(IF(AA96:AT96>0,AA96:AT96),{1,2,3,4,5,6,7,8})),AS97) -> 14.90329294 | AU97: =IF(AU96>0,AVERAGE(SMALL(IF(AB96:AU96>0,AB96:AU96),{1,2,3,4,5,6,7,8})),AT97) -> 15.43195326 | AV97: =IF(AV96>0,AVERAGE(SMALL(IF(AC96:AV96>0,AC96:AV96),{1,2,3,4,5,6,7,8})),AU97) -> 15.81609166 | AW97: =IF(AW96>0,AVERAGE(SMALL(IF(AD96:AW96>0,AD96:AW96),{1,2,3,4,5,6,7,8})),AV97) -> 15.70908408 | AX97: =IF(AX96>0,AVERAGE(SMALL(IF(AE96:AX96>0,AE96:AX96),{1,2,3,4,5,6,7,8})),AW97) -> 15.5550865 | AY97: =IF(AY96>0,AVERAGE(SMALL(IF(AF96:AY96>0,AF96:AY96),{1,2,3,4,5,6,7,8})),AX97) -> 15.22142509 | AZ97: =IF(AZ96>0,AVERAGE(SMALL(IF(AG96:AZ96>0,AG96:AZ96),{1,2,3,4,5,6,7,8})),AY97) -> 15.22142509 | BA97: =IF(BA96>0,AVERAGE(SMALL(IF(AH96:BA96>0,AH96:BA96),{1,2,3,4,5,6,7,8})),AZ97) -> 15.34468785 | BB97: =IF(BB96>0,AVERAGE(SMALL(IF(AI96:BB96>0,AI96:BB96),{1,2,3,4,5,6,7,8})),BA97) -> 15.34468785 | BC97: =IF(BC96>0,AVERAGE(SMALL(IF(AJ96:BC96>0,AJ96:BC96),{1,2,3,4,5,6,7,8})),BB97) -> 14.94266862 | BD97: =IF(BD96>0,AVERAGE(SMALL(IF(AK96:BD96>0,AK96:BD96),{1,2,3,4,5,6,7,8})),BC97) -> 14.94266862 | BE97: =IF(BE96>0,AVERAGE(SMALL(IF(AL96:BE96>0,AL96:BE96),{1,2,3,4,5,6,7,8})),BD97) -> 14.79383812 | BF97: =IF(BF96>0,AVERAGE(SMALL(IF(AM96:BF96>0,AM96:BF96),{1,2,3,4,5,6,7,8})),BE97) -> 14.79383812 | BG97: =IF(BG96>0,AVERAGE(SMALL(IF(AN96:BG96>0,AN96:BG96),{1,2,3,4,5,6,7,8})),BF97) -> 14.71531102 | BH97: =IF(BH96>0,AVERAGE(SMALL(IF(AO96:BH96>0,AO96:BH96),{1,2,3,4,5,6,7,8})),BG97) -> 13.86845805 | BI97: =IF(BI96>0,AVERAGE(SMALL(IF(AP96:BI96>0,AP96:BI96),{1,2,3,4,5,6,7,8})),BH97) -> 13.96625799 | BJ97: =IF(BJ96>0,AVERAGE(SMALL(IF(AQ96:BJ96>0,AQ96:BJ96),{1,2,3,4,5,6,7,8})),BI97) -> 13.96625799 | BK97: =IF(BK96>0,AVERAGE(SMALL(IF(AR96:BK96>0,AR96:BK96),{1,2,3,4,5,6,7,8})),BJ97) -> 13.96625799 | BL97: =IF(BL96>0,AVERAGE(SMALL(IF(AS96:BL96>0,AS96:BL96),{1,2,3,4,5,6,7,8})),BK97) -> 13.86845805 | BM97: =IF(BM96>0,AVERAGE(SMALL(IF(AT96:BM96>0,AT96:BM96),{1,2,3,4,5,6,7,8})),BL97) -> 13.86845805 | BN97: =IF(BN96>0,AVERAGE(SMALL(IF(AU96:BN96>0,AU96:BN96),{1,2,3,4,5,6,7,8})),BM97) -> 13.86845805 | BO97: =IF(BO96>0,AVERAGE(SMALL(IF(AV96:BO96>0,AV96:BO96),{1,2,3,4,5,6,7,8})),BN97) -> 13.86845805 | BP97: =IF(BP96>0,AVERAGE(SMALL(IF(AW96:BP96>0,AW96:BP96),{1,2,3,4,5,6,7,8})),BO97) -> 13.86845805 | BQ97: =IF(BQ96>0,AVERAGE(SMALL(IF(AX96:BQ96>0,AX96:BQ96),{1,2,3,4,5,6,7,8})),BP97) -> 13.86845805 | BR97: =IF(BR96>0,AVERAGE(SMALL(IF(AY96:BR96>0,AY96:BR96),{1,2,3,4,5,6,7,8})),BQ97) -> 13.86845805 | BS97: =IF(BS96>0,AVERAGE(SMALL(IF(AZ96:BS96>0,AZ96:BS96),{1,2,3,4,5,6,7,8})),BR97) -> 13.86845805 | BT97: =IF(BT96>0,AVERAGE(SMALL(IF(BA96:BT96>0,BA96:BT96),{1,2,3,4,5,6,7,8})),BS97) -> 13.86845805 | BU97: =IF(BU96>0,AVERAGE(SMALL(IF(BB96:BU96>0,BB96:BU96),{1,2,3,4,5,6,7,8})),BT97) -> 13.86845805 | BV97: =IF(BV96>0,AVERAGE(SMALL(IF(BC96:BV96>0,BC96:BV96),{1,2,3,4,5,6,7,8})),BU97) -> 13.86845805 | BW97: =IF(BW96>0,AVERAGE(SMALL(IF(BD96:BW96>0,BD96:BW96),{1,2,3,4,5,6,7,8})),BV97) -> 13.86845805 | BX97: =IF(BX96>0,AVERAGE(SMALL(IF(BE96:BX96>0,BE96:BX96),{1,2,3,4,5,6,7,8})),BW97) -> 13.86845805 | BY97: =IF(BY96>0,AVERAGE(SMALL(IF(BF96:BY96>0,BF96:BY96),{1,2,3,4,5,6,7,8})),BX97) -> 13.86845805 | BZ97: =IF(BZ96>0,AVERAGE(SMALL(IF(BG96:BZ96>0,BG96:BZ96),{1,2,3,4,5,6,7,8})),BY97) -> 13.86845805 | CA97: =IF(CA96>0,AVERAGE(SMALL(IF(BH96:CA96>0,BH96:CA96),{1,2,3,4,5,6,7,8})),BZ97) -> 13.86845805 | CB97: =IF(CB96>0,AVERAGE(SMALL(IF(BI96:CB96>0,BI96:CB96),{1,2,3,4,5,6,7,8})),CA97) -> 13.86845805 | CC97: =IF(CC96>0,AVERAGE(SMALL(IF(BJ96:CC96>0,BJ96:CC96),{1,2,3,4,5,6,7,8})),CB97) -> 13.86845805 | CD97: =IF(CD96>0,AVERAGE(SMALL(IF(BK96:CD96>0,BK96:CD96),{1,2,3,4,5,6,7,8})),CC97) -> 13.86845805 | CE97: =IF(CE96>0,AVERAGE(SMALL(IF(BL96:CE96>0,BL96:CE96),{1,2,3,4,5,6,7,8})),CD97) -> 13.86845805 | CF97: =IF(CF96>0,AVERAGE(SMALL(IF(BM96:CF96>0,BM96:CF96),{1,2,3,4,5,6,7,8})),CE97) -> 13.86845805 | CG97: =IF(CG96>0,AVERAGE(SMALL(IF(BN96:CG96>0,BN96:CG96),{1,2,3,4,5,6,7,8})),CF97) -> 13.86845805 | CH97: =IF(CH96>0,AVERAGE(SMALL(IF(BO96:CH96>0,BO96:CH96),{1,2,3,4,5,6,7,8})),CG97) -> 13.86845805 | CI97: =IF(CI96>0,AVERAGE(SMALL(IF(BP96:CI96>0,BP96:CI96),{1,2,3,4,5,6,7,8})),CH97) -> 13.86845805 | CJ97: =IF(CJ96>0,AVERAGE(SMALL(IF(BQ96:CJ96>0,BQ96:CJ96),{1,2,3,4,5,6,7,8})),CI97) -> 13.86845805 | CK97: =IF(CK96>0,AVERAGE(SMALL(IF(BR96:CK96>0,BR96:CK96),{1,2,3,4,5,6,7,8})),CJ97) -> 13.86845805 | CL97: =IF(CL96>0,AVERAGE(SMALL(IF(BS96:CL96>0,BS96:CL96),{1,2,3,4,5,6,7,8})),CK97) -> 13.86845805 | CM97: =IF(CM96>0,AVERAGE(SMALL(IF(BT96:CM96>0,BT96:CM96),{1,2,3,4,5,6,7,8})),CL97) -> 13.86845805 | CN97: =IF(CN96>0,AVERAGE(SMALL(IF(BU96:CN96>0,BU96:CN96),{1,2,3,4,5,6,7,8})),CM97) -> 13.86845805 | CO97: =IF(CO96>0,AVERAGE(SMALL(IF(BV96:CO96>0,BV96:CO96),{1,2,3,4,5,6,7,8})),CN97) -> 13.86845805 | CP97: =IF(CP96>0,AVERAGE(SMALL(IF(BW96:CP96>0,BW96:CP96),{1,2,3,4,5,6,7,8})),CO97) -> 13.86845805 | CQ97: =IF(CQ96>0,AVERAGE(SMALL(IF(BX96:CQ96>0,BX96:CQ96),{1,2,3,4,5,6,7,8})),CP97) -> 13.86845805 | CR97: =IF(CR96>0,AVERAGE(SMALL(IF(BY96:CR96>0,BY96:CR96),{1,2,3,4,5,6,7,8})),CQ97) -> 13.86845805 | CS97: =IF(CS96>0,AVERAGE(SMALL(IF(BZ96:CS96>0,BZ96:CS96),{1,2,3,4,5,6,7,8})),CR97) -> 13.86845805 | CT97: =IF(CT96>0,AVERAGE(SMALL(IF(CA96:CT96>0,CA96:CT96),{1,2,3,4,5,6,7,8})),CS97) -> 13.86845805 | CU97: =IF(CU96>0,AVERAGE(SMALL(IF(CB96:CU96>0,CB96:CU96),{1,2,3,4,5,6,7,8})),CT97) -> 13.86845805 | CV97: =IF(CV96>0,AVERAGE(SMALL(IF(CC96:CV96>0,CC96:CV96),{1,2,3,4,5,6,7,8})),CU97) -> 13.86845805 | CW97: =IF(CW96>0,AVERAGE(SMALL(IF(CD96:CW96>0,CD96:CW96),{1,2,3,4,5,6,7,8})),CV97) -> 13.86845805
I98: Low Hcap | AC98: =MIN($Q97:AC97) -> 11.32469406 | AD98: =MIN($Q97:AD97) -> 11.32469406 | AE98: =MIN($Q97:AE97) -> 11.32469406 | AF98: =MIN($R97:AF97) -> 11.32469406 | AG98: =MIN($R97:AG97) -> 11.32469406 | AH98: =MIN($R97:AH97) -> 11.32469406 | AI98: =MIN($R97:AI97) -> 11.32469406 | AJ98: =MIN($R97:AJ97) -> 11.32469406 | AK98: =MIN($R97:AK97) -> 11.32469406 | AL98: =MIN($T97:AL97) -> 11.32469406 | AM98: =MIN($U97:AM97) -> 11.32469406 | AN98: =MIN($V97:AN97) -> 11.32469406 | AO98: =MIN($W97:AO97) -> 11.32469406 | AP98: =MIN($X97:AP97) -> 11.73380105 | AQ98: =MIN($Z97:AQ97) -> 11.7917217 | AR98: =MIN($Z97:AR97) -> 11.7917217 | AS98: =MIN($AA97:AS97) -> 11.7917217 | AT98: =MIN($AA97:AT97) -> 11.7917217 | AU98: =MIN($AB97:AU97) -> 11.7917217 | AV98: =MIN($AC97:AV97) -> 12.11952814 | AW98: =MIN($AC97:AW97) -> 12.11952814 | AX98: =MIN($AC97:AX97) -> 12.11952814 | AY98: =MIN($AF97:AY97) -> 12.11952814 | AZ98: =MIN($AL97:AZ97) -> 13.54476405 | BA98: =MIN($AL97:BA97) -> 13.54476405 | BB98: =MIN($AP97:BB97) -> 13.6950802 | BC98: =MIN($AR97:BC97) -> 14.62554056 | BD98: =MIN($AT97:BD97) -> 14.90329294 | BE98: =MIN($AT97:BE97) -> 14.79383812 | BF98: =MIN($AU97:BF97) -> 14.79383812 | BG98: =MIN($AV97:BG97) -> 14.71531102 | BH98: =MIN($AY97:BH97) -> 13.86845805 | BI98: =MIN($AY97:BI97) -> 13.86845805 | BJ98: =MIN($AZ97:BJ97) -> 13.86845805 | BK98: =MIN($AZ97:BK97) -> 13.86845805 | BL98: =MIN($BB97:BL97) -> 13.86845805 | BM98: =MIN($BB97:BM97) -> 13.86845805 | BN98: =MIN($BB97:BN97) -> 13.86845805 | BO98: =MIN($BB97:BO97) -> 13.86845805 | BP98: =MIN($BB97:BP97) -> 13.86845805 | BQ98: =MIN($BB97:BQ97) -> 13.86845805 | BR98: =MIN($BB97:BR97) -> 13.86845805 | BS98: =MIN($BB97:BS97) -> 13.86845805 | BT98: =MIN($BB97:BT97) -> 13.86845805 | BU98: =MIN($BB97:BU97) -> 13.86845805 | BV98: =MIN($BB97:BV97) -> 13.86845805 | BW98: =MIN($BB97:BW97) -> 13.86845805 | BX98: =MIN($BB97:BX97) -> 13.86845805 | BY98: =MIN($BB97:BY97) -> 13.86845805 | BZ98: =MIN($BB97:BZ97) -> 13.86845805 | CA98: =MIN($BB97:CA97) -> 13.86845805 | CB98: =MIN($BB97:CB97) -> 13.86845805 | CC98: =MIN($BB97:CC97) -> 13.86845805 | CD98: =MIN($BB97:CD97) -> 13.86845805 | CE98: =MIN($BB97:CE97) -> 13.86845805 | CF98: =MIN($BB97:CF97) -> 13.86845805 | CG98: =MIN($BB97:CG97) -> 13.86845805 | CH98: =MIN($BB97:CH97) -> 13.86845805 | CI98: =MIN($BB97:CI97) -> 13.86845805 | CJ98: =MIN($BB97:CJ97) -> 13.86845805 | CK98: =MIN($BB97:CK97) -> 13.86845805 | CL98: =MIN($BB97:CL97) -> 13.86845805 | CM98: =MIN($BB97:CM97) -> 13.86845805 | CN98: =MIN($BB97:CN97) -> 13.86845805 | CO98: =MIN($BB97:CO97) -> 13.86845805 | CP98: =MIN($BB97:CP97) -> 13.86845805 | CQ98: =MIN($BB97:CQ97) -> 13.86845805 | CR98: =MIN($BB97:CR97) -> 13.86845805 | CS98: =MIN($BB97:CS97) -> 13.86845805 | CT98: =MIN($BB97:CT97) -> 13.86845805 | CU98: =MIN($BB97:CU97) -> 13.86845805 | CV98: =MIN($BB97:CV97) -> 13.86845805 | CW98: =MIN($BB97:CW97) -> 13.86845805
B99: Cottrell | C99: John | D99: 22 | F99: =IF(H99<4,"Y",) -> 0 | G99: 2022 | H99: =COUNT(J99:CX99) -> 5 | I99: Date | K99: 2022-06-17 | L99: 2022-06-22 | M99: 2022-07-31 | N99: 2022-10-30 | O99: 2023-05-19 | CY99: =IF(CW103>$DD$1,36,CW103) -> 24.41335878 | CZ99: 24 | DA99: =CZ99-CY99 -> -0.4133587786
I100: Course | K100: StEurachHG | L100: GutThailing2022HG | M100: HohenpaehlHG | N100: OdelzhausenHB | O100: GarmischHG
I101: Ad Gr | K101: 103 | L101: 114 | M101: 118 | N101: 115 | O101: 119
I102: SD | J102: 24 | K102: =IF(K101="",0,(K101-INDIRECT(CONCATENATE(K100,"CR")))*113/INDIRECT(CONCATENATE(K100,"SR"))) -> 26.82671756 | L102: 37.72461538 | M102: 40.80076336 | N102: 45.77948718 | O102: 42.35275591 | P102: 0 | Q102: 0 | R102: 0 | S102: 0 | T102: 0 | U102: 0 | V102: 0 | W102: 0 | X102: 0 | Y102: 0 | Z102: 0 | AA102: 0 | AB102: 0 | AC102: 0 | AD102: 0 | AE102: 0 | AF102: 0 | AG102: 0 | AH102: 0 | AI102: 0 | AJ102: 0 | AK102: 0 | AL102: 0 | AM102: 0 | AN102: 0 | AO102: 0 | AP102: 0 | AQ102: 0 | AR102: 0 | AS102: 0 | AT102: 0 | AU102: 0 | AV102: 0 | AW102: 0 | AX102: 0 | AY102: 0 | AZ102: 0 | BA102: 0 | BB102: 0 | BC102: 0 | BD102: 0 | BE102: 0 | BF102: 0 | BG102: 0 | BH102: 0 | BI102: 0 | BJ102: 0 | BK102: 0 | BL102: 0 | BM102: 0 | BN102: 0 | BO102: 0 | BP102: 0 | BQ102: 0 | BR102: 0 | BS102: 0 | BT102: 0 | BU102: 0 | BV102: 0 | BW102: =IF(BW101="",0,(BW101-INDIRECT(CONCATENATE(BW100,"CR")))*113/INDIRECT(CONCATENATE(BW100,"SR"))) -> 0 | BX102: 0 | BY102: 0 | BZ102: 0 | CA102: 0 | CB102: 0 | CC102: 0 | CD102: 0 | CE102: 0 | CF102: 0 | CG102: 0 | CH102: 0 | CI102: 0 | CJ102: 0 | CK102: 0 | CL102: 0 | CM102: =IF(CM101="",0,(CM101-INDIRECT(CONCATENATE(CM100,"CR")))*113/INDIRECT(CONCATENATE(CM100,"SR"))) -> 0 | CN102: 0 | CO102: =IF(CO101="",0,(CO101-INDIRECT(CONCATENATE(CO100,"CR")))*113/INDIRECT(CONCATENATE(CO100,"SR"))) -> 0 | CP102: 0 | CQ102: =IF(CQ101="",0,(CQ101-INDIRECT(CONCATENATE(CQ100,"CR")))*113/INDIRECT(CONCATENATE(CQ100,"SR"))) -> 0 | CR102: 0 | CS102: =IF(CS101="",0,(CS101-INDIRECT(CONCATENATE(CS100,"CR")))*113/INDIRECT(CONCATENATE(CS100,"SR"))) -> 0 | CT102: 0 | CU102: =IF(CU101="",0,(CU101-INDIRECT(CONCATENATE(CU100,"CR")))*113/INDIRECT(CONCATENATE(CU100,"SR"))) -> 0 | CV102: 0 | CW102: =IF(CW101="",0,(CW101-INDIRECT(CONCATENATE(CW100,"CR")))*113/INDIRECT(CONCATENATE(CW100,"SR"))) -> 0
I103: New Hcap | J103: =J102-2 -> 22 | K103: =IF(K102>0,MIN(J102:K102)-2,J103) -> 22 | L103: =IF(L102>0,MIN(J102:L102)-2,K103) -> 22 | M103: =IF(M102>0,MIN(J102:M102)-1,L103) -> 23 | N103: =IF(N102>0,MIN(J102:N102),M103) -> 24 | O103: =IF(O102>0,AVERAGE(SMALL(IF(J102:O102>0,J102:O102),{1,2}))-1,N103) -> 24.41335878 | P103: =IF(P102>0,AVERAGE(SMALL(IF(J102:P102>0,J102:P102),{1,2})),O103) -> 24.41335878 | Q103: =IF(Q102>0,AVERAGE(SMALL(IF(J102:Q102>0,J102:Q102),{1,2})),P103) -> 24.41335878 | R103: =IF(R102>0,AVERAGE(SMALL(IF(J102:R102>0,J102:R102),{1,2,3})),Q103) -> 24.41335878 | S103: =IF(S102>0,AVERAGE(SMALL(IF(J102:S102>0,J102:S102),{1,2,3})),R103) -> 24.41335878 | T103: =IF(T102>0,AVERAGE(SMALL(IF(J102:T102>0,J102:T102),{1,2,3})),S103) -> 24.41335878 | U103: =IF(U102>0,AVERAGE(SMALL(IF(J102:U102>0,J102:U102),{1,2,3,4})),T103) -> 24.41335878 | V103: =IF(V102>0,AVERAGE(SMALL(IF(J102:V102>0,J102:V102),{1,2,3,4})),U103) -> 24.41335878 | W103: =IF(W102>0,AVERAGE(SMALL(IF(J102:W102>0,J102:W102),{1,2,3,4})),V103) -> 24.41335878 | X103: =IF(X102>0,AVERAGE(SMALL(IF(J102:X102>0,J102:X102),{1,2,3,4,5})),W103) -> 24.41335878 | Y103: =IF(Y102>0,AVERAGE(SMALL(IF(J102:Y102>0,J102:Y102),{1,2,3,4,5})),X103) -> 24.41335878 | Z103: =IF(Z102>0,AVERAGE(SMALL(IF(J102:Z102>0,J102:Z102),{1,2,3,4,5,6})),Y103) -> 24.41335878 | AA103: =IF(AA102>0,AVERAGE(SMALL(IF(J102:AA102>0,J102:AA102),{1,2,3,4,5,6})),Z103) -> 24.41335878 | AB103: =IF(AB102>0,AVERAGE(SMALL(IF(J102:AB102>0,J102:AB102),{1,2,3,4,5,6,7})),AA103) -> 24.41335878 | AC103: =IF(AC102>0,AVERAGE(SMALL(IF(J102:AC102>0,J102:AC102),{1,2,3,4,5,6,7,8})),AB103) -> 24.41335878 | AD103: =IF(AD102>0,AVERAGE(SMALL(IF(K102:AD102>0,K102:AD102),{1,2,3,4,5,6,7,8})),AC103) -> 24.41335878 | AE103: =IF(AE102>0,AVERAGE(SMALL(IF(L102:AE102>0,L102:AE102),{1,2,3,4,5,6,7,8})),AD103) -> 24.41335878 | AF103: =IF(AF102>0,AVERAGE(SMALL(IF(M102:AF102>0,M102:AF102),{1,2,3,4,5,6,7,8})),AE103) -> 24.41335878 | AG103: =IF(AG102>0,AVERAGE(SMALL(IF(N102:AG102>0,N102:AG102),{1,2,3,4,5,6,7,8})),AF103) -> 24.41335878 | AH103: =IF(AH102>0,AVERAGE(SMALL(IF(O102:AH102>0,O102:AH102),{1,2,3,4,5,6,7,8})),AG103) -> 24.41335878 | AI103: =IF(AI102>0,AVERAGE(SMALL(IF(P102:AI102>0,P102:AI102),{1,2,3,4,5,6,7,8})),AH103) -> 24.41335878 | AJ103: =IF(AJ102>0,AVERAGE(SMALL(IF(Q102:AJ102>0,Q102:AJ102),{1,2,3,4,5,6,7,8})),AI103) -> 24.41335878 | AK103: =IF(AK102>0,AVERAGE(SMALL(IF(R102:AK102>0,R102:AK102),{1,2,3,4,5,6,7,8})),AJ103) -> 24.41335878 | AL103: =IF(AL102>0,AVERAGE(SMALL(IF(S102:AL102>0,S102:AL102),{1,2,3,4,5,6,7,8})),AK103) -> 24.41335878 | AM103: =IF(AM102>0,AVERAGE(SMALL(IF(T102:AM102>0,T102:AM102),{1,2,3,4,5,6,7,8})),AL103) -> 24.41335878 | AN103: =IF(AN102>0,AVERAGE(SMALL(IF(U102:AN102>0,U102:AN102),{1,2,3,4,5,6,7,8})),AM103) -> 24.41335878 | AO103: =IF(AO102>0,AVERAGE(SMALL(IF(V102:AO102>0,V102:AO102),{1,2,3,4,5,6,7,8})),AN103) -> 24.41335878 | AP103: =IF(AP102>0,AVERAGE(SMALL(IF(W102:AP102>0,W102:AP102),{1,2,3,4,5,6,7,8})),AO103) -> 24.41335878 | AQ103: =IF(AQ102>0,AVERAGE(SMALL(IF(X102:AQ102>0,X102:AQ102),{1,2,3,4,5,6,7,8})),AP103) -> 24.41335878 | AR103: =IF(AR102>0,AVERAGE(SMALL(IF(Y102:AR102>0,Y102:AR102),{1,2,3,4,5,6,7,8})),AQ103) -> 24.41335878 | AS103: =IF(AS102>0,AVERAGE(SMALL(IF(Z102:AS102>0,Z102:AS102),{1,2,3,4,5,6,7,8})),AR103) -> 24.41335878 | AT103: =IF(AT102>0,AVERAGE(SMALL(IF(AA102:AT102>0,AA102:AT102),{1,2,3,4,5,6,7,8})),AS103) -> 24.41335878 | AU103: =IF(AU102>0,AVERAGE(SMALL(IF(AB102:AU102>0,AB102:AU102),{1,2,3,4,5,6,7,8})),AT103) -> 24.41335878 | AV103: =IF(AV102>0,AVERAGE(SMALL(IF(AC102:AV102>0,AC102:AV102),{1,2,3,4,5,6,7,8})),AU103) -> 24.41335878 | AW103: =IF(AW102>0,AVERAGE(SMALL(IF(AD102:AW102>0,AD102:AW102),{1,2,3,4,5,6,7,8})),AV103) -> 24.41335878 | AX103: =IF(AX102>0,AVERAGE(SMALL(IF(AE102:AX102>0,AE102:AX102),{1,2,3,4,5,6,7,8})),AW103) -> 24.41335878 | AY103: =IF(AY102>0,AVERAGE(SMALL(IF(AF102:AY102>0,AF102:AY102),{1,2,3,4,5,6,7,8})),AX103) -> 24.41335878 | AZ103: =IF(AZ102>0,AVERAGE(SMALL(IF(AG102:AZ102>0,AG102:AZ102),{1,2,3,4,5,6,7,8})),AY103) -> 24.41335878 | BA103: =IF(BA102>0,AVERAGE(SMALL(IF(AH102:BA102>0,AH102:BA102),{1,2,3,4,5,6,7,8})),AZ103) -> 24.41335878 | BB103: =IF(BB102>0,AVERAGE(SMALL(IF(AI102:BB102>0,AI102:BB102),{1,2,3,4,5,6,7,8})),BA103) -> 24.41335878 | BC103: =IF(BC102>0,AVERAGE(SMALL(IF(AJ102:BC102>0,AJ102:BC102),{1,2,3,4,5,6,7,8})),BB103) -> 24.41335878 | BD103: =IF(BD102>0,AVERAGE(SMALL(IF(AK102:BD102>0,AK102:BD102),{1,2,3,4,5,6,7,8})),BC103) -> 24.41335878 | BE103: =IF(BE102>0,AVERAGE(SMALL(IF(AL102:BE102>0,AL102:BE102),{1,2,3,4,5,6,7,8})),BD103) -> 24.41335878 | BF103: =IF(BF102>0,AVERAGE(SMALL(IF(AM102:BF102>0,AM102:BF102),{1,2,3,4,5,6,7,8})),BE103) -> 24.41335878 | BG103: =IF(BG102>0,AVERAGE(SMALL(IF(AN102:BG102>0,AN102:BG102),{1,2,3,4,5,6,7,8})),BF103) -> 24.41335878 | BH103: =IF(BH102>0,AVERAGE(SMALL(IF(AO102:BH102>0,AO102:BH102),{1,2,3,4,5,6,7,8})),BG103) -> 24.41335878 | BI103: =IF(BI102>0,AVERAGE(SMALL(IF(AP102:BI102>0,AP102:BI102),{1,2,3,4,5,6,7,8})),BH103) -> 24.41335878 | BJ103: =IF(BJ102>0,AVERAGE(SMALL(IF(AQ102:BJ102>0,AQ102:BJ102),{1,2,3,4,5,6,7,8})),BI103) -> 24.41335878 | BK103: =IF(BK102>0,AVERAGE(SMALL(IF(AR102:BK102>0,AR102:BK102),{1,2,3,4,5,6,7,8})),BJ103) -> 24.41335878 | BL103: =IF(BL102>0,AVERAGE(SMALL(IF(AS102:BL102>0,AS102:BL102),{1,2,3,4,5,6,7,8})),BK103) -> 24.41335878 | BM103: =IF(BM102>0,AVERAGE(SMALL(IF(AT102:BM102>0,AT102:BM102),{1,2,3,4,5,6,7,8})),BL103) -> 24.41335878 | BN103: =IF(BN102>0,AVERAGE(SMALL(IF(AU102:BN102>0,AU102:BN102),{1,2,3,4,5,6,7,8})),BM103) -> 24.41335878 | BO103: =IF(BO102>0,AVERAGE(SMALL(IF(AV102:BO102>0,AV102:BO102),{1,2,3,4,5,6,7,8})),BN103) -> 24.41335878 | BP103: =IF(BP102>0,AVERAGE(SMALL(IF(AW102:BP102>0,AW102:BP102),{1,2,3,4,5,6,7,8})),BO103) -> 24.41335878 | BQ103: =IF(BQ102>0,AVERAGE(SMALL(IF(AX102:BQ102>0,AX102:BQ102),{1,2,3,4,5,6,7,8})),BP103) -> 24.41335878 | BR103: =IF(BR102>0,AVERAGE(SMALL(IF(AY102:BR102>0,AY102:BR102),{1,2,3,4,5,6,7,8})),BQ103) -> 24.41335878 | BS103: =IF(BS102>0,AVERAGE(SMALL(IF(AZ102:BS102>0,AZ102:BS102),{1,2,3,4,5,6,7,8})),BR103) -> 24.41335878 | BT103: =IF(BT102>0,AVERAGE(SMALL(IF(BA102:BT102>0,BA102:BT102),{1,2,3,4,5,6,7,8})),BS103) -> 24.41335878 | BU103: =IF(BU102>0,AVERAGE(SMALL(IF(BB102:BU102>0,BB102:BU102),{1,2,3,4,5,6,7,8})),BT103) -> 24.41335878 | BV103: =IF(BV102>0,AVERAGE(SMALL(IF(BC102:BV102>0,BC102:BV102),{1,2,3,4,5,6,7,8})),BU103) -> 24.41335878 | BW103: =IF(BW102>0,AVERAGE(SMALL(IF(BD102:BW102>0,BD102:BW102),{1,2,3,4,5,6,7,8})),BV103) -> 24.41335878 | BX103: =IF(BX102>0,AVERAGE(SMALL(IF(BE102:BX102>0,BE102:BX102),{1,2,3,4,5,6,7,8})),BW103) -> 24.41335878 | BY103: =IF(BY102>0,AVERAGE(SMALL(IF(BF102:BY102>0,BF102:BY102),{1,2,3,4,5,6,7,8})),BX103) -> 24.41335878 | BZ103: =IF(BZ102>0,AVERAGE(SMALL(IF(BG102:BZ102>0,BG102:BZ102),{1,2,3,4,5,6,7,8})),BY103) -> 24.41335878 | CA103: =IF(CA102>0,AVERAGE(SMALL(IF(BH102:CA102>0,BH102:CA102),{1,2,3,4,5,6,7,8})),BZ103) -> 24.41335878 | CB103: =IF(CB102>0,AVERAGE(SMALL(IF(BI102:CB102>0,BI102:CB102),{1,2,3,4,5,6,7,8})),CA103) -> 24.41335878 | CC103: =IF(CC102>0,AVERAGE(SMALL(IF(BJ102:CC102>0,BJ102:CC102),{1,2,3,4,5,6,7,8})),CB103) -> 24.41335878 | CD103: =IF(CD102>0,AVERAGE(SMALL(IF(BK102:CD102>0,BK102:CD102),{1,2,3,4,5,6,7,8})),CC103) -> 24.41335878 | CE103: =IF(CE102>0,AVERAGE(SMALL(IF(BL102:CE102>0,BL102:CE102),{1,2,3,4,5,6,7,8})),CD103) -> 24.41335878 | CF103: =IF(CF102>0,AVERAGE(SMALL(IF(BM102:CF102>0,BM102:CF102),{1,2,3,4,5,6,7,8})),CE103) -> 24.41335878 | CG103: =IF(CG102>0,AVERAGE(SMALL(IF(BN102:CG102>0,BN102:CG102),{1,2,3,4,5,6,7,8})),CF103) -> 24.41335878 | CH103: =IF(CH102>0,AVERAGE(SMALL(IF(BO102:CH102>0,BO102:CH102),{1,2,3,4,5,6,7,8})),CG103) -> 24.41335878 | CI103: =IF(CI102>0,AVERAGE(SMALL(IF(BP102:CI102>0,BP102:CI102),{1,2,3,4,5,6,7,8})),CH103) -> 24.41335878 | CJ103: =IF(CJ102>0,AVERAGE(SMALL(IF(BQ102:CJ102>0,BQ102:CJ102),{1,2,3,4,5,6,7,8})),CI103) -> 24.41335878 | CK103: =IF(CK102>0,AVERAGE(SMALL(IF(BR102:CK102>0,BR102:CK102),{1,2,3,4,5,6,7,8})),CJ103) -> 24.41335878 | CL103: =IF(CL102>0,AVERAGE(SMALL(IF(BS102:CL102>0,BS102:CL102),{1,2,3,4,5,6,7,8})),CK103) -> 24.41335878 | CM103: =IF(CM102>0,AVERAGE(SMALL(IF(BT102:CM102>0,BT102:CM102),{1,2,3,4,5,6,7,8})),CL103) -> 24.41335878 | CN103: =IF(CN102>0,AVERAGE(SMALL(IF(BU102:CN102>0,BU102:CN102),{1,2,3,4,5,6,7,8})),CM103) -> 24.41335878 | CO103: =IF(CO102>0,AVERAGE(SMALL(IF(BV102:CO102>0,BV102:CO102),{1,2,3,4,5,6,7,8})),CN103) -> 24.41335878 | CP103: =IF(CP102>0,AVERAGE(SMALL(IF(BW102:CP102>0,BW102:CP102),{1,2,3,4,5,6,7,8})),CO103) -> 24.41335878 | CQ103: =IF(CQ102>0,AVERAGE(SMALL(IF(BX102:CQ102>0,BX102:CQ102),{1,2,3,4,5,6,7,8})),CP103) -> 24.41335878 | CR103: =IF(CR102>0,AVERAGE(SMALL(IF(BY102:CR102>0,BY102:CR102),{1,2,3,4,5,6,7,8})),CQ103) -> 24.41335878 | CS103: =IF(CS102>0,AVERAGE(SMALL(IF(BZ102:CS102>0,BZ102:CS102),{1,2,3,4,5,6,7,8})),CR103) -> 24.41335878 | CT103: =IF(CT102>0,AVERAGE(SMALL(IF(CA102:CT102>0,CA102:CT102),{1,2,3,4,5,6,7,8})),CS103) -> 24.41335878 | CU103: =IF(CU102>0,AVERAGE(SMALL(IF(CB102:CU102>0,CB102:CU102),{1,2,3,4,5,6,7,8})),CT103) -> 24.41335878 | CV103: =IF(CV102>0,AVERAGE(SMALL(IF(CC102:CV102>0,CC102:CV102),{1,2,3,4,5,6,7,8})),CU103) -> 24.41335878 | CW103: =IF(CW102>0,AVERAGE(SMALL(IF(CD102:CW102>0,CD102:CW102),{1,2,3,4,5,6,7,8})),CV103) -> 24.41335878
I104: Low Hcap | AC104: =MIN($J103:AC103) -> 22 | AD104: =MIN($J103:AD103) -> 22 | AE104: =MIN($J103:AE103) -> 22 | AF104: =MIN($J103:AF103) -> 22 | AG104: =MIN($J103:AG103) -> 22 | AH104: =MIN($J103:AH103) -> 22 | AI104: =MIN($J103:AI103) -> 22 | AJ104: =MIN($J103:AJ103) -> 22 | AK104: =MIN($J103:AK103) -> 22 | AL104: =MIN($J103:AL103) -> 22 | AM104: =MIN($J103:AM103) -> 22 | AN104: =MIN($J103:AN103) -> 22 | AO104: =MIN($J103:AO103) -> 22 | AP104: =MIN($J103:AP103) -> 22 | AQ104: =MIN($J103:AQ103) -> 22 | AR104: =MIN($J103:AR103) -> 22 | AS104: =MIN($J103:AS103) -> 22 | AT104: =MIN($J103:AT103) -> 22 | AU104: =MIN($J103:AU103) -> 22 | AV104: =MIN($J103:AV103) -> 22 | AW104: =MIN($J103:AW103) -> 22 | AX104: =MIN($J103:AX103) -> 22 | AY104: =MIN($J103:AY103) -> 22 | AZ104: =MIN($J103:AZ103) -> 22 | BA104: =MIN($J103:BA103) -> 22 | BB104: =MIN($J103:BB103) -> 22 | BC104: =MIN($J103:BC103) -> 22 | BD104: =MIN($J103:BD103) -> 22 | BE104: =MIN($J103:BE103) -> 22 | BF104: =MIN($J103:BF103) -> 22 | BG104: =MIN($J103:BG103) -> 22 | BH104: =MIN($J103:BH103) -> 22 | BI104: =MIN($J103:BI103) -> 22 | BJ104: =MIN($J103:BJ103) -> 22 | BK104: =MIN($J103:BK103) -> 22 | BL104: =MIN($J103:BL103) -> 22 | BM104: =MIN($J103:BM103) -> 22 | BN104: =MIN($J103:BN103) -> 22 | BO104: =MIN($J103:BO103) -> 22 | BP104: =MIN($J103:BP103) -> 22 | BQ104: =MIN($J103:BQ103) -> 22 | BR104: =MIN($J103:BR103) -> 22 | BS104: =MIN($J103:BS103) -> 22 | BT104: =MIN($J103:BT103) -> 22 | BU104: =MIN($J103:BU103) -> 22 | BV104: =MIN($J103:BV103) -> 22 | BW104: =MIN($J103:BW103) -> 22 | BX104: =MIN($J103:BX103) -> 22 | BY104: =MIN($J103:BY103) -> 22 | BZ104: =MIN($J103:BZ103) -> 22 | CA104: =MIN($J103:CA103) -> 22 | CB104: =MIN($J103:CB103) -> 22 | CC104: =MIN($J103:CC103) -> 22 | CD104: =MIN($J103:CD103) -> 22 | CE104: =MIN($J103:CE103) -> 22 | CF104: =MIN($J103:CF103) -> 22 | CG104: =MIN($J103:CG103) -> 22 | CH104: =MIN($J103:CH103) -> 22 | CI104: =MIN($J103:CI103) -> 22 | CJ104: =MIN($J103:CJ103) -> 22 | CK104: =MIN($J103:CK103) -> 22 | CL104: =MIN($J103:CL103) -> 22 | CM104: =MIN($J103:CM103) -> 22 | CN104: =MIN($J103:CN103) -> 22 | CO104: =MIN($J103:CO103) -> 22 | CP104: =MIN($J103:CP103) -> 22 | CQ104: =MIN($J103:CQ103) -> 22 | CR104: =MIN($J103:CR103) -> 22 | CS104: =MIN($J103:CS103) -> 22 | CT104: =MIN($J103:CT103) -> 22 | CU104: =MIN($J103:CU103) -> 22 | CV104: =MIN($J103:CV103) -> 22 | CW104: =MIN($J103:CW103) -> 22
B105: Cox | C105: Patrick | D105: 36 | E105: Y | F105: =IF(H105<4,"Y",) -> 0 | H105: =COUNT(J105:CX105) -> 24 | I105: Date | K105: 2020-06-05 | L105: 2020-06-19 | M105: 2020-07-31 | N105: 2020-11-01 | O105: 2021-03-28 | P105: 2021-04-11 | Q105: 2021-04-25 | R105: 2021-05-14 | S105: 2021-05-23 | T105: 2021-05-30 | U105: 2021-06-04 | V105: 2021-07-02 | W105: 2021-07-16 | X105: 2021-07-25 | Y105: 2021-08-08 | Z105: 2021-08-22 | AA105: 2021-09-19 | AB105: 2021-10-22 | AC105: 2021-11-14 | AD105: 2021-11-19 | AE105: 2022-05-01 | AF105: 2023-05-07 | AG105: 2023-05-19 | AH105: 2023-06-04 | CY105: =IF(CW109>$DD$1,36,CW109) -> 33.85003989 | CZ105: 33.46333486 | DA105: =CZ105-CY105 -> -0.3867050273
I106: Course | K106: ErdingHG | L106: StEurachHG | M106: StEurachHG | N106: ErdingHG | O106: OdelzhausenHG | P106: ErdingHR | Q106: PfaffingHG | R106: StEurachHG | S106: OdelzhausenHG | T106: IffeldorfHG | U106: EgmatingHG | V106: TegernbachHG | W106: MaxlrainHG | X106: OdelzhausenHR | Y106: IffeldorfHG | Z106: PfaffingHB | AA106: ErdingHG | AB106: TegernbachHG | AC106: OdelzhausenHG | AD106: TegernbachHG | AE106: ErdingHG | AF106: Odelzhausen2023HG | AG106: GarmischHG | AH106: IffeldorfHG
I107: Ad Gr | K107: 116 | L107: 123 | M107: 124 | N107: 109 | O107: 117 | P107: 106 | Q107: 115 | R107: 112 | S107: 129 | T107: 116 | U107: 125 | V107: 108 | W107: 102 | X107: 101 | Y107: 116 | Z107: 115 | AA107: 116 | AB107: 119 | AC107: 124 | AD107: 117 | AE107: 115 | AF107: 121 | AG107: 112 | AH107: 120
I108: SD | J108: 36 | K108: =IF(K107="",0,(K107-INDIRECT(CONCATENATE(K106,"CR")))*113/INDIRECT(CONCATENATE(K106,"SR"))) -> 39.11538462 | L108: 44.07862595 | M108: 44.94122137 | N108: 33.03076923 | O108: 40.21732283 | P108: 37.12857143 | Q108: 37.37692308 | R108: 34.59007634 | S108: 50.89448819 | T108: 39.24341085 | U108: 45.45877863 | V108: 31.075 | W108: 24.17867647 | X108: 32.08050847 | Y108: 39.24341085 | Z108: 38.93203125 | AA108: 39.11538462 | AB108: 40.49166667 | AC108: 46.44566929 | AD108: 38.77954545 | AE108: 38.24615385 | AF108: 45.01774194 | AG108: 36.12440945 | AH108: 42.74728682 | AI108: 0 | AJ108: 0 | AK108: 0 | AL108: 0 | AM108: 0 | AN108: 0 | AO108: 0 | AP108: 0 | AQ108: 0 | AR108: 0 | AS108: 0 | AT108: 0 | AU108: 0 | AV108: 0 | AW108: 0 | AX108: 0 | AY108: 0 | AZ108: 0 | BA108: 0 | BB108: 0 | BC108: 0 | BD108: 0 | BE108: 0 | BF108: 0 | BG108: 0 | BH108: 0 | BI108: 0 | BJ108: 0 | BK108: 0 | BL108: 0 | BM108: 0 | BN108: 0 | BO108: 0 | BP108: 0 | BQ108: 0 | BR108: 0 | BS108: 0 | BT108: 0 | BU108: 0 | BV108: 0 | BW108: =IF(BW107="",0,(BW107-INDIRECT(CONCATENATE(BW106,"CR")))*113/INDIRECT(CONCATENATE(BW106,"SR"))) -> 0 | BX108: 0 | BY108: 0 | BZ108: 0 | CA108: 0 | CB108: 0 | CC108: 0 | CD108: 0 | CE108: 0 | CF108: 0 | CG108: 0 | CH108: 0 | CI108: 0 | CJ108: 0 | CK108: 0 | CL108: 0 | CM108: =IF(CM107="",0,(CM107-INDIRECT(CONCATENATE(CM106,"CR")))*113/INDIRECT(CONCATENATE(CM106,"SR"))) -> 0 | CN108: 0 | CO108: =IF(CO107="",0,(CO107-INDIRECT(CONCATENATE(CO106,"CR")))*113/INDIRECT(CONCATENATE(CO106,"SR"))) -> 0 | CP108: 0 | CQ108: =IF(CQ107="",0,(CQ107-INDIRECT(CONCATENATE(CQ106,"CR")))*113/INDIRECT(CONCATENATE(CQ106,"SR"))) -> 0 | CR108: 0 | CS108: =IF(CS107="",0,(CS107-INDIRECT(CONCATENATE(CS106,"CR")))*113/INDIRECT(CONCATENATE(CS106,"SR"))) -> 0 | CT108: 0 | CU108: =IF(CU107="",0,(CU107-INDIRECT(CONCATENATE(CU106,"CR")))*113/INDIRECT(CONCATENATE(CU106,"SR"))) -> 0 | CV108: 0 | CW108: =IF(CW107="",0,(CW107-INDIRECT(CONCATENATE(CW106,"CR")))*113/INDIRECT(CONCATENATE(CW106,"SR"))) -> 0
